Workbook

Sheet Menu

Sheet Espece (2)
A2: Remise en banque espece suivant bordereau ci joint
C5: CHAMPAGNOLE
C6: Le: | D6: =TODAY() -> 2013-04-02
C7: Total: | D7: =SUM(C10:C14) -> 336
B9: Date Facture | C9: Montant | D9: Nom | E9: Facture
B10: =IF(Espece!$G226="",Espece!B226,"") -> 2012-01-27 | C10: =IF(Espece!$G226="",Espece!C226,"") -> 76 | D10: =IF(Espece!$G226="",Espece!D226,"") -> ALBARON | E10: =IF(Espece!$G226="",Espece!E226,"") -> 8297
B11: =IF(Espece!$G227="",Espece!B227,"") -> 2012-02-09 | C11: =IF(Espece!$G227="",Espece!C227,"") -> 91 | D11: =IF(Espece!$G227="",Espece!D227,"") -> ADENOT | E11: =IF(Espece!$G227="",Espece!E227,"") -> 8332
B12: =IF(Espece!$G228="",Espece!B228,"") -> 2012-02-16 | C12: =IF(Espece!$G228="",Espece!C228,"") -> 91 | D12: =IF(Espece!$G228="",Espece!D228,"") -> LIRONY | E12: =IF(Espece!$G228="",Espece!E228,"") -> 8347
B13: =IF(Espece!$G229="",Espece!B229,"") -> 2012-03-07 | C13: =IF(Espece!$G229="",Espece!C229,"") -> 78 | D13: =IF(Espece!$G229="",Espece!D229,"") -> ALBARON | E13: =IF(Espece!$G229="",Espece!E229,"") -> 8409
B14: =IF(Espece!$G232="",Espece!B232,"") -> 00:00:00 | C14: =IF(Espece!$G232="",Espece!C232,"") -> 0 | D14: =IF(Espece!$G232="",Espece!D232,"") -> 00:00:00 | E14: =IF(Espece!$G232="",Espece!E232,"") -> 0
B15: =IF(Espece!$G233="",Espece!B233,"") -> 00:00:00 | C15: =IF(Espece!$G233="",Espece!C233,"") -> 0 | D15: =IF(Espece!$G233="",Espece!D233,"") -> 00:00:00 | E15: =IF(Espece!$G233="",Espece!E233,"") -> 0
B16: =IF(Espece!$G234="",Espece!B234,"") -> 00:00:00 | C16: =IF(Espece!$G234="",Espece!C234,"") -> 0 | D16: =IF(Espece!$G234="",Espece!D234,"") -> 00:00:00 | E16: =IF(Espece!$G234="",Espece!E234,"") -> 0
B17: =IF(Espece!$G235="",Espece!B235,"") -> 00:00:00 | C17: =IF(Espece!$G235="",Espece!C235,"") -> 0 | D17: =IF(Espece!$G235="",Espece!D235,"") -> 00:00:00 | E17: =IF(Espece!$G235="",Espece!E235,"") -> 0
B18: =IF(Espece!$G239="",Espece!B239,"") -> 00:00:00 | C18: =IF(Espece!$G239="",Espece!C239,"") -> 0 | D18: =IF(Espece!$G239="",Espece!D239,"") -> 00:00:00 | E18: =IF(Espece!$G239="",Espece!E239,"") -> 0
B19: =IF(Espece!$G240="",Espece!B240,"") -> 00:00:00 | C19: =IF(Espece!$G240="",Espece!C240,"") -> 0 | D19: =IF(Espece!$G240="",Espece!D240,"") -> 00:00:00 | E19: =IF(Espece!$G240="",Espece!E240,"") -> 0
B20: =IF(Espece!$G241="",Espece!B241,"") -> 00:00:00 | C20: =IF(Espece!$G241="",Espece!C241,"") -> 0 | D20: =IF(Espece!$G241="",Espece!D241,"") -> 00:00:00 | E20: =IF(Espece!$G241="",Espece!E241,"") -> 0
B21: =IF(Espece!$G242="",Espece!B242,"") -> 00:00:00 | C21: =IF(Espece!$G242="",Espece!C242,"") -> 0 | D21: =IF(Espece!$G242="",Espece!D242,"") -> 00:00:00 | E21: =IF(Espece!$G242="",Espece!E242,"") -> 0
B22: =IF(Espece!$G243="",Espece!B243,"") -> 00:00:00 | C22: =IF(Espece!$G243="",Espece!C243,"") -> 0 | D22: =IF(Espece!$G243="",Espece!D243,"") -> 00:00:00 | E22: =IF(Espece!$G243="",Espece!E243,"") -> 0
B23: =IF(Espece!$G244="",Espece!B244,"") -> 00:00:00 | C23: =IF(Espece!$G244="",Espece!C244,"") -> 0 | D23: =IF(Espece!$G244="",Espece!D244,"") -> 00:00:00 | E23: =IF(Espece!$G244="",Espece!E244,"") -> 0
B24: =IF(Espece!$G245="",Espece!B245,"") -> 00:00:00 | C24: =IF(Espece!$G245="",Espece!C245,"") -> 0 | D24: =IF(Espece!$G245="",Espece!D245,"") -> 00:00:00 | E24: =IF(Espece!$G245="",Espece!E245,"") -> 0
B25: =IF(Espece!$G246="",Espece!B246,"") -> 00:00:00 | C25: =IF(Espece!$G246="",Espece!C246,"") -> 0 | D25: =IF(Espece!$G246="",Espece!D246,"") -> 00:00:00 | E25: =IF(Espece!$G246="",Espece!E246,"") -> 0
B26: =IF(Espece!$G247="",Espece!B247,"") -> 00:00:00 | C26: =IF(Espece!$G247="",Espece!C247,"") -> 0 | D26: =IF(Espece!$G247="",Espece!D247,"") -> 00:00:00 | E26: =IF(Espece!$G247="",Espece!E247,"") -> 0
B27: =IF(Espece!$G248="",Espece!B248,"") -> 00:00:00 | C27: =IF(Espece!$G248="",Espece!C248,"") -> 0 | D27: =IF(Espece!$G248="",Espece!D248,"") -> 00:00:00 | E27: =IF(Espece!$G248="",Espece!E248,"") -> 0
B28: =IF(Espece!$G249="",Espece!B249,"") -> 00:00:00 | C28: =IF(Espece!$G249="",Espece!C249,"") -> 0 | D28: =IF(Espece!$G249="",Espece!D249,"") -> 00:00:00 | E28: =IF(Espece!$G249="",Espece!E249,"") -> 0
B29: =IF(Espece!$G250="",Espece!B250,"") -> 00:00:00 | C29: =IF(Espece!$G250="",Espece!C250,"") -> 0 | D29: =IF(Espece!$G250="",Espece!D250,"") -> 00:00:00 | E29: =IF(Espece!$G250="",Espece!E250,"") -> 0
B30: =IF(Espece!$G251="",Espece!B251,"") -> 00:00:00 | C30: =IF(Espece!$G251="",Espece!C251,"") -> 0 | D30: =IF(Espece!$G251="",Espece!D251,"") -> 00:00:00 | E30: =IF(Espece!$G251="",Espece!E251,"") -> 0
B31: =IF(Espece!$G252="",Espece!B252,"") -> 00:00:00 | C31: =IF(Espece!$G252="",Espece!C252,"") -> 0 | D31: =IF(Espece!$G252="",Espece!D252,"") -> 00:00:00 | E31: =IF(Espece!$G252="",Espece!E252,"") -> 0
B32: =IF(Espece!$G253="",Espece!B253,"") -> 00:00:00 | C32: =IF(Espece!$G253="",Espece!C253,"") -> 0 | D32: =IF(Espece!$G253="",Espece!D253,"") -> 00:00:00 | E32: =IF(Espece!$G253="",Espece!E253,"") -> 0
B33: =IF(Espece!$G254="",Espece!B254,"") -> 00:00:00 | C33: =IF(Espece!$G254="",Espece!C254,"") -> 0 | D33: =IF(Espece!$G254="",Espece!D254,"") -> 00:00:00 | E33: =IF(Espece!$G254="",Espece!E254,"") -> 0
B34: =IF(Espece!$G255="",Espece!B255,"") -> 00:00:00 | C34: =IF(Espece!$G255="",Espece!C255,"") -> 0 | D34: =IF(Espece!$G255="",Espece!D255,"") -> 00:00:00 | E34: =IF(Espece!$G255="",Espece!E255,"") -> 0
B35: =IF(Espece!$G256="",Espece!B256,"") -> 00:00:00 | C35: =IF(Espece!$G256="",Espece!C256,"") -> 0 | D35: =IF(Espece!$G256="",Espece!D256,"") -> 00:00:00 | E35: =IF(Espece!$G256="",Espece!E256,"") -> 0
B36: =IF(Espece!$G257="",Espece!B257,"") -> 00:00:00 | C36: =IF(Espece!$G257="",Espece!C257,"") -> 0 | D36: =IF(Espece!$G257="",Espece!D257,"") -> 00:00:00 | E36: =IF(Espece!$G257="",Espece!E257,"") -> 0
B37: =IF(Espece!$G258="",Espece!B258,"") -> 00:00:00 | C37: =IF(Espece!$G258="",Espece!C258,"") -> 0 | D37: =IF(Espece!$G258="",Espece!D258,"") -> 00:00:00 | E37: =IF(Espece!$G258="",Espece!E258,"") -> 0
B38: =IF(Espece!$G259="",Espece!B259,"") -> 00:00:00 | C38: =IF(Espece!$G259="",Espece!C259,"") -> 0 | D38: =IF(Espece!$G259="",Espece!D259,"") -> 00:00:00 | E38: =IF(Espece!$G259="",Espece!E259,"") -> 0
B39: =IF(Espece!$G260="",Espece!B260,"") -> 00:00:00 | C39: =IF(Espece!$G260="",Espece!C260,"") -> 0 | D39: =IF(Espece!$G260="",Espece!D260,"") -> 00:00:00 | E39: =IF(Espece!$G260="",Espece!E260,"") -> 0
B40: =IF(Espece!$G261="",Espece!B261,"") -> 00:00:00 | C40: =IF(Espece!$G261="",Espece!C261,"") -> 0 | D40: =IF(Espece!$G261="",Espece!D261,"") -> 00:00:00 | E40: =IF(Espece!$G261="",Espece!E261,"") -> 0
B41: =IF(Espece!$G262="",Espece!B262,"") -> 00:00:00 | C41: =IF(Espece!$G262="",Espece!C262,"") -> 0 | D41: =IF(Espece!$G262="",Espece!D262,"") -> 00:00:00 | E41: =IF(Espece!$G262="",Espece!E262,"") -> 0
B42: =IF(Espece!$G263="",Espece!B263,"") -> 00:00:00 | C42: =IF(Espece!$G263="",Espece!C263,"") -> 0 | D42: =IF(Espece!$G263="",Espece!D263,"") -> 00:00:00 | E42: =IF(Espece!$G263="",Espece!E263,"") -> 0
B43: =IF(Espece!$G264="",Espece!B264,"") -> 00:00:00 | C43: =IF(Espece!$G264="",Espece!C264,"") -> 0 | D43: =IF(Espece!$G264="",Espece!D264,"") -> 00:00:00 | E43: =IF(Espece!$G264="",Espece!E264,"") -> 0
B44: =IF(Espece!$G265="",Espece!B265,"") -> 00:00:00 | C44: =IF(Espece!$G265="",Espece!C265,"") -> 0 | D44: =IF(Espece!$G265="",Espece!D265,"") -> 00:00:00 | E44: =IF(Espece!$G265="",Espece!E265,"") -> 0
B45: =IF(Espece!$G266="",Espece!B266,"") -> 00:00:00 | C45: =IF(Espece!$G266="",Espece!C266,"") -> 0 | D45: =IF(Espece!$G266="",Espece!D266,"") -> 00:00:00 | E45: =IF(Espece!$G266="",Espece!E266,"") -> 0
B46: =IF(Espece!$G267="",Espece!B267,"") -> 00:00:00 | C46: =IF(Espece!$G267="",Espece!C267,"") -> 0 | D46: =IF(Espece!$G267="",Espece!D267,"") -> 00:00:00 | E46: =IF(Espece!$G267="",Espece!E267,"") -> 0
B47: =IF(Espece!$G268="",Espece!B268,"") -> 00:00:00 | C47: =IF(Espece!$G268="",Espece!C268,"") -> 0 | D47: =IF(Espece!$G268="",Espece!D268,"") -> 00:00:00 | E47: =IF(Espece!$G268="",Espece!E268,"") -> 0
B48: =IF(Espece!$G269="",Espece!B269,"") -> 00:00:00 | C48: =IF(Espece!$G269="",Espece!C269,"") -> 0 | D48: =IF(Espece!$G269="",Espece!D269,"") -> 00:00:00 | E48: =IF(Espece!$G269="",Espece!E269,"") -> 0
B49: =IF(Espece!$G270="",Espece!B270,"") -> 00:00:00 | C49: =IF(Espece!$G270="",Espece!C270,"") -> 0 | D49: =IF(Espece!$G270="",Espece!D270,"") -> 00:00:00 | E49: =IF(Espece!$G270="",Espece!E270,"") -> 0
B50: =IF(Espece!$G271="",Espece!B271,"") -> 00:00:00 | C50: =IF(Espece!$G271="",Espece!C271,"") -> 0 | D50: =IF(Espece!$G271="",Espece!D271,"") -> 00:00:00 | E50: =IF(Espece!$G271="",Espece!E271,"") -> 0
B51: =IF(Espece!$G272="",Espece!B272,"") -> 00:00:00 | C51: =IF(Espece!$G272="",Espece!C272,"") -> 0 | D51: =IF(Espece!$G272="",Espece!D272,"") -> 00:00:00 | E51: =IF(Espece!$G272="",Espece!E272,"") -> 0
B52: =IF(Espece!$G273="",Espece!B273,"") -> 00:00:00 | C52: =IF(Espece!$G273="",Espece!C273,"") -> 0 | D52: =IF(Espece!$G273="",Espece!D273,"") -> 00:00:00 | E52: =IF(Espece!$G273="",Espece!E273,"") -> 0
B53: =IF(Espece!$G274="",Espece!B274,"") -> 00:00:00 | C53: =IF(Espece!$G274="",Espece!C274,"") -> 0 | D53: =IF(Espece!$G274="",Espece!D274,"") -> 00:00:00 | E53: =IF(Espece!$G274="",Espece!E274,"") -> 0
B54: =IF(Espece!$G275="",Espece!B275,"") -> 00:00:00 | C54: =IF(Espece!$G275="",Espece!C275,"") -> 0 | D54: =IF(Espece!$G275="",Espece!D275,"") -> 00:00:00 | E54: =IF(Espece!$G275="",Espece!E275,"") -> 0
B55: =IF(Espece!$G276="",Espece!B276,"") -> 00:00:00 | C55: =IF(Espece!$G276="",Espece!C276,"") -> 0 | D55: =IF(Espece!$G276="",Espece!D276,"") -> 00:00:00 | E55: =IF(Espece!$G276="",Espece!E276,"") -> 0
B56: =IF(Espece!$G277="",Espece!B277,"") -> 00:00:00 | C56: =IF(Espece!$G277="",Espece!C277,"") -> 0 | D56: =IF(Espece!$G277="",Espece!D277,"") -> 00:00:00 | E56: =IF(Espece!$G277="",Espece!E277,"") -> 0
B57: =IF(Espece!$G278="",Espece!B278,"") -> 00:00:00 | C57: =IF(Espece!$G278="",Espece!C278,"") -> 0 | D57: =IF(Espece!$G278="",Espece!D278,"") -> 00:00:00 | E57: =IF(Espece!$G278="",Espece!E278,"") -> 0
B58: =IF(Espece!$G279="",Espece!B279,"") -> 00:00:00 | C58: =IF(Espece!$G279="",Espece!C279,"") -> 0 | D58: =IF(Espece!$G279="",Espece!D279,"") -> 00:00:00 | E58: =IF(Espece!$G279="",Espece!E279,"") -> 0
B59: =IF(Espece!$G280="",Espece!B280,"") -> 00:00:00 | C59: =IF(Espece!$G280="",Espece!C280,"") -> 0 | D59: =IF(Espece!$G280="",Espece!D280,"") -> 00:00:00 | E59: =IF(Espece!$G280="",Espece!E280,"") -> 0
B60: =IF(Espece!$G281="",Espece!B281,"") -> 00:00:00 | C60: =IF(Espece!$G281="",Espece!C281,"") -> 0 | D60: =IF(Espece!$G281="",Espece!D281,"") -> 00:00:00 | E60: =IF(Espece!$G281="",Espece!E281,"") -> 0
B61: =IF(Espece!$G282="",Espece!B282,"") -> 00:00:00 | C61: =IF(Espece!$G282="",Espece!C282,"") -> 0 | D61: =IF(Espece!$G282="",Espece!D282,"") -> 00:00:00 | E61: =IF(Espece!$G282="",Espece!E282,"") -> 0
B62: =IF(Espece!$G283="",Espece!B283,"") -> 00:00:00 | C62: =IF(Espece!$G283="",Espece!C283,"") -> 0 | D62: =IF(Espece!$G283="",Espece!D283,"") -> 00:00:00 | E62: =IF(Espece!$G283="",Espece!E283,"") -> 0
B63: =IF(Espece!$G284="",Espece!B284,"") -> 00:00:00 | C63: =IF(Espece!$G284="",Espece!C284,"") -> 0 | D63: =IF(Espece!$G284="",Espece!D284,"") -> 00:00:00 | E63: =IF(Espece!$G284="",Espece!E284,"") -> 0
B64: =IF(Espece!$G285="",Espece!B285,"") -> 00:00:00 | C64: =IF(Espece!$G285="",Espece!C285,"") -> 0 | D64: =IF(Espece!$G285="",Espece!D285,"") -> 00:00:00 | E64: =IF(Espece!$G285="",Espece!E285,"") -> 0
B65: =IF(Espece!$G286="",Espece!B286,"") -> 00:00:00 | C65: =IF(Espece!$G286="",Espece!C286,"") -> 0 | D65: =IF(Espece!$G286="",Espece!D286,"") -> 00:00:00 | E65: =IF(Espece!$G286="",Espece!E286,"") -> 0
B66: =IF(Espece!$G287="",Espece!B287,"") -> 00:00:00 | C66: =IF(Espece!$G287="",Espece!C287,"") -> 0 | D66: =IF(Espece!$G287="",Espece!D287,"") -> 00:00:00 | E66: =IF(Espece!$G287="",Espece!E287,"") -> 0
B67: =IF(Espece!$G288="",Espece!B288,"") -> 00:00:00 | C67: =IF(Espece!$G288="",Espece!C288,"") -> 0 | D67: =IF(Espece!$G288="",Espece!D288,"") -> 00:00:00 | E67: =IF(Espece!$G288="",Espece!E288,"") -> 0
B68: =IF(Espece!$G289="",Espece!B289,"") -> 00:00:00 | C68: =IF(Espece!$G289="",Espece!C289,"") -> 0 | D68: =IF(Espece!$G289="",Espece!D289,"") -> 00:00:00 | E68: =IF(Espece!$G289="",Espece!E289,"") -> 0
B69: =IF(Espece!$G290="",Espece!B290,"") -> 00:00:00 | C69: =IF(Espece!$G290="",Espece!C290,"") -> 0 | D69: =IF(Espece!$G290="",Espece!D290,"") -> 00:00:00 | E69: =IF(Espece!$G290="",Espece!E290,"") -> 0
B70: =IF(Espece!$G291="",Espece!B291,"") -> 00:00:00 | C70: =IF(Espece!$G291="",Espece!C291,"") -> 0 | D70: =IF(Espece!$G291="",Espece!D291,"") -> 00:00:00 | E70: =IF(Espece!$G291="",Espece!E291,"") -> 0
B71: =IF(Espece!$G292="",Espece!B292,"") -> 00:00:00 | C71: =IF(Espece!$G292="",Espece!C292,"") -> 0 | D71: =IF(Espece!$G292="",Espece!D292,"") -> 00:00:00 | E71: =IF(Espece!$G292="",Espece!E292,"") -> 0
B72: =IF(Espece!$G293="",Espece!B293,"") -> 00:00:00 | C72: =IF(Espece!$G293="",Espece!C293,"") -> 0 | D72: =IF(Espece!$G293="",Espece!D293,"") -> 00:00:00 | E72: =IF(Espece!$G293="",Espece!E293,"") -> 0
B73: =IF(Espece!$G294="",Espece!B294,"") -> 00:00:00 | C73: =IF(Espece!$G294="",Espece!C294,"") -> 0 | D73: =IF(Espece!$G294="",Espece!D294,"") -> 00:00:00 | E73: =IF(Espece!$G294="",Espece!E294,"") -> 0
B74: =IF(Espece!$G295="",Espece!B295,"") -> 00:00:00 | C74: =IF(Espece!$G295="",Espece!C295,"") -> 0 | D74: =IF(Espece!$G295="",Espece!D295,"") -> 00:00:00 | E74: =IF(Espece!$G295="",Espece!E295,"") -> 0
B75: =IF(Espece!$G296="",Espece!B296,"") -> 00:00:00 | C75: =IF(Espece!$G296="",Espece!C296,"") -> 0 | D75: =IF(Espece!$G296="",Espece!D296,"") -> 00:00:00 | E75: =IF(Espece!$G296="",Espece!E296,"") -> 0
B76: =IF(Espece!$G297="",Espece!B297,"") -> 00:00:00 | C76: =IF(Espece!$G297="",Espece!C297,"") -> 0 | D76: =IF(Espece!$G297="",Espece!D297,"") -> 00:00:00 | E76: =IF(Espece!$G297="",Espece!E297,"") -> 0
B77: =IF(Espece!$G298="",Espece!B298,"") -> 00:00:00 | C77: =IF(Espece!$G298="",Espece!C298,"") -> 0 | D77: =IF(Espece!$G298="",Espece!D298,"") -> 00:00:00 | E77: =IF(Espece!$G298="",Espece!E298,"") -> 0
B78: =IF(Espece!$G299="",Espece!B299,"") -> 00:00:00 | C78: =IF(Espece!$G299="",Espece!C299,"") -> 0 | D78: =IF(Espece!$G299="",Espece!D299,"") -> 00:00:00 | E78: =IF(Espece!$G299="",Espece!E299,"") -> 0
B79: =IF(Espece!$G300="",Espece!B300,"") -> 00:00:00 | C79: =IF(Espece!$G300="",Espece!C300,"") -> 0 | D79: =IF(Espece!$G300="",Espece!D300,"") -> 00:00:00 | E79: =IF(Espece!$G300="",Espece!E300,"") -> 0
B80: =IF(Espece!$G301="",Espece!B301,"") -> 00:00:00 | C80: =IF(Espece!$G301="",Espece!C301,"") -> 0 | D80: =IF(Espece!$G301="",Espece!D301,"") -> 00:00:00 | E80: =IF(Espece!$G301="",Espece!E301,"") -> 0
B81: =IF(Espece!$G302="",Espece!B302,"") -> 00:00:00 | C81: =IF(Espece!$G302="",Espece!C302,"") -> 0 | D81: =IF(Espece!$G302="",Espece!D302,"") -> 00:00:00 | E81: =IF(Espece!$G302="",Espece!E302,"") -> 0
B82: =IF(Espece!$G303="",Espece!B303,"") -> 00:00:00 | C82: =IF(Espece!$G303="",Espece!C303,"") -> 0 | D82: =IF(Espece!$G303="",Espece!D303,"") -> 00:00:00 | E82: =IF(Espece!$G303="",Espece!E303,"") -> 0
B83: =IF(Espece!$G304="",Espece!B304,"") -> 00:00:00 | C83: =IF(Espece!$G304="",Espece!C304,"") -> 0 | D83: =IF(Espece!$G304="",Espece!D304,"") -> 00:00:00 | E83: =IF(Espece!$G304="",Espece!E304,"") -> 0
B84: =IF(Espece!$G305="",Espece!B305,"") -> 00:00:00 | C84: =IF(Espece!$G305="",Espece!C305,"") -> 0 | D84: =IF(Espece!$G305="",Espece!D305,"") -> 00:00:00 | E84: =IF(Espece!$G305="",Espece!E305,"") -> 0
B85: =IF(Espece!$G306="",Espece!B306,"") -> 00:00:00 | C85: =IF(Espece!$G306="",Espece!C306,"") -> 0 | D85: =IF(Espece!$G306="",Espece!D306,"") -> 00:00:00 | E85: =IF(Espece!$G306="",Espece!E306,"") -> 0
B86: =IF(Espece!$G307="",Espece!B307,"") -> 00:00:00 | C86: =IF(Espece!$G307="",Espece!C307,"") -> 0 | D86: =IF(Espece!$G307="",Espece!D307,"") -> 00:00:00 | E86: =IF(Espece!$G307="",Espece!E307,"") -> 0
B87: =IF(Espece!$G308="",Espece!B308,"") -> 00:00:00 | C87: =IF(Espece!$G308="",Espece!C308,"") -> 0 | D87: =IF(Espece!$G308="",Espece!D308,"") -> 00:00:00 | E87: =IF(Espece!$G308="",Espece!E308,"") -> 0
B88: =IF(Espece!$G309="",Espece!B309,"") -> 00:00:00 | C88: =IF(Espece!$G309="",Espece!C309,"") -> 0 | D88: =IF(Espece!$G309="",Espece!D309,"") -> 00:00:00 | E88: =IF(Espece!$G309="",Espece!E309,"") -> 0
B89: =IF(Espece!$G310="",Espece!B310,"") -> 00:00:00 | C89: =IF(Espece!$G310="",Espece!C310,"") -> 0 | D89: =IF(Espece!$G310="",Espece!D310,"") -> 00:00:00 | E89: =IF(Espece!$G310="",Espece!E310,"") -> 0
B90: =IF(Espece!$G311="",Espece!B311,"") -> 00:00:00 | C90: =IF(Espece!$G311="",Espece!C311,"") -> 0 | D90: =IF(Espece!$G311="",Espece!D311,"") -> 00:00:00 | E90: =IF(Espece!$G311="",Espece!E311,"") -> 0

Sheet RDV 07 (hidden)
D2: =COUNTIF(F$19:F$446,"p") -> 149 | E2: Présent | J2: Heures/mois | P2: % AUXILIAIRE
J3: temps | L3: temps
D4: =H448-D6+46 -> 51.5 | E4: Heures restantes à récupérer | J4: centre | K4: centre +auxiliaire | M4: centre | N4: centre +auxiliaire
D6: =SUM(I19:I446) -> 50 | E6: Heures récupérées | H6: JANVIER | J6: =DSUM($A$18:$G$446,J3,Données1!A3:B3) ->  | K6: =G54+H54 -> 160 | L6: JUILLET | M6: =DSUM($A$18:$G$446,L3,Données1!A14:B15) -> 126 | N6: =G267+H267 -> 147 | P6: =D14/D2*100 -> 32.2147651
J7: temps | K7: =G55 -> 7 | M7: temps
E8: Rendez-vous | H8: FEVRIER | J8: =DSUM($A$18:$G$446,J7,Données1!A4:B5) -> 90.5 | K8: =G87+H87 -> 137.5 | L8: AOUT | M8: =DSUM($A$18:$G$446,M7,Données1!A16:B17) -> 126 | N8: =G303+H303 -> 158
D9: TEMPS | J9: temps | K9: =G57 -> 0 | M9: temps
D10: =COUNTIF(F$19:F$446,"f") -> 8 | E10: Formation | H10: MARS | J10: =DSUM($A$18:$G$446,J9,Données1!A6:B7) -> 130 | K10: =G123+H123 -> 147 | L10: SEPTEMBRE | M10: =DSUM($A$18:$G$446,M9,Données1!A18:B19) -> 28 | N10: =G338+H338 -> 35
J11: temps | M11: temps
D12: =COUNTIF(F$19:F$446,"v") -> 17 | E12: Vacances | H12: AVRIL | J12: =DSUM($A$18:$G$446,J11,Données1!A8:B9) -> 70 | K12: =G159+H159 -> 110 | L12: OCTOBRE | M12: =DSUM($A$18:$G$446,M11,Données1!A20:B21) -> 98 | N12: =G375+H375 -> 165
D13: =COUNTIF(F$19:F$446,"m") -> 0 | J13: temps | M13: temps | Q13: =D13/#REF!*100 -> 
D14: =COUNTIF(F$19:F$446,"e") -> 48 | E14: Extérieur | H14: MAI | J14: =DSUM($A$18:$G$446,J13,Données1!A10:B11) -> 96 | K14: =G195+H195 -> 137 | L14: NOVEMBRE | M14: =DSUM($A$18:$G$446,M13,Données1!A22:B23) -> 70 | N14: =G410+H410 -> 113
J15: temps | M15: temps
D16: =COUNTIF(F$19:F$446,"M") -> 0 | E16: Maladie | H16: JUIN | J16: =DSUM($A$18:$G$446,J15,Données1!A12:B13) -> 84 | K16: =G230+H230 -> 117 | L16: DECEMBRE | M16: =DSUM($A$18:$G$446,M15,Données1!A24:B25) -> 0 | N16: =G447+H447 -> 0
A18: M | B18: S | C18: J | D18: Date | F18: Pointage | G18: temps | H18: Heure sup | I18: Heures recup | J18: RENDEZ VOUS
A19: =MONTH(D19) -> 1 | B19: =NO.SEMAINE(D19,2)-1 ->  | C19: 2 | D19: 2007-01-01 | E19: =IF(D19,Données1!W5) -> Jour de l'An | J19: ETAIN
A20: =MONTH(D20) -> 1 | C20: 3 | D20: 2007-01-02 | E20: =IF(D20,Données1!W6) -> St Basile | F20: p | G20: 7
A21: 1 | C21: 4 | D21: 2007-01-03 | E21: =IF(D21,Données1!W7) -> Ste Geneviève | F21: e | G21: 7 | H21: 3 | J21: Rumilly
A22: 1 | C22: 5 | D22: 2007-01-04 | E22: =IF(D22,Données1!W8) -> St Odilon | F22: p | G22: 7
A23: 1 | C23: 6 | D23: 2007-01-05 | E23: =IF(D23,Données1!W9) -> St Edouard | F23: p | G23: 6.5 | I23: 0.5
A24: 1 | C24: 7 | D24: 2007-01-06 | E24: =IF(D24,Données1!W10) -> Ste Melaine
A25: 1 | C25: 8 | D25: 2007-01-07 | E25: =IF(D25,Données1!W11) -> St Raymond
A27: 1 | B27: =NO.SEMAINE(D27,2)-1 ->  | C27: 9 | D27: 2007-01-08 | E27: =IF(D27,Données1!W12) -> St Lucien | F27: p | G27: 7
A28: =MONTH(D28) -> 1 | C28: 10 | D28: 2007-01-09 | E28: =IF(D28,Données1!W13) -> Ste Alix | F28: p | G28: 7
A29: 1 | C29: 11 | D29: 2007-01-10 | E29: =IF(D29,Données1!W14) -> St Guillaume | F29: e | G29: 7 | J29: Pouilly en Auxois
A30: 1 | C30: 12 | D30: 2007-01-11 | E30: =IF(D30,Données1!W15) -> St Paulin | F30: p | G30: 6.5 | I30: 0.5 | J30: OPHTALMO | N30: 17:15:00
A31: 1 | C31: 13 | D31: 2007-01-12 | E31: =IF(D31,Données1!W16) -> Ste Tatiana | F31: p | G31: 6.5 | I31: 0.5
A32: 1 | C32: 14 | D32: 2007-01-13 | E32: =IF(D32,Données1!W17) -> Ste Yvette
A33: 1 | C33: 15 | D33: 2007-01-14 | E33: =IF(D33,Données1!W18) -> Ste Nina
A35: 1 | B35: =NO.SEMAINE(D35,2)-1 ->  | C35: 16 | D35: 2007-01-15 | E35: =IF(D35,Données1!W19) -> St Rémi | F35: p | G35: 7 | H35: 2.5 | J35: Panne banc freinage | O35: INTERVENTION à 18h45
A36: =MONTH(D36) -> 1 | C36: 17 | D36: 2007-01-16 | E36: =IF(D36,Données1!W20) -> St Marcel | F36: p | G36: 7 | J36: Panne banc freinage
A37: 1 | C37: 18 | D37: 2007-01-17 | E37: =IF(D37,Données1!W21) -> Ste Roseline | F37: e | G37: 7 | J37: Sennecé les Macon supervision DRIRE
A38: 1 | C38: 19 | D38: 2007-01-18 | E38: =IF(D38,Données1!W22) -> Ste Prisca | F38: p | G38: 7
A39: 1 | C39: 20 | D39: 2007-01-19 | E39: =IF(D39,Données1!W23) -> St Marius | F39: p | G39: 7 | J39: DENTISTE | N39: 17:00:00
A40: 1 | C40: 21 | D40: 2007-01-20 | E40: =IF(D40,Données1!W24) -> St Sébastien
A41: 1 | C41: 22 | D41: 2007-01-21 | E41: =IF(D41,Données1!W25) -> Ste Agnès
A43: 1 | B43: =NO.SEMAINE(D43,2)-1 ->  | C43: 23 | D43: 2007-01-22 | E43: =IF(D43,Données1!W26) -> St Vincent | F43: p | G43: 7
A44: =MONTH(D44) -> 1 | C44: 24 | D44: 2007-01-23 | E44: =IF(D44,Données1!W27) -> St Barnard | F44: p | G44: 6.5 | I44: 0.5
A45: 1 | C45: 25 | D45: 2007-01-24 | E45: =IF(D45,Données1!W28) -> St François de Sales | F45: e | G45: 7 | H45: 3 | J45: Rumilly Liaison informatique otc impossible
A46: 1 | C46: 26 | D46: 2007-01-25 | E46: =IF(D46,Données1!W29) -> Convers. de St Paul | F46: p | G46: 6.5 | I46: 0.5
A47: 1 | C47: 27 | D47: 2007-01-26 | E47: =IF(D47,Données1!W30) -> Ste Paule | F47: p | G47: 7
A48: 1 | C48: 28 | D48: 2007-01-27 | E48: =IF(D48,Données1!W31) -> Ste Angel
A49: 1 | C49: 29 | D49: 2007-01-28 | E49: =IF(D49,Données1!W32) -> St Thomas d'Aquin
A51: 1 | B51: =NO.SEMAINE(D51,2)-1 ->  | C51: 30 | D51: 2007-01-29 | E51: =IF(D51,Données1!W33) -> St Gildas | F51: p | G51: 7 | J51: PANNE Porte sortie + Plaques
A52: =MONTH(D52) -> 1 | B52: =NO.SEMAINE(D52,2)-1 ->  | C52: 31 | D52: 2007-01-30 | E52: =IF(D52,Données1!W34) -> Ste Martine | F52: p | G52: 7
A53: 1 | B53: =NO.SEMAINE(D53,2)-1 ->  | C53: 32 | D53: 2007-01-31 | E53: =IF(D53,Données1!W35) -> Ste Marcelle | F53: e | G53: 7 | J53: Pouilly en Auxois
G54: =SUM(G19:G53) -> 151.5 | H54: =SUM(H19:H53) -> 8.5
A55: 2 | B55: =NO.SEMAINE(D55,2)-1 ->  | C55: 33 | D55: 2007-02-01 | E55: =IF(D55,Données1!W36) -> Ste Ella | F55: p | G55: 7 | J55: Entretien Opacimetre
A56: 2 | B56: =NO.SEMAINE(D56,2)-1 ->  | C56: 34 | D56: 2007-02-02 | E56: =IF(D56,Données1!W37) -> Prés. du Seigneur | F56: p | G56: 7 | J56: RADIO CLO | N56: 15:00:00
A57: 2 | B57: =NO.SEMAINE(D57,2)-1 ->  | C57: 35 | D57: 2007-02-03 | E57: =IF(D57,Données1!W38) -> St Blaise
A58: 2 | B58: =NO.SEMAINE(D58,2)-1 ->  | C58: 36 | D58: 2007-02-04 | E58: =IF(D58,Données1!W39) -> Ste Véronique
A60: 2 | B60: =NO.SEMAINE(D60,2)-1 ->  | C60: 37 | D60: 2007-02-05 | E60: =IF(D60,Données1!W40) -> Ste Agathe | F60: p | G60: 7 | J60: Supervision F. MERLET
A61: =MONTH(D61) -> 2 | C61: 38 | D61: 2007-02-06 | E61: =IF(D61,Données1!W41) -> St Gaston | F61: p | G61: 7 | J61: CARDIO | N61: 17:30:00
A62: 2 | C62: 39 | D62: 2007-02-07 | E62: =IF(D62,Données1!W42) -> Ste Eugénie | F62: e | G62: 7 | J62: Rumilly
A63: 2 | C63: 40 | D63: 2007-02-08 | E63: =IF(D63,Données1!W43) -> Ste Jacqueline | F63: e | G63: 7 | H63: 2 | J63: Cordesse PB informatique
A64: 2 | C64: 41 | D64: 2007-02-09 | E64: =IF(D64,Données1!W44) -> Ste Apolline | F64: p | G64: 7
A65: 2 | C65: 42 | D65: 2007-02-10 | E65: =IF(D65,Données1!W45) -> St Arnaud
A66: 2 | C66: 43 | D66: 2007-02-11 | E66: =IF(D66,Données1!W46) -> N.-D. de Lourdes
A68: 2 | B68: =NO.SEMAINE(D68,2)-1 ->  | C68: 44 | D68: 2007-02-12 | E68: =IF(D68,Données1!W47) -> St Félix | F68: e | G68: 7 | J68: Meyhet
A69: =MONTH(D69) -> 2 | C69: 45 | D69: 2007-02-13 | E69: =IF(D69,Données1!W48) -> Ste Béatrice | F69: p | G69: 7
A70: 2 | C70: 46 | D70: 2007-02-14 | E70: =IF(D70,Données1!W49) -> St Valentin | F70: e | G70: 7 | J70: Sennecé les Macon
A71: 2 | C71: 47 | D71: 2007-02-15 | E71: =IF(D71,Données1!W50) -> St Claude | F71: p | G71: 6.5 | I71: 0.5
A72: 2 | C72: 48 | D72: 2007-02-16 | E72: =IF(D72,Données1!W51) -> Ste Julienne | I72: 7 | J72: Recup + (location Scenic 259€) ETAIN
A73: 2 | C73: 49 | D73: 2007-02-17 | E73: =IF(D73,Données1!W52) -> St Alexis | J73: ETAIN
A74: 2 | C74: 50 | D74: 2007-02-18 | E74: =IF(D74,Données1!W53) -> Ste Bernadette | J74: ETAIN
A76: 2 | B76: =NO.SEMAINE(D76,2)-1 ->  | C76: 51 | D76: 2007-02-19 | E76: =IF(D76,Données1!W54) -> St Gabin | F76: p | G76: 7 | J76: Etalonnage banc freinage
A77: =MONTH(D77) -> 2 | C77: 52 | D77: 2007-02-20 | E77: =IF(D77,Données1!W55) -> Ste Aimée | F77: p | G77: 7
A78: 2 | C78: 53 | D78: 2007-02-21 | E78: =IF(D78,Données1!W56) -> St P. Damien | F78: e | G78: 7 | J78: Pouilly en Auxois Audit qualite | O78: Remy depart de Dijon
A79: 2 | C79: 54 | D79: 2007-02-22 | E79: =IF(D79,Données1!W57) -> Ste Isabelle | F79: p | G79: 7 | J79: DENTISTE | N79: 17:00:00
A80: 2 | C80: 55 | D80: 2007-02-23 | E80: =IF(D80,Données1!W58) -> St Lazare | F80: p | G80: 7
A81: 2 | C81: 56 | D81: 2007-02-24 | E81: =IF(D81,Données1!W59) -> St Modeste
A82: 2 | C82: 57 | D82: 2007-02-25 | E82: =IF(D82,Données1!W60) -> St Roméo
A84: 2 | B84: =NO.SEMAINE(D84,2)-1 ->  | C84: 58 | D84: 2007-02-26 | E84: =IF(D84,Données1!W61) -> St Nestor | F84: p | G84: 7
A85: =MONTH(D85) -> 2 | B85: =NO.SEMAINE(D85,2)-1 ->  | C85: 59 | D85: 2007-02-27 | E85: =IF(D85,Données1!W62) -> St Honorine | F85: p | G85: 7
A86: 2 | B86: =NO.SEMAINE(D86,2)-1 ->  | C86: 60 | D86: 2007-02-28 | E86: =IF(D86,Données1!W63) -> St Romain | F86: e | G86: 7 | H86: 3 | J86: Rumilly Pb informatique
G87: =SUM(G55:G86) -> 132.5 | H87: =SUM(H55:H86) -> 5
A88: 3 | B88: =NO.SEMAINE(D88,2)-1 ->  | C88: 61 | D88: 2007-03-01 | E88: =IF(D88,Données1!W65) -> St Aubin | F88: p | G88: 7 | J88: Docteur CLO | N88: 18:00:00
A89: 3 | B89: =NO.SEMAINE(D89,2)-1 ->  | C89: 62 | D89: 2007-03-02 | E89: =IF(D89,Données1!W66) -> St Charles le Bon | F89: p | G89: 6 | I89: 1 | J89: URGENCE DENTISTE + | N89: 13:00:00
A90: 3 | B90: =NO.SEMAINE(D90,2)-1 ->  | C90: 63 | D90: 2007-03-03 | E90: =IF(D90,Données1!W67) -> St Gwénolé | J90: BELFORT
A91: 3 | B91: =NO.SEMAINE(D91,2)-1 ->  | C91: 64 | D91: 2007-03-04 | E91: =IF(D91,Données1!W68) -> St Casimir | J91: BELFORT
A93: 3 | B93: =NO.SEMAINE(D93,2)-1 ->  | C93: 65 | D93: 2007-03-05 | E93: =IF(D93,Données1!W69) -> Ste Olivia | F93: p | G93: 7 | O93: PANNE INTERNET
A94: =MONTH(D94) -> 3 | C94: 66 | D94: 2007-03-06 | E94: =IF(D94,Données1!W70) -> Ste Colette | F94: p | G94: 7
A95: 3 | C95: 67 | D95: 2007-03-07 | E95: =IF(D95,Données1!W71) -> Ste Félicité | F95: p | G95: 7 | J95: LETTRE DRIRE
A96: 3 | C96: 68 | D96: 2007-03-08 | E96: =IF(D96,Données1!W72) -> St Jean-de-Dieu | F96: p | G96: 7 | J96: DENTISTE | N96: 13:00:00
A97: 3 | C97: 69 | D97: 2007-03-09 | E97: =IF(D97,Données1!W73) -> Ste Françoise R. | F97: p | G97: 7 | J97: AUDIT QUALITE | O97: INTERNET VERIF (pas venu)
A98: 3 | C98: 70 | D98: 2007-03-10 | E98: =IF(D98,Données1!W74) -> St Vivien
A99: 3 | C99: 71 | D99: 2007-03-11 | E99: =IF(D99,Données1!W75) -> Ste Rosine
A101: 3 | B101: =NO.SEMAINE(D101,2)-1 ->  | C101: 72 | D101: 2007-03-12 | E101: =IF(D101,Données1!W76) -> Ste Justine | F101: p | G101: 7 | J101: SIDEF
A102: =MONTH(D102) -> 3 | C102: 73 | D102: 2007-03-13 | E102: =IF(D102,Données1!W77) -> St Rodrigue | F102: p | G102: 5 | I102: 2 | J102: AUDIT DRIRE | O102: INTERNET VERIF
A103: 3 | C103: 74 | D103: 2007-03-14 | E103: =IF(D103,Données1!W78) -> Ste Mathilde | F103: p | G103: 7
A104: 3 | C104: 75 | D104: 2007-03-15 | E104: =IF(D104,Données1!W79) -> Ste Louise M. | F104: e | G104: 7 | H104: 3 | J104: Cordesse PB informatique
A105: 3 | C105: 76 | D105: 2007-03-16 | E105: =IF(D105,Données1!W80) -> Ste Bénédicte | F105: p | G105: 7
A106: 3 | C106: 77 | D106: 2007-03-17 | E106: =IF(D106,Données1!W81) -> St Patrice
A107: 3 | C107: 78 | D107: 2007-03-18 | E107: =IF(D107,Données1!W82) -> St Cyrille
A109: 3 | B109: =NO.SEMAINE(D109,2)-1 ->  | C109: 79 | D109: 2007-03-19 | E109: =IF(D109,Données1!W83) -> St Joseph | F109: p | G109: 7
A110: =MONTH(D110) -> 3 | C110: 80 | D110: 2007-03-20 | E110: =IF(D110,Données1!W84) -> Printemps | F110: p | G110: 7
A111: 3 | C111: 81 | D111: 2007-03-21 | E111: =IF(D111,Données1!W85) -> Ste Clémence | F111: e | G111: 7 | J111: Pouilly en Auxois Panne banc de freinage
A112: 3 | C112: 82 | D112: 2007-03-22 | E112: =IF(D112,Données1!W86) -> Ste Léa | F112: p | G112: 7 | J112: DENTISTE | N112: ANNULE
A113: 3 | C113: 83 | D113: 2007-03-23 | E113: =IF(D113,Données1!W87) -> St Victorien | I113: 7 | J113: Recup ETAIN
A114: 3 | C114: 84 | D114: 2007-03-24 | E114: =IF(D114,Données1!W88) -> Ste Catherine | J114: ETAIN
A115: 3 | C115: 85 | D115: 2007-03-25 | E115: =IF(D115,Données1!W89) -> Annonciation | J115: ETAIN
A117: 3 | B117: =NO.SEMAINE(D117,2)-1 ->  | C117: 86 | D117: 2007-03-26 | E117: =IF(D117,Données1!W90) -> Ste Larissa | F117: p | G117: 7
A118: =MONTH(D118) -> 3 | C118: 87 | D118: 2007-03-27 | E118: =IF(D118,Données1!W91) -> St Habib | F118: p | G118: 7
A119: 3 | C119: 88 | D119: 2007-03-28 | E119: =IF(D119,Données1!W92) -> St Gontran | F119: p | G119: 7
A120: 3 | C120: 89 | D120: 2007-03-29 | E120: =IF(D120,Données1!W93) -> Ste Gwladys | F120: p | G120: 7 | J120: DENTISTE | N120: 08:00:00
A121: 3 | C121: 90 | D121: 2007-03-30 | E121: =IF(D121,Données1!W94) -> St Amédée | F121: p | G121: 7
A122: 3 | C122: 91 | D122: 2007-03-31 | E122: =IF(D122,Données1!W95) -> St Benjamin
G123: =SUM(G88:G122) -> 144 | H123: =SUM(H88:H122) -> 3
A124: 4 | B124: =NO.SEMAINE(D124,2)-1 ->  | C124: 92 | D124: 2007-04-01 | E124: =IF(D124,Données1!W96) -> St Hugues
A126: 4 | B126: =NO.SEMAINE(D126,2)-1 ->  | C126: 93 | D126: 2007-04-02 | E126: =IF(D126,Données1!W97) -> Ste Sandrine | F126: f | J126: Maintien Qualif Poitiers
A127: =MONTH(D127) -> 4 | C127: 94 | D127: 2007-04-03 | E127: =IF(D127,Données1!W98) -> St Richard | F127: f | J127: Maintien Qualif Poitiers
A128: 4 | C128: 95 | D128: 2007-04-04 | E128: =IF(D128,Données1!W99) -> St Isidore | F128: f | J128: Maintien Qualif Poitiers
A129: 4 | C129: 96 | D129: 2007-04-05 | E129: =IF(D129,Données1!W100) -> Ste Irène | F129: f | J129: Maintien Qualif Poitiers
A130: 4 | C130: 97 | D130: 2007-04-06 | E130: =IF(D130,Données1!W101) -> St Marcellin | I130: 7 | J130: Recup
A131: 4 | C131: 98 | D131: 2007-04-07 | E131: =IF(D131,Données1!W102) -> St J.-B. de Salle
A132: 4 | C132: 99 | D132: 2007-04-08 | E132: =IF(D132,Données1!W103) -> Ste Julie
A134: 4 | B134: =NO.SEMAINE(D134,2)-1 ->  | C134: 100 | D134: 2007-04-09 | E134: =IF(D134,Données1!W104) -> St Gautier | J134: Pâques
A135: =MONTH(D135) -> 4 | C135: 101 | D135: 2007-04-10 | E135: =IF(D135,Données1!W105) -> St Fulbert | F135: e | G135: 7 | J135: Meyhet
A136: 4 | C136: 102 | D136: 2007-04-11 | E136: =IF(D136,Données1!W106) -> St Stanislas | F136: e | G136: 7 | J136: Pouilly en Auxois
A137: 4 | C137: 103 | D137: 2007-04-12 | E137: =IF(D137,Données1!W107) -> St Jules | F137: p | G137: 7
A138: 4 | C138: 104 | D138: 2007-04-13 | E138: =IF(D138,Données1!W108) -> Ste Ida | F138: p | G138: 7
A139: 4 | C139: 105 | D139: 2007-04-14 | E139: =IF(D139,Données1!W109) -> St Maxime
A140: 4 | C140: 106 | D140: 2007-04-15 | E140: =IF(D140,Données1!W110) -> St Paterne
A142: 4 | B142: =NO.SEMAINE(D142,2)-1 ->  | C142: 107 | D142: 2007-04-16 | E142: =IF(D142,Données1!W111) -> St Benoît-Joseph | F142: p | G142: 7
A143: =MONTH(D143) -> 4 | C143: 108 | D143: 2007-04-17 | E143: =IF(D143,Données1!W112) -> St Et. Harding | F143: p | G143: 7
A144: 4 | C144: 109 | D144: 2007-04-18 | E144: =IF(D144,Données1!W113) -> St Parfait | F144: e | G144: 7 | J144: Sennecé les Macon
A145: 4 | C145: 110 | D145: 2007-04-19 | E145: =IF(D145,Données1!W114) -> Ste Emma | F145: e | G145: 7 | H145: 3 | J145: Cordesse
A146: 4 | C146: 111 | D146: 2007-04-20 | E146: =IF(D146,Données1!W115) -> Ste Odette | F146: p | G146: 7
A147: 4 | C147: 112 | D147: 2007-04-21 | E147: =IF(D147,Données1!W116) -> St Anselme | J147: ETAIN
A148: 4 | C148: 113 | D148: 2007-04-22 | E148: =IF(D148,Données1!W117) -> St Alexandre | J148: ETAIN
A150: 4 | B150: =NO.SEMAINE(D150,2)-1 ->  | C150: 114 | D150: 2007-04-23 | E150: =IF(D150,Données1!W118) -> St Georges | F150: p | G150: 7
A151: =MONTH(D151) -> 4 | C151: 115 | D151: 2007-04-24 | E151: =IF(D151,Données1!W119) -> St Fidèle | F151: p | G151: 7
A152: 4 | C152: 116 | D152: 2007-04-25 | E152: =IF(D152,Données1!W120) -> Souvenir Déportés | F152: e | G152: 7 | H152: 2 | J152: Pouilly en Auxois
A153: 4 | C153: 117 | D153: 2007-04-26 | E153: =IF(D153,Données1!W121) -> Ste Alida | F153: p | G153: 7
A154: 4 | C154: 118 | D154: 2007-04-27 | E154: =IF(D154,Données1!W122) -> Ste Zita | F154: p | G154: 7
A155: 4 | C155: 119 | D155: 2007-04-28 | E155: =IF(D155,Données1!W123) -> Ste Valérie
A156: 4 | C156: 120 | D156: 2007-04-29 | E156: =IF(D156,Données1!W124) -> Ste C. de Sienne
A158: 4 | B158: =NO.SEMAINE(D158,2)-1 ->  | C158: 121 | D158: 2007-04-30 | E158: =IF(D158,Données1!W125) -> St Robert | F158: p | G158: 7
G159: =SUM(G124:G158) -> 105 | H159: =SUM(H124:H158) -> 5
A160: =MONTH(D160) -> 5 | B160: =NO.SEMAINE(D160,2)-1 ->  | C160: 122 | D160: 2007-05-01 | E160: =IF(D160,Données1!W126) -> F. du travail
A161: 5 | C161: 123 | D161: 2007-05-02 | E161: =IF(D161,Données1!W127) -> St Boris | F161: e | G161: 7 | J161: Sennecé les Macon
A162: 5 | C162: 124 | D162: 2007-05-03 | E162: =IF(D162,Données1!W128) -> Sts Philippe-Jacques | F162: e | G162: 7 | H162: 3 | J162: Cordesse | O162: 205 | P162: Moyeu AVD
A163: 5 | C163: 125 | D163: 2007-05-04 | E163: =IF(D163,Données1!W129) -> St Sylvain | F163: p | G163: 7
A164: 5 | C164: 126 | D164: 2007-05-05 | E164: =IF(D164,Données1!W130) -> Ste Judith
A165: 5 | C165: 127 | D165: 2007-05-06 | E165: =IF(D165,Données1!W131) -> Ste Prudence | J165: VETO
A167: 5 | B167: =NO.SEMAINE(D167,2)-1 ->  | C167: 128 | D167: 2007-05-07 | E167: =IF(D167,Données1!W132) -> Ste Gisèle | F167: p | G167: 6 | I167: 1
A168: =MONTH(D168) -> 5 | C168: 129 | D168: 2007-05-08 | E168: =IF(D168,Données1!W133) -> Annivers. 1945
A169: 5 | C169: 130 | D169: 2007-05-09 | E169: =IF(D169,Données1!W134) -> St Pacôme | F169: p | G169: 6 | I169: 1
A170: 5 | C170: 131 | D170: 2007-05-10 | E170: =IF(D170,Données1!W135) -> Ste Solange | F170: p | G170: 7
A171: 5 | C171: 132 | D171: 2007-05-11 | E171: =IF(D171,Données1!W136) -> Ste Estelle | F171: p | G171: 7
A172: 5 | C172: 133 | D172: 2007-05-12 | E172: =IF(D172,Données1!W137) -> St Achille | J172: BELFORT
A173: 5 | C173: 134 | D173: 2007-05-13 | E173: =IF(D173,Données1!W138) -> Ste Rolande | J173: BELFORT
A175: 5 | B175: =NO.SEMAINE(D175,2)-1 ->  | C175: 135 | D175: 2007-05-14 | E175: =IF(D175,Données1!W139) -> St Matthias | F175: p | G175: 7
A176: =MONTH(D176) -> 5 | C176: 136 | D176: 2007-05-15 | E176: =IF(D176,Données1!W140) -> Ste Denise | F176: p | G176: 7 | J176: Villefranche /Saone
A177: 5 | C177: 137 | D177: 2007-05-16 | E177: =IF(D177,Données1!W141) -> St Honoré | F177: e | G177: 7 | H177: 3 | J177: Rumilly Liaison informatique otc impossible
A178: 5 | C178: 138 | D178: 2007-05-17 | E178: =IF(D178,Données1!W142) -> St Pascal
A179: 5 | C179: 139 | D179: 2007-05-18 | E179: =IF(D179,Données1!W143) -> St Eric | F179: p | G179: 7
A180: 5 | C180: 140 | D180: 2007-05-19 | E180: =IF(D180,Données1!W144) -> St Yves | J180: Roland
A181: 5 | C181: 141 | D181: 2007-05-20 | E181: =IF(D181,Données1!W145) -> St Bernardin
A183: 5 | B183: =NO.SEMAINE(D183,2)-1 ->  | C183: 142 | D183: 2007-05-21 | E183: =IF(D183,Données1!W146) -> St Constantin | F183: p | G183: 7
A184: =MONTH(D184) -> 5 | C184: 143 | D184: 2007-05-22 | E184: =IF(D184,Données1!W147) -> St Emile | F184: p | G184: 7
A185: 5 | C185: 144 | D185: 2007-05-23 | E185: =IF(D185,Données1!W148) -> St Didier | F185: p | G185: 7 | J185: Prefecture | N185: 10:00:00
A186: 5 | C186: 145 | D186: 2007-05-24 | E186: =IF(D186,Données1!W149) -> St Donatien | F186: p | G186: 7 | J186: Dentiste | N186: 08:00:00
A187: 5 | C187: 146 | D187: 2007-05-25 | E187: =IF(D187,Données1!W150) -> Ste Sophie | F187: p | G187: 7
A188: 5 | C188: 147 | D188: 2007-05-26 | E188: =IF(D188,Données1!W151) -> St Bérenger
A189: 5 | C189: 148 | D189: 2007-05-27 | E189: =IF(D189,Données1!W152) -> St Augustin de C.
A191: 5 | B191: =NO.SEMAINE(D191,2)-1 ->  | C191: 149 | D191: 2007-05-28 | E191: =IF(D191,Données1!W153) -> St Germain | I191: 7
A192: =MONTH(D192) -> 5 | B192: =NO.SEMAINE(D192,2)-1 ->  | C192: 150 | D192: 2007-05-29 | E192: =IF(D192,Données1!W154) -> St Aymar | F192: p | G192: 7
A193: 5 | B193: =NO.SEMAINE(D193,2)-1 ->  | C193: 151 | D193: 2007-05-30 | E193: =IF(D193,Données1!W155) -> St Ferdinand | F193: e | G193: 7 | J193: Sennecé les Macon
A194: 5 | B194: =NO.SEMAINE(D194,2)-1 ->  | C194: 152 | D194: 2007-05-31 | E194: =IF(D194,Données1!W156) -> V. de la Ste Vierge | F194: e | G194: 7 | J194: Cordesse
G195: =SUM(G160:G194) -> 131 | H195: =SUM(H160:H194) -> 6
A196: 6 | B196: =NO.SEMAINE(D196,2)-1 ->  | C196: 153 | D196: 2007-06-01 | E196: =IF(D196,Données1!W157) -> St Justin | I196: 7
A197: 6 | B197: =NO.SEMAINE(D197,2)-1 ->  | C197: 154 | D197: 2007-06-02 | E197: =IF(D197,Données1!W158) -> Ste Blandine
A198: 6 | B198: =NO.SEMAINE(D198,2)-1 ->  | C198: 155 | D198: 2007-06-03 | E198: =IF(D198,Données1!W159) -> St Kévin
A200: 6 | B200: =NO.SEMAINE(D200,2)-1 ->  | C200: 156 | D200: 2007-06-04 | E200: =IF(D200,Données1!W160) -> Ste Clothilde | F200: p | G200: 7
A201: =MONTH(D201) -> 6 | C201: 157 | D201: 2007-06-05 | E201: =IF(D201,Données1!W161) -> St Igor | F201: p | G201: 7
A202: 6 | C202: 158 | D202: 2007-06-06 | E202: =IF(D202,Données1!W162) -> St Norbert | F202: p | G202: 7
A203: 6 | C203: 159 | D203: 2007-06-07 | E203: =IF(D203,Données1!W163) -> St Gilbert
A204: 6 | C204: 160 | D204: 2007-06-08 | E204: =IF(D204,Données1!W164) -> St Médard | F204: e | G204: 7 | H204: 6 | J204: Chauffailles
A205: 6 | C205: 161 | D205: 2007-06-09 | E205: =IF(D205,Données1!W165) -> Ste Diane
A206: 6 | C206: 162 | D206: 2007-06-10 | E206: =IF(D206,Données1!W166) -> St Landry
A208: 6 | B208: =NO.SEMAINE(D208,2)-1 ->  | C208: 163 | D208: 2007-06-11 | E208: =IF(D208,Données1!W167) -> St Barnabé | F208: f | J208: Remise à niveau frein
A209: =MONTH(D209) -> 6 | C209: 164 | D209: 2007-06-12 | E209: =IF(D209,Données1!W168) -> St Guy | F209: f | J209: Remise à niveau frein
A210: 6 | C210: 165 | D210: 2007-06-13 | E210: =IF(D210,Données1!W169) -> St A. de Padou | F210: f | J210: Remise à niveau frein
A211: 6 | C211: 166 | D211: 2007-06-14 | E211: =IF(D211,Données1!W170) -> St Elisée | F211: f | J211: Remise à niveau frein
A212: 6 | C212: 167 | D212: 2007-06-15 | E212: =IF(D212,Données1!W171) -> Ste Germaine | F212: p | G212: 7
A213: 6 | C213: 168 | D213: 2007-06-16 | E213: =IF(D213,Données1!W172) -> St J.-F. Régis
A214: 6 | C214: 169 | D214: 2007-06-17 | E214: =IF(D214,Données1!W173) -> St Hervé
A216: 6 | B216: =NO.SEMAINE(D216,2)-1 ->  | C216: 170 | D216: 2007-06-18 | E216: =IF(D216,Données1!W174) -> St Léonce | F216: p | G216: 7 | J216: HJ
A217: =MONTH(D217) -> 6 | C217: 171 | D217: 2007-06-19 | E217: =IF(D217,Données1!W175) -> St Romuald | F217: p | G217: 7 | J217: VISITE MEDICALE PANNE BANC
A218: 6 | C218: 172 | D218: 2007-06-20 | E218: =IF(D218,Données1!W176) -> St Silvère | F218: p | G218: 7
A219: 6 | C219: 173 | D219: 2007-06-21 | E219: =IF(D219,Données1!W177) -> F. Dieu | F219: p | G219: 7 | J219: DRIRE
A220: 6 | C220: 174 | D220: 2007-06-22 | E220: =IF(D220,Données1!W178) -> St Alban | F220: p | G220: 7
A221: 6 | C221: 175 | D221: 2007-06-23 | E221: =IF(D221,Données1!W179) -> Ste Audrey
A222: 6 | C222: 176 | D222: 2007-06-24 | E222: =IF(D222,Données1!W180) -> St Jean-Baptiste
A224: 6 | B224: =NO.SEMAINE(D224,2)-1 ->  | C224: 177 | D224: 2007-06-25 | E224: =IF(D224,Données1!W181) -> St Salomon | F224: e | G224: 7 | J224: Meyhet
A225: =MONTH(D225) -> 6 | C225: 178 | D225: 2007-06-26 | E225: =IF(D225,Données1!W182) -> St Anthelme | F225: p | G225: 7
A226: 6 | C226: 179 | D226: 2007-06-27 | E226: =IF(D226,Données1!W183) -> St Fernand | F226: p | G226: 7
A227: 6 | C227: 180 | D227: 2007-06-28 | E227: =IF(D227,Données1!W184) -> St Irénée | F227: p | G227: 7
A228: 6 | C228: 181 | D228: 2007-06-29 | E228: =IF(D228,Données1!W185) -> St Pierre-Paul | F228: e | G228: 7 | H228: 6 | J228: Chauffailles
... 196 more rows

Sheet Rendez-vous
D1: =TODAY() -> 2013-04-02 | I1: =VLOOKUP(D1,Fetes!A1:C717,3) -> St Roger | O1: =VLOOKUP(D1,Fetes!A1:B722,2) -> 0
D2: =COUNTIF(F$32:F$458,"p") -> 32 | E2: Présent | F2: p | J2: Heures/mois | O2: % AUXILIAIRE | Q2: KM prévisionnel | T2: KM parcouru
J3: temps | L3: temps
D4: =COUNTIF(F$32:F$458,"e") -> 9 | E4: Extérieur | F4: e | J4: centre | K4: centre +auxiliaire | M4: centre | N4: centre +auxiliaire
J5: temps
D6: =COUNTIF(F32:F458,"sp") -> 9 | E6: Extérieur SP | F6: sp | H6: JANVIER | J6: =DSUM($A$31:$G$458,J5,Données1!A3:B3) ->  | K6: =H68+G68 -> 6.604166667 | L6: JUILLET | M6: =DSUM($A$31:$G$458,L3,Données1!A14:B15) -> 0 | N6: =G279+H279 -> 0 | O6: =(D4)/(D2+D4+D6)*100 -> 18 | Q6: =S459 ->  | T6: =R459 -> 
J7: temps | K7: =H69+G69 -> 0.4166666667 | M7: temps
D8: =H460-I460 -> 0 | E8: Heures restantes à récupérer | H8: FEVRIER | J8: =DSUM($A$31:$G$458,J7,Données1!A4:B5) -> 2.916666667 | K8: =H101+G101 -> 7.597222222 | L8: AOUT | M8: =DSUM($A$31:$G$458,M7,Données1!A16:B17) -> 0 | N8: =G316+H316 -> 0
J9: temps | K9: =G145+H145 -> 0 | M9: temps
D10: =I460 -> 0 | E10: Heures récupérées | H10: MARS | J10: =DSUM($A$31:$G$458,J9,Données1!A6:B7) -> 1.75 | K10: =G137+H137 -> 2.951388889 | L10: SEPTEMBRE | M10: =DSUM($A$31:$G$458,M9,Données1!A18:B19) -> 0 | N10: =G351+H351 -> 0
J11: temps | M11: temps
D12: =COUNTIF(F$32:F$458,"f") -> 0 | E12: Formation | H12: AVRIL | J12: =DSUM($A$31:$G$458,J11,Données1!A8:B9) -> 0 | K12: =G172+H172 -> 0 | L12: OCTOBRE | M12: =DSUM($A$31:$G$458,M11,Données1!A20:B21) -> 0 | N12: =G388+H388 -> 0
J13: temps | M13: temps | Q13: =#REF! -> 
D14: =26+COUNTIF(F$32:F$272,"v") -> 26 | E14: Vacances 08-09 | F14: v | H14: MAI | J14: =DSUM($A$31:$G$458,J13,Données1!A10:B11) -> 0 | K14: =G208+H208 -> 0 | L14: NOVEMBRE | M14: =DSUM($A$31:$G$458,M13,Données1!A22:B23) -> 0 | N14: =G423+H423 -> 0
J15: temps | M15: temps
D16: =COUNTIF(F$276:F$458,"v") -> 0 | E16: Vacances 09-10 | H16: JUIN | J16: =DSUM($A$31:$G$458,J15,Données1!A12:B13) -> 0 | K16: =G243+H243 -> 0 | L16: DECEMBRE | M16: =DSUM($A$31:$G$458,M15,Données1!A24:B25) -> 0 | N16: =G459+H459 -> 0
D17: =COUNTIF(F$32:F$458,"M") -> 1 | E17: Maladie | F17: m
E18: Audibert
E19: Belley
E20: Besançon
E21: Chauffailles
E22: Cordesse
E23: Fains les Montbard
E24: Les Pins
E25: Meythet
E26: Pouilly en Auxois
E27: Rumilly
E28: Thann
E29: Villefranche
E30: Nul
A31: M | B31: S | C31: J | D31: Date | E31: ville | F31: Pointage | G31: temps | H31: Heure sup | I31: Heures recup | J31: RENDEZ VOUS | R31: KM
A32: =MONTH(D32) -> 1 | B32: =WEEKNUM(D32,2) -> 1 | C32: 2 | D32: 2011-01-01 | E32: Nul | R32: =IF(F32="",0,S32) -> 0 | S32: =VLOOKUP(E32,Ville!$A$3:$H$53,2,0) -> 
A33: 1 | B33: 1 | C33: 3 | D33: =D32+1 -> 2011-01-02 | E33: Nul | R33: 0 | S33: =VLOOKUP(E33,Ville!$A$3:$H$53,2,0) -> 
E34: Nul | R34: 0
A35: 1 | B35: 2 | C35: 4 | D35: =D33+1 -> 2011-01-03 | E35: Meythet | F35: e | G35: 07:00:00 | H35: 04:20:00 | R35: =IF(F35="",0,S35) -> 298 | S35: =VLOOKUP(E35,Ville!$A$3:$H$53,2,0) -> 298
A36: 1 | B36: 2 | D36: =D35+1 -> 2011-01-04 | E36: Nul | F36: p | G36: 07:00:00 | R36: 0
A37: 1 | B37: 2 | C37: 5 | D37: 2011-01-05 | E37: Nul | F37: p | G37: 07:00:00 | S37: =VLOOKUP(E37,Ville!$A$3:$H$53,2,0) -> 
A38: 1 | B38: 2 | C38: 6 | D38: 2011-01-06 | E38: Nul | F38: p | G38: 07:00:00 | S38: =VLOOKUP(E38,Ville!$A$3:$H$53,2,0) -> 
A39: 1 | B39: 2 | C39: 7 | D39: 2011-01-07 | E39: Nul | F39: p | G39: 07:00:00 | S39: =VLOOKUP(E39,Ville!$A$3:$H$53,2,0) -> 
A40: 1 | B40: 2 | D40: 2011-01-08 | E40: Nul | R40: 0 | S40: =VLOOKUP(E40,Ville!$A$3:$H$53,2,0) -> 
A41: 1 | B41: 2 | D41: 2011-01-09 | E41: Nul | R41: 0 | S41: =VLOOKUP(E41,Ville!$A$3:$H$53,2,0) -> 
E42: Nul | R42: 0
A43: 1 | B43: 3 | C43: 8 | D43: =D41+1 -> 2011-01-10 | E43: Nul | F43: m | G43: 07:00:00 | S43: =VLOOKUP(E43,Ville!$A$3:$H$53,2,0) -> 
A44: 1 | B44: 3 | C44: 9 | D44: 2011-01-11 | E44: Nul | F44: p | G44: 07:00:00 | S44: =VLOOKUP(E44,Ville!$A$3:$H$53,2,0) -> 
A45: 1 | B45: 2 | D45: 2011-01-12 | E45: Nul | F45: p | G45: 07:00:00 | R45: 0
A46: 1 | B46: 3 | C46: 10 | D46: 2011-01-13 | E46: Nul | F46: p | G46: 07:00:00 | S46: =VLOOKUP(E46,Ville!$A$3:$H$53,2,0) -> 
A47: 1 | B47: 3 | C47: 11 | D47: 2011-01-14 | E47: Nul | F47: p | G47: 07:00:00 | S47: =VLOOKUP(E47,Ville!$A$3:$H$53,2,0) -> 
A48: 1 | B48: 3 | D48: 2011-01-15 | E48: Nul | R48: 0 | S48: =VLOOKUP(E48,Ville!$A$3:$H$53,2,0) -> 
A49: 1 | B49: 3 | C49: 12 | D49: 2011-01-16 | E49: Nul | R49: 0 | S49: =VLOOKUP(E49,Ville!$A$3:$H$53,2,0) -> 
E50: Nul | R50: 0
A51: 1 | B51: 4 | C51: 13 | D51: =D49+1 -> 2011-01-17 | E51: Nul | F51: p | G51: 07:00:00 | S51: =VLOOKUP(E51,Ville!$A$3:$H$53,2,0) -> 
A52: 1 | B52: 4 | C52: 14 | D52: 2011-01-18 | E52: Nul | F52: p | G52: 07:00:00 | S52: =VLOOKUP(E52,Ville!$A$3:$H$53,2,0) -> 
A53: 1 | B53: 4 | C53: 15 | D53: 2011-01-19 | E53: sp Besançon | F53: sp | G53: 07:00:00 | H53: 01:50:00 | S53: =VLOOKUP(E53,Ville!$A$3:$H$53,2,0) -> 
A54: 1 | B54: 4 | D54: 2011-01-20 | E54: Nul | F54: p | G54: 07:00:00 | R54: 0
A55: 1 | B55: 4 | C55: 15 | D55: 2011-01-21 | E55: Nul | F55: p | G55: 07:00:00 | S55: =VLOOKUP(E55,Ville!$A$3:$H$53,2,0) -> 
A56: 1 | B56: 4 | C56: 16 | D56: 2011-01-22 | E56: Nul | R56: 0 | S56: =VLOOKUP(E56,Ville!$A$3:$H$53,2,0) -> 
A57: 1 | B57: 4 | C57: 17 | D57: 2011-01-23 | E57: Nul | R57: 0 | S57: =VLOOKUP(E57,Ville!$A$3:$H$53,2,0) -> 
E58: Nul | R58: 0
A59: 1 | B59: 5 | D59: =D57+1 -> 2011-01-24 | E59: Besançon | F59: e | G59: 07:00:00 | H59: 01:20:00 | S59: =VLOOKUP(E59,Ville!$A$3:$H$53,2,0) -> 
A60: 1 | B60: 5 | C60: 18 | D60: 2011-01-25 | E60: Nul | F60: p | G60: 07:00:00 | J60: GAZ | S60: =VLOOKUP(E60,Ville!$A$3:$H$53,2,0) -> 
A61: 1 | B61: 5 | C61: 19 | D61: 2011-01-26 | E61: Thann | F61: e | G61: 07:00:00 | H61: 04:00:00 | R61: 402 | S61: =VLOOKUP(E61,Ville!$A$3:$H$53,2,0) -> 402
A62: 1 | B62: 5 | C62: 20 | D62: 2011-01-27 | E62: Nul | F62: p | G62: 07:00:00 | S62: =VLOOKUP(E62,Ville!$A$3:$H$53,2,0) -> 
A63: 1 | B63: 5 | D63: 2011-01-28 | E63: Nul | F63: p | G63: 07:00:00 | R63: 0
A64: 1 | B64: 5 | C64: 21 | D64: 2011-01-29 | E64: Nul | R64: 0 | S64: =VLOOKUP(E64,Ville!$A$3:$H$53,2,0) -> 
A65: 1 | B65: 5 | C65: 22 | D65: 2011-01-30 | E65: Nul | R65: 0 | S65: =VLOOKUP(E65,Ville!$A$3:$H$53,2,0) -> 
A66: 1 | E66: Nul | R66: 0
A67: 1 | B67: 6 | C67: 22 | D67: =D65+1 -> 2011-01-31 | E67: Nul | F67: p | G67: 07:00:00 | S67: =VLOOKUP(E67,Ville!$A$3:$H$53,2,0) -> 
E68: Nul | G68: =SUM(G32:G67) -> 6.125 | H68: =SUM(H32:H67) -> 0.4791666667 | I68: =SUM(I32:I67) -> 0 | R68: 0
A69: 2 | B69: 6 | C69: 23 | D69: =D67+1 -> 2011-02-01 | E69: sp Villefranche | F69: sp | G69: 07:00:00 | H69: 03:00:00 | S69: =VLOOKUP(E69,Ville!$A$3:$H$53,2,0) -> 
A70: 2 | B70: 6 | D70: 2011-02-02 | E70: Nul | F70: p | G70: 07:00:00 | S70: =VLOOKUP(E70,Ville!$A$3:$H$53,2,0) -> 
A71: 2 | B71: 6 | C71: 24 | D71: 2011-02-03 | E71: Sennece les Macons | F71: e | G71: 07:00:00 | H71: 02:00:00 | R71: 298 | S71: =VLOOKUP(E71,Ville!$A$3:$H$53,2,0) -> 298
A72: 2 | B72: 6 | C72: 25 | D72: 2011-02-04 | E72: Nul | F72: p | G72: 07:00:00 | S72: =VLOOKUP(E72,Ville!$A$3:$H$53,2,0) -> 
A73: 2 | B73: 6 | D73: 2011-02-05 | E73: Nul | R73: 0
A74: 2 | B74: 6 | D74: 2011-02-06 | E74: Nul | R74: 0
A75: 2 | E75: Nul | R75: 0
A76: 2 | B76: 7 | C76: 26 | D76: =D74+1 -> 2011-02-07 | E76: sp Villefranche | F76: sp | G76: 07:00:00 | H76: 03:00:00 | S76: =VLOOKUP(E76,Ville!$A$3:$H$53,2,0) -> 
A77: 2 | B77: 7 | C77: 27 | D77: 2011-02-08 | E77: Nul | F77: p | G77: 07:00:00 | S77: =VLOOKUP(E77,Ville!$A$3:$H$53,2,0) -> 
A78: 2 | B78: 7 | C78: 28 | D78: 2011-02-09 | E78: sp Besançon | F78: sp | G78: 07:00:00 | H78: 01:50:00 | S78: =VLOOKUP(E78,Ville!$A$3:$H$53,2,0) -> 
A79: 2 | B79: 7 | C79: 29 | D79: 2011-02-10 | E79: Nul | F79: p | G79: 07:00:00 | S79: =VLOOKUP(E79,Ville!$A$3:$H$53,2,0) -> 
A80: 2 | B80: 7 | D80: 2011-02-11 | E80: Montreuil | F80: e | G80: 07:00:00 | H80: 04:00:00 | R80: 854 | S80: =VLOOKUP(E80,Ville!$A$3:$H$53,2,0) -> 854
A81: 2 | B81: 7 | C81: 29 | D81: 2011-02-12 | E81: Montreuil | F81: e | G81: 07:00:00 | H81: 04:00:00 | R81: 854 | S81: =VLOOKUP(E81,Ville!$A$3:$H$53,2,0) -> 854
A82: 2 | B82: 7 | D82: 2011-02-13 | E82: Nul | R82: 0 | S82: =VLOOKUP(E82,Ville!$A$3:$H$53,2,0) -> 
E83: Nul | R83: 0 | S83: =VLOOKUP(E83,Ville!$A$3:$H$53,2,0) -> 
A84: 2 | B84: 8 | D84: =D82+1 -> 2011-02-14 | E84: Meythet | F84: e | G84: 07:00:00 | H84: 04:20:00 | R84: 298 | S84: =VLOOKUP(E84,Ville!$A$3:$H$53,2,0) -> 298
A85: 2 | B85: 8 | C85: 30 | D85: 2011-02-15 | E85: Nul | F85: p | G85: 07:00:00 | S85: =VLOOKUP(E85,Ville!$A$3:$H$53,2,0) -> 
A86: 2 | B86: 8 | C86: 31 | D86: 2011-02-16 | E86: Thann | F86: e | G86: 07:00:00 | H86: 04:00:00 | R86: 402 | S86: =VLOOKUP(E86,Ville!$A$3:$H$53,2,0) -> 402
A87: 2 | B87: 8 | C87: 32 | D87: 2011-02-17 | E87: Nul | F87: p | G87: 07:00:00 | S87: =VLOOKUP(E87,Ville!$A$3:$H$53,2,0) -> 
A88: 2 | B88: 8 | C88: 33 | D88: 2011-02-18 | E88: Nul | F88: p | G88: 07:00:00 | S88: =VLOOKUP(E88,Ville!$A$3:$H$53,2,0) -> 
A89: 2 | B89: 8 | C89: 33 | D89: 2011-02-19 | E89: Nul | R89: 0 | S89: =VLOOKUP(E89,Ville!$A$3:$H$53,2,0) -> 
A90: 2 | B90: 8 | C90: 34 | D90: 2011-02-20 | E90: Nul | R90: 0 | S90: =VLOOKUP(E90,Ville!$A$3:$H$53,2,0) -> 
E91: nul | R91: 0
A92: 2 | B92: 9 | C92: 35 | D92: =D90+1 -> 2011-02-21 | E92: sp Besançon | F92: sp | G92: 07:00:00 | H92: 01:50:00 | S92: =VLOOKUP(E92,Ville!$A$3:$H$53,2,0) -> 
A93: 2 | B93: 9 | D93: 2011-02-22 | E93: Nul | F93: p | G93: 07:00:00 | R93: 0
A94: 2 | B94: 9 | D94: 2011-02-23 | E94: sp Villefranche | F94: sp | G94: 07:00:00 | H94: 03:00:00 | S94: =VLOOKUP(E94,Ville!$A$3:$H$53,2,0) -> 
A95: 2 | B95: 9 | D95: 2011-02-24 | E95: Nul | F95: p | G95: 07:00:00 | S95: =VLOOKUP(E95,Ville!$A$3:$H$53,2,0) -> 
A96: =MONTH(D96) -> 2 | B96: 9 | C96: 36 | D96: 2011-02-25 | E96: Nul | F96: p | G96: 07:00:00 | R96: =IF(F96="",0,S96) ->  | S96: =VLOOKUP(E96,Ville!$A$3:$H$53,2,0) -> 
A97: =MONTH(D97) -> 2 | B97: 9 | C97: 37 | D97: 2011-02-26 | E97: Nul | R97: 0 | S97: =VLOOKUP(E97,Ville!$A$3:$H$53,2,0) -> 
A98: =MONTH(D98) -> 2 | B98: 9 | C98: 38 | D98: 2011-02-27 | E98: Nul | R98: 0 | S98: =VLOOKUP(E98,Ville!$A$3:$H$53,2,0) -> 
E99: Nul | R99: 0
A100: =MONTH(D100) -> 2 | B100: 10 | C100: 39 | D100: =D98+1 -> 2011-02-28 | E100: Meythet | F100: e | G100: 07:00:00 | H100: 04:20:00 | R100: 298 | S100: =VLOOKUP(E100,Ville!$A$3:$H$53,2,0) -> 298
E101: Nul | G101: =SUM(G69:G100) -> 6.125 | H101: =SUM(H69:H100) -> 1.472222222 | I101: =SUM(I69:I100) -> 0 | R101: 0 | S101: =VLOOKUP(E101,Ville!$A$3:$H$53,2,0) -> 
A102: =MONTH(D102) -> 3 | B102: 10 | C102: 40 | D102: =D100+1 -> 2011-03-01 | E102: Nul | F102: p | G102: 07:00:00 | S102: =VLOOKUP(E102,Ville!$A$3:$H$53,2,0) -> 
A103: 3 | B103: 10 | D103: 2011-03-02 | E103: sp Villefranche | F103: sp | G103: 07:00:00 | H103: 03:00:00 | S103: =VLOOKUP(E103,Ville!$A$3:$H$53,2,0) -> 
A104: 3 | B104: 10 | C104: 41 | D104: 2011-03-03 | E104: Nul | F104: p | G104: 07:00:00 | S104: =VLOOKUP(E104,Ville!$A$3:$H$53,2,0) -> 
A105: 3 | B105: 10 | D105: 2011-03-04 | E105: Nul | F105: p | G105: 07:00:00 | S105: =VLOOKUP(E105,Ville!$A$3:$H$53,2,0) -> 
A106: 3 | B106: 10 | C106: 42 | D106: 2011-03-05 | E106: Nul | R106: 0 | S106: =VLOOKUP(E106,Ville!$A$3:$H$53,2,0) -> 
A107: 3 | B107: =WEEKNUM(D107,2) -> 10 | C107: 43 | D107: 2011-03-06 | E107: Nul | R107: 0 | S107: =VLOOKUP(E107,Ville!$A$3:$H$53,2,0) -> 
E108: Nul | R108: 0
A109: 3 | B109: 11 | C109: 43 | D109: =D107+1 -> 2011-03-07 | E109: sp Villefranche | F109: sp | G109: 07:00:00 | H109: 03:00:00 | R109: =IF(F109="",0,S109) ->  | S109: =VLOOKUP(E109,Ville!$A$3:$H$53,2,0) -> 
A110: 3 | B110: 11 | C110: 44 | D110: =D109+1 -> 2011-03-08 | E110: Nul | F110: p | G110: 07:00:00 | S110: =VLOOKUP(E110,Ville!$A$3:$H$53,2,0) -> 
A111: 3 | B111: 11 | C111: 45 | D111: 2011-03-09 | E111: sp Besançon | F111: sp | G111: 07:00:00 | H111: 01:50:00 | S111: =VLOOKUP(E111,Ville!$A$3:$H$53,2,0) -> 
A112: 3 | B112: 11 | D112: 2011-03-10 | E112: Nul | F112: p | G112: 07:00:00 | R112: 0
A113: 3 | B113: 11 | D113: 2011-03-11 | E113: Nul | F113: p | G113: 07:00:00 | R113: 0
A114: 3 | B114: 11 | C114: 46 | D114: 2011-03-12 | E114: Nul | R114: 0 | S114: =VLOOKUP(E114,Ville!$A$3:$H$53,2,0) -> 
A115: 3 | B115: 11 | C115: 47 | D115: 2011-03-13 | E115: Nul | R115: 0 | S115: =VLOOKUP(E115,Ville!$A$3:$H$53,2,0) -> 
E116: Nul | R116: 0
A117: 3 | B117: 12 | D117: =D115+1 -> 2011-03-14 | E117: Meythet | R117: 0 | S117: =VLOOKUP(E117,Ville!$A$3:$H$53,2,0) -> 298
A118: 3 | B118: 12 | C118: 48 | D118: 2011-03-15 | E118: Nul | R118: 0 | S118: =VLOOKUP(E118,Ville!$A$3:$H$53,2,0) -> 
A119: 3 | B119: 12 | C119: 49 | D119: 2011-03-16 | E119: Thann | R119: 0 | S119: =VLOOKUP(E119,Ville!$A$3:$H$53,2,0) -> 402
A120: 3 | B120: 12 | C120: 50 | D120: 2011-03-17 | E120: Nul | R120: 0 | S120: =VLOOKUP(E120,Ville!$A$3:$H$53,2,0) -> 
A121: 3 | B121: 12 | C121: 50 | D121: 2011-03-18 | E121: Nul | R121: 0 | S121: =VLOOKUP(E121,Ville!$A$3:$H$53,2,0) -> 
A122: 3 | B122: 12 | D122: 2011-03-19 | E122: Nul | R122: 0
A123: 3 | B123: 12 | C123: 51 | D123: 2011-03-20 | E123: Nul | R123: 0 | S123: =VLOOKUP(E123,Ville!$A$3:$H$53,2,0) -> 
E124: Nul | R124: 0
A125: 3 | B125: 13 | C125: 52 | D125: =D123+1 -> 2011-03-21 | E125: sp Villefranche | R125: 0 | S125: =VLOOKUP(E125,Ville!$A$3:$H$53,2,0) -> 
A126: 3 | B126: 13 | D126: 2011-03-22 | E126: Nul | R126: 0 | S126: =VLOOKUP(E126,Ville!$A$3:$H$53,2,0) -> 
A127: 3 | B127: 13 | C127: 53 | D127: 2011-03-23 | E127: sp Villefranche | R127: 0 | S127: =VLOOKUP(E127,Ville!$A$3:$H$53,2,0) -> 
A128: 3 | B128: 13 | D128: 2011-03-24 | E128: Nul | R128: 0 | S128: =VLOOKUP(E128,Ville!$A$3:$H$53,2,0) -> 
A129: 3 | B129: 13 | C129: 54 | D129: 2011-03-25 | E129: Nul | R129: 0 | S129: =VLOOKUP(E129,Ville!$A$3:$H$53,2,0) -> 
A130: 3 | B130: 13 | C130: 55 | D130: 2011-03-26 | E130: Nul | R130: 0 | S130: =VLOOKUP(E130,Ville!$A$3:$H$53,2,0) -> 
A131: 3 | B131: 13 | D131: 2011-03-27 | E131: Nul | R131: 0
E132: Nul | R132: 0
A133: 3 | B133: 14 | C133: 56 | D133: =D131+1 -> 2011-03-28 | E133: sp Villefranche | R133: 0 | S133: =VLOOKUP(E133,Ville!$A$3:$H$53,2,0) -> 
A134: 3 | B134: 14 | C134: 57 | D134: 2011-03-29 | E134: Nul | R134: 0 | S134: =VLOOKUP(E134,Ville!$A$3:$H$53,2,0) -> 
A135: 3 | B135: 14 | C135: 58 | D135: 2011-03-30 | E135: sp Villefranche | R135: 0 | S135: =VLOOKUP(E135,Ville!$A$3:$H$53,2,0) -> 
A136: 3 | B136: 14 | C136: 59 | D136: 2011-03-31 | E136: Nul | R136: 0 | S136: =VLOOKUP(E136,Ville!$A$3:$H$53,2,0) -> 
E137: Nul | G137: =SUM(G102:G136) -> 2.625 | H137: =SUM(H102:H136) -> 0.3263888889 | R137: 0
A138: =MONTH(D138) -> 4 | B138: 14 | C138: 58 | D138: =D136+1 -> 2011-04-01 | E138: Nul | R138: 0 | S138: =VLOOKUP(E138,Ville!$A$3:$H$53,2,0) -> 
A139: 4 | B139: 14 | D139: 2011-04-02 | E139: Nul | R139: 0 | S139: =VLOOKUP(E139,Ville!$A$3:$H$53,2,0) -> 
A140: 4 | B140: 14 | C140: 59 | D140: 2011-04-03 | E140: Nul | R140: 0 | S140: =VLOOKUP(E140,Ville!$A$3:$H$53,2,0) -> 
E141: Nul | R141: 0
A142: 4 | B142: 15 | D142: =D140+1 -> 2011-04-04 | E142: Nul | R142: 0
A143: 4 | B143: 15 | C143: 60 | D143: 2011-04-05 | E143: Nul | R143: 0 | S143: =VLOOKUP(E143,Ville!$A$3:$H$53,2,0) -> 
A144: 4 | B144: 15 | C144: 61 | D144: 2011-04-06 | E144: Nul | R144: 0 | S144: =VLOOKUP(E144,Ville!$A$3:$H$53,2,0) -> 
A145: 4 | B145: 15 | C145: 61 | D145: 2011-04-07 | E145: Nul | R145: 0 | S145: =VLOOKUP(E145,Ville!$A$3:$H$53,2,0) -> 
A146: 4 | B146: 15 | C146: 62 | D146: 2011-04-08 | E146: Nul | R146: 0 | S146: =VLOOKUP(E146,Ville!$A$3:$H$53,2,0) -> 
A147: 4 | B147: 15 | C147: 63 | D147: 2011-04-09 | E147: Nul | R147: 0 | S147: =VLOOKUP(E147,Ville!$A$3:$H$53,2,0) -> 
A148: 4 | B148: 15 | C148: 63 | D148: 2011-04-10 | E148: Nul | R148: 0 | S148: =VLOOKUP(E148,Ville!$A$3:$H$53,2,0) -> 
E149: Nul | R149: 0
A150: 4 | B150: 16 | D150: =D148+1 -> 2011-04-11 | E150: Nul | R150: 0 | S150: =VLOOKUP(E150,Ville!$A$3:$H$53,2,0) -> 
A151: 4 | B151: 16 | D151: 2011-04-12 | E151: Nul | R151: 0
A152: 4 | B152: 16 | C152: 64 | D152: 2011-04-13 | E152: Nul | R152: 0 | S152: =VLOOKUP(E152,Ville!$A$3:$H$53,2,0) -> 
A153: 4 | B153: 16 | C153: 65 | D153: 2011-04-14 | E153: Nul | R153: 0 | S153: =VLOOKUP(E153,Ville!$A$3:$H$53,2,0) -> 
A154: 4 | B154: 16 | C154: 66 | D154: 2011-04-15 | E154: Nul | R154: 0 | S154: =VLOOKUP(E154,Ville!$A$3:$H$53,2,0) -> 
A155: 4 | B155: 16 | D155: 2011-04-16 | E155: Nul | R155: 0
A156: 4 | B156: 16 | C156: 67 | D156: 2011-04-17 | E156: Nul | R156: 0 | S156: =VLOOKUP(E156,Ville!$A$3:$H$53,2,0) -> 
E157: Nul | R157: 0
A158: 4 | B158: 17 | C158: 68 | D158: =D156+1 -> 2011-04-18 | E158: Nul | R158: 0 | S158: =VLOOKUP(E158,Ville!$A$3:$H$53,2,0) -> 
A159: 4 | B159: 17 | C159: 69 | D159: 2011-04-19 | E159: Nul | R159: 0 | S159: =VLOOKUP(E159,Ville!$A$3:$H$53,2,0) -> 
A160: 4 | B160: 17 | C160: 70 | D160: 2011-04-20 | E160: Nul | R160: =IF(F160="",0,S160) -> 0 | S160: =VLOOKUP(E160,Ville!$A$3:$H$53,2,0) -> 
A161: 4 | B161: 17 | D161: 2011-04-21 | E161: Nul | R161: 0
A162: 4 | B162: 17 | D162: 2011-04-22 | E162: Nul | R162: 0 | S162: =VLOOKUP(E162,Ville!$A$3:$H$53,2,0) -> 
A163: =MONTH(D163) -> 4 | B163: 17 | C163: 70 | D163: 2011-04-23 | E163: Nul | R163: 0 | S163: =VLOOKUP(E163,Ville!$A$3:$H$53,2,0) -> 
A164: 4 | B164: 17 | C164: 71 | D164: 2011-04-24 | E164: Nul | R164: 0 | S164: =VLOOKUP(E164,Ville!$A$3:$H$53,2,0) -> 
E165: Nul | R165: 0
A166: 4 | B166: 18 | C166: 72 | D166: =D164+1 -> 2011-04-25 | E166: Nul | R166: 0 | S166: =VLOOKUP(E166,Ville!$A$3:$H$53,2,0) -> 
A167: 4 | B167: 18 | C167: 73 | D167: 2011-04-26 | E167: Nul | R167: 0 | S167: =VLOOKUP(E167,Ville!$A$3:$H$53,2,0) -> 
A168: 4 | B168: 18 | C168: 74 | D168: 2011-04-27 | E168: Nul | R168: 0 | S168: =VLOOKUP(E168,Ville!$A$3:$H$53,2,0) -> 
A169: 4 | B169: 18 | C169: 75 | D169: 2011-04-28 | E169: Nul | R169: 0 | S169: =VLOOKUP(E169,Ville!$A$3:$H$53,2,0) -> 
A170: 4 | B170: 18 | D170: 2011-04-29 | E170: Nul | R170: 0
A171: 4 | B171: 18 | C171: 76 | D171: 2011-04-30 | E171: Nul | R171: 0 | S171: =VLOOKUP(E171,Ville!$A$3:$H$53,2,0) -> 
E172: Nul | G172: =SUM(G138:G171) -> 0 | H172: =SUM(H138:H171) -> 0 | R172: 0
A173: 5 | B173: 18 | D173: =D171+1 -> 2011-05-01 | E173: Nul | R173: 0 | S173: =VLOOKUP(E173,Ville!$A$3:$H$53,2,0) -> 
A174: 5 | B174: 19 | C174: 76 | D174: 2011-05-02 | E174: Nul | R174: 0 | S174: =VLOOKUP(E174,Ville!$A$3:$H$53,2,0) -> 
A175: 5 | B175: 19 | C175: 77 | D175: 2011-05-03 | E175: Nul | R175: 0 | S175: =VLOOKUP(E175,Ville!$A$3:$H$53,2,0) -> 
A176: 5 | B176: 19 | D176: 2011-05-04 | E176: Nul | R176: 0 | S176: =VLOOKUP(E176,Ville!$A$3:$H$53,2,0) -> 
A177: 5 | B177: 19 | C177: 78 | D177: 2011-05-05 | E177: Nul | R177: 0 | S177: =VLOOKUP(E177,Ville!$A$3:$H$53,2,0) -> 
A178: 5 | B178: 19 | C178: 79 | D178: 2011-05-06 | E178: Nul | R178: 0 | S178: =VLOOKUP(E178,Ville!$A$3:$H$53,2,0) -> 
A179: 5 | B179: 19 | D179: 2011-05-07 | E179: Nul | R179: 0
A180: 5 | B180: 19 | C180: 80 | D180: 2011-05-08 | E180: Nul | R180: 0 | S180: =VLOOKUP(E180,Ville!$A$3:$H$53,2,0) -> 
E181: Nul | R181: 0
A182: 5 | B182: =WEEKNUM(D182,2) -> 20 | C182: 81 | D182: =D180+1 -> 2011-05-09 | E182: Nul | R182: 0 | S182: =VLOOKUP(E182,Ville!$A$3:$H$53,2,0) -> 
A183: 5 | B183: 20 | C183: 82 | D183: 2011-05-10 | E183: Nul | R183: 0 | S183: =VLOOKUP(E183,Ville!$A$3:$H$53,2,0) -> 
A184: 5 | B184: 20 | D184: =D183+1 -> 2011-05-11 | E184: Nul | R184: 0 | S184: =VLOOKUP(E184,Ville!$A$3:$H$53,2,0) -> 
A185: 5 | B185: 20 | C185: 83 | D185: 2011-05-12 | E185: Nul | R185: 0 | S185: =VLOOKUP(E185,Ville!$A$3:$H$53,2,0) -> 
A186: 5 | B186: 20 | C186: 84 | D186: 2011-05-13 | E186: Nul | R186: 0 | S186: =VLOOKUP(E186,Ville!$A$3:$H$53,2,0) -> 
A187: 5 | B187: 20 | C187: 84 | D187: 2011-05-14 | E187: Nul | R187: 0 | S187: =VLOOKUP(E187,Ville!$A$3:$H$53,2,0) -> 
A188: 5 | B188: 20 | D188: 2011-05-15 | E188: Nul | R188: 0
E189: Nul | R189: 0
A190: 5 | B190: 21 | C190: 85 | D190: =D188+1 -> 2011-05-16 | E190: Nul | R190: 0 | S190: =VLOOKUP(E190,Ville!$A$3:$H$53,2,0) -> 
A191: 5 | B191: 21 | C191: 86 | D191: 2011-05-17 | E191: Nul | R191: 0 | S191: =VLOOKUP(E191,Ville!$A$3:$H$53,2,0) -> 
A192: 5 | B192: 21 | C192: 87 | D192: 2011-05-18 | E192: Nul | R192: 0 | S192: =VLOOKUP(E192,Ville!$A$3:$H$53,2,0) -> 
A193: 5 | B193: 21 | C193: 88 | D193: 2011-05-19 | E193: Nul | R193: 0 | S193: =VLOOKUP(E193,Ville!$A$3:$H$53,2,0) -> 
A194: 5 | B194: 21 | D194: 2011-05-20 | E194: Nul | R194: 0 | S194: =VLOOKUP(E194,Ville!$A$3:$H$53,2,0) -> 
A195: 5 | B195: 21 | D195: 2011-05-21 | E195: Nul | R195: 0
A196: =MONTH(D196) -> 5 | B196: 21 | C196: 89 | D196: 2011-05-22 | E196: Nul | R196: 0 | S196: =VLOOKUP(E196,Ville!$A$3:$H$53,2,0) -> 
E197: Nul | R197: 0
A198: 5 | B198: 22 | C198: 90 | D198: =D196+1 -> 2011-05-23 | E198: Nul | R198: 0 | S198: =VLOOKUP(E198,Ville!$A$3:$H$53,2,0) -> 
A199: 5 | B199: 22 | D199: 2011-05-24 | E199: Nul | R199: 0
A200: 5 | B200: 22 | C200: 91 | D200: 2011-05-25 | E200: Nul | R200: 0 | S200: =VLOOKUP(E200,Ville!$A$3:$H$53,2,0) -> 
... 259 more rows

Sheet Suivi contrôles
E2: 7.191082803 | F2: ALAIN | M2: 7.331325301 | N2: CENTRE | U2: 10 | V2: AUXILIAIRE | AC2: 8.083333333 | AD2: ALAIN + AUXILIAIRE | AK2: TMD
A3: M | B3: J | D3: Date | E3: TOTAL | F3: TM | G3: TCP | H3: TMD | I3: CV | J3: R | K3: S | L3: REFUS | M3: TOTAL | N3: TM | O3: TCP | P3: TMD | Q3: CV | R3: R | S3: S | T3: REFUS | U3: TOTAL | V3: TM | W3: TCP | X3: TMD | Y3: CV | Z3: R | AA3: S | AB3: REFUS | AC3: TOTAL | AD3: TM | AE3: TCP | AF3: TMD | AG3: CV | AH3: R | AI3: S | AJ3: REFUS
D4: JANV | E4: =E50 -> 97 | F4: 68 | G4: 21 | H4: 0 | I4: 8 | J4: 3 | K4: 7 | L4: =IF((J4+K4)/(F4+G4+H4)*100=0,"",(J4+K4)/(F4+G4+H4)*100) -> 11.23595506 | M4: =M50 -> 97 | N4: 68 | O4: 21 | P4: 0 | Q4: 8 | R4: 3 | S4: 7 | T4: =IF((R4+S4)/(N4+O4+P4)*100=0,"",(R4+S4)/(N4+O4+P4)*100) -> 11.23595506 | U4: =U50 -> 30 | V4: 19 | W4: 6 | X4: 2 | Y4: 3 | Z4: 0 | AA4: 0 | AB4: =IF((Z4+AA4)/(V4+W4+X4)*100=0,"",(Z4+AA4)/(V4+W4+X4)*100) ->  | AC4: =AC50 -> 127 | AD4: 87 | AE4: 27 | AF4: 2 | AG4: 11 | AH4: 3 | AI4: 7 | AJ4: =IF((AH4+AI4)/(AD4+AE4+AF4)*100=0,"",(AH4+AI4)/(AD4+AE4+AF4)*100) -> 8.620689655 | AK4: 59 | AL4: =AF4 -> 2
D5: FÉVR | E5: =E80 -> 89 | F5: 49 | G5: 35 | H5: 0 | I5: 5 | J5: 5 | K5: 5 | L5: =IF((J5+K5)/(F5+G5+H5)*100=0,"",(J5+K5)/(F5+G5+H5)*100) -> 11.9047619 | M5: =M80 -> 89 | N5: 49 | O5: 35 | P5: 0 | Q5: 5 | R5: 5 | S5: 5 | T5: =IF((R5+S5)/(N5+O5+P5)*100=0,"",(R5+S5)/(N5+O5+P5)*100) -> 11.9047619 | U5: =U80 -> 45 | V5: 37 | W5: 3 | X5: 2 | Y5: 3 | Z5: 1 | AA5: 1 | AB5: 4.761904762 | AC5: =AC80 -> 134 | AD5: 86 | AE5: 38 | AF5: =AF80 -> 2 | AG5: 8 | AH5: 6 | AI5: 6 | AJ5: 9.523809524 | AK5: 61 | AL5: =AL4+AF5 -> 4
D6: MARS | E6: =E113 -> 0 | F6: =F113 -> 0 | G6: 0 | H6: 0 | I6: 0 | J6: 0 | K6: 0 | M6: =M113 -> 0 | N6: 0 | O6: 0 | P6: 0 | Q6: 0 | R6: 0 | S6: 0 | U6: =U113 -> 0 | V6: 0 | W6: 0 | X6: 0 | Y6: 0 | Z6: 0 | AA6: 0 | AC6: =AC113 -> 0 | AD6: =AD113 -> 0 | AE6: 0 | AF6: 0 | AG6: 0 | AH6: 0 | AI6: 0 | AK6: 55 | AL6: =AL5+AF6 -> 4
D7: AVR | E7: =E145 -> 0 | F7: 0 | G7: 0 | H7: 0 | I7: 0 | J7: 0 | K7: 0 | M7: =M145 -> 0 | N7: =N145 -> 0 | O7: 0 | P7: 0 | Q7: 0 | R7: 0 | S7: 0 | U7: =U145 -> 0 | V7: 0 | W7: 0 | X7: 0 | Y7: 0 | Z7: 0 | AA7: 0 | AC7: =AC145 -> 0 | AD7: 0 | AE7: 0 | AF7: 0 | AG7: 0 | AH7: 0 | AI7: 0 | AK7: 48 | AL7: =AL6+AF7 -> 4
D8: MAI | E8: =E178 -> 0 | F8: 0 | G8: 0 | H8: 0 | I8: 0 | J8: 0 | K8: 0 | M8: =M178 -> 0 | N8: 0 | O8: 0 | P8: 0 | Q8: 0 | R8: 0 | S8: 0 | U8: =U178 -> 0 | V8: 0 | W8: 0 | X8: 0 | Y8: 0 | Z8: 0 | AA8: 0 | AC8: =AC178 -> 0 | AD8: 0 | AE8: 0 | AF8: 0 | AG8: 0 | AH8: 0 | AI8: 0 | AK8: 45 | AL8: 4
D9: JUIN | E9: =E210 -> 0 | F9: 0 | G9: 0 | H9: 0 | I9: 0 | J9: 0 | K9: 0 | M9: =M210 -> 0 | N9: 0 | O9: 0 | P9: 0 | Q9: 0 | R9: 0 | S9: 0 | U9: =U210 -> 0 | V9: 0 | W9: 0 | X9: 0 | Y9: 0 | Z9: 0 | AA9: 0 | AC9: =AC210 -> 0 | AD9: 0 | AE9: 0 | AF9: 0 | AG9: 0 | AH9: 0 | AI9: 0 | AK9: 35 | AL9: 4
D10: JUIL | E10: =E243 -> 0 | F10: 0 | G10: 0 | H10: 0 | I10: 0 | J10: 0 | K10: 0 | M10: =M243 -> 0 | N10: 0 | O10: 0 | P10: 0 | Q10: 0 | R10: 0 | S10: 0 | U10: =U243 -> 0 | V10: 0 | W10: 0 | X10: 0 | Y10: 0 | Z10: 0 | AA10: 0 | AC10: =AC243 -> 0 | AD10: 0 | AE10: 0 | AF10: 0 | AG10: 0 | AH10: 0 | AI10: 0 | AK10: 28 | AL10: 4
D11: AOÛT | E11: =E276 -> 0 | F11: 0 | G11: 0 | H11: 0 | I11: 0 | J11: 0 | K11: 0 | M11: =M276 -> 0 | N11: 0 | O11: 0 | P11: 0 | Q11: 0 | R11: 0 | S11: 0 | U11: =U276 -> 0 | V11: 0 | W11: 0 | X11: 0 | Y11: 0 | Z11: 0 | AA11: 0 | AC11: =AC276 -> 0 | AD11: 0 | AE11: 0 | AF11: 0 | AG11: 0 | AH11: 0 | AI11: 0 | AK11: 25 | AL11: 4
D12: SEPT | E12: =E308 -> 0 | F12: 0 | G12: 0 | H12: 0 | I12: 0 | J12: 0 | K12: 0 | M12: =M308 -> 0 | N12: 0 | O12: 0 | P12: 0 | Q12: 0 | R12: 0 | S12: 0 | U12: =U308 -> 0 | V12: 0 | W12: 0 | X12: 0 | Y12: 0 | Z12: 0 | AA12: 0 | AC12: =AC308 -> 0 | AD12: 0 | AE12: 0 | AF12: 0 | AG12: 0 | AH12: 0 | AI12: 0 | AK12: 25 | AL12: 4
D13: OCT | E13: =E341 -> 0 | F13: 0 | G13: 0 | H13: =H341 -> 0 | I13: 0 | J13: 0 | K13: 0 | M13: =M341 -> 0 | N13: 0 | O13: 0 | P13: 0 | Q13: 0 | R13: 0 | S13: 0 | T13: =IF((R13+S13)/(N13+O13+P13)*100=0,"",(R13+S13)/(N13+O13+P13)*100) ->  | U13: =U341 -> 0 | V13: 0 | W13: 0 | X13: 0 | Y13: 0 | Z13: 0 | AA13: 0 | AC13: =AC341 -> 0 | AD13: 0 | AE13: 0 | AF13: 0 | AG13: 0 | AH13: 0 | AI13: 0 | AK13: 20 | AL13: 4
D14: NOV | E14: =E373 -> 0 | F14: 0 | G14: 0 | H14: 0 | I14: 0 | J14: 0 | K14: 0 | M14: =M373 -> 0 | N14: 0 | O14: 0 | P14: 0 | Q14: 0 | R14: 0 | S14: 0 | T14: =IF((R14+S14)/(N14+O14+P14)*100=0,"",(R14+S14)/(N14+O14+P14)*100) ->  | U14: =U373 -> 0 | V14: 0 | W14: 0 | X14: 0 | Y14: 0 | Z14: 0 | AA14: 0 | AC14: =AC373 -> 0 | AD14: 0 | AE14: 0 | AF14: 0 | AG14: 0 | AH14: 0 | AI14: 0 | AK14: 13 | AL14: 4
D15: DÉC | E15: =E406 -> 0 | F15: 0 | G15: 0 | H15: 0 | I15: 0 | J15: 0 | K15: 0 | M15: =M406 -> 0 | N15: 0 | O15: 0 | P15: 0 | Q15: 0 | R15: 0 | S15: 0 | T15: =IF((R15+S15)/(N15+O15+P15)*100=0,"",(R15+S15)/(N15+O15+P15)*100) ->  | U15: =U406 -> 0 | V15: 0 | W15: 0 | X15: 0 | Y15: 0 | Z15: 0 | AA15: 0 | AC15: =AC406 -> 0 | AD15: 0 | AE15: 0 | AF15: 0 | AG15: 0 | AH15: 0 | AI15: 0 | AK15: =SUM(AF4:AF15) -> 4 | AL15: 4
E16: =SUM(E4:E15) -> 186 | F16: 117 | G16: 56 | H16: =SUM(H4:H15) -> 0 | I16: 13 | J16: 8 | K16: 12 | L16: 11.56069364 | M16: =SUM(M4:M15) -> 186 | N16: 117 | O16: 56 | P16: 0 | Q16: 13 | R16: 8 | S16: 12 | T16: =IF((R16+S16)/(N16+O16+P16)*100=0,"",(R16+S16)/(N16+O16+P16)*100) -> 11.56069364 | U16: =SUM(U4:U15) -> 75 | V16: 56 | W16: 9 | X16: 4 | Y16: 6 | Z16: 1 | AA16: 1 | AB16: 2.898550725 | AC16: =SUM(AC4:AC15) -> 261 | AD16: 173 | AE16: 65 | AF16: =SUM(AF4:AF13) -> 4 | AG16: 19 | AH16: 9 | AI16: 13 | AJ16: 9.090909091 | AK16: =SUM(AF4:AF15) -> 4
AK17: NUL
A18: M | E18: T1 | F18: TM | G18: TCP | H18: TMD | I18: CV | J18: R | K18: S | M18: T2 | N18: TM | O18: TCP | P18: TMD | Q18: CV | R18: R | S18: S | U18: T3 | V18: TM | W18: TCP | X18: TMD | Y18: CV | Z18: R | AA18: S | AC18: T4 | AD18: TM | AE18: TCP | AF18: TMD | AG18: CV | AH18: R | AI18: S | AK18: lieu
A19: =MONTH(D19) -> 1 | B19: 1 | D19: 2011-01-01 | E19: =SUM(F19:I19) -> 0 | L19: =(J19+K19)/(F19+G19+H19)*100 ->  | M19: =SUM(N19:Q19) -> 0 | O19: =G19 -> 0 | P19: =H19 -> 0 | Q19: =I19 -> 0 | R19: =J19 -> 0 | S19: =K19 -> 0 | T19: =(R19+S19)/(N19+O19+P19)*100 ->  | U19: =SUM(V19:Y19) -> 0 | AB19: =IF((Z19+AA19)/(V19+W19+X19)*100=0,"",(Z19+AA19)/(V19+W19+X19)*100) ->  | AC19: =SUM(AD19:AG19) -> 0 | AD19: =F19+V19 -> 0 | AE19: =G19+W19 -> 0 | AF19: =H19+X19 -> 0 | AG19: =I19+Y19 -> 0 | AH19: =J19+Z19 -> 0 | AI19: =K19+AA19 -> 0 | AJ19: =IF((AH19+AI19)/(AD19+AE19+AF19)*100=0,"",(AH19+AI19)/(AD19+AE19+AF19)*100) ->  | AK19: NUL
A20: 1 | B20: 2 | D20: 2011-01-02 | E20: 0 | M20: 0 | N20: =F20 -> 0 | O20: 0 | P20: 0 | Q20: 0 | R20: 0 | S20: 0 | U20: 0 | AC20: 0 | AD20: 0 | AE20: 0 | AF20: 0 | AG20: 0 | AH20: 0 | AI20: 0 | AK20: NUL
A21: 1 | B21: 3 | D21: 2011-01-03 | E21: 0 | M21: 0 | R21: 0 | S21: 0 | U21: 2 | V21: 1 | Y21: 1 | AC21: 2 | AD21: 1 | AE21: 0 | AF21: 0 | AG21: 1 | AH21: 0 | AI21: 0 | AK21: Meythet
A22: 1 | B22: 4 | D22: 2011-01-04 | E22: 7 | F22: 5 | G22: 1 | I22: 1 | L22: 0 | M22: 7 | N22: 5 | O22: 1 | P22: 0 | Q22: 1 | R22: 0 | S22: 0 | T22: 0 | U22: 0 | AC22: 7 | AD22: 5 | AE22: 1 | AF22: 0 | AG22: 1 | AH22: 0 | AI22: 0 | AK22: NUL
A23: 1 | B23: 5 | D23: 2011-01-05 | E23: 5 | F23: 5 | L23: 0 | M23: 5 | N23: 5 | O23: 0 | P23: 0 | Q23: 0 | R23: 0 | S23: 0 | T23: 0 | U23: 0 | AC23: 5 | AD23: 5 | AE23: 0 | AF23: 0 | AG23: 0 | AH23: 0 | AI23: 0 | AK23: NUL
A24: 1 | B24: 6 | D24: 2011-01-06 | E24: 7 | F24: 4 | G24: 2 | I24: 1 | K24: 1 | L24: 16.66666667 | M24: 7 | N24: 4 | O24: 2 | P24: 0 | Q24: 1 | R24: 0 | S24: 1 | T24: 16.66666667 | U24: 0 | AC24: 7 | AD24: 4 | AE24: 2 | AF24: 0 | AG24: 1 | AH24: 0 | AI24: 1 | AJ24: 16.66666667 | AK24: NUL
A25: 1 | B25: 7 | D25: 2011-01-07 | E25: 10 | F25: 9 | G25: 1 | J25: 1 | K25: 3 | L25: 40 | M25: 10 | N25: 9 | O25: 1 | P25: 0 | Q25: 0 | R25: 1 | S25: 3 | T25: 40 | U25: 0 | AC25: 10 | AD25: 9 | AE25: 1 | AF25: 0 | AG25: 0 | AH25: 1 | AI25: 3 | AJ25: 40 | AK25: NUL
A26: 1 | B26: 8 | D26: 2011-01-08 | E26: 0 | M26: 0 | N26: 0 | O26: 0 | P26: 0 | Q26: 0 | R26: 0 | S26: 0 | U26: 0 | AC26: 0 | AD26: 0 | AE26: 0 | AF26: 0 | AG26: 0 | AH26: 0 | AI26: 0 | AK26: NUL
A27: 1 | B27: 9 | D27: 2011-01-09 | E27: 0 | M27: 0 | N27: 0 | O27: 0 | P27: 0 | Q27: 0 | R27: 0 | S27: 0 | U27: 0 | AC27: 0 | AD27: 0 | AE27: 0 | AF27: 0 | AG27: 0 | AH27: 0 | AI27: 0 | AK27: NUL
A28: 1 | B28: 10 | D28: 2011-01-10 | E28: 0 | M28: 0 | N28: 0 | O28: 0 | P28: 0 | Q28: 0 | R28: 0 | S28: 0 | U28: 0 | AC28: 0 | AD28: 0 | AE28: 0 | AF28: 0 | AG28: 0 | AH28: 0 | AI28: 0 | AK28: NUL
A29: 1 | B29: 11 | D29: 2011-01-11 | E29: 6 | F29: 5 | G29: 1 | J29: 1 | K29: 1 | L29: 33.33333333 | M29: 6 | N29: 5 | O29: 1 | P29: 0 | Q29: 0 | R29: 1 | S29: 1 | T29: 33.33333333 | U29: 0 | AC29: 6 | AD29: 5 | AE29: 1 | AF29: 0 | AG29: 0 | AH29: 1 | AI29: 1 | AJ29: 33.33333333 | AK29: NUL
A30: 1 | B30: 12 | D30: 2011-01-12 | E30: 7 | F30: 3 | G30: 4 | L30: 0 | M30: 7 | N30: 3 | O30: 4 | P30: 0 | Q30: 0 | R30: 0 | S30: 0 | T30: 0 | U30: 0 | AC30: 7 | AD30: 3 | AE30: 4 | AF30: 0 | AG30: 0 | AH30: 0 | AI30: 0 | AK30: NUL
A31: 1 | B31: 13 | D31: 2011-01-13 | E31: 0 | L31: =(J31+K31)/(F31+G31+H31)*100 ->  | M31: 0 | N31: =F31 -> 0 | O31: =G31 -> 0 | P31: 0 | Q31: 0 | R31: 0 | S31: 0 | U31: 1 | V31: 1 | AC31: 1 | AD31: =F31+V31 -> 1 | AE31: =G31+W31 -> 0 | AF31: 0 | AG31: 0 | AH31: 0 | AI31: 0 | AK31: sennece les macon
A32: 1 | B32: 14 | D32: 2011-01-14 | E32: 7 | F32: 4 | G32: 1 | I32: 2 | L32: 0 | M32: 7 | N32: 4 | O32: 1 | P32: 0 | Q32: 2 | R32: 0 | S32: 0 | T32: 0 | U32: =SUM(V32:Y32) -> 0 | AC32: 7 | AD32: =F32+V32 -> 4 | AE32: =G32+W32 -> 1 | AF32: 0 | AG32: 2 | AH32: 0 | AI32: 0 | AK32: NUL
A33: 1 | B33: 15 | D33: 2011-01-15 | E33: 0 | M33: 0 | N33: 0 | O33: 0 | P33: 0 | Q33: 0 | R33: 0 | S33: 0 | U33: 0 | AC33: 0 | AD33: 0 | AE33: 0 | AF33: 0 | AG33: 0 | AH33: 0 | AI33: 0 | AK33: NUL
A34: 1 | B34: 16 | D34: 2011-01-16 | E34: 0 | M34: 0 | N34: 0 | O34: 0 | P34: 0 | Q34: 0 | R34: 0 | S34: 0 | U34: 0 | AC34: 0 | AD34: 0 | AE34: 0 | AF34: 0 | AG34: 0 | AH34: 0 | AI34: 0 | AK34: NUL
A35: 1 | B35: 17 | D35: 2011-01-17 | E35: 6 | F35: 5 | I35: 1 | L35: 0 | M35: 6 | N35: 5 | O35: 0 | P35: 0 | Q35: 1 | R35: 0 | S35: 0 | T35: 0 | U35: 0 | AC35: 6 | AD35: 5 | AE35: 0 | AF35: 0 | AG35: 1 | AH35: 0 | AI35: 0 | AK35: NUL
A36: 1 | B36: 18 | D36: 2011-01-18 | E36: 9 | F36: 5 | G36: 4 | J36: 1 | L36: 11.11111111 | M36: 9 | N36: 5 | O36: 4 | P36: 0 | Q36: 0 | R36: 1 | S36: 0 | T36: 11.11111111 | U36: 0 | AC36: 9 | AD36: 5 | AE36: 4 | AF36: 0 | AG36: 0 | AH36: 1 | AI36: 0 | AJ36: 11.11111111 | AK36: NUL
A37: 1 | B37: 19 | D37: 2011-01-19 | E37: 0 | M37: 0 | N37: 0 | O37: 0 | P37: 0 | Q37: 0 | R37: 0 | S37: 0 | U37: 9 | V37: 5 | W37: 4 | AC37: 9 | AD37: 5 | AE37: 4 | AF37: 0 | AG37: 0 | AH37: 0 | AI37: 0 | AK37: sp Besançon
A38: 1 | B38: 20 | D38: 2011-01-20 | E38: 6 | F38: 4 | G38: 2 | L38: 0 | M38: 6 | N38: 4 | O38: 2 | P38: 0 | Q38: 0 | R38: 0 | S38: 0 | T38: 0 | U38: 0 | AC38: 6 | AD38: 4 | AE38: 2 | AF38: 0 | AG38: 0 | AH38: 0 | AI38: 0 | AK38: NUL
A39: 1 | B39: 21 | D39: 2011-01-21 | E39: 5 | F39: 5 | L39: 0 | M39: 5 | N39: 5 | O39: 0 | P39: 0 | Q39: 0 | R39: 0 | S39: 0 | T39: 0 | U39: 0 | AC39: 5 | AD39: 5 | AE39: 0 | AF39: 0 | AG39: 0 | AH39: 0 | AI39: 0 | AK39: NUL
A40: 1 | B40: 22 | D40: 2011-01-22 | E40: 0 | M40: 0 | N40: 0 | O40: 0 | P40: 0 | Q40: 0 | R40: 0 | S40: 0 | U40: 0 | AC40: 0 | AD40: 0 | AE40: 0 | AF40: 0 | AG40: 0 | AH40: 0 | AI40: 0 | AK40: NUL
A41: 1 | B41: 23 | D41: 2011-01-23 | E41: 0 | M41: 0 | N41: 0 | O41: 0 | P41: 0 | Q41: 0 | R41: 0 | S41: 0 | U41: 0 | AC41: 0 | AD41: 0 | AE41: 0 | AF41: 0 | AG41: 0 | AH41: 0 | AI41: 0 | AK41: NUL
A42: 1 | B42: 24 | D42: 2011-01-24 | E42: 0 | M42: 0 | N42: 0 | O42: 0 | P42: 0 | Q42: 0 | R42: 0 | S42: 0 | U42: 11 | V42: 8 | W42: 1 | X42: 1 | Y42: 1 | AB42: =IF((Z42+AA42)/(V42+W42+X42)*100=0,"",(Z42+AA42)/(V42+W42+X42)*100) ->  | AC42: 11 | AD42: 8 | AE42: 1 | AF42: =H42+X42 -> 1 | AG42: 1 | AH42: 0 | AI42: 0 | AK42: Besançon Iax
A43: 1 | B43: 25 | D43: 2011-01-25 | E43: 6 | F43: 4 | G43: 2 | L43: 0 | M43: 6 | N43: 4 | O43: 2 | P43: 0 | Q43: 0 | R43: 0 | S43: 0 | T43: 0 | U43: 0 | AB43: =IF((Z43+AA43)/(V43+W43+X43)*100=0,"",(Z43+AA43)/(V43+W43+X43)*100) ->  | AC43: 6 | AD43: 4 | AE43: 2 | AF43: =H43+X43 -> 0 | AG43: 0 | AH43: 0 | AI43: 0 | AK43: NUL
A44: 1 | B44: 26 | D44: 2011-01-26 | E44: 0 | M44: 0 | N44: 0 | O44: 0 | P44: 0 | Q44: 0 | R44: 0 | S44: 0 | U44: 7 | V44: 4 | W44: 1 | X44: 1 | Y44: 1 | AB44: =IF((Z44+AA44)/(V44+W44+X44)*100=0,"",(Z44+AA44)/(V44+W44+X44)*100) ->  | AC44: 7 | AD44: 4 | AE44: 1 | AF44: =H44+X44 -> 1 | AG44: 1 | AH44: 0 | AI44: 0 | AK44: Thann
A45: 1 | B45: 27 | D45: 2011-01-27 | E45: 5 | F45: 1 | G45: 2 | I45: 2 | K45: 1 | L45: 33.33333333 | M45: 5 | N45: 1 | O45: 2 | P45: 0 | Q45: 2 | R45: 0 | S45: 1 | T45: 33.33333333 | U45: 0 | AC45: 5 | AD45: 1 | AE45: 2 | AF45: 0 | AG45: 2 | AH45: 0 | AI45: 1 | AJ45: 33.33333333 | AK45: NUL
A46: 1 | B46: 28 | D46: 2011-01-28 | E46: 7 | F46: 5 | G46: 1 | I46: 1 | K46: 1 | L46: 16.66666667 | M46: 7 | N46: 5 | O46: 1 | P46: 0 | Q46: 1 | R46: 0 | S46: 1 | T46: 16.66666667 | U46: 0 | AC46: 7 | AD46: 5 | AE46: 1 | AF46: 0 | AG46: 1 | AH46: 0 | AI46: 1 | AJ46: 16.66666667 | AK46: NUL
A47: 1 | B47: 29 | D47: 2011-01-29 | E47: 0 | M47: 0 | N47: 0 | O47: 0 | P47: 0 | Q47: 0 | R47: 0 | S47: 0 | U47: 0 | AC47: 0 | AD47: 0 | AE47: 0 | AF47: 0 | AG47: 0 | AH47: 0 | AI47: 0 | AK47: NUL
A48: 1 | B48: 30 | D48: 2011-01-30 | E48: 0 | M48: 0 | N48: 0 | O48: 0 | P48: 0 | Q48: 0 | R48: 0 | S48: 0 | U48: 0 | AC48: 0 | AD48: 0 | AE48: 0 | AF48: 0 | AG48: 0 | AH48: 0 | AI48: 0 | AK48: NUL
A49: 1 | B49: 31 | D49: 2011-01-31 | E49: 4 | F49: 4 | L49: 0 | M49: 4 | N49: 4 | O49: 0 | P49: 0 | Q49: 0 | R49: 0 | S49: 0 | T49: 0 | U49: 0 | AC49: 4 | AD49: 4 | AE49: 0 | AF49: 0 | AG49: 0 | AH49: 0 | AI49: 0 | AK49: NUL
E50: =SUM(E19:E49) -> 97 | F50: 68 | G50: 21 | H50: 0 | I50: 8 | J50: 3 | K50: 7 | L50: 11.23595506 | M50: =SUM(M19:M49) -> 97 | N50: =SUM(N19:N49) -> 68 | O50: 21 | P50: 0 | Q50: 8 | R50: 3 | S50: 7 | T50: 11.23595506 | U50: =SUM(U19:U49) -> 30 | V50: 19 | W50: 6 | X50: 2 | Y50: 3 | Z50: 0 | AA50: 0 | AC50: =SUM(AC19:AC49) -> 127 | AD50: 87 | AE50: 27 | AF50: 2 | AG50: 11 | AH50: 3 | AI50: 7 | AJ50: 8.620689655 | AK50: NUL
AK51: NUL
A52: =MONTH(D52) -> 2 | B52: 32 | D52: 2011-02-01 | E52: =SUM(F52:I52) -> 0 | M52: =SUM(N52:Q52) -> 0 | N52: =F52 -> 0 | O52: =G52 -> 0 | P52: =H52 -> 0 | Q52: =I52 -> 0 | R52: =J52 -> 0 | S52: =K52 -> 0 | T52: =(R52+S52)/(N52+O52+P52)*100 ->  | U52: =SUM(V52:Y52) -> 1 | V52: 1 | AC52: =SUM(AD52:AG52) -> 1 | AD52: =F52+V52 -> 1 | AE52: =G52+W52 -> 0 | AF52: =H52+X52 -> 0 | AG52: =I52+Y52 -> 0 | AH52: =J52+Z52 -> 0 | AI52: =K52+AA52 -> 0 | AJ52: =IF((AH52+AI52)/(AD52+AE52+AF52)*100=0,"",(AH52+AI52)/(AD52+AE52+AF52)*100) ->  | AK52: villefranche
A53: 2 | B53: 33 | D53: 2011-02-02 | E53: 5 | F53: 3 | G53: 2 | L53: 0 | M53: 5 | N53: 3 | O53: 2 | P53: 0 | Q53: 0 | R53: 0 | S53: 0 | T53: 0 | U53: 0 | AC53: 5 | AD53: 3 | AE53: 2 | AF53: 0 | AG53: 0 | AH53: 0 | AI53: 0 | AK53: NUL
A54: 2 | B54: 34 | D54: 2011-02-03 | E54: 0 | M54: 0 | N54: 0 | O54: 0 | P54: 0 | Q54: 0 | R54: 0 | S54: 0 | U54: 4 | V54: 4 | AC54: 4 | AD54: 4 | AE54: 0 | AF54: 0 | AG54: 0 | AH54: 0 | AI54: 0 | AK54: sennece les macon
A55: 2 | B55: 35 | D55: 2011-02-04 | E55: 9 | F55: 4 | G55: 5 | L55: 0 | M55: 9 | N55: 4 | O55: 5 | P55: 0 | Q55: 0 | R55: 0 | S55: 0 | T55: 0 | U55: 0 | AC55: 9 | AD55: 4 | AE55: 5 | AF55: 0 | AG55: 0 | AH55: 0 | AI55: 0 | AK55: NUL
A56: 2 | B56: 36 | D56: 2011-02-05 | E56: 0 | M56: 0 | N56: 0 | O56: 0 | P56: 0 | Q56: 0 | R56: 0 | S56: 0 | U56: 0 | AC56: 0 | AD56: 0 | AE56: 0 | AF56: 0 | AG56: 0 | AH56: 0 | AI56: 0 | AK56: NUL
A57: 2 | B57: 37 | D57: 2011-02-06 | E57: 0 | M57: 0 | N57: 0 | O57: 0 | P57: 0 | Q57: 0 | R57: 0 | S57: 0 | U57: 0 | AB57: =IF((Z57+AA57)/(V57+W57+X57)*100=0,"",(Z57+AA57)/(V57+W57+X57)*100) ->  | AC57: 0 | AD57: 0 | AE57: 0 | AF57: 0 | AG57: 0 | AH57: 0 | AI57: 0 | AK57: NUL
A58: 2 | B58: 38 | D58: 2011-02-07 | E58: 0 | M58: 0 | N58: 0 | O58: 0 | P58: 0 | Q58: 0 | R58: 0 | S58: 0 | U58: 5 | V58: 4 | Y58: 1 | AC58: 5 | AD58: 4 | AE58: 0 | AF58: 0 | AG58: 1 | AH58: 0 | AI58: 0 | AK58: villefranche
A59: 2 | B59: 39 | D59: 2011-02-08 | E59: 13 | F59: 10 | G59: 3 | J59: 1 | K59: 1 | L59: 15.38461538 | M59: 13 | N59: 10 | O59: 3 | P59: 0 | Q59: 0 | R59: 1 | S59: 1 | T59: 15.38461538 | U59: 0 | AC59: 13 | AD59: 10 | AE59: 3 | AF59: 0 | AG59: 0 | AH59: 1 | AI59: 1 | AJ59: 15.38461538 | AK59: NUL
A60: 2 | B60: 40 | D60: 2011-02-09 | E60: 0 | M60: 0 | N60: 0 | O60: 0 | P60: 0 | Q60: 0 | R60: 0 | S60: 0 | U60: 5 | V60: 4 | W60: 1 | AC60: 5 | AD60: 4 | AE60: 1 | AF60: 0 | AG60: 0 | AH60: 0 | AI60: 0 | AK60: sp Besançon
A61: 2 | B61: 41 | D61: 2011-02-10 | E61: 9 | F61: 5 | G61: 4 | L61: 0 | M61: 9 | N61: 5 | O61: 4 | P61: 0 | Q61: 0 | R61: 0 | S61: 0 | T61: 0 | U61: 0 | AC61: 9 | AD61: 5 | AE61: 4 | AF61: 0 | AG61: 0 | AH61: 0 | AI61: 0 | AK61: NUL
A62: 2 | B62: 42 | D62: 2011-02-11 | E62: 0 | M62: 0 | N62: 0 | O62: 0 | P62: 0 | Q62: 0 | R62: 0 | S62: 0 | T62: =(R62+S62)/(N62+O62+P62)*100 ->  | U62: 0 | AC62: 0 | AD62: 0 | AE62: 0 | AF62: 0 | AG62: 0 | AH62: 0 | AI62: 0 | AK62: NUL
A63: 2 | B63: 43 | D63: 2011-02-12 | E63: 0 | M63: 0 | N63: 0 | O63: 0 | P63: 0 | Q63: 0 | R63: 0 | S63: 0 | U63: 0 | AC63: 0 | AD63: 0 | AE63: 0 | AF63: 0 | AG63: 0 | AH63: 0 | AI63: 0 | AK63: NUL
A64: 2 | B64: 44 | D64: 2011-02-13 | E64: 0 | M64: 0 | N64: 0 | O64: 0 | P64: 0 | Q64: 0 | R64: 0 | S64: 0 | U64: 0 | AC64: 0 | AD64: 0 | AE64: 0 | AF64: 0 | AG64: 0 | AH64: 0 | AI64: 0 | AK64: NUL
A65: 2 | B65: 45 | D65: 2011-02-14 | E65: 0 | M65: 0 | N65: 0 | O65: 0 | P65: 0 | Q65: 0 | R65: 0 | S65: 0 | U65: 7 | V65: 7 | Z65: 1 | AA65: 1 | AB65: 28.57142857 | AC65: 7 | AD65: 7 | AE65: 0 | AF65: 0 | AG65: 0 | AH65: 1 | AI65: 1 | AJ65: 28.57142857 | AK65: Meythet
A66: 2 | B66: 46 | D66: 2011-02-15 | E66: 7 | F66: 6 | G66: 1 | J66: 1 | K66: 1 | L66: 28.57142857 | M66: 7 | N66: 6 | O66: 1 | P66: 0 | Q66: 0 | R66: 1 | S66: 1 | T66: 28.57142857 | U66: 0 | AC66: 7 | AD66: 6 | AE66: 1 | AF66: 0 | AG66: 0 | AH66: 1 | AI66: 1 | AJ66: 28.57142857 | AK66: NUL
A67: 2 | B67: 47 | D67: 2011-02-16 | E67: 0 | M67: 0 | N67: 0 | O67: 0 | P67: 0 | Q67: 0 | R67: 0 | S67: 0 | U67: 7 | V67: 3 | X67: 2 | Y67: 2 | AB67: =IF((Z67+AA67)/(V67+W67+X67)*100=0,"",(Z67+AA67)/(V67+W67+X67)*100) ->  | AC67: 7 | AD67: 3 | AE67: 0 | AF67: =H67+X67 -> 2 | AG67: 2 | AH67: 0 | AI67: 0 | AK67: Thann
A68: 2 | B68: 48 | D68: 2011-02-17 | E68: 11 | F68: 3 | G68: 7 | I68: 1 | K68: 2 | L68: 20 | M68: 11 | N68: 3 | O68: 7 | P68: 0 | Q68: 1 | R68: 0 | S68: 2 | T68: 20 | U68: 0 | AC68: 11 | AD68: 3 | AE68: 7 | AF68: 0 | AG68: 1 | AH68: 0 | AI68: 2 | AJ68: 20 | AK68: NUL
A69: 2 | B69: 49 | D69: 2011-02-18 | E69: 6 | F69: 5 | G69: 1 | L69: =(J69+K69)/(F69+G69+H69)*100 -> 0 | M69: 6 | N69: 5 | O69: 1 | P69: 0 | Q69: 0 | R69: 0 | S69: 0 | T69: 0 | U69: 0 | AC69: 6 | AD69: 5 | AE69: 1 | AF69: 0 | AG69: 0 | AH69: 0 | AI69: 0 | AK69: NUL
A70: 2 | B70: 50 | D70: 2011-02-19 | E70: 0 | M70: 0 | N70: 0 | O70: 0 | P70: 0 | Q70: 0 | R70: 0 | S70: 0 | U70: 0 | AC70: 0 | AD70: 0 | AE70: 0 | AF70: 0 | AG70: 0 | AH70: 0 | AI70: 0 | AK70: NUL
A71: 2 | B71: 51 | D71: 2011-02-20 | E71: 0 | M71: 0 | N71: 0 | O71: 0 | P71: 0 | Q71: 0 | R71: 0 | S71: 0 | U71: 0 | AC71: 0 | AD71: 0 | AE71: 0 | AF71: 0 | AG71: 0 | AH71: 0 | AI71: 0 | AK71: NUL
A72: 2 | B72: 52 | D72: 2011-02-21 | E72: 0 | M72: 0 | N72: 0 | O72: 0 | P72: 0 | Q72: 0 | R72: 0 | S72: 0 | U72: 8 | V72: 7 | W72: 1 | AC72: 8 | AD72: 7 | AE72: 1 | AF72: 0 | AG72: 0 | AH72: 0 | AI72: 0 | AK72: sp Besançon
A73: 2 | B73: 53 | D73: 2011-02-22 | E73: 11 | F73: 6 | G73: 5 | J73: 1 | K73: 1 | L73: 18.18181818 | M73: 11 | N73: 6 | O73: 5 | P73: 0 | Q73: 0 | R73: 1 | S73: 1 | T73: 18.18181818 | U73: 0 | AC73: 11 | AD73: 6 | AE73: 5 | AF73: 0 | AG73: 0 | AH73: 1 | AI73: 1 | AJ73: 18.18181818 | AK73: NUL
A74: 2 | B74: 54 | D74: 2011-02-23 | E74: 0 | M74: 0 | N74: 0 | O74: 0 | P74: 0 | Q74: 0 | R74: 0 | S74: 0 | U74: 8 | V74: 7 | W74: 1 | AC74: 8 | AD74: 7 | AE74: 1 | AF74: 0 | AG74: 0 | AH74: 0 | AI74: 0 | AK74: villefranche
A75: 2 | B75: 55 | D75: 2011-02-24 | E75: 10 | F75: 4 | G75: 3 | I75: 3 | L75: 0 | M75: 10 | N75: 4 | O75: 3 | P75: 0 | Q75: 3 | R75: 0 | S75: 0 | T75: 0 | U75: 0 | AC75: 10 | AD75: 4 | AE75: 3 | AF75: 0 | AG75: 3 | AH75: 0 | AI75: 0 | AK75: NUL
A76: 2 | B76: 56 | D76: 2011-02-25 | E76: 8 | F76: 3 | G76: 4 | I76: 1 | J76: 2 | L76: 28.57142857 | M76: 8 | N76: 3 | O76: 4 | P76: 0 | Q76: 1 | R76: 2 | S76: 0 | T76: 28.57142857 | U76: 0 | AC76: 8 | AD76: 3 | AE76: 4 | AF76: 0 | AG76: 1 | AH76: 2 | AI76: 0 | AJ76: 28.57142857 | AK76: NUL
A77: 2 | B77: 57 | D77: 2011-02-26 | E77: 0 | M77: 0 | N77: 0 | O77: 0 | P77: 0 | Q77: 0 | R77: 0 | S77: 0 | U77: 0 | AC77: 0 | AD77: 0 | AE77: 0 | AF77: 0 | AG77: 0 | AH77: 0 | AI77: 0 | AK77: NUL
A78: 2 | B78: 58 | D78: 2011-02-27 | E78: 0 | M78: 0 | N78: 0 | O78: 0 | P78: 0 | Q78: 0 | R78: 0 | S78: 0 | U78: 0 | AC78: 0 | AD78: 0 | AE78: 0 | AF78: 0 | AG78: 0 | AH78: 0 | AI78: 0 | AK78: NUL
A79: 2 | B79: 59 | D79: 2011-02-28 | E79: 0 | M79: 0 | N79: 0 | O79: 0 | P79: 0 | Q79: 0 | R79: 0 | S79: 0 | U79: 0 | AC79: 0 | AD79: 0 | AE79: 0 | AF79: 0 | AG79: 0 | AH79: 0 | AI79: 0 | AK79: NUL
E80: =SUM(E52:E79) -> 89 | F80: =SUM(F52:F79) -> 49 | G80: 35 | H80: 0 | I80: 5 | J80: 5 | K80: 5 | L80: 11.9047619 | M80: =SUM(M52:M79) -> 89 | N80: 49 | O80: 35 | P80: 0 | Q80: 5 | R80: 5 | S80: 5 | T80: 11.9047619 | U80: =SUM(U52:U79) -> 45 | V80: 37 | W80: 3 | X80: 2 | Y80: 3 | Z80: 1 | AA80: 1 | AB80: 4.761904762 | AC80: =SUM(AC52:AC79) -> 134 | AD80: 86 | AE80: 38 | AF80: 2 | AG80: 8 | AH80: 6 | AI80: 6 | AJ80: 9.523809524 | AK80: NUL
AK81: NUL
A82: =MONTH(D82) -> 3 | B82: 60 | D82: 2011-03-01 | E82: =SUM(F82:I82) -> 0 | M82: =SUM(N82:Q82) -> 0 | N82: =F82 -> 0 | O82: =G82 -> 0 | P82: =H82 -> 0 | Q82: =I82 -> 0 | R82: =J82 -> 0 | S82: =K82 -> 0 | T82: =(R82+S82)/(N82+O82+P82)*100 ->  | U82: =SUM(V82:Y82) -> 0 | AC82: =SUM(AD82:AG82) -> 0 | AD82: =F82+V82 -> 0 | AE82: =G82+W82 -> 0 | AF82: =H82+X82 -> 0 | AG82: =I82+Y82 -> 0 | AH82: =J82+Z82 -> 0 | AI82: =K82+AA82 -> 0 | AJ82: =IF((AH82+AI82)/(AD82+AE82+AF82)*100=0,"",(AH82+AI82)/(AD82+AE82+AF82)*100) ->  | AK82: NUL
A83: 3 | B83: 61 | D83: 2011-03-02 | E83: 0 | M83: 0 | N83: 0 | O83: 0 | P83: 0 | Q83: 0 | R83: 0 | S83: 0 | U83: 0 | AC83: 0 | AD83: 0 | AE83: 0 | AF83: 0 | AG83: 0 | AH83: 0 | AI83: 0 | AK83: NUL
A84: 3 | B84: 62 | D84: 2011-03-03 | E84: 0 | M84: 0 | N84: 0 | O84: 0 | P84: 0 | Q84: 0 | R84: 0 | S84: 0 | U84: 0 | AC84: 0 | AD84: 0 | AE84: 0 | AF84: 0 | AG84: 0 | AH84: 0 | AI84: 0 | AK84: NUL
A85: 3 | B85: 63 | D85: 2011-03-04 | E85: 0 | M85: 0 | N85: 0 | O85: 0 | P85: 0 | Q85: 0 | R85: 0 | S85: 0 | U85: 0 | AC85: 0 | AD85: 0 | AE85: 0 | AF85: 0 | AG85: 0 | AH85: 0 | AI85: 0 | AK85: NUL
A86: 3 | B86: 64 | D86: 2011-03-05 | E86: 0 | M86: 0 | N86: 0 | O86: 0 | P86: 0 | Q86: 0 | R86: 0 | S86: 0 | U86: 0 | AC86: 0 | AD86: 0 | AE86: 0 | AF86: 0 | AG86: 0 | AH86: 0 | AI86: 0 | AK86: NUL
A87: 3 | B87: 65 | D87: 2011-03-06 | E87: 0 | M87: 0 | N87: 0 | O87: 0 | P87: 0 | Q87: 0 | R87: 0 | S87: 0 | U87: 0 | AC87: 0 | AD87: 0 | AE87: 0 | AF87: 0 | AG87: 0 | AH87: 0 | AI87: 0 | AK87: NUL
A88: 3 | B88: 66 | D88: 2011-03-07 | E88: 0 | M88: 0 | N88: 0 | O88: 0 | P88: 0 | Q88: 0 | R88: 0 | S88: 0 | U88: 0 | AC88: 0 | AD88: 0 | AE88: 0 | AF88: 0 | AG88: 0 | AH88: 0 | AI88: 0 | AK88: NUL
A89: 3 | B89: 67 | D89: 2011-03-08 | E89: 0 | M89: 0 | N89: 0 | O89: 0 | P89: 0 | Q89: 0 | R89: 0 | S89: 0 | U89: 0 | AC89: 0 | AD89: 0 | AE89: 0 | AF89: 0 | AG89: 0 | AH89: 0 | AI89: 0 | AK89: NUL
A90: 3 | B90: 68 | D90: 2011-03-09 | E90: 0 | M90: 0 | N90: 0 | O90: 0 | P90: 0 | Q90: 0 | R90: 0 | S90: 0 | U90: 0 | AC90: 0 | AD90: 0 | AE90: 0 | AF90: 0 | AG90: 0 | AH90: 0 | AI90: 0 | AK90: NUL
A91: 3 | B91: 69 | D91: 2011-03-10 | E91: 0 | M91: 0 | N91: 0 | O91: 0 | P91: 0 | Q91: 0 | R91: 0 | S91: 0 | U91: 0 | AC91: 0 | AD91: 0 | AE91: 0 | AF91: 0 | AG91: 0 | AH91: 0 | AI91: 0 | AK91: NUL
A92: 3 | B92: 70 | D92: 2011-03-11 | E92: 0 | M92: 0 | N92: =F92 -> 0 | O92: =G92 -> 0 | P92: =H92 -> 0 | Q92: =I92 -> 0 | R92: =J92 -> 0 | S92: 0 | U92: 0 | AC92: =SUM(AD92:AG92) -> 0 | AD92: 0 | AE92: 0 | AF92: 0 | AG92: 0 | AH92: 0 | AI92: 0 | AK92: NUL
A93: 3 | B93: 71 | D93: 2011-03-12 | E93: 0 | M93: 0 | N93: 0 | O93: 0 | P93: 0 | Q93: 0 | R93: 0 | S93: 0 | U93: 0 | AC93: 0 | AD93: 0 | AE93: 0 | AF93: 0 | AG93: 0 | AH93: 0 | AI93: 0 | AK93: NUL
A94: 3 | B94: 72 | D94: 2011-03-13 | E94: 0 | M94: 0 | N94: 0 | O94: 0 | P94: 0 | Q94: 0 | R94: 0 | S94: 0 | U94: 0 | AC94: 0 | AD94: 0 | AE94: 0 | AF94: 0 | AG94: 0 | AH94: 0 | AI94: 0 | AK94: NUL
A95: 3 | B95: 73 | D95: 2011-03-14 | E95: 0 | M95: 0 | N95: 0 | O95: 0 | P95: 0 | Q95: 0 | R95: 0 | S95: 0 | U95: 0 | AC95: 0 | AD95: 0 | AE95: 0 | AF95: 0 | AG95: 0 | AH95: 0 | AI95: 0 | AK95: NUL
A96: 3 | B96: 74 | D96: 2011-03-15 | E96: 0 | M96: 0 | N96: 0 | O96: 0 | P96: 0 | Q96: 0 | R96: 0 | S96: 0 | U96: 0 | AC96: 0 | AD96: 0 | AE96: 0 | AF96: 0 | AG96: 0 | AH96: 0 | AI96: 0 | AK96: NUL
A97: 3 | B97: 75 | D97: 2011-03-16 | E97: 0 | M97: 0 | N97: 0 | O97: 0 | P97: 0 | Q97: 0 | R97: 0 | S97: 0 | U97: 0 | AC97: 0 | AD97: 0 | AE97: 0 | AF97: 0 | AG97: 0 | AH97: 0 | AI97: 0 | AK97: NUL
A98: 3 | B98: 76 | D98: 2011-03-17 | E98: 0 | M98: 0 | N98: 0 | O98: 0 | P98: 0 | Q98: 0 | R98: 0 | S98: 0 | U98: 0 | AC98: 0 | AD98: 0 | AE98: 0 | AF98: 0 | AG98: 0 | AH98: 0 | AI98: 0 | AK98: NUL
A99: 3 | B99: 77 | D99: 2011-03-18 | E99: 0 | M99: 0 | N99: 0 | O99: 0 | P99: 0 | Q99: 0 | R99: 0 | S99: 0 | U99: 0 | AB99: =IF((Z99+AA99)/(V99+W99+X99)*100=0,"",(Z99+AA99)/(V99+W99+X99)*100) ->  | AC99: 0 | AD99: 0 | AE99: 0 | AF99: 0 | AG99: 0 | AH99: 0 | AI99: 0 | AK99: NUL
A100: 3 | B100: 78 | D100: 2011-03-19 | E100: 0 | M100: 0 | N100: 0 | O100: 0 | P100: 0 | Q100: 0 | R100: 0 | S100: 0 | U100: 0 | AB100: =IF((Z100+AA100)/(V100+W100+X100)*100=0,"",(Z100+AA100)/(V100+W100+X100)*100) ->  | AC100: 0 | AD100: 0 | AE100: 0 | AF100: 0 | AG100: 0 | AH100: 0 | AI100: 0 | AK100: NUL
A101: 3 | B101: 79 | D101: 2011-03-20 | E101: 0 | M101: 0 | O101: 0 | P101: 0 | Q101: 0 | R101: 0 | S101: 0 | U101: 0 | AB101: =IF((Z101+AA101)/(V101+W101+X101)*100=0,"",(Z101+AA101)/(V101+W101+X101)*100) ->  | AC101: 0 | AD101: 0 | AE101: =G101+W101 -> 0 | AF101: =H101+X101 -> 0 | AG101: =I101+Y101 -> 0 | AH101: =J101+Z101 -> 0 | AI101: =K101+AA101 -> 0 | AK101: NUL
A102: 3 | B102: 80 | D102: 2011-03-21 | E102: 0 | M102: 0 | N102: 0 | O102: 0 | P102: 0 | Q102: 0 | R102: 0 | S102: 0 | U102: 0 | AB102: =IF((Z102+AA102)/(V102+W102+X102)*100=0,"",(Z102+AA102)/(V102+W102+X102)*100) ->  | AC102: 0 | AD102: =F102+V102 -> 0 | AE102: 0 | AF102: 0 | AG102: 0 | AH102: 0 | AI102: 0 | AK102: NUL
A103: 3 | B103: 81 | D103: 2011-03-22 | E103: 0 | M103: 0 | N103: 0 | O103: 0 | P103: 0 | Q103: 0 | R103: 0 | S103: 0 | U103: 0 | AC103: 0 | AD103: 0 | AE103: 0 | AF103: 0 | AG103: 0 | AH103: 0 | AI103: 0 | AK103: NUL
A104: 3 | B104: 82 | D104: 2011-03-23 | E104: 0 | M104: 0 | N104: 0 | O104: 0 | P104: 0 | Q104: 0 | R104: 0 | S104: 0 | U104: 0 | AC104: 0 | AD104: 0 | AE104: 0 | AF104: 0 | AG104: 0 | AH104: 0 | AI104: 0 | AK104: NUL
A105: 3 | B105: 83 | D105: 2011-03-24 | E105: 0 | M105: 0 | N105: 0 | O105: 0 | P105: 0 | Q105: 0 | R105: 0 | S105: 0 | U105: 0 | AC105: 0 | AD105: 0 | AE105: 0 | AF105: 0 | AG105: 0 | AH105: 0 | AI105: 0 | AK105: NUL
A106: 3 | B106: 84 | D106: 2011-03-25 | E106: 0 | M106: 0 | N106: 0 | O106: 0 | P106: 0 | Q106: 0 | R106: 0 | S106: 0 | U106: 0 | AC106: 0 | AD106: 0 | AE106: 0 | AF106: 0 | AG106: 0 | AH106: 0 | AI106: 0 | AK106: NUL
A107: 3 | B107: 85 | D107: 2011-03-26 | E107: 0 | M107: 0 | N107: 0 | O107: 0 | P107: 0 | Q107: 0 | R107: 0 | S107: 0 | U107: 0 | AC107: 0 | AD107: 0 | AE107: 0 | AF107: 0 | AG107: 0 | AH107: 0 | AI107: 0 | AK107: NUL
A108: 3 | B108: 86 | D108: 2011-03-27 | E108: 0 | M108: 0 | N108: 0 | O108: 0 | P108: 0 | Q108: 0 | R108: 0 | S108: 0 | U108: 0 | AC108: 0 | AD108: 0 | AE108: 0 | AF108: 0 | AG108: 0 | AH108: 0 | AI108: 0 | AK108: NUL
A109: 3 | B109: 87 | D109: 2011-03-28 | E109: 0 | M109: 0 | N109: 0 | O109: 0 | P109: 0 | Q109: 0 | R109: 0 | S109: 0 | U109: 0 | AC109: 0 | AD109: 0 | AE109: 0 | AF109: 0 | AG109: 0 | AH109: 0 | AI109: 0 | AK109: NUL
A110: 3 | B110: 88 | D110: 2011-03-29 | E110: 0 | M110: 0 | N110: 0 | O110: 0 | P110: 0 | Q110: 0 | R110: 0 | S110: 0 | U110: 0 | AC110: 0 | AD110: 0 | AE110: 0 | AF110: 0 | AG110: 0 | AH110: 0 | AI110: 0 | AK110: NUL
A111: 3 | B111: 89 | D111: 2011-03-30 | E111: =SUM(F111:I111) -> 0 | M111: 0 | N111: 0 | O111: 0 | P111: 0 | Q111: 0 | R111: 0 | S111: 0 | U111: 0 | AC111: 0 | AD111: 0 | AE111: 0 | AF111: 0 | AG111: 0 | AH111: 0 | AI111: 0 | AK111: NUL
A112: 3 | B112: 90 | D112: 2011-03-31 | E112: 0 | M112: 0 | N112: 0 | O112: 0 | Q112: 0 | R112: 0 | S112: 0 | U112: 0 | AB112: =IF((Z112+AA112)/(V112+W112+X112)*100=0,"",(Z112+AA112)/(V112+W112+X112)*100) ->  | AC112: 0 | AD112: 0 | AE112: 0 | AF112: 0 | AG112: 0 | AH112: 0 | AI112: 0 | AK112: NUL
E113: =SUM(E82:E112) -> 0 | F113: 0 | G113: 0 | H113: 0 | I113: 0 | J113: 0 | K113: 0 | M113: =SUM(M82:M112) -> 0 | N113: =SUM(N82:N112) -> 0 | O113: 0 | P113: 0 | Q113: 0 | R113: 0 | S113: 0 | U113: =SUM(U82:U112) -> 0 | V113: 0 | W113: 0 | X113: 0 | Y113: 0 | Z113: 0 | AA113: 0 | AB113: =IF((Z113+AA113)/(V113+W113+X113)*100=0,"",(Z113+AA113)/(V113+W113+X113)*100) ->  | AC113: =SUM(AC82:AC112) -> 0 | AD113: 0 | AE113: 0 | AF113: 0 | AG113: 0 | AH113: 0 | AI113: 0 | AK113: NUL
AK114: NUL
A115: =MONTH(D115) -> 4 | B115: 91 | D115: 2011-04-01 | E115: =SUM(F115:I115) -> 0 | M115: =SUM(N115:Q115) -> 0 | N115: =F115 -> 0 | O115: =G115 -> 0 | P115: =H115 -> 0 | Q115: =I115 -> 0 | R115: =J115 -> 0 | S115: =K115 -> 0 | T115: =(R115+S115)/(N115+O115+P115)*100 ->  | U115: =SUM(V115:Y115) -> 0 | AB115: =IF((Z115+AA115)/(V115+W115+X115)*100=0,"",(Z115+AA115)/(V115+W115+X115)*100) ->  | AC115: =SUM(AD115:AG115) -> 0 | AD115: =F115+V115 -> 0 | AE115: =G115+W115 -> 0 | AF115: =H115+X115 -> 0 | AG115: =I115+Y115 -> 0 | AH115: =J115+Z115 -> 0 | AI115: =K115+AA115 -> 0 | AJ115: =IF((AH115+AI115)/(AD115+AE115+AF115)*100=0,"",(AH115+AI115)/(AD115+AE115+AF115)*100) ->  | AK115: NUL
A116: 4 | B116: 92 | D116: 2011-04-02 | E116: 0 | L116: =(J116+K116)/(F116+G116+H116)*100 ->  | M116: 0 | N116: 0 | O116: 0 | P116: 0 | Q116: 0 | R116: 0 | S116: 0 | U116: 0 | AC116: 0 | AD116: 0 | AE116: 0 | AF116: 0 | AG116: 0 | AH116: 0 | AI116: 0 | AK116: NUL
A117: 4 | B117: 93 | D117: 2011-04-03 | E117: 0 | M117: 0 | N117: 0 | O117: 0 | P117: 0 | Q117: 0 | R117: 0 | S117: 0 | U117: 0 | AC117: 0 | AD117: 0 | AE117: 0 | AF117: 0 | AG117: 0 | AH117: 0 | AI117: 0 | AK117: NUL
A118: 4 | B118: 94 | D118: 2011-04-04 | E118: 0 | M118: 0 | N118: 0 | O118: 0 | P118: 0 | Q118: 0 | R118: 0 | S118: 0 | U118: 0 | AC118: 0 | AD118: 0 | AE118: 0 | AF118: 0 | AG118: 0 | AH118: 0 | AI118: 0 | AK118: NUL
A119: 4 | B119: 95 | D119: 2011-04-05 | E119: 0 | M119: 0 | N119: 0 | O119: 0 | P119: 0 | Q119: 0 | R119: 0 | S119: 0 | U119: 0 | AC119: 0 | AD119: 0 | AE119: 0 | AF119: 0 | AG119: 0 | AH119: 0 | AI119: 0 | AK119: NUL
A120: 4 | B120: 96 | D120: 2011-04-06 | E120: 0 | M120: 0 | N120: 0 | O120: 0 | P120: 0 | Q120: 0 | R120: 0 | S120: 0 | U120: 0 | AC120: 0 | AD120: 0 | AE120: 0 | AF120: 0 | AG120: 0 | AH120: 0 | AI120: 0 | AK120: NUL
A121: 4 | B121: 97 | D121: 2011-04-07 | E121: 0 | M121: 0 | N121: 0 | O121: 0 | P121: 0 | Q121: 0 | R121: 0 | S121: 0 | U121: 0 | AC121: 0 | AD121: 0 | AE121: 0 | AF121: 0 | AG121: 0 | AH121: 0 | AI121: 0 | AK121: NUL
A122: 4 | B122: 98 | D122: 2011-04-08 | E122: 0 | M122: 0 | Q122: 0 | R122: 0 | S122: 0 | U122: 0 | AC122: 0 | AD122: 0 | AE122: 0 | AF122: 0 | AG122: 0 | AH122: 0 | AI122: 0 | AK122: NUL
A123: 4 | B123: 99 | D123: 2011-04-09 | E123: 0 | M123: 0 | N123: 0 | O123: 0 | P123: 0 | Q123: 0 | R123: 0 | S123: 0 | U123: 0 | AC123: 0 | AD123: 0 | AE123: 0 | AF123: 0 | AG123: 0 | AH123: 0 | AI123: 0 | AK123: NUL
A124: 4 | B124: 100 | D124: 2011-04-10 | E124: 0 | M124: 0 | N124: 0 | O124: 0 | P124: 0 | Q124: 0 | R124: 0 | S124: 0 | U124: 0 | AC124: 0 | AD124: 0 | AE124: 0 | AF124: 0 | AG124: 0 | AH124: 0 | AI124: 0 | AK124: NUL
A125: 4 | B125: 101 | D125: 2011-04-11 | E125: 0 | M125: 0 | N125: 0 | O125: 0 | P125: 0 | Q125: 0 | R125: 0 | S125: 0 | U125: 0 | AC125: 0 | AD125: 0 | AE125: 0 | AF125: 0 | AG125: 0 | AH125: 0 | AI125: 0 | AK125: NUL
A126: 4 | B126: 102 | D126: 2011-04-12 | E126: 0 | M126: 0 | N126: 0 | O126: 0 | P126: 0 | Q126: 0 | R126: 0 | S126: 0 | U126: 0 | AC126: 0 | AD126: 0 | AE126: 0 | AF126: 0 | AG126: 0 | AH126: 0 | AI126: 0 | AK126: NUL
A127: 4 | B127: 103 | D127: 2011-04-13 | E127: 0 | M127: 0 | N127: 0 | O127: 0 | P127: 0 | Q127: 0 | R127: 0 | S127: 0 | U127: 0 | AC127: 0 | AD127: 0 | AE127: 0 | AF127: 0 | AG127: 0 | AH127: 0 | AI127: 0 | AK127: NUL
A128: 4 | B128: 104 | D128: 2011-04-14 | E128: 0 | M128: 0 | N128: 0 | O128: 0 | P128: 0 | Q128: 0 | R128: 0 | S128: 0 | U128: 0 | AC128: 0 | AD128: 0 | AE128: 0 | AF128: 0 | AG128: 0 | AH128: 0 | AI128: 0 | AK128: NUL
A129: 4 | B129: 105 | D129: 2011-04-15 | E129: 0 | M129: 0 | N129: 0 | O129: 0 | P129: 0 | Q129: 0 | R129: 0 | S129: 0 | U129: 0 | AC129: 0 | AD129: 0 | AE129: 0 | AF129: 0 | AG129: 0 | AH129: 0 | AI129: 0 | AK129: NUL
A130: 4 | B130: 106 | D130: 2011-04-16 | E130: 0 | M130: 0 | N130: 0 | O130: 0 | P130: 0 | Q130: 0 | R130: 0 | S130: 0 | U130: 0 | AC130: 0 | AD130: 0 | AE130: 0 | AF130: 0 | AG130: 0 | AH130: 0 | AI130: 0 | AK130: NUL
A131: 4 | B131: 107 | D131: 2011-04-17 | E131: 0 | M131: 0 | N131: 0 | O131: 0 | P131: 0 | Q131: 0 | R131: 0 | S131: 0 | U131: 0 | AC131: 0 | AD131: 0 | AE131: 0 | AF131: 0 | AG131: 0 | AH131: 0 | AI131: 0 | AK131: NUL
A132: 4 | B132: 108 | D132: 2011-04-18 | E132: 0 | M132: 0 | N132: 0 | O132: 0 | P132: 0 | Q132: 0 | R132: 0 | S132: 0 | U132: 0 | AC132: 0 | AD132: 0 | AE132: 0 | AF132: 0 | AG132: 0 | AH132: 0 | AI132: 0 | AK132: NUL
A133: 4 | B133: 109 | D133: 2011-04-19 | E133: 0 | M133: 0 | N133: 0 | O133: 0 | P133: 0 | Q133: 0 | R133: 0 | S133: 0 | U133: 0 | AC133: 0 | AD133: 0 | AE133: 0 | AF133: 0 | AG133: 0 | AH133: 0 | AI133: 0 | AK133: NUL
A134: 4 | B134: 110 | D134: 2011-04-20 | E134: 0 | M134: 0 | N134: 0 | O134: 0 | P134: 0 | Q134: 0 | R134: 0 | S134: 0 | U134: 0 | AC134: 0 | AD134: 0 | AE134: 0 | AF134: 0 | AG134: 0 | AH134: 0 | AI134: 0 | AK134: NUL
A135: 4 | B135: 111 | D135: 2011-04-21 | E135: 0 | M135: 0 | N135: 0 | O135: 0 | P135: 0 | Q135: 0 | R135: 0 | S135: 0 | U135: 0 | AC135: 0 | AD135: 0 | AE135: 0 | AF135: 0 | AG135: 0 | AH135: 0 | AI135: 0 | AK135: NUL
A136: 4 | B136: 112 | D136: 2011-04-22 | E136: 0 | M136: 0 | N136: 0 | O136: 0 | P136: 0 | Q136: 0 | R136: 0 | S136: 0 | U136: 0 | AC136: 0 | AD136: 0 | AE136: 0 | AF136: 0 | AG136: 0 | AH136: 0 | AI136: 0 | AK136: NUL
A137: 4 | B137: 113 | D137: 2011-04-23 | E137: 0 | M137: 0 | N137: 0 | O137: 0 | P137: 0 | Q137: 0 | R137: 0 | S137: 0 | U137: 0 | AC137: 0 | AD137: 0 | AE137: 0 | AF137: 0 | AG137: 0 | AH137: 0 | AI137: 0 | AK137: NUL
A138: 4 | B138: 114 | D138: 2011-04-24 | E138: 0 | M138: 0 | N138: 0 | O138: 0 | P138: 0 | Q138: 0 | R138: 0 | S138: 0 | U138: 0 | AC138: 0 | AD138: 0 | AE138: 0 | AF138: 0 | AG138: 0 | AH138: 0 | AI138: 0 | AK138: NUL
A139: 4 | B139: 115 | D139: 2011-04-25 | E139: 0 | M139: 0 | N139: 0 | O139: 0 | P139: 0 | Q139: 0 | R139: 0 | S139: 0 | U139: 0 | AC139: 0 | AD139: 0 | AE139: 0 | AF139: 0 | AG139: 0 | AH139: 0 | AI139: 0 | AK139: NUL
A140: 4 | B140: 116 | D140: 2011-04-26 | E140: 0 | M140: 0 | N140: 0 | O140: 0 | P140: 0 | Q140: 0 | R140: 0 | S140: 0 | U140: 0 | AC140: 0 | AD140: 0 | AE140: 0 | AF140: 0 | AG140: 0 | AH140: 0 | AI140: 0 | AK140: NUL
A141: 4 | B141: 117 | D141: 2011-04-27 | E141: 0 | M141: 0 | N141: 0 | O141: 0 | P141: 0 | Q141: 0 | R141: 0 | S141: 0 | U141: 0 | AC141: 0 | AD141: 0 | AE141: 0 | AF141: 0 | AG141: 0 | AH141: 0 | AI141: 0 | AK141: NUL
A142: 4 | B142: 118 | D142: 2011-04-28 | E142: 0 | M142: 0 | N142: 0 | O142: 0 | P142: 0 | Q142: 0 | R142: 0 | S142: 0 | U142: 0 | AC142: 0 | AD142: 0 | AE142: 0 | AF142: 0 | AG142: 0 | AH142: 0 | AI142: 0 | AK142: NUL
A143: 4 | B143: 119 | D143: 2011-04-29 | E143: 0 | M143: 0 | N143: 0 | O143: 0 | P143: 0 | Q143: 0 | R143: 0 | S143: 0 | U143: 0 | AC143: 0 | AD143: 0 | AE143: 0 | AF143: 0 | AG143: 0 | AH143: 0 | AI143: 0 | AK143: NUL
A144: 4 | B144: 120 | D144: 2011-04-30 | E144: 0 | M144: 0 | N144: 0 | O144: 0 | P144: 0 | Q144: 0 | R144: 0 | S144: 0 | U144: 0 | AC144: 0 | AD144: 0 | AE144: 0 | AF144: 0 | AG144: 0 | AH144: 0 | AI144: 0 | AK144: NUL
E145: =SUM(E115:E144) -> 0 | F145: 0 | G145: 0 | H145: 0 | I145: 0 | J145: 0 | K145: 0 | M145: =SUM(M115:M144) -> 0 | N145: 0 | O145: 0 | P145: 0 | Q145: 0 | R145: 0 | S145: 0 | U145: =SUM(U115:U144) -> 0 | V145: 0 | W145: 0 | X145: 0 | Y145: 0 | Z145: 0 | AA145: 0 | AC145: =SUM(AC115:AC144) -> 0 | AD145: 0 | AE145: 0 | AF145: 0 | AG145: 0 | AH145: 0 | AI145: 0 | AK145: NUL
AD146: 0 | AE146: 0 | AF146: 0 | AG146: 0 | AH146: 0 | AI146: 0 | AK146: NUL
A147: =MONTH(D147) -> 5 | B147: 121 | D147: 2011-05-01 | E147: =SUM(F147:I147) -> 0 | M147: =SUM(N147:Q147) -> 0 | N147: =F147 -> 0 | O147: 0 | P147: 0 | Q147: 0 | R147: 0 | S147: 0 | T147: =(R147+S147)/(N147+O147+P147)*100 ->  | U147: =SUM(V147:Y147) -> 0 | AB147: =IF((Z147+AA147)/(V147+W147+X147)*100=0,"",(Z147+AA147)/(V147+W147+X147)*100) ->  | AC147: =SUM(AD147:AG147) -> 0 | AD147: 0 | AE147: 0 | AF147: 0 | AG147: 0 | AH147: 0 | AI147: 0 | AJ147: =IF((AH147+AI147)/(AD147+AE147+AF147)*100=0,"",(AH147+AI147)/(AD147+AE147+AF147)*100) ->  | AK147: NUL
A148: 5 | B148: 122 | D148: 2011-05-02 | E148: 0 | M148: 0 | N148: 0 | O148: 0 | P148: 0 | Q148: 0 | R148: 0 | S148: 0 | U148: 0 | AC148: 0 | AD148: 0 | AE148: 0 | AF148: 0 | AG148: 0 | AH148: 0 | AI148: 0 | AK148: NUL
A149: 5 | B149: 123 | D149: 2011-05-03 | E149: 0 | M149: 0 | N149: 0 | O149: 0 | P149: 0 | Q149: 0 | R149: 0 | S149: 0 | U149: 0 | AC149: 0 | AD149: 0 | AE149: 0 | AF149: 0 | AG149: 0 | AH149: 0 | AI149: 0 | AK149: NUL
A150: 5 | B150: 124 | D150: 2011-05-04 | E150: 0 | M150: 0 | N150: =F150 -> 0 | O150: 0 | P150: 0 | Q150: 0 | R150: 0 | S150: 0 | T150: =(R150+S150)/(N150+O150+P150)*100 ->  | U150: 0 | AC150: 0 | AD150: 0 | AE150: 0 | AF150: 0 | AG150: 0 | AH150: 0 | AI150: 0 | AK150: NUL
A151: 5 | B151: 125 | D151: 2011-05-05 | E151: 0 | M151: 0 | N151: 0 | O151: 0 | P151: 0 | Q151: 0 | R151: 0 | S151: 0 | T151: =(R151+S151)/(N151+O151+P151)*100 ->  | U151: 0 | AC151: 0 | AD151: 0 | AE151: 0 | AF151: 0 | AG151: 0 | AH151: 0 | AI151: 0 | AK151: NUL
A152: 5 | B152: 126 | D152: 2011-05-06 | E152: 0 | M152: 0 | N152: 0 | O152: 0 | P152: 0 | Q152: 0 | R152: 0 | S152: 0 | T152: =(R152+S152)/(N152+O152+P152)*100 ->  | U152: 0 | AC152: 0 | AD152: 0 | AE152: 0 | AF152: 0 | AG152: 0 | AH152: 0 | AI152: 0 | AK152: NUL
A153: 5 | B153: 127 | D153: 2011-05-07 | E153: 0 | M153: 0 | N153: 0 | O153: 0 | P153: 0 | Q153: 0 | R153: 0 | S153: 0 | T153: =(R153+S153)/(N153+O153+P153)*100 ->  | U153: 0 | AC153: 0 | AD153: 0 | AE153: 0 | AF153: 0 | AG153: 0 | AH153: 0 | AI153: 0 | AK153: NUL
A154: 5 | B154: 128 | D154: 2011-05-08 | E154: 0 | M154: 0 | N154: =F154 -> 0 | O154: =G154 -> 0 | P154: =H154 -> 0 | Q154: =I154 -> 0 | R154: =J154 -> 0 | S154: =K154 -> 0 | U154: 0 | AC154: 0 | AD154: 0 | AE154: 0 | AF154: 0 | AG154: 0 | AH154: 0 | AI154: 0 | AK154: NUL
A155: 5 | B155: 129 | D155: 2011-05-09 | E155: 0 | M155: 0 | N155: 0 | O155: 0 | P155: 0 | Q155: 0 | R155: 0 | S155: 0 | U155: 0 | AC155: 0 | AD155: 0 | AE155: 0 | AF155: 0 | AG155: 0 | AH155: 0 | AI155: 0 | AK155: NUL
A156: 5 | B156: 130 | D156: 2011-05-10 | E156: 0 | M156: 0 | N156: 0 | O156: 0 | P156: 0 | Q156: 0 | R156: 0 | S156: 0 | U156: 0 | AC156: 0 | AD156: 0 | AE156: 0 | AF156: 0 | AG156: 0 | AH156: 0 | AI156: 0 | AK156: NUL
A157: 5 | B157: 131 | D157: 2011-05-11 | E157: 0 | M157: 0 | N157: 0 | O157: 0 | P157: 0 | Q157: 0 | R157: 0 | S157: 0 | U157: 0 | AC157: 0 | AD157: 0 | AE157: 0 | AF157: 0 | AG157: 0 | AH157: 0 | AI157: 0 | AK157: NUL
A158: 5 | B158: 132 | D158: 2011-05-12 | E158: 0 | M158: 0 | N158: 0 | O158: 0 | P158: 0 | Q158: 0 | R158: 0 | S158: 0 | U158: 0 | AC158: =SUM(AD158:AG158) -> 0 | AD158: =F158+V158 -> 0 | AE158: 0 | AF158: 0 | AG158: 0 | AH158: 0 | AI158: 0 | AK158: NUL
A159: 5 | B159: 133 | D159: 2011-05-13 | E159: 0 | M159: 0 | N159: 0 | O159: 0 | P159: 0 | Q159: 0 | R159: 0 | S159: 0 | U159: 0 | AC159: 0 | AD159: 0 | AE159: 0 | AF159: 0 | AG159: 0 | AH159: 0 | AI159: 0 | AK159: NUL
A160: 5 | B160: 134 | D160: 2011-05-14 | E160: 0 | M160: 0 | N160: 0 | O160: 0 | P160: 0 | Q160: 0 | R160: 0 | S160: 0 | U160: 0 | AC160: 0 | AD160: 0 | AE160: 0 | AF160: 0 | AG160: 0 | AH160: 0 | AI160: 0 | AK160: NUL
A161: 5 | B161: 135 | D161: 2011-05-15 | E161: 0 | M161: 0 | N161: 0 | O161: 0 | P161: 0 | Q161: 0 | R161: 0 | S161: 0 | U161: 0 | AC161: 0 | AD161: 0 | AE161: 0 | AF161: 0 | AG161: 0 | AH161: 0 | AI161: 0 | AK161: NUL
A162: 5 | B162: 136 | D162: 2011-05-16 | E162: 0 | M162: 0 | N162: 0 | O162: 0 | P162: 0 | Q162: 0 | R162: 0 | S162: 0 | U162: 0 | AC162: 0 | AD162: 0 | AE162: 0 | AF162: 0 | AG162: 0 | AH162: 0 | AI162: 0 | AK162: NUL
A163: 5 | B163: 137 | D163: 2011-05-17 | E163: 0 | M163: 0 | N163: 0 | O163: 0 | P163: 0 | Q163: 0 | R163: 0 | S163: 0 | U163: 0 | AC163: 0 | AD163: 0 | AE163: 0 | AF163: 0 | AG163: 0 | AH163: 0 | AI163: 0 | AK163: NUL
A164: 5 | B164: 138 | D164: 2011-05-18 | E164: 0 | M164: 0 | N164: 0 | O164: 0 | P164: 0 | Q164: 0 | R164: 0 | S164: 0 | U164: 0 | AC164: 0 | AD164: 0 | AE164: 0 | AF164: 0 | AG164: 0 | AH164: 0 | AI164: 0 | AK164: NUL
A165: 5 | B165: 139 | D165: 2011-05-19 | E165: 0 | M165: 0 | N165: 0 | O165: 0 | P165: 0 | Q165: 0 | R165: 0 | S165: 0 | U165: 0 | AC165: 0 | AD165: 0 | AE165: 0 | AF165: 0 | AG165: 0 | AH165: 0 | AI165: 0 | AK165: NUL
A166: 5 | B166: 140 | D166: 2011-05-20 | E166: 0 | M166: 0 | N166: 0 | O166: 0 | P166: 0 | Q166: 0 | R166: 0 | S166: 0 | U166: 0 | AC166: 0 | AD166: 0 | AE166: 0 | AF166: 0 | AG166: 0 | AH166: 0 | AI166: 0 | AK166: NUL
A167: 5 | B167: 141 | D167: 2011-05-21 | E167: 0 | M167: 0 | N167: 0 | O167: 0 | P167: 0 | Q167: 0 | R167: 0 | S167: 0 | U167: 0 | AC167: 0 | AD167: 0 | AE167: 0 | AF167: 0 | AG167: 0 | AH167: 0 | AI167: 0 | AK167: NUL
A168: 5 | B168: 142 | D168: 2011-05-22 | E168: 0 | M168: 0 | N168: 0 | O168: 0 | P168: 0 | Q168: 0 | R168: 0 | S168: 0 | U168: 0 | AC168: 0 | AD168: 0 | AE168: 0 | AF168: 0 | AG168: 0 | AH168: 0 | AI168: 0 | AK168: NUL
A169: 5 | B169: 143 | D169: 2011-05-23 | E169: 0 | M169: 0 | N169: 0 | O169: 0 | P169: 0 | Q169: 0 | R169: 0 | S169: 0 | U169: 0 | AC169: 0 | AD169: 0 | AE169: 0 | AF169: 0 | AG169: 0 | AH169: 0 | AI169: 0 | AK169: NUL
A170: 5 | B170: 144 | D170: 2011-05-24 | E170: 0 | M170: 0 | N170: 0 | O170: 0 | P170: 0 | Q170: 0 | R170: 0 | S170: 0 | U170: 0 | AC170: 0 | AD170: 0 | AE170: 0 | AF170: 0 | AG170: 0 | AH170: 0 | AI170: 0 | AK170: NUL
A171: 5 | B171: 145 | D171: 2011-05-25 | E171: 0 | M171: 0 | N171: 0 | O171: 0 | P171: 0 | Q171: 0 | R171: 0 | S171: 0 | U171: 0 | AC171: 0 | AD171: 0 | AE171: 0 | AF171: 0 | AG171: 0 | AH171: 0 | AI171: 0 | AK171: NUL
A172: 5 | B172: 146 | D172: 2011-05-26 | E172: 0 | M172: 0 | N172: 0 | O172: 0 | P172: 0 | Q172: 0 | R172: 0 | S172: 0 | U172: 0 | AC172: 0 | AD172: 0 | AE172: 0 | AF172: 0 | AG172: 0 | AH172: 0 | AI172: 0 | AK172: NUL
A173: 5 | B173: 147 | D173: 2011-05-27 | E173: 0 | M173: 0 | N173: =F173 -> 0 | O173: 0 | P173: 0 | Q173: 0 | R173: 0 | S173: 0 | T173: =(R173+S173)/(N173+O173+P173)*100 ->  | U173: 0 | AC173: 0 | AD173: 0 | AE173: 0 | AF173: 0 | AG173: 0 | AH173: 0 | AI173: 0 | AK173: NUL
A174: 5 | B174: 148 | D174: 2011-05-28 | E174: 0 | M174: 0 | N174: 0 | O174: 0 | P174: 0 | Q174: 0 | R174: 0 | S174: 0 | U174: 0 | AC174: 0 | AD174: =F174+V174 -> 0 | AE174: =G174+W174 -> 0 | AF174: 0 | AG174: 0 | AH174: 0 | AI174: 0 | AK174: NUL
A175: 5 | B175: 149 | D175: 2011-05-29 | E175: 0 | M175: 0 | N175: 0 | O175: 0 | P175: 0 | Q175: 0 | R175: 0 | S175: 0 | U175: 0 | AC175: 0 | AD175: 0 | AE175: 0 | AF175: 0 | AG175: 0 | AH175: 0 | AI175: 0 | AK175: NUL
A176: 5 | B176: 150 | D176: 2011-05-30 | E176: 0 | M176: 0 | N176: 0 | O176: 0 | P176: 0 | Q176: 0 | R176: 0 | S176: 0 | U176: 0 | AC176: 0 | AD176: 0 | AE176: 0 | AF176: 0 | AG176: 0 | AH176: 0 | AI176: 0 | AK176: NUL
A177: 5 | B177: 151 | D177: 2011-05-31 | E177: 0 | M177: 0 | N177: 0 | O177: 0 | P177: 0 | Q177: 0 | R177: 0 | S177: 0 | U177: 0 | AC177: 0 | AD177: 0 | AE177: 0 | AF177: 0 | AG177: 0 | AH177: 0 | AI177: 0 | AK177: NUL
E178: =SUM(E147:E177) -> 0 | F178: 0 | G178: 0 | H178: 0 | I178: 0 | J178: 0 | K178: 0 | M178: =SUM(M147:M177) -> 0 | N178: =SUM(N147:N177) -> 0 | O178: =G178 -> 0 | P178: =H178 -> 0 | Q178: =I178 -> 0 | R178: =J178 -> 0 | S178: =K178 -> 0 | U178: =SUM(U147:U177) -> 0 | V178: 0 | W178: 0 | X178: 0 | Y178: 0 | Z178: 0 | AA178: 0 | AC178: =SUM(AC147:AC177) -> 0 | AD178: 0 | AE178: 0 | AF178: 0 | AG178: 0 | AH178: 0 | AI178: 0 | AK178: NUL
AD179: =F179+V179 -> 0 | AE179: =G179+W179 -> 0 | AF179: =H179+X179 -> 0 | AG179: =I179+Y179 -> 0 | AH179: =J179+Z179 -> 0 | AI179: =K179+AA179 -> 0 | AK179: NUL
A180: =MONTH(D180) -> 6 | B180: 152 | D180: 2011-06-01 | E180: =SUM(F180:I180) -> 0 | L180: =(J180+K180)/(F180+G180+H180)*100 ->  | M180: =SUM(N180:Q180) -> 0 | N180: =F180 -> 0 | O180: =G180 -> 0 | P180: =H180 -> 0 | Q180: =I180 -> 0 | R180: =J180 -> 0 | S180: =K180 -> 0 | T180: =(R180+S180)/(N180+O180+P180)*100 ->  | U180: =SUM(V180:Y180) -> 0 | AB180: =IF((Z180+AA180)/(V180+W180+X180)*100=0,"",(Z180+AA180)/(V180+W180+X180)*100) ->  | AC180: =SUM(AD180:AG180) -> 0 | AD180: 0 | AE180: 0 | AF180: 0 | AG180: 0 | AH180: 0 | AI180: 0 | AJ180: =IF((AH180+AI180)/(AD180+AE180+AF180)*100=0,"",(AH180+AI180)/(AD180+AE180+AF180)*100) ->  | AK180: NUL
A181: 6 | B181: 153 | D181: 2011-06-02 | E181: 0 | M181: 0 | N181: 0 | O181: 0 | P181: 0 | Q181: 0 | R181: 0 | S181: 0 | U181: 0 | AD181: 0 | AE181: 0 | AF181: 0 | AG181: 0 | AH181: 0 | AI181: 0 | AK181: NUL
A182: 6 | B182: 154 | D182: 2011-06-03 | E182: 0 | M182: 0 | N182: 0 | O182: 0 | P182: 0 | Q182: 0 | R182: 0 | S182: 0 | U182: 0 | AD182: 0 | AE182: 0 | AF182: 0 | AG182: 0 | AH182: 0 | AI182: 0 | AK182: NUL
A183: 6 | B183: 155 | D183: 2011-06-04 | E183: 0 | M183: 0 | N183: =F183 -> 0 | O183: =G183 -> 0 | P183: =H183 -> 0 | Q183: =I183 -> 0 | R183: 0 | S183: 0 | U183: 0 | AD183: 0 | AE183: 0 | AF183: 0 | AG183: 0 | AH183: 0 | AI183: 0 | AK183: NUL
A184: 6 | B184: 156 | D184: 2011-06-05 | E184: 0 | M184: 0 | N184: 0 | O184: 0 | P184: 0 | Q184: 0 | R184: 0 | S184: 0 | U184: 0 | AD184: 0 | AE184: 0 | AF184: 0 | AG184: 0 | AH184: 0 | AI184: 0 | AK184: NUL
A185: 6 | B185: 157 | D185: 2011-06-06 | E185: 0 | M185: 0 | N185: 0 | O185: 0 | P185: 0 | Q185: 0 | R185: 0 | S185: 0 | U185: 0 | AD185: 0 | AE185: 0 | AF185: 0 | AG185: 0 | AH185: 0 | AI185: 0 | AK185: NUL
A186: 6 | B186: 158 | D186: 2011-06-07 | E186: 0 | M186: 0 | N186: 0 | O186: 0 | P186: 0 | Q186: 0 | R186: 0 | S186: 0 | U186: 0 | AD186: 0 | AE186: 0 | AF186: 0 | AG186: 0 | AH186: 0 | AI186: 0 | AK186: NUL
A187: 6 | B187: 159 | D187: 2011-06-08 | E187: 0 | M187: 0 | N187: 0 | O187: 0 | P187: 0 | Q187: 0 | R187: 0 | S187: 0 | U187: 0 | AD187: 0 | AE187: 0 | AF187: 0 | AG187: 0 | AH187: 0 | AI187: 0 | AK187: NUL
A188: 6 | B188: 160 | D188: 2011-06-09 | E188: 0 | M188: 0 | N188: 0 | O188: 0 | P188: 0 | Q188: 0 | R188: 0 | S188: 0 | U188: 0 | AD188: 0 | AE188: 0 | AF188: 0 | AG188: 0 | AH188: 0 | AI188: 0 | AK188: NUL
A189: 6 | B189: 161 | D189: 2011-06-10 | E189: 0 | M189: 0 | N189: 0 | O189: 0 | P189: 0 | Q189: 0 | R189: 0 | S189: 0 | U189: 0 | AD189: 0 | AE189: 0 | AF189: 0 | AG189: 0 | AH189: 0 | AI189: 0 | AK189: NUL
A190: 6 | B190: 162 | D190: 2011-06-11 | E190: 0 | M190: 0 | N190: 0 | O190: 0 | P190: 0 | Q190: 0 | R190: 0 | S190: 0 | U190: 0 | AD190: 0 | AE190: 0 | AF190: 0 | AG190: 0 | AH190: 0 | AI190: 0 | AK190: NUL
A191: 6 | B191: 163 | D191: 2011-06-12 | E191: 0 | M191: 0 | N191: 0 | O191: 0 | P191: 0 | Q191: 0 | R191: 0 | S191: 0 | U191: 0 | AD191: 0 | AE191: 0 | AF191: 0 | AG191: 0 | AH191: 0 | AI191: 0 | AK191: NUL
A192: 6 | B192: 164 | D192: 2011-06-13 | E192: 0 | M192: 0 | N192: 0 | O192: 0 | P192: 0 | Q192: 0 | R192: 0 | S192: 0 | U192: 0 | AD192: 0 | AE192: 0 | AF192: 0 | AG192: 0 | AH192: 0 | AI192: 0 | AK192: NUL
A193: 6 | B193: 165 | D193: 2011-06-14 | E193: 0 | M193: 0 | N193: 0 | O193: 0 | P193: 0 | Q193: 0 | R193: 0 | S193: 0 | U193: 0 | AC193: 0 | AD193: 0 | AE193: 0 | AF193: 0 | AG193: 0 | AH193: 0 | AI193: 0 | AK193: NUL
A194: 6 | B194: 166 | D194: 2011-06-15 | E194: 0 | N194: 0 | O194: 0 | P194: 0 | Q194: 0 | R194: 0 | S194: 0 | U194: 0 | AC194: 0 | AD194: 0 | AE194: 0 | AF194: 0 | AG194: 0 | AH194: 0 | AI194: 0 | AK194: NUL
A195: 6 | B195: 167 | D195: 2011-06-16 | E195: 0 | N195: =F195 -> 0 | O195: 0 | P195: 0 | Q195: 0 | R195: 0 | S195: 0 | T195: =(R195+S195)/(N195+O195+P195)*100 ->  | U195: 0 | AC195: 0 | AD195: 0 | AE195: 0 | AF195: 0 | AG195: 0 | AH195: 0 | AI195: 0 | AK195: NUL
A196: 6 | B196: 168 | D196: 2011-06-17 | E196: 0 | N196: 0 | O196: 0 | P196: 0 | Q196: 0 | R196: 0 | S196: 0 | U196: 0 | AC196: 0 | AD196: 0 | AE196: 0 | AF196: 0 | AG196: 0 | AH196: 0 | AI196: 0 | AK196: NUL
A197: 6 | B197: 169 | D197: 2011-06-18 | E197: 0 | N197: 0 | O197: 0 | P197: 0 | Q197: 0 | R197: 0 | S197: 0 | U197: 0 | AC197: 0 | AD197: 0 | AE197: 0 | AF197: 0 | AG197: 0 | AH197: 0 | AI197: 0 | AK197: NUL
A198: 6 | B198: 170 | D198: 2011-06-19 | E198: 0 | N198: 0 | O198: 0 | P198: 0 | Q198: 0 | R198: 0 | S198: 0 | U198: 0 | AC198: 0 | AD198: 0 | AE198: 0 | AF198: 0 | AG198: 0 | AH198: 0 | AI198: 0 | AK198: NUL
A199: 6 | B199: 171 | D199: 2011-06-20 | E199: 0 | N199: 0 | O199: 0 | P199: 0 | Q199: 0 | R199: 0 | S199: 0 | U199: 0 | AC199: 0 | AD199: 0 | AE199: 0 | AF199: 0 | AG199: 0 | AH199: 0 | AI199: 0 | AK199: NUL
A200: 6 | B200: 172 | D200: 2011-06-21 | E200: 0 | N200: 0 | O200: 0 | P200: 0 | Q200: 0 | R200: 0 | S200: 0 | U200: 0 | AC200: 0 | AD200: 0 | AE200: 0 | AF200: 0 | AG200: 0 | AH200: 0 | AI200: 0 | AK200: NUL
A201: 6 | B201: 173 | D201: 2011-06-22 | E201: 0 | N201: 0 | O201: 0 | P201: 0 | Q201: 0 | R201: 0 | S201: 0 | U201: 0 | AC201: 0 | AD201: 0 | AE201: 0 | AF201: 0 | AG201: 0 | AH201: 0 | AI201: 0 | AK201: NUL
... 307 more rows

Sheet Espece
B1: Date | C1: Montant | D1: Nom | E1: Facture | F1: Bordereaux | G1: Date remise | H1: Somme remise
A3: 2007 | B3: 2007-04-16 | C3: 83.68 | D3: FAIVRE | E3: 2706 | H3: 83.68
B4: 2007-05-25 | C4: 83.68 | D4: BENLARBI | E4: 2857 | H4: 83.68
B5: 2007-06-07 | C5: 30 | D5: VERGOBY | E5: 2910 | H5: 30
B6: 2007-06-15 | C6: 30 | H6: 30
B7: 2007-06-18 | C7: 124.68 | H7: 124.68
B8: 2007-06-19 | C8: 83.68 | H8: 83.68
B9: 2007-06-22 | C9: 30 | H9: 30
B10: 2007-06-26 | C10: 30 | G10: 2007-11-02 | H10: 30
B11: 2007-07-03 | C11: 30 | G11: 2007-11-02 | H11: 30
B12: 2007-07-30 | C12: 83.68 | G12: 2007-11-02 | H12: 83.68
B13: 2007-08-14 | C13: 142.1 | G13: 2007-11-02 | H13: 142.1
B14: 2007-08-29 | C14: 30 | D14: KRAMER | E14: 3200 | G14: 2007-11-02 | H14: 30
B15: 2007-09-03 | C15: 83.68 | D15: DORAS | E15: 3221 | G15: 2007-11-02 | H15: 83.68
B16: 2007-10-19 | C16: 71.05 | D16: ALBARON | E16: 3346 | G16: 2007-11-02 | H16: 71.05
B17: 2007-10-19 | C17: 71.05 | D17: ALBARON | E17: 3349 | G17: 2007-11-02 | H17: 71.05
B18: 2007-10-19 | C18: 83.68 | D18: CITROEN | G18: 2007-11-02 | H18: 83.68
A19: 2008 | B19: 2008-01-07 | C19: 83.68 | D19: ALBARON | E19: 3586 | G19: 2008-01-11 | H19: 83.68
B20: 2008-01-07 | C20: 71.05 | D20: ALBARON | E20: 3587 | G20: 2008-01-11 | H20: 71.05
B21: 2008-01-07 | C21: 83.68 | D21: ALBARON | E21: 3590 | G21: 2008-01-11 | H21: 83.68
B22: 2008-01-07 | C22: 71.05 | D22: ALBARON | E22: 3591 | G22: 2008-01-11 | H22: 71.05
B23: 2008-01-07 | C23: 83.68 | D23: MOREZ AUTO | E23: 3593 | G23: 2008-01-11 | H23: 83.68
B24: 2008-01-07 | C24: 71.05 | D24: ALBARON | E24: 3594 | G24: 2008-01-11 | H24: 71.05
B25: 2008-01-08 | C25: 71.05 | D25: ALBARON | E25: 3600 | G25: 2008-01-11 | H25: 71.05
B26: 2008-01-09 | C26: 83.68 | D26: ALBARON | E26: 3603 | G26: 2008-01-11 | H26: 83.68
B27: 2008-01-10 | C27: 71.05 | D27: ALBARON | E27: 3608 | G27: 2008-01-11 | H27: 71.05
B28: 2008-01-10 | C28: 71.05 | D28: ALBARON | E28: 3615 | G28: 2008-01-11 | H28: 71.05
B29: 2008-01-14 | C29: 83.68 | D29: ALBARON | E29: 3622 | G29: 2008-01-26 | H29: 83.68
B30: 2008-01-16 | C30: 71.05 | D30: ALBARON | E30: 3630 | G30: 2008-01-26 | H30: 71.05
B31: 2008-01-18 | C31: 83.68 | D31: ALBARON | E31: 3640 | G31: 2008-01-26 | H31: 83.68
B32: 2008-03-03 | C32: 86 | D32: MAZUREK | E32: 3810 | G32: 2008-06-24 | H32: 86
B33: 2008-03-20 | C33: 42 | D33: PUJOL | E33: 3876 | G33: 2008-06-24 | H33: 42
B34: 2008-05-05 | C34: 86 | D34: MARTIN | E34: 4023 | G34: 2008-06-24 | H34: 86
B35: 2008-05-05 | C35: 73 | D35: ANSCHEILER | E35: 4024 | G35: 2008-08-29 | H35: 73
B36: 2008-06-18 | C36: 31 | D36: BENLARBI | E36: 4171 | G36: 2008-08-29 | H36: 31
B37: 2008-08-20 | C37: 73 | D37: ALBARON | E37: 4385 | G37: 2008-08-29 | H37: 73
B38: 2008-08-20 | C38: 73 | D38: ALBARON | E38: 4387 | G38: 2008-08-29 | H38: 73
B39: 2008-08-20 | C39: 73 | D39: ALBARON | E39: 4390 | G39: 2008-08-29 | H39: 73
B40: 2008-08-22 | C40: 73 | D40: ALBARON | E40: 4394 | G40: 2008-11-12 | H40: 73
B41: 2008-09-30 | C41: 86 | D41: LEPOSTELEC | E41: 4524 | G41: 2009-01-09 | H41: 86
B42: 2008-10-20 | C42: 42 | D42: LEPOSTELEC | E42: 4596 | G42: 2008-11-12 | H42: 42
A43: 2009 | B43: 2009-01-06 | C43: 73 | D43: ALBARON | E43: 4780 | G43: 2009-01-09 | H43: 73
B44: 2009-01-06 | C44: 86 | D44: ALBARON | E44: 4784 | G44: 2009-01-09 | H44: 86
B45: 2009-01-07 | C45: 86 | D45: ALBARON | E45: 4786 | G45: 2009-01-09 | H45: 86
B46: 2009-01-07 | C46: 73 | D46: ALBARON | E46: 4787 | G46: 2009-01-09 | H46: 73
B47: 2009-01-08 | C47: 86 | D47: ALBARON | E47: 4790 | G47: 2009-01-09 | H47: 86
B48: 2009-01-08 | C48: 73 | D48: ALBARON | E48: 4791 | G48: 2009-01-09 | H48: 73
B49: 2009-01-08 | C49: 86 | D49: ALBARON | E49: 4793 | G49: 2009-01-09 | H49: 86
B50: 2009-01-08 | C50: 73 | D50: ALBARON | E50: 4794 | G50: 2009-01-09 | H50: 73
B51: 2009-01-09 | C51: 86 | D51: ALBARON | E51: 4802 | G51: 2009-01-09 | H51: 86
B52: 2009-01-09 | C52: 73 | D52: ALBARON | E52: 4803 | G52: 2009-01-09 | H52: 73
B53: 2009-01-12 | C53: 73 | D53: ALBARON | E53: 4809 | G53: 2009-01-09 | H53: 73
B54: 2009-01-12 | C54: 73 | D54: ALBARON | E54: 4811 | G54: 2009-01-09 | H54: 73
B55: 2009-01-12 | C55: 73 | D55: ALBARON | E55: 4812 | G55: 2009-01-09 | H55: 73
B56: 2009-02-10 | C56: 86 | D56: BOURGEOIS | E56: 4906 | G56: 2009-01-09 | H56: 86
B57: 2009-02-10 | C57: 73 | D57: BOURGEOIS | E57: 4907 | G57: 2009-01-09 | H57: 73
B58: 2009-02-19 | C58: 86 | D58: PERRIN | E58: 4937 | G58: 2009-01-09 | H58: 86
B59: 2009-02-26 | C59: 86 | D59: PERRIN | E59: 4969 | G59: 2009-01-09 | H59: 86
B60: 2009-03-13 | C60: 86 | D60: KRAMER | E60: 5028 | G60: 2009-01-09 | H60: 86
B61: 2009-03-13 | C61: 73 | D61: KRAMER | E61: 5029 | G61: 2009-01-09 | H61: 73
B62: 2009-03-27 | C62: 86 | D62: FAIVRE | E62: 5097 | G62: 2009-07-23 | H62: 86
B63: 2009-04-03 | C63: 32 | D63: GANEVAL | E63: 5128 | G63: 2009-07-23 | H63: 32
B64: 2009-04-08 | C64: 89 | D64: ADENOT | E64: 5142 | G64: 2009-07-23 | H64: 89
B65: 2009-06-18 | C65: 89 | D65: SŒUR | E65: 5382 | G65: 2009-07-23 | H65: 89
B66: 2009-06-23 | C66: 74 | D66: REMOND | E66: 5410 | G66: 2009-07-23 | H66: 74
B67: 2009-06-23 | C67: 89 | D67: REMOND | E67: 5411 | G67: 2009-07-23 | H67: 89
B68: 2009-06-23 | C68: 74 | D68: REMOND | E68: 5412 | G68: 2009-07-23 | H68: 74
B69: 2009-06-23 | C69: 89 | D69: GUIGOURET | E69: 5413 | G69: 2009-07-23 | H69: 89
B70: 2009-06-23 | C70: 89 | D70: GRIBEL | E70: 5416 | G70: 2009-07-23 | H70: 89
B71: 2009-06-23 | C71: 74 | D71: GRIBEL | E71: 5417 | G71: 2009-07-23 | H71: 74
B72: 2009-07-02 | C72: 89 | D72: MAZUREK | E72: 5450 | H72: 89
B73: 2009-07-30 | C73: 89 | D73: ADENOT A | E73: 5550 | H73: 89
B74: 2009-07-30 | C74: 74 | D74: VUILLET JP | E74: 5551 | H74: 74
B75: 2009-08-04 | C75: 89 | D75: FREYER | E75: 5566 | H75: 89
B76: 2009-08-11 | C76: 0 | D76: BUGADA | E76: 5581 | H76: 0
B77: 2009-08-20 | C77: 74 | D77: MAUGER YOLLANDE | E77: 5603 | H77: 74
B78: 2009-08-20 | C78: 74 | D78: ALBARON | E78: 5604 | H78: 74
B79: 2009-08-20 | C79: 89 | D79: GOUGEON | E79: 5605 | H79: 89
B80: 2009-08-25 | C80: 74 | D80: ALBARON | E80: 5616 | H80: 74
B81: 2009-08-25 | C81: 74 | D81: ALBARON | E81: 5617 | H81: 74
B82: 2009-10-07 | C82: 89 | D82: ANSCHEILER | E82: 5747 | G82: 2010-01-29 | H82: 89
B83: 2009-10-15 | C83: 89 | D83: JANUEL | E83: 5781 | G83: 2010-01-29 | H83: 89
B84: 2009-11-23 | C84: 89 | D84: ALBARON | E84: 5880 | G84: 2010-01-29 | H84: 89
B85: 2009-12-01 | C85: 89 | D85: ADENOT F | E85: 5898 | G85: 2010-01-29 | H85: 89
A86: 2010 | B86: 2010-01-07 | C86: 89 | D86: ALBARON | E86: 5982 | G86: 2010-01-29 | H86: 89
B87: 2010-01-07 | C87: 74 | D87: ALBARON | E87: 5983 | G87: 2010-01-29 | H87: 74
B88: 2010-01-07 | C88: 89 | D88: ALBARON | E88: 5985 | G88: 2010-01-29 | H88: 89
B89: 2010-01-07 | C89: 74 | D89: ALBARON | E89: 5986 | G89: 2010-01-29 | H89: 74
B90: 2010-01-08 | C90: 74 | D90: ALBARON | E90: 5987 | G90: 2010-01-29 | H90: 74
B91: 2010-01-08 | C91: 89 | D91: ALBARON | E91: 5993 | G91: 2010-01-29 | H91: 89
B92: 2010-01-08 | C92: 74 | D92: ALBARON | E92: 5994 | G92: 2010-01-29 | H92: 74
B93: 1900-01-21 | C93: 89 | D93: LIRONY | E93: 6026 | G93: 2010-03-26 | H93: 89
B94: 2010-02-03 | C94: 89 | D94: ALBARON | E94: 6062 | G94: 2010-03-26 | H94: 89
B95: 2010-02-03 | C95: 74 | D95: ALBARON | E95: 6063 | G95: 2010-03-26 | H95: 74
B96: 2010-02-09 | C96: 89 | D96: ALBARON | E96: 6078 | G96: 2010-03-26 | H96: 89
B97: 2010-02-09 | C97: 74 | D97: ALBARON | E97: 6079 | G97: 2010-03-26 | H97: 74
B98: 2010-02-16 | C98: 89 | D98: ADENOT | E98: 6116 | G98: 2010-03-26 | H98: 89
B99: 2010-03-02 | C99: 91 | D99: PERRIN | E99: 6162 | G99: 2010-03-26 | H99: 91
B100: 2010-03-02 | C100: 91 | D100: REMOND | E100: 6168 | G100: 2010-03-26 | H100: 91
B101: 2010-03-04 | C101: 91 | D101: ANSCHEILER | E101: 6173 | G101: 2010-03-26 | H101: 91
B102: 2010-03-04 | C102: 91 | D102: ANSCHEILER | E102: 6174 | G102: 2010-03-26 | H102: 91
B103: 2010-03-11 | C103: 91 | D103: KRAMER | E103: 6196 | G103: 2010-03-26 | H103: 91
B104: 2010-03-16 | C104: 76 | D104: KRAMER | E104: 6210 | G104: 2010-03-26 | H104: 76
B105: 2010-03-16 | C105: 91 | D105: CUBY | E105: 6209 | G105: 2010-03-26 | H105: 91
B106: 2010-03-23 | C106: 91 | D106: FAIVRE | E106: 6232 | G106: 2010-03-26 | H106: 91
B107: 2010-03-25 | C107: 91 | D107: ADENOT | E107: 6239 | G107: 2010-05-21 | H107: 91
B108: 2010-04-13 | C108: 91 | D108: REMOND | E108: 6287 | G108: 2010-05-21 | H108: 91
B109: 2010-04-13 | C109: 76 | D109: REMOND | E109: 6288 | G109: 2010-05-21 | H109: 76
B110: 2010-04-13 | C110: 91 | D110: REMOND | E110: 6290 | G110: 2010-05-21 | H110: 91
B111: 2010-04-13 | C111: 76 | D111: REMOND | E111: 6291 | G111: 2010-05-21 | H111: 76
B112: 2010-04-15 | C112: 91 | D112: REMOND | E112: 6300 | G112: 2010-05-21 | H112: 91
B113: 2010-04-15 | C113: 76 | D113: REMOND | E113: 6301 | G113: 2010-05-21 | H113: 76
B114: 2010-04-16 | C114: 91 | D114: REMOND | E114: 6306 | G114: 2010-05-21 | H114: 91
B115: 2010-04-16 | C115: 76 | D115: REMOND | E115: 6307 | G115: 2010-05-21 | H115: 76
B116: 2010-04-29 | C116: 91 | D116: BATAILLE | E116: 6334 | G116: 2010-05-21 | H116: 91
B117: 2010-04-29 | C117: 91 | D117: FAIVRE | E117: 6336 | G117: 2010-05-21 | H117: 91
B118: 2010-03-29 | C118: 91 | D118: EPAC | E118: 133 | F118: RAMBERVILLERS | G118: 2010-05-21 | H118: 91
B119: 2010-04-26 | C119: 91 | D119: BOULET | E119: 2927 | F119: MEYTHET | G119: 2010-05-21 | H119: 91
B120: 2010-04-26 | C120: 91 | D120: BOULET | E120: 2928 | F120: MEYTHET | G120: 2010-05-21 | H120: 91
B121: 2010-05-12 | C121: 91 | D121: GARGATE | E121: 6370 | G121: 2010-06-24 | H121: 91
B122: 2010-06-18 | C122: 91 | D122: REMOND | E122: 6504 | G122: 2010-06-24 | H122: 91
B123: 2010-06-22 | C123: 91 | D123: GUIGOURET | E123: 6511 | G123: 2010-06-24 | H123: 91
B124: 2010-06-22 | C124: 91 | D124: REMOND | E124: 6514 | G124: 2010-06-24 | H124: 91
B125: 2010-06-22 | C125: 76 | D125: REMOND | E125: 6516 | G125: 2010-06-24 | H125: 76
B126: 2010-06-22 | C126: 76 | D126: REMOND | E126: 6517 | G126: 2010-06-24 | H126: 76
B127: 2010-06-22 | C127: 91 | D127: DUPIL | E127: 6518 | G127: 2010-06-24 | H127: 91
B128: 2010-06-22 | C128: 76 | D128: DUPIL | E128: 6519 | G128: 2010-06-24 | H128: 76
B129: 2010-06-22 | C129: 91 | D129: GRIBAL | E129: 6521 | G129: 2010-06-24 | H129: 91
B130: 2010-06-22 | C130: 76 | D130: GRIBAL | E130: 6522 | G130: 2010-06-24 | H130: 76
B131: 2010-06-22 | C131: 91 | D131: SŒUR | E131: 6523 | G131: 2010-06-24 | H131: 91
B132: 2010-06-22 | C132: 76 | D132: DUPIL | E132: 6526 | G132: 2010-06-24 | H132: 76
B133: 2010-06-22 | C133: 76 | D133: DUPIL | E133: 6527 | G133: 2010-06-24 | H133: 76
B134: 2010-06-22 | C134: 91 | D134: PERRIN | E134: 6528 | G134: 2010-08-27 | H134: 91
B135: 2010-06-25 | C135: 91 | D135: WINTERSHEIM | E135: 6546 | G135: 2010-08-27 | H135: 91
B136: 2010-07-05 | C136: 91 | D136: CHAZEL | E136: 2992 | G136: 2010-08-27 | H136: 91 | I136: MEYTHET
B137: 2010-07-19 | C137: 76 | D137: ALBARON | E137: 6642 | G137: 2010-08-27 | H137: 76
B138: 2010-07-29 | C138: 103 | D138: RICARD EUROP TRAVEL | E138: 6682 | G138: 2010-08-27 | H138: 103
B139: 2010-08-06 | C139: 91 | D139: ADENOT | E139: 6704 | G139: 2010-08-27 | H139: 91
B140: 2010-08-13 | C140: 76 | D140: ALBARON | E140: 6732 | G140: 2010-08-27 | H140: 76
B141: 2010-08-13 | C141: 76 | D141: ALBARON | E141: 6733 | G141: 2010-08-27 | H141: 76
B142: 2010-08-17 | C142: 76 | D142: ALBARON | E142: 6748 | G142: 2010-08-27 | H142: 76
B143: 2010-08-17 | C143: 76 | D143: MAUGER YOLLANDE | E143: 6749 | G143: 2010-08-27 | H143: 76
B144: 2010-08-19 | C144: 76 | D144: ALBARON | E144: 6763 | G144: 2010-08-27 | H144: 76
B145: 2010-08-19 | C145: 76 | D145: ALBARON | E145: 6764 | G145: 2010-08-27 | H145: 76
B146: 2010-08-20 | C146: 91 | D146: OTT | E146: 1346 | G146: 2010-08-27 | H146: 91 | I146: vieux thann
B147: 2010-08-24 | C147: 76 | D147: ALBARON | E147: 6777 | G147: 2010-10-21 | H147: 76
B148: 2010-09-30 | C148: 91 | D148: VUILLERMET | E148: 6802 | G148: 2010-10-21 | H148: 91
B149: 2010-09-09 | C149: 91 | D149: CORDIER | E149: 6815 | G149: 2010-10-21 | H149: 91
B150: 2010-09-14 | C150: 33 | D150: CORDIER | E150: 6825 | G150: 2010-10-21 | H150: 33
B151: 2010-09-24 | C151: 91 | D151: OTT | E151: 1400 | G151: 2010-10-21 | H151: 91 | I151: vieux thann
B152: 2010-09-28 | C152: 91 | D152: REMOND | E152: 6875 | G152: 2010-10-21 | H152: 91
B153: 2010-10-04 | C153: 91 | D153: VUILLERMET | E153: 6904 | G153: 2010-10-21 | H153: 91
B154: 2010-10-05 | C154: 91 | D154: MOREZ AUTO | E154: 6915 | G154: 2011-04-14 | H154: 91
B155: 2011-11-22 | C155: 33 | D155: DESBARRES | E155: 3090 | G155: 2011-04-14 | H155: 33 | I155: MEYTHET
B156: 2010-11-16 | C156: 76 | D156: ALBARON | E156: 7024 | G156: 2011-04-14 | H156: 76
B157: 2011-12-10 | C157: 91 | D157: ADENOT | E157: 7091 | G157: 2011-04-14 | H157: 91
A158: 2011 | B158: 2011-01-04 | C158: 91 | D158: ALBARON | E158: 7128 | G158: 2011-04-14 | H158: 91
B159: 2011-01-05 | C159: 91 | D159: ALBARON | E159: 7132 | G159: 2011-04-14 | H159: 91
B160: 2011-01-05 | C160: 91 | D160: ALBARON | E160: 7135 | G160: 2011-04-14 | H160: 91
B161: 2011-01-06 | C161: 76 | D161: ALBARON | E161: 7136 | G161: 2011-04-14 | H161: 76
B162: 2011-01-07 | C162: 91 | D162: ANSCHEILER | E162: 7147 | G162: 2011-04-14 | H162: 91
B163: 2011-01-17 | C163: 91 | D163: ALBARON | E163: 7179 | G163: 2011-04-14 | H163: 91
B164: 2011-01-17 | C164: 76 | D164: ALBARON | E164: 7180 | G164: 2011-04-14 | H164: 76
B165: 2011-01-17 | C165: 76 | D165: ALBARON | E165: 7183 | G165: 2011-04-14 | H165: 76
B166: 2011-01-31 | C166: 76 | D166: ALBARON | E166: 7203 | G166: 2011-04-14 | H166: 76
B167: 2011-01-31 | C167: 76 | D167: ALBARON | E167: 7225 | G167: 2011-04-14 | H167: 76
B168: 2011-01-31 | C168: 91 | D168: ALBARON | E168: 7227 | G168: 2011-04-14 | H168: 91
B169: 2011-02-15 | C169: 91 | D169: ADENOT | E169: 7268 | G169: 2011-04-14 | H169: 91
B170: 2011-02-25 | C170: 76 | D170: ALBARON | E170: 7310 | G170: 2011-04-14 | H170: 76
B171: 2011-02-25 | C171: 91 | D171: ALBARON | E171: 7311 | G171: 2011-04-14 | H171: 91
B172: 2011-02-28 | C172: 91 | D172: CRAMPON | E172: 3175 | G172: 2011-04-14 | H172: 91 | I172: MEYTHET
B173: 2011-03-10 | C173: 91 | D173: CATHERIN | E173: 7359 | G173: 2011-04-14 | H173: 91
B174: 2011-03-14 | C174: 91 | D174: CRAMPON | E174: 3184 | G174: 2011-04-14 | H174: 91 | I174: MEYTHET
B175: 2011-03-14 | C175: 91 | D175: MATHIEZ | E175: 3187 | G175: 2011-04-14 | H175: 91 | I175: MEYTHET
B176: 2011-04-05 | C176: 91 | D176: ADOLPHE | E176: 7412 | G176: 2011-04-14 | H176: 91
B177: 2011-04-11 | C177: 91 | D177: BOULET | E177: 3217 | G177: 2011-04-14 | H177: 91 | I177: MEYHTET
B178: 2011-04-28 | C178: 91 | D178: CHAMPREUX | E178: 7464 | H178: 91
B179: 2011-05-10 | C179: 91 | D179: REMOND | E179: 7500 | H179: 91
B180: 2011-05-10 | C180: 76 | D180: REMOND | E180: 7501 | H180: 76
B181: 2011-05-10 | C181: 91 | D181: REMOND | E181: 7502 | H181: 91
B182: 2011-05-10 | C182: 76 | D182: REMOND | E182: 7503 | H182: 76
B183: 2011-05-10 | C183: 91 | D183: REMOND | E183: 7504 | H183: 91
B184: 2011-05-10 | C184: 76 | D184: REMOND | E184: 7505 | H184: 76
B185: 2011-05-10 | C185: 91 | D185: REMOND | E185: 7510 | H185: 91
B186: 2011-05-10 | C186: 76 | D186: REMOND | E186: 7511 | H186: 76
B187: 2011-05-10 | C187: 91 | D187: REMOND | E187: 7512 | H187: 91
B188: 2011-05-10 | C188: 76 | D188: REMOND | E188: 7513 | H188: 76
B189: 2011-05-12 | C189: 91 | D189: CARGATE | E189: 7519 | H189: 91
B190: 2011-05-19 | C190: 91 | D190: BERGER | E190: 7542 | G190: 2011-07-20 | H190: 91
B191: 2011-06-16 | C191: 91 | D191: JONQUOY | E191: 7657 | G191: 2011-07-20 | H191: 91
B192: 2011-06-21 | C192: 91 | D192: GUIGOURET | E192: 7659 | G192: 2011-07-20 | H192: 91
B193: 2011-06-21 | C193: 91 | D193: PERRIN | E193: 7659 | G193: 2011-07-20 | H193: 91
B194: 2011-06-21 | C194: 91 | D194: SELGRAD | E194: 7659 | G194: 2011-07-20 | H194: 91
B195: 2011-06-28 | C195: 91 | D195: HCE HINI COURS ENROBE | E195: 7692 | G195: 2011-07-20 | H195: 91
B196: 2011-07-12 | C196: 91 | D196: PIERRE ALAIN | E196: 7744 | G196: 2011-07-20 | H196: 91
B197: 2011-07-12 | C197: 44 | D197: EMONIN | E197: 7760 | G197: 2011-07-20 | H197: 44
B198: 2011-07-27 | C198: 76 | D198: ALBARON | E198: 7794 | G198: 2011-08-26 | H198: 76
B199: 2011-07-29 | C199: 91 | D199: ADENOT ALAIN | E199: 7800 | G199: 2011-08-26 | H199: 91
B200: 2011-08-16 | C200: 76 | D200: ALBARON | E200: 7859 | G200: 2011-08-26 | H200: 76
B201: 2011-08-16 | C201: 76 | D201: GOUGEON | E201: 7860 | G201: 2011-08-26 | H201: 76
... 30 more rows

Sheet Note de frais
F1: 0.483
C2: DATE | D2: LIEU | F2: KM | G2: €/KM | H2: Peages | I2: Gasoil | J2: Repas | K2: Divers | L2: TOTAL | M2: Remboursé
N3: =F125 ->  | O3: Km
B4: Janvier | C4: 2008-01-11 | D4: ST LAURENT | G4: =IF(F4="","",F4*$F$1) ->  | K4: 27 | L4: =SUM(G4:K4) -> 27
C5: 2008-01-15 | D5: BESANCON | E5: =VLOOKUP(D5,Ville!$A$2:$I$14,8) -> 0 | F5: =CHOOSE(E5,Ville!#REF!,Ville!#REF!,Ville!#REF!,Ville!#REF!,Ville!#REF!,Ville!#REF!,Ville!#REF!,Ville!#REF!,Ville!#REF!,Ville!#REF!,Ville!#REF!,Ville!#REF!,Ville!#REF!,Ville!#REF!) ->  | G5: =IF(F5="","",F5*$F$1) ->  | H5: =CHOOSE(E5,Ville!#REF!,Ville!#REF!,Ville!#REF!,Ville!#REF!,Ville!#REF!,Ville!#REF!,Ville!#REF!,Ville!#REF!,Ville!#REF!,Ville!#REF!,Ville!#REF!,Ville!#REF!,Ville!#REF!,Ville!#REF!) ->  | J5: 4.6
C6: 2008-01-16 | D6: CORDESSE | E6: =VLOOKUP(D6,Ville!$A$2:$I$14,8) -> 0 | F6: =CHOOSE(E6,Ville!#REF!,Ville!#REF!,Ville!#REF!,Ville!#REF!,Ville!#REF!,Ville!#REF!,Ville!#REF!,Ville!#REF!,Ville!#REF!,Ville!#REF!,Ville!#REF!,Ville!#REF!,Ville!#REF!,Ville!#REF!) ->  | G6: =IF(F6="","",F6*$F$1) ->  | H6: =CHOOSE(E6,Ville!#REF!,Ville!#REF!,Ville!#REF!,Ville!#REF!,Ville!#REF!,Ville!#REF!,Ville!#REF!,Ville!#REF!,Ville!#REF!,Ville!#REF!,Ville!#REF!,Ville!#REF!,Ville!#REF!,Ville!#REF!) ->  | J6: 8.6
C7: 2008-01-23 | D7: RUMILLY | E7: =VLOOKUP(D7,Ville!$A$2:$I$14,8) -> 0 | F7: =CHOOSE(E7,Ville!#REF!,Ville!#REF!,Ville!#REF!,Ville!#REF!,Ville!#REF!,Ville!#REF!,Ville!#REF!,Ville!#REF!,Ville!#REF!,Ville!#REF!,Ville!#REF!,Ville!#REF!,Ville!#REF!,Ville!#REF!) ->  | G7: =IF(F7="","",F7*$F$1) ->  | H7: =CHOOSE(E7,Ville!#REF!,Ville!#REF!,Ville!#REF!,Ville!#REF!,Ville!#REF!,Ville!#REF!,Ville!#REF!,Ville!#REF!,Ville!#REF!,Ville!#REF!,Ville!#REF!,Ville!#REF!,Ville!#REF!,Ville!#REF!) ->  | J7: 15.9 | K7: 30
D8: INCONNUE | E8: =VLOOKUP(D8,Ville!$A$2:$I$14,8) -> 0 | F8: =CHOOSE(E8,Ville!#REF!,Ville!#REF!,Ville!#REF!,Ville!#REF!,Ville!#REF!,Ville!#REF!,Ville!#REF!,Ville!#REF!,Ville!#REF!,Ville!#REF!,Ville!#REF!,Ville!#REF!,Ville!#REF!,Ville!#REF!) ->  | G8: =IF(F8="","",F8*$F$1) ->  | H8: =CHOOSE(E8,Ville!#REF!,Ville!#REF!,Ville!#REF!,Ville!#REF!,Ville!#REF!,Ville!#REF!,Ville!#REF!,Ville!#REF!,Ville!#REF!,Ville!#REF!,Ville!#REF!,Ville!#REF!,Ville!#REF!,Ville!#REF!) -> 
D9: INCONNUE | E9: =VLOOKUP(D9,Ville!$A$2:$I$14,8) -> 0 | F9: =SUM(F4:F8) ->  | G9: =SUM(G4:G8) ->  | H9: =SUM(H4:H8) ->  | J9: =SUM(J4:J8) -> 29.1 | K9: =SUM(K4:K8) -> 57
B10: Fevrier | C10: 2008-02-08 | D10: CHAUFFAILLES | E10: =VLOOKUP(D10,Ville!$A$2:$I$14,8) -> 0 | F10: =CHOOSE(E10,Ville!#REF!,Ville!#REF!,Ville!#REF!,Ville!#REF!,Ville!#REF!,Ville!#REF!,Ville!#REF!,Ville!#REF!,Ville!#REF!,Ville!#REF!,Ville!#REF!,Ville!#REF!,Ville!#REF!,Ville!#REF!) ->  | H10: =CHOOSE(E10,Ville!#REF!,Ville!#REF!,Ville!#REF!,Ville!#REF!,Ville!#REF!,Ville!#REF!,Ville!#REF!,Ville!#REF!,Ville!#REF!,Ville!#REF!,Ville!#REF!,Ville!#REF!,Ville!#REF!,Ville!#REF!) -> 
C11: 2008-02-12 | D11: RUMILLY | E11: =VLOOKUP(D11,Ville!$A$2:$I$14,8) -> 0 | F11: =CHOOSE(E11,Ville!#REF!,Ville!#REF!,Ville!#REF!,Ville!#REF!,Ville!#REF!,Ville!#REF!,Ville!#REF!,Ville!#REF!,Ville!#REF!,Ville!#REF!,Ville!#REF!,Ville!#REF!,Ville!#REF!,Ville!#REF!) ->  | H11: =CHOOSE(E11,Ville!#REF!,Ville!#REF!,Ville!#REF!,Ville!#REF!,Ville!#REF!,Ville!#REF!,Ville!#REF!,Ville!#REF!,Ville!#REF!,Ville!#REF!,Ville!#REF!,Ville!#REF!,Ville!#REF!,Ville!#REF!) ->  | J11: 13.7 | N11: Mise à jour DOC
C12: 2008-02-14 | D12: BESANCON | E12: =VLOOKUP(D12,Ville!$A$2:$I$14,8) -> 0 | F12: =CHOOSE(E12,Ville!#REF!,Ville!#REF!,Ville!#REF!,Ville!#REF!,Ville!#REF!,Ville!#REF!,Ville!#REF!,Ville!#REF!,Ville!#REF!,Ville!#REF!,Ville!#REF!,Ville!#REF!,Ville!#REF!,Ville!#REF!) ->  | H12: =CHOOSE(E12,Ville!#REF!,Ville!#REF!,Ville!#REF!,Ville!#REF!,Ville!#REF!,Ville!#REF!,Ville!#REF!,Ville!#REF!,Ville!#REF!,Ville!#REF!,Ville!#REF!,Ville!#REF!,Ville!#REF!,Ville!#REF!) ->  | J12: 6.5
D13: INCONNUE | E13: =VLOOKUP(D13,Ville!$A$2:$I$14,8) -> 0 | F13: =CHOOSE(E13,Ville!#REF!,Ville!#REF!,Ville!#REF!,Ville!#REF!,Ville!#REF!,Ville!#REF!,Ville!#REF!,Ville!#REF!,Ville!#REF!,Ville!#REF!,Ville!#REF!,Ville!#REF!,Ville!#REF!,Ville!#REF!) ->  | H13: =CHOOSE(E13,Ville!#REF!,Ville!#REF!,Ville!#REF!,Ville!#REF!,Ville!#REF!,Ville!#REF!,Ville!#REF!,Ville!#REF!,Ville!#REF!,Ville!#REF!,Ville!#REF!,Ville!#REF!,Ville!#REF!,Ville!#REF!) -> 
D14: INCONNUE | E14: =VLOOKUP(D14,Ville!$A$2:$I$14,8) -> 0 | F14: =CHOOSE(E14,Ville!#REF!,Ville!#REF!,Ville!#REF!,Ville!#REF!,Ville!#REF!,Ville!#REF!,Ville!#REF!,Ville!#REF!,Ville!#REF!,Ville!#REF!,Ville!#REF!,Ville!#REF!,Ville!#REF!,Ville!#REF!) ->  | H14: =CHOOSE(E14,Ville!#REF!,Ville!#REF!,Ville!#REF!,Ville!#REF!,Ville!#REF!,Ville!#REF!,Ville!#REF!,Ville!#REF!,Ville!#REF!,Ville!#REF!,Ville!#REF!,Ville!#REF!,Ville!#REF!,Ville!#REF!) -> 
D15: INCONNUE | E15: =VLOOKUP(D15,Ville!$A$2:$I$14,8) -> 0 | F15: =CHOOSE(E15,Ville!#REF!,Ville!#REF!,Ville!#REF!,Ville!#REF!,Ville!#REF!,Ville!#REF!,Ville!#REF!,Ville!#REF!,Ville!#REF!,Ville!#REF!,Ville!#REF!,Ville!#REF!,Ville!#REF!,Ville!#REF!) ->  | H15: =CHOOSE(E15,Ville!#REF!,Ville!#REF!,Ville!#REF!,Ville!#REF!,Ville!#REF!,Ville!#REF!,Ville!#REF!,Ville!#REF!,Ville!#REF!,Ville!#REF!,Ville!#REF!,Ville!#REF!,Ville!#REF!,Ville!#REF!) -> 
D16: INCONNUE | E16: =VLOOKUP(D16,Ville!$A$2:$I$14,8) -> 0 | F16: =SUM(F10:F15) ->  | G16: =SUM(G10:G15) ->  | H16: =SUM(H10:H15) ->  | J16: =SUM(J10:J15) -> 20.2
B17: Mars | C17: 2008-03-05 | D17: MEYTHET | E17: =VLOOKUP(D17,Ville!$A$2:$I$14,8) -> 0 | F17: =CHOOSE(E17,Ville!#REF!,Ville!#REF!,Ville!#REF!,Ville!#REF!,Ville!#REF!,Ville!#REF!,Ville!#REF!,Ville!#REF!,Ville!#REF!,Ville!#REF!,Ville!#REF!,Ville!#REF!,Ville!#REF!) ->  | H17: =CHOOSE(E17,Ville!#REF!,Ville!#REF!,Ville!#REF!,Ville!#REF!,Ville!#REF!,Ville!#REF!,Ville!#REF!,Ville!#REF!,Ville!#REF!,Ville!#REF!,Ville!#REF!,Ville!#REF!,Ville!#REF!) ->  | J17: 6.8 | L17: =SUM(G17:K17) ->  | N17: Mise à jour DOC
C18: 2008-03-11 | D18: AUDIBERT | E18: =VLOOKUP(D18,Ville!$A$2:$I$14,8) -> 0 | F18: 420 | G18: 202.86 | H18: 18.9 | J18: 15 | L18: 236.76
C19: 2008-03-18 | D19: MEYTHET | E19: =VLOOKUP(D19,Ville!$A$2:$I$14,8) -> 0 | F19: =CHOOSE(E19,Ville!#REF!,Ville!#REF!,Ville!#REF!,Ville!#REF!,Ville!#REF!,Ville!#REF!,Ville!#REF!,Ville!#REF!,Ville!#REF!,Ville!#REF!,Ville!#REF!,Ville!#REF!,Ville!#REF!,Ville!#REF!) ->  | H19: =CHOOSE(E19,Ville!#REF!,Ville!#REF!,Ville!#REF!,Ville!#REF!,Ville!#REF!,Ville!#REF!,Ville!#REF!,Ville!#REF!,Ville!#REF!,Ville!#REF!,Ville!#REF!,Ville!#REF!,Ville!#REF!,Ville!#REF!) ->  | N19: Mise à jour DOC
C20: 2008-03-21 | D20: CHAUFFAILLES | E20: =VLOOKUP(D20,Ville!$A$2:$I$14,8) -> 0 | F20: =CHOOSE(E20,Ville!#REF!,Ville!#REF!,Ville!#REF!,Ville!#REF!,Ville!#REF!,Ville!#REF!,Ville!#REF!,Ville!#REF!,Ville!#REF!,Ville!#REF!,Ville!#REF!,Ville!#REF!,Ville!#REF!,Ville!#REF!) ->  | H20: =CHOOSE(E20,Ville!#REF!,Ville!#REF!,Ville!#REF!,Ville!#REF!,Ville!#REF!,Ville!#REF!,Ville!#REF!,Ville!#REF!,Ville!#REF!,Ville!#REF!,Ville!#REF!,Ville!#REF!,Ville!#REF!,Ville!#REF!) -> 
C21: 2008-03-27 | D21: CORDESSE | E21: =VLOOKUP(D21,Ville!$A$2:$I$14,8) -> 0 | F21: =CHOOSE(E21,Ville!#REF!,Ville!#REF!,Ville!#REF!,Ville!#REF!,Ville!#REF!,Ville!#REF!,Ville!#REF!,Ville!#REF!,Ville!#REF!,Ville!#REF!,Ville!#REF!,Ville!#REF!,Ville!#REF!,Ville!#REF!) ->  | H21: =CHOOSE(E21,Ville!#REF!,Ville!#REF!,Ville!#REF!,Ville!#REF!,Ville!#REF!,Ville!#REF!,Ville!#REF!,Ville!#REF!,Ville!#REF!,Ville!#REF!,Ville!#REF!,Ville!#REF!,Ville!#REF!,Ville!#REF!) ->  | J21: 8.6
D22: INCONNUE | E22: =VLOOKUP(D22,Ville!$A$2:$I$14,8) -> 0 | F22: =CHOOSE(E22,Ville!#REF!,Ville!#REF!,Ville!#REF!,Ville!#REF!,Ville!#REF!,Ville!#REF!,Ville!#REF!,Ville!#REF!,Ville!#REF!,Ville!#REF!,Ville!#REF!,Ville!#REF!,Ville!#REF!,Ville!#REF!) ->  | H22: =CHOOSE(E22,Ville!#REF!,Ville!#REF!,Ville!#REF!,Ville!#REF!,Ville!#REF!,Ville!#REF!,Ville!#REF!,Ville!#REF!,Ville!#REF!,Ville!#REF!,Ville!#REF!,Ville!#REF!,Ville!#REF!,Ville!#REF!) -> 
D23: INCONNUE | E23: =VLOOKUP(D23,Ville!$A$2:$I$14,8) -> 0 | F23: =SUM(F17:F22) ->  | G23: =SUM(G17:G22) ->  | H23: =SUM(H17:H22) ->  | J23: =SUM(J17:J22) -> 30.4
B24: Avril | C24: 2008-04-07 | D24: MEYTHET | E24: =VLOOKUP(D24,Ville!$A$2:$I$14,8) -> 0 | F24: =CHOOSE(E24,Ville!#REF!,Ville!#REF!,Ville!#REF!,Ville!#REF!,Ville!#REF!,Ville!#REF!,Ville!#REF!,Ville!#REF!,Ville!#REF!,Ville!#REF!,Ville!#REF!,Ville!#REF!,Ville!#REF!,Ville!#REF!) ->  | H24: =CHOOSE(E24,Ville!#REF!,Ville!#REF!,Ville!#REF!,Ville!#REF!,Ville!#REF!,Ville!#REF!,Ville!#REF!,Ville!#REF!,Ville!#REF!,Ville!#REF!,Ville!#REF!,Ville!#REF!,Ville!#REF!,Ville!#REF!) ->  | J24: 15 | L24: =SUM(G24:K24) -> 
C25: 2008-04-17 | D25: CORDESSE | E25: =VLOOKUP(D25,Ville!$A$2:$I$14,8) -> 0 | F25: =CHOOSE(E25,Ville!#REF!,Ville!#REF!,Ville!#REF!,Ville!#REF!,Ville!#REF!,Ville!#REF!,Ville!#REF!,Ville!#REF!,Ville!#REF!,Ville!#REF!,Ville!#REF!,Ville!#REF!,Ville!#REF!,Ville!#REF!) ->  | H25: =CHOOSE(E25,Ville!#REF!,Ville!#REF!,Ville!#REF!,Ville!#REF!,Ville!#REF!,Ville!#REF!,Ville!#REF!,Ville!#REF!,Ville!#REF!,Ville!#REF!,Ville!#REF!,Ville!#REF!,Ville!#REF!,Ville!#REF!) -> 
C26: 2008-02-22 | D26: MEYTHET | E26: =VLOOKUP(D26,Ville!$A$2:$I$14,8) -> 0 | F26: =CHOOSE(E26,Ville!#REF!,Ville!#REF!,Ville!#REF!,Ville!#REF!,Ville!#REF!,Ville!#REF!,Ville!#REF!,Ville!#REF!,Ville!#REF!,Ville!#REF!,Ville!#REF!,Ville!#REF!,Ville!#REF!,Ville!#REF!) ->  | H26: =CHOOSE(E26,Ville!#REF!,Ville!#REF!,Ville!#REF!,Ville!#REF!,Ville!#REF!,Ville!#REF!,Ville!#REF!,Ville!#REF!,Ville!#REF!,Ville!#REF!,Ville!#REF!,Ville!#REF!,Ville!#REF!,Ville!#REF!) ->  | N26: Mise à jour DOC
D27: INCONNUE | E27: =VLOOKUP(D27,Ville!$A$2:$I$14,8) -> 0 | F27: =CHOOSE(E27,Ville!#REF!,Ville!#REF!,Ville!#REF!,Ville!#REF!,Ville!#REF!,Ville!#REF!,Ville!#REF!,Ville!#REF!,Ville!#REF!,Ville!#REF!,Ville!#REF!,Ville!#REF!,Ville!#REF!,Ville!#REF!) ->  | H27: =CHOOSE(E27,Ville!#REF!,Ville!#REF!,Ville!#REF!,Ville!#REF!,Ville!#REF!,Ville!#REF!,Ville!#REF!,Ville!#REF!,Ville!#REF!,Ville!#REF!,Ville!#REF!,Ville!#REF!,Ville!#REF!,Ville!#REF!) -> 
D28: INCONNUE | E28: =VLOOKUP(D28,Ville!$A$2:$I$14,8) -> 0 | F28: =CHOOSE(E28,Ville!#REF!,Ville!#REF!,Ville!#REF!,Ville!#REF!,Ville!#REF!,Ville!#REF!,Ville!#REF!,Ville!#REF!,Ville!#REF!,Ville!#REF!,Ville!#REF!,Ville!#REF!,Ville!#REF!,Ville!#REF!) ->  | H28: =CHOOSE(E28,Ville!#REF!,Ville!#REF!,Ville!#REF!,Ville!#REF!,Ville!#REF!,Ville!#REF!,Ville!#REF!,Ville!#REF!,Ville!#REF!,Ville!#REF!,Ville!#REF!,Ville!#REF!,Ville!#REF!,Ville!#REF!) -> 
D29: INCONNUE | E29: =VLOOKUP(D29,Ville!$A$2:$I$14,8) -> 0 | F29: =CHOOSE(E29,Ville!#REF!,Ville!#REF!,Ville!#REF!,Ville!#REF!,Ville!#REF!,Ville!#REF!,Ville!#REF!,Ville!#REF!,Ville!#REF!,Ville!#REF!,Ville!#REF!,Ville!#REF!,Ville!#REF!,Ville!#REF!) ->  | H29: =CHOOSE(E29,Ville!#REF!,Ville!#REF!,Ville!#REF!,Ville!#REF!,Ville!#REF!,Ville!#REF!,Ville!#REF!,Ville!#REF!,Ville!#REF!,Ville!#REF!,Ville!#REF!,Ville!#REF!,Ville!#REF!,Ville!#REF!) -> 
D30: INCONNUE | E30: =VLOOKUP(D30,Ville!$A$2:$I$14,8) -> 0 | F30: =CHOOSE(E30,Ville!#REF!,Ville!#REF!,Ville!#REF!,Ville!#REF!,Ville!#REF!,Ville!#REF!,Ville!#REF!,Ville!#REF!,Ville!#REF!,Ville!#REF!,Ville!#REF!,Ville!#REF!,Ville!#REF!,Ville!#REF!) ->  | H30: =CHOOSE(E30,Ville!#REF!,Ville!#REF!,Ville!#REF!,Ville!#REF!,Ville!#REF!,Ville!#REF!,Ville!#REF!,Ville!#REF!,Ville!#REF!,Ville!#REF!,Ville!#REF!,Ville!#REF!,Ville!#REF!,Ville!#REF!) -> 
D31: INCONNUE | E31: =VLOOKUP(D31,Ville!$A$2:$I$14,8) -> 0 | F31: =SUM(F24:F30) ->  | G31: =SUM(G24:G30) ->  | H31: =SUM(H24:H30) ->  | J31: =SUM(J24:J30) -> 15
B32: Mai | C32: 2008-05-19 | D32: CHAMPAGNOLE | E32: =VLOOKUP(D32,Ville!$A$2:$I$14,8) -> 0 | H32: =CHOOSE(E32,Ville!#REF!,Ville!#REF!,Ville!#REF!,Ville!#REF!,Ville!#REF!,Ville!#REF!,Ville!#REF!,Ville!#REF!,Ville!#REF!,Ville!#REF!,Ville!#REF!,Ville!#REF!,Ville!#REF!,Ville!#REF!) -> 
C33: I | D33: LYON | E33: =VLOOKUP(D33,Ville!$A$2:$I$14,8) -> 0 | F33: =CHOOSE(E33,Ville!#REF!,Ville!#REF!,Ville!#REF!,Ville!#REF!,Ville!#REF!,Ville!#REF!,Ville!#REF!,Ville!#REF!,Ville!#REF!,Ville!#REF!,Ville!#REF!,Ville!#REF!,Ville!#REF!,Ville!#REF!) ->  | H33: =CHOOSE(E33,Ville!#REF!,Ville!#REF!,Ville!#REF!,Ville!#REF!,Ville!#REF!,Ville!#REF!,Ville!#REF!,Ville!#REF!,Ville!#REF!,Ville!#REF!,Ville!#REF!,Ville!#REF!,Ville!#REF!,Ville!#REF!) -> 
C34: I | D34: VILLEFRANCHE | E34: =VLOOKUP(D34,Ville!$A$2:$I$14,8) -> 0 | F34: 445 | G34: 214.935 | H34: 18.8 | K34: 37.4 | L34: 271.135
C35: 2008-05-23 | D35: CHAMPAGNOLE | E35: =VLOOKUP(D35,Ville!$A$2:$I$14,8) -> 0 | H35: =CHOOSE(E35,Ville!#REF!,Ville!#REF!,Ville!#REF!,Ville!#REF!,Ville!#REF!,Ville!#REF!,Ville!#REF!,Ville!#REF!,Ville!#REF!,Ville!#REF!,Ville!#REF!,Ville!#REF!,Ville!#REF!,Ville!#REF!) -> 
C36: 2008-05-26 | D36: MEYTHET | E36: =VLOOKUP(D36,Ville!$A$2:$I$14,8) -> 0 | F36: =CHOOSE(E36,Ville!#REF!,Ville!#REF!,Ville!#REF!,Ville!#REF!,Ville!#REF!,Ville!#REF!,Ville!#REF!,Ville!#REF!,Ville!#REF!,Ville!#REF!,Ville!#REF!,Ville!#REF!,Ville!#REF!,Ville!#REF!) ->  | H36: =CHOOSE(E36,Ville!#REF!,Ville!#REF!,Ville!#REF!,Ville!#REF!,Ville!#REF!,Ville!#REF!,Ville!#REF!,Ville!#REF!,Ville!#REF!,Ville!#REF!,Ville!#REF!,Ville!#REF!,Ville!#REF!,Ville!#REF!) ->  | J36: 15
C37: 2008-05-28 | D37: FAINS LES MONTBARD | F37: 400 | G37: 193.2 | H37: 9.6 | L37: 202.8
C38: 2008-05-29 | D38: FAINS LES MONTBARD | E38: =VLOOKUP(D38,Ville!$A$2:$I$14,8) -> 0 | F38: =CHOOSE(E38,Ville!#REF!,Ville!#REF!,Ville!#REF!,Ville!#REF!,Ville!#REF!,Ville!#REF!,Ville!#REF!,Ville!#REF!,Ville!#REF!,Ville!#REF!,Ville!#REF!,Ville!#REF!,Ville!#REF!,Ville!#REF!) ->  | H38: =CHOOSE(E38,Ville!#REF!,Ville!#REF!,Ville!#REF!,Ville!#REF!,Ville!#REF!,Ville!#REF!,Ville!#REF!,Ville!#REF!,Ville!#REF!,Ville!#REF!,Ville!#REF!,Ville!#REF!,Ville!#REF!,Ville!#REF!) -> 
D39: INCONNUE | E39: =VLOOKUP(D39,Ville!$A$2:$I$14,8) -> 0 | F39: =CHOOSE(E39,Ville!#REF!,Ville!#REF!,Ville!#REF!,Ville!#REF!,Ville!#REF!,Ville!#REF!,Ville!#REF!,Ville!#REF!,Ville!#REF!,Ville!#REF!,Ville!#REF!,Ville!#REF!,Ville!#REF!,Ville!#REF!) ->  | H39: =CHOOSE(E39,Ville!#REF!,Ville!#REF!,Ville!#REF!,Ville!#REF!,Ville!#REF!,Ville!#REF!,Ville!#REF!,Ville!#REF!,Ville!#REF!,Ville!#REF!,Ville!#REF!,Ville!#REF!,Ville!#REF!,Ville!#REF!) -> 
D40: INCONNUE | E40: =VLOOKUP(D40,Ville!$A$2:$I$14,8) -> 0 | F40: =SUM(F32:F38) ->  | G40: =SUM(G32:G38) ->  | H40: =SUM(H32:H38) ->  | J40: =SUM(J32:J38) -> 15 | K40: =SUM(K32:K38) -> 37.4
B41: Juin | C41: 2008-06-11 | D41: RUMILLY | E41: =VLOOKUP(D41,Ville!$A$2:$I$14,8) -> 0 | F41: =CHOOSE(E41,Ville!#REF!,Ville!#REF!,Ville!#REF!,Ville!#REF!,Ville!#REF!,Ville!#REF!,Ville!#REF!,Ville!#REF!,Ville!#REF!,Ville!#REF!,Ville!#REF!,Ville!#REF!,Ville!#REF!,Ville!#REF!) ->  | H41: =CHOOSE(E41,Ville!#REF!,Ville!#REF!,Ville!#REF!,Ville!#REF!,Ville!#REF!,Ville!#REF!,Ville!#REF!,Ville!#REF!,Ville!#REF!,Ville!#REF!,Ville!#REF!,Ville!#REF!,Ville!#REF!,Ville!#REF!) ->  | J41: 15 | L41: =SUM(G41:K41) -> 
C42: 2008-06-16 | D42: MEYTHET | E42: =VLOOKUP(D42,Ville!$A$2:$I$14,8) -> 0 | F42: =CHOOSE(E42,Ville!#REF!,Ville!#REF!,Ville!#REF!,Ville!#REF!,Ville!#REF!,Ville!#REF!,Ville!#REF!,Ville!#REF!,Ville!#REF!,Ville!#REF!,Ville!#REF!,Ville!#REF!,Ville!#REF!,Ville!#REF!) ->  | H42: =CHOOSE(E42,Ville!#REF!,Ville!#REF!,Ville!#REF!,Ville!#REF!,Ville!#REF!,Ville!#REF!,Ville!#REF!,Ville!#REF!,Ville!#REF!,Ville!#REF!,Ville!#REF!,Ville!#REF!,Ville!#REF!,Ville!#REF!) ->  | J42: 15 | L42: =SUM(G42:K42) -> 
C43: 1900-06-17 | D43: MONTREUIL | E43: =VLOOKUP(D43,Ville!$A$2:$I$14,8) -> 0 | F43: 430 | H43: 29.8 | J43: 4.5 | K43: 67 | L43: =SUM(G43:K43) -> 101.3
C44: 2008-06-19 | D44: CHAMPAGNOLE | E44: =VLOOKUP(D44,Ville!$A$2:$I$14,8) -> 0 | H44: =CHOOSE(E44,Ville!#REF!,Ville!#REF!,Ville!#REF!,Ville!#REF!,Ville!#REF!,Ville!#REF!,Ville!#REF!,Ville!#REF!,Ville!#REF!,Ville!#REF!,Ville!#REF!,Ville!#REF!,Ville!#REF!,Ville!#REF!) ->  | I44: 66 | L44: =SUM(G44:K44) -> 
C45: 2008-06-27 | D45: CHAUFFAILLES | E45: =VLOOKUP(D45,Ville!$A$2:$I$14,8) -> 0 | F45: =CHOOSE(E45,Ville!#REF!,Ville!#REF!,Ville!#REF!,Ville!#REF!,Ville!#REF!,Ville!#REF!,Ville!#REF!,Ville!#REF!,Ville!#REF!,Ville!#REF!,Ville!#REF!,Ville!#REF!,Ville!#REF!,Ville!#REF!) ->  | H45: =CHOOSE(E45,Ville!#REF!,Ville!#REF!,Ville!#REF!,Ville!#REF!,Ville!#REF!,Ville!#REF!,Ville!#REF!,Ville!#REF!,Ville!#REF!,Ville!#REF!,Ville!#REF!,Ville!#REF!,Ville!#REF!,Ville!#REF!) ->  | I45: 67.5 | J45: 3.26 | L45: =SUM(G45:K45) -> 
D46: INCONNUE | E46: =VLOOKUP(D46,Ville!$A$2:$I$14,8) -> 0 | F46: =CHOOSE(E46,Ville!#REF!,Ville!#REF!,Ville!#REF!,Ville!#REF!,Ville!#REF!,Ville!#REF!,Ville!#REF!,Ville!#REF!,Ville!#REF!,Ville!#REF!,Ville!#REF!,Ville!#REF!,Ville!#REF!,Ville!#REF!) ->  | H46: =CHOOSE(E46,Ville!#REF!,Ville!#REF!,Ville!#REF!,Ville!#REF!,Ville!#REF!,Ville!#REF!,Ville!#REF!,Ville!#REF!,Ville!#REF!,Ville!#REF!,Ville!#REF!,Ville!#REF!,Ville!#REF!,Ville!#REF!) ->  | L46: =SUM(G46:K46) -> 
D47: INCONNUE | E47: =VLOOKUP(D47,Ville!$A$2:$I$14,8) -> 0 | F47: =CHOOSE(E47,Ville!#REF!,Ville!#REF!,Ville!#REF!,Ville!#REF!,Ville!#REF!,Ville!#REF!,Ville!#REF!,Ville!#REF!,Ville!#REF!,Ville!#REF!,Ville!#REF!,Ville!#REF!,Ville!#REF!,Ville!#REF!) ->  | H47: =CHOOSE(E47,Ville!#REF!,Ville!#REF!,Ville!#REF!,Ville!#REF!,Ville!#REF!,Ville!#REF!,Ville!#REF!,Ville!#REF!,Ville!#REF!,Ville!#REF!,Ville!#REF!,Ville!#REF!,Ville!#REF!,Ville!#REF!) -> 
D48: INCONNUE | E48: =VLOOKUP(D48,Ville!$A$2:$I$14,8) -> 0 | F48: =SUM(F41:F47) ->  | I48: 133.5 | J48: 37.76 | K48: 67
B49: Juillet | C49: 2008-07-01 | D49: BELLEY | E49: =VLOOKUP(D49,Ville!$A$2:$I$14,8) -> 0 | F49: =CHOOSE(E49,Ville!#REF!,Ville!#REF!,Ville!#REF!,Ville!#REF!,Ville!#REF!,Ville!#REF!,Ville!#REF!,Ville!#REF!,Ville!#REF!,Ville!#REF!,Ville!#REF!,Ville!#REF!,Ville!#REF!,Ville!#REF!) ->  | H49: =CHOOSE(E49,Ville!#REF!,Ville!#REF!,Ville!#REF!,Ville!#REF!,Ville!#REF!,Ville!#REF!,Ville!#REF!,Ville!#REF!,Ville!#REF!,Ville!#REF!,Ville!#REF!,Ville!#REF!,Ville!#REF!,Ville!#REF!) ->  | J49: 7.2
C50: 2008-07-07 | D50: MEYTHET | E50: =VLOOKUP(D50,Ville!$A$2:$I$14,8) -> 0 | F50: =CHOOSE(E50,Ville!#REF!,Ville!#REF!,Ville!#REF!,Ville!#REF!,Ville!#REF!,Ville!#REF!,Ville!#REF!,Ville!#REF!,Ville!#REF!,Ville!#REF!,Ville!#REF!,Ville!#REF!,Ville!#REF!,Ville!#REF!) ->  | H50: =CHOOSE(E50,Ville!#REF!,Ville!#REF!,Ville!#REF!,Ville!#REF!,Ville!#REF!,Ville!#REF!,Ville!#REF!,Ville!#REF!,Ville!#REF!,Ville!#REF!,Ville!#REF!,Ville!#REF!,Ville!#REF!,Ville!#REF!) ->  | J50: 15
C51: 2008-07-08 | D51: CHAMPAGNOLE | E51: =VLOOKUP(D51,Ville!$A$2:$I$14,8) -> 0 | H51: =CHOOSE(E51,Ville!#REF!,Ville!#REF!,Ville!#REF!,Ville!#REF!,Ville!#REF!,Ville!#REF!,Ville!#REF!,Ville!#REF!,Ville!#REF!,Ville!#REF!,Ville!#REF!,Ville!#REF!,Ville!#REF!,Ville!#REF!) ->  | I51: 60 | K51: 9.35
C52: 2008-07-15 | D52: BELLEY | E52: =VLOOKUP(D52,Ville!$A$2:$I$14,8) -> 0 | F52: =CHOOSE(E52,Ville!#REF!,Ville!#REF!,Ville!#REF!,Ville!#REF!,Ville!#REF!,Ville!#REF!,Ville!#REF!,Ville!#REF!,Ville!#REF!,Ville!#REF!,Ville!#REF!,Ville!#REF!,Ville!#REF!,Ville!#REF!) ->  | H52: =CHOOSE(E52,Ville!#REF!,Ville!#REF!,Ville!#REF!,Ville!#REF!,Ville!#REF!,Ville!#REF!,Ville!#REF!,Ville!#REF!,Ville!#REF!,Ville!#REF!,Ville!#REF!,Ville!#REF!,Ville!#REF!,Ville!#REF!) ->  | J52: 8.2 | L52: =SUM(G52:K52) -> 
C53: 2008-07-16 | D53: RUMILLY | E53: =VLOOKUP(D53,Ville!$A$2:$I$14,8) -> 0 | F53: =CHOOSE(E53,Ville!#REF!,Ville!#REF!,Ville!#REF!,Ville!#REF!,Ville!#REF!,Ville!#REF!,Ville!#REF!,Ville!#REF!,Ville!#REF!,Ville!#REF!,Ville!#REF!,Ville!#REF!,Ville!#REF!,Ville!#REF!) ->  | H53: =CHOOSE(E53,Ville!#REF!,Ville!#REF!,Ville!#REF!,Ville!#REF!,Ville!#REF!,Ville!#REF!,Ville!#REF!,Ville!#REF!,Ville!#REF!,Ville!#REF!,Ville!#REF!,Ville!#REF!,Ville!#REF!,Ville!#REF!) ->  | J53: 15 | L53: =SUM(G53:K53) -> 
C54: 2008-07-17 | D54: CHAMPAGNOLE | I54: 64 | L54: =SUM(G54:K54) -> 64
C55: 2008-07-21 | D55: MEYTHET | F55: 300 | H55: 1.6 | J55: 4 | L55: =SUM(G55:K55) -> 5.6
C56: 2008-07-22 | D56: MEYTHET | E56: =VLOOKUP(D56,Ville!$A$2:$I$14,8) -> 0 | F56: =CHOOSE(E56,Ville!#REF!,Ville!#REF!,Ville!#REF!,Ville!#REF!,Ville!#REF!,Ville!#REF!,Ville!#REF!,Ville!#REF!,Ville!#REF!,Ville!#REF!,Ville!#REF!,Ville!#REF!,Ville!#REF!,Ville!#REF!) ->  | H56: 1.6 | L56: =SUM(G56:K56) -> 1.6
D58: INCONNUE | E58: =VLOOKUP(D58,Ville!$A$2:$I$14,8) -> 0 | F58: =CHOOSE(E58,Ville!#REF!,Ville!#REF!,Ville!#REF!,Ville!#REF!,Ville!#REF!,Ville!#REF!,Ville!#REF!,Ville!#REF!,Ville!#REF!,Ville!#REF!,Ville!#REF!,Ville!#REF!,Ville!#REF!,Ville!#REF!) ->  | H58: =CHOOSE(E58,Ville!#REF!,Ville!#REF!,Ville!#REF!,Ville!#REF!,Ville!#REF!,Ville!#REF!,Ville!#REF!,Ville!#REF!,Ville!#REF!,Ville!#REF!,Ville!#REF!,Ville!#REF!,Ville!#REF!,Ville!#REF!) -> 
D59: INCONNUE | E59: =VLOOKUP(D59,Ville!$A$2:$I$14,8) -> 0 | F59: =SUM(F49:F58) ->  | I59: 124 | J59: 49.4 | K59: 9.35
B60: Aout | C60: 2008-08-04 | D60: MEYTHET | E60: =VLOOKUP(D60,Ville!$A$2:$I$14,8) -> 0 | F60: =CHOOSE(E60,Ville!#REF!,Ville!#REF!,Ville!#REF!,Ville!#REF!,Ville!#REF!,Ville!#REF!,Ville!#REF!,Ville!#REF!,Ville!#REF!,Ville!#REF!,Ville!#REF!,Ville!#REF!,Ville!#REF!,Ville!#REF!) ->  | H60: =CHOOSE(E60,Ville!#REF!,Ville!#REF!,Ville!#REF!,Ville!#REF!,Ville!#REF!,Ville!#REF!,Ville!#REF!,Ville!#REF!,Ville!#REF!,Ville!#REF!,Ville!#REF!,Ville!#REF!,Ville!#REF!,Ville!#REF!) ->  | J60: 4.5 | L60: =SUM(G60:K60) -> 
C61: 2008-08-05 | D61: FAINS LES MONTBARD | E61: =VLOOKUP(D61,Ville!$A$2:$I$14,8) -> 0 | F61: =CHOOSE(E61,Ville!#REF!,Ville!#REF!,Ville!#REF!,Ville!#REF!,Ville!#REF!,Ville!#REF!,Ville!#REF!,Ville!#REF!,Ville!#REF!,Ville!#REF!,Ville!#REF!,Ville!#REF!,Ville!#REF!,Ville!#REF!) ->  | H61: 20.4 | I61: 67 | J61: 4.5 | L61: 91.9
C62: 2008-08-12 | D62: FAINS LES MONTBARD | E62: =VLOOKUP(D62,Ville!$A$2:$I$14,8) -> 0 | F62: =CHOOSE(E62,Ville!#REF!,Ville!#REF!,Ville!#REF!,Ville!#REF!,Ville!#REF!,Ville!#REF!,Ville!#REF!,Ville!#REF!,Ville!#REF!,Ville!#REF!,Ville!#REF!,Ville!#REF!,Ville!#REF!,Ville!#REF!) ->  | H62: 26.3 | I62: 46 | J62: 26 | K62: 56 | L62: 154.3
C63: 2008-08-13 | D63: ENNERY | E63: =VLOOKUP(D63,Ville!$A$2:$I$14,8) -> 0 | F63: 800 | H63: 22.3 | I63: 48.5 | L63: 70.8
C64: 2008-08-18 | D64: VILLEFRANCHE | E64: =VLOOKUP(D64,Ville!$A$2:$I$14,8) -> 0 | F64: =CHOOSE(E64,Ville!#REF!,Ville!#REF!,Ville!#REF!,Ville!#REF!,Ville!#REF!,Ville!#REF!,Ville!#REF!,Ville!#REF!,Ville!#REF!,Ville!#REF!,Ville!#REF!,Ville!#REF!,Ville!#REF!,Ville!#REF!) ->  | H64: 20.1 | I64: 60.5 | J64: 7.5 | L64: 88.1
C65: 2008-08-19 | D65: FAINS LES MONTBARD | E65: =VLOOKUP(D65,Ville!$A$2:$I$14,8) -> 0 | F65: =CHOOSE(E65,Ville!#REF!,Ville!#REF!,Ville!#REF!,Ville!#REF!,Ville!#REF!,Ville!#REF!,Ville!#REF!,Ville!#REF!,Ville!#REF!,Ville!#REF!,Ville!#REF!,Ville!#REF!,Ville!#REF!,Ville!#REF!) ->  | H65: 20.4 | L65: 20.4
C66: 2008-08-23 | D66: CHAMPAGNOLE | E66: =VLOOKUP(D66,Ville!$A$2:$I$14,8) -> 0 | H66: =CHOOSE(E66,Ville!#REF!,Ville!#REF!,Ville!#REF!,Ville!#REF!,Ville!#REF!,Ville!#REF!,Ville!#REF!,Ville!#REF!,Ville!#REF!,Ville!#REF!,Ville!#REF!,Ville!#REF!,Ville!#REF!,Ville!#REF!) ->  | I66: 63.5
C67: 2008-08-26 | D67: BELLEY | F67: 300 | H67: 3.3 | J67: 7.6 | L67: 10.9
D68: INCONNUE
D69: INCONNUE | E69: =VLOOKUP(D69,Ville!$A$2:$I$14,8) -> 0 | F69: =SUM(F60:F66) ->  | G69: =SUM(G60:G66) -> 0 | H69: =SUM(H60:H67) ->  | I69: =SUM(I60:I66) -> 285.5 | J69: =SUM(J60:J68) -> 50.1 | L69: =SUM(L60:L68) -> 
B70: Septembre | D70: INCONNUE | E70: =VLOOKUP(D70,Ville!$A$2:$I$14,8) -> 0 | F70: =CHOOSE(E70,Ville!#REF!,Ville!#REF!,Ville!#REF!,Ville!#REF!,Ville!#REF!,Ville!#REF!,Ville!#REF!,Ville!#REF!,Ville!#REF!,Ville!#REF!,Ville!#REF!,Ville!#REF!,Ville!#REF!,Ville!#REF!) ->  | H70: =CHOOSE(E70,Ville!#REF!,Ville!#REF!,Ville!#REF!,Ville!#REF!,Ville!#REF!,Ville!#REF!,Ville!#REF!,Ville!#REF!,Ville!#REF!,Ville!#REF!,Ville!#REF!,Ville!#REF!,Ville!#REF!,Ville!#REF!) ->  | L70: =SUM(G70:K70) -> 
D71: INCONNUE | E71: =VLOOKUP(D71,Ville!$A$2:$I$14,8) -> 0 | F71: =CHOOSE(E71,Ville!#REF!,Ville!#REF!,Ville!#REF!,Ville!#REF!,Ville!#REF!,Ville!#REF!,Ville!#REF!,Ville!#REF!,Ville!#REF!,Ville!#REF!,Ville!#REF!,Ville!#REF!,Ville!#REF!,Ville!#REF!) ->  | H71: =CHOOSE(E71,Ville!#REF!,Ville!#REF!,Ville!#REF!,Ville!#REF!,Ville!#REF!,Ville!#REF!,Ville!#REF!,Ville!#REF!,Ville!#REF!,Ville!#REF!,Ville!#REF!,Ville!#REF!,Ville!#REF!,Ville!#REF!) -> 
D72: INCONNUE | E72: =VLOOKUP(D72,Ville!$A$2:$I$14,8) -> 0 | F72: =CHOOSE(E72,Ville!#REF!,Ville!#REF!,Ville!#REF!,Ville!#REF!,Ville!#REF!,Ville!#REF!,Ville!#REF!,Ville!#REF!,Ville!#REF!,Ville!#REF!,Ville!#REF!,Ville!#REF!,Ville!#REF!,Ville!#REF!) ->  | H72: =CHOOSE(E72,Ville!#REF!,Ville!#REF!,Ville!#REF!,Ville!#REF!,Ville!#REF!,Ville!#REF!,Ville!#REF!,Ville!#REF!,Ville!#REF!,Ville!#REF!,Ville!#REF!,Ville!#REF!,Ville!#REF!,Ville!#REF!) -> 
D73: INCONNUE | E73: =VLOOKUP(D73,Ville!$A$2:$I$14,8) -> 0 | F73: =CHOOSE(E73,Ville!#REF!,Ville!#REF!,Ville!#REF!,Ville!#REF!,Ville!#REF!,Ville!#REF!,Ville!#REF!,Ville!#REF!,Ville!#REF!,Ville!#REF!,Ville!#REF!,Ville!#REF!,Ville!#REF!,Ville!#REF!) ->  | H73: =CHOOSE(E73,Ville!#REF!,Ville!#REF!,Ville!#REF!,Ville!#REF!,Ville!#REF!,Ville!#REF!,Ville!#REF!,Ville!#REF!,Ville!#REF!,Ville!#REF!,Ville!#REF!,Ville!#REF!,Ville!#REF!,Ville!#REF!) -> 
D74: INCONNUE | E74: =VLOOKUP(D74,Ville!$A$2:$I$14,8) -> 0 | F74: =CHOOSE(E74,Ville!#REF!,Ville!#REF!,Ville!#REF!,Ville!#REF!,Ville!#REF!,Ville!#REF!,Ville!#REF!,Ville!#REF!,Ville!#REF!,Ville!#REF!,Ville!#REF!,Ville!#REF!,Ville!#REF!,Ville!#REF!) ->  | H74: =CHOOSE(E74,Ville!#REF!,Ville!#REF!,Ville!#REF!,Ville!#REF!,Ville!#REF!,Ville!#REF!,Ville!#REF!,Ville!#REF!,Ville!#REF!,Ville!#REF!,Ville!#REF!,Ville!#REF!,Ville!#REF!,Ville!#REF!) -> 
D75: INCONNUE | E75: =VLOOKUP(D75,Ville!$A$2:$I$14,8) -> 0 | F75: =CHOOSE(E75,Ville!#REF!,Ville!#REF!,Ville!#REF!,Ville!#REF!,Ville!#REF!,Ville!#REF!,Ville!#REF!,Ville!#REF!,Ville!#REF!,Ville!#REF!,Ville!#REF!,Ville!#REF!,Ville!#REF!,Ville!#REF!) ->  | H75: =CHOOSE(E75,Ville!#REF!,Ville!#REF!,Ville!#REF!,Ville!#REF!,Ville!#REF!,Ville!#REF!,Ville!#REF!,Ville!#REF!,Ville!#REF!,Ville!#REF!,Ville!#REF!,Ville!#REF!,Ville!#REF!,Ville!#REF!) -> 
D76: INCONNUE | E76: =VLOOKUP(D76,Ville!$A$2:$I$14,8) -> 0 | F76: =CHOOSE(E76,Ville!#REF!,Ville!#REF!,Ville!#REF!,Ville!#REF!,Ville!#REF!,Ville!#REF!,Ville!#REF!,Ville!#REF!,Ville!#REF!,Ville!#REF!,Ville!#REF!,Ville!#REF!,Ville!#REF!,Ville!#REF!) ->  | H76: =CHOOSE(E76,Ville!#REF!,Ville!#REF!,Ville!#REF!,Ville!#REF!,Ville!#REF!,Ville!#REF!,Ville!#REF!,Ville!#REF!,Ville!#REF!,Ville!#REF!,Ville!#REF!,Ville!#REF!,Ville!#REF!,Ville!#REF!) -> 
D77: INCONNUE | E77: =VLOOKUP(D77,Ville!$A$2:$I$14,8) -> 0 | J77: =SUM(J70:J76) -> 0 | L77: =SUM(L70:L76) -> 
B78: Octobre | C78: 2008-09-30 | D78: CHAMPAGNOLE | E78: =VLOOKUP(D78,Ville!$A$2:$I$14,8) -> 0 | H78: =CHOOSE(E78,Ville!#REF!,Ville!#REF!,Ville!#REF!,Ville!#REF!,Ville!#REF!,Ville!#REF!,Ville!#REF!,Ville!#REF!,Ville!#REF!,Ville!#REF!,Ville!#REF!,Ville!#REF!,Ville!#REF!,Ville!#REF!) ->  | I78: 61.7 | L78: =SUM(G78:K78) -> 
C79: 2008-10-06 | D79: MEYTHET | E79: =VLOOKUP(D79,Ville!$A$2:$I$14,8) -> 0 | F79: =CHOOSE(E79,Ville!#REF!,Ville!#REF!,Ville!#REF!,Ville!#REF!,Ville!#REF!,Ville!#REF!,Ville!#REF!,Ville!#REF!,Ville!#REF!,Ville!#REF!,Ville!#REF!,Ville!#REF!,Ville!#REF!,Ville!#REF!) ->  | H79: =CHOOSE(E79,Ville!#REF!,Ville!#REF!,Ville!#REF!,Ville!#REF!,Ville!#REF!,Ville!#REF!,Ville!#REF!,Ville!#REF!,Ville!#REF!,Ville!#REF!,Ville!#REF!,Ville!#REF!,Ville!#REF!,Ville!#REF!) ->  | J79: 3
C80: 2008-10-07 | D80: BELLEY | E80: =VLOOKUP(D80,Ville!$A$2:$I$14,8) -> 0 | F80: =CHOOSE(E80,Ville!#REF!,Ville!#REF!,Ville!#REF!,Ville!#REF!,Ville!#REF!,Ville!#REF!,Ville!#REF!,Ville!#REF!,Ville!#REF!,Ville!#REF!,Ville!#REF!,Ville!#REF!,Ville!#REF!,Ville!#REF!) ->  | H80: =CHOOSE(E80,Ville!#REF!,Ville!#REF!,Ville!#REF!,Ville!#REF!,Ville!#REF!,Ville!#REF!,Ville!#REF!,Ville!#REF!,Ville!#REF!,Ville!#REF!,Ville!#REF!,Ville!#REF!,Ville!#REF!,Ville!#REF!) -> 
C81: 2008-10-08 | D81: Rumilly | E81: =VLOOKUP(D81,Ville!$A$2:$I$14,8) -> 0 | F81: =CHOOSE(E81,Ville!#REF!,Ville!#REF!,Ville!#REF!,Ville!#REF!,Ville!#REF!,Ville!#REF!,Ville!#REF!,Ville!#REF!,Ville!#REF!,Ville!#REF!,Ville!#REF!,Ville!#REF!,Ville!#REF!,Ville!#REF!) ->  | H81: =CHOOSE(E81,Ville!#REF!,Ville!#REF!,Ville!#REF!,Ville!#REF!,Ville!#REF!,Ville!#REF!,Ville!#REF!,Ville!#REF!,Ville!#REF!,Ville!#REF!,Ville!#REF!,Ville!#REF!,Ville!#REF!,Ville!#REF!) ->  | I81: 64 | J81: 14 | L81: =SUM(G81:K81) -> 
C82: 2008-10-16 | D82: CORDESSE | E82: =VLOOKUP(D82,Ville!$A$2:$I$14,8) -> 0 | F82: =CHOOSE(E82,Ville!#REF!,Ville!#REF!,Ville!#REF!,Ville!#REF!,Ville!#REF!,Ville!#REF!,Ville!#REF!,Ville!#REF!,Ville!#REF!,Ville!#REF!,Ville!#REF!,Ville!#REF!,Ville!#REF!,Ville!#REF!) ->  | H82: =CHOOSE(E82,Ville!#REF!,Ville!#REF!,Ville!#REF!,Ville!#REF!,Ville!#REF!,Ville!#REF!,Ville!#REF!,Ville!#REF!,Ville!#REF!,Ville!#REF!,Ville!#REF!,Ville!#REF!,Ville!#REF!,Ville!#REF!) ->  | I82: 58.72
C83: 2008-10-21 | D83: VILLEFRANCHE | E83: =VLOOKUP(D83,Ville!$A$2:$I$14,8) -> 0 | F83: =CHOOSE(E83,Ville!#REF!,Ville!#REF!,Ville!#REF!,Ville!#REF!,Ville!#REF!,Ville!#REF!,Ville!#REF!,Ville!#REF!,Ville!#REF!,Ville!#REF!,Ville!#REF!,Ville!#REF!,Ville!#REF!,Ville!#REF!) ->  | H83: 9.7 | J83: 9.9 | L83: 19.6
C84: 2008-10-22 | D84: LYON | E84: =VLOOKUP(D84,Ville!$A$2:$I$14,8) -> 0 | F84: 300 | H84: =CHOOSE(E84,Ville!#REF!,Ville!#REF!,Ville!#REF!,Ville!#REF!,Ville!#REF!,Ville!#REF!,Ville!#REF!,Ville!#REF!,Ville!#REF!,Ville!#REF!,Ville!#REF!,Ville!#REF!,Ville!#REF!,Ville!#REF!) -> 
C85: 2008-10-23 | D85: MONTLUEL | E85: =VLOOKUP(D85,Ville!$A$2:$I$14,8) -> 0 | F85: 260 | H85: 7.9 | L85: 7.9
D86: INCONNUE | E86: =VLOOKUP(D86,Ville!$A$2:$I$14,8) -> 0 | F86: =CHOOSE(E86,Ville!#REF!,Ville!#REF!,Ville!#REF!,Ville!#REF!,Ville!#REF!,Ville!#REF!,Ville!#REF!,Ville!#REF!,Ville!#REF!,Ville!#REF!,Ville!#REF!,Ville!#REF!,Ville!#REF!,Ville!#REF!) ->  | G86: =IF(F86="","",F86*$F$1) ->  | H86: =CHOOSE(E86,Ville!#REF!,Ville!#REF!,Ville!#REF!,Ville!#REF!,Ville!#REF!,Ville!#REF!,Ville!#REF!,Ville!#REF!,Ville!#REF!,Ville!#REF!,Ville!#REF!,Ville!#REF!,Ville!#REF!,Ville!#REF!) -> 
D87: INCONNUE | E87: =VLOOKUP(D87,Ville!$A$2:$I$14,8) -> 0 | F87: =CHOOSE(E87,Ville!#REF!,Ville!#REF!,Ville!#REF!,Ville!#REF!,Ville!#REF!,Ville!#REF!,Ville!#REF!,Ville!#REF!,Ville!#REF!,Ville!#REF!,Ville!#REF!,Ville!#REF!,Ville!#REF!,Ville!#REF!) ->  | H87: =CHOOSE(E87,Ville!#REF!,Ville!#REF!,Ville!#REF!,Ville!#REF!,Ville!#REF!,Ville!#REF!,Ville!#REF!,Ville!#REF!,Ville!#REF!,Ville!#REF!,Ville!#REF!,Ville!#REF!,Ville!#REF!,Ville!#REF!) -> 
D88: INCONNUE | E88: =VLOOKUP(D88,Ville!$A$2:$I$14,8) -> 0 | F88: =CHOOSE(E88,Ville!#REF!,Ville!#REF!,Ville!#REF!,Ville!#REF!,Ville!#REF!,Ville!#REF!,Ville!#REF!,Ville!#REF!,Ville!#REF!,Ville!#REF!,Ville!#REF!,Ville!#REF!,Ville!#REF!,Ville!#REF!) ->  | H88: =CHOOSE(E88,Ville!#REF!,Ville!#REF!,Ville!#REF!,Ville!#REF!,Ville!#REF!,Ville!#REF!,Ville!#REF!,Ville!#REF!,Ville!#REF!,Ville!#REF!,Ville!#REF!,Ville!#REF!,Ville!#REF!,Ville!#REF!) -> 
D89: INCONNUE | E89: =VLOOKUP(D89,Ville!$A$2:$I$14,8) -> 0 | F89: =CHOOSE(E89,Ville!#REF!,Ville!#REF!,Ville!#REF!,Ville!#REF!,Ville!#REF!,Ville!#REF!,Ville!#REF!,Ville!#REF!,Ville!#REF!,Ville!#REF!,Ville!#REF!,Ville!#REF!,Ville!#REF!,Ville!#REF!) ->  | H89: =CHOOSE(E89,Ville!#REF!,Ville!#REF!,Ville!#REF!,Ville!#REF!,Ville!#REF!,Ville!#REF!,Ville!#REF!,Ville!#REF!,Ville!#REF!,Ville!#REF!,Ville!#REF!,Ville!#REF!,Ville!#REF!,Ville!#REF!) -> 
D90: INCONNUE | E90: =VLOOKUP(D90,Ville!$A$2:$I$14,8) -> 0 | F90: =CHOOSE(E90,Ville!#REF!,Ville!#REF!,Ville!#REF!,Ville!#REF!,Ville!#REF!,Ville!#REF!,Ville!#REF!,Ville!#REF!,Ville!#REF!,Ville!#REF!,Ville!#REF!,Ville!#REF!,Ville!#REF!,Ville!#REF!) ->  | H90: =CHOOSE(E90,Ville!#REF!,Ville!#REF!,Ville!#REF!,Ville!#REF!,Ville!#REF!,Ville!#REF!,Ville!#REF!,Ville!#REF!,Ville!#REF!,Ville!#REF!,Ville!#REF!,Ville!#REF!,Ville!#REF!,Ville!#REF!) -> 
D91: INCONNUE | E91: =VLOOKUP(D91,Ville!$A$2:$I$14,8) -> 0 | F91: =CHOOSE(E91,Ville!#REF!,Ville!#REF!,Ville!#REF!,Ville!#REF!,Ville!#REF!,Ville!#REF!,Ville!#REF!,Ville!#REF!,Ville!#REF!,Ville!#REF!,Ville!#REF!,Ville!#REF!,Ville!#REF!,Ville!#REF!) ->  | H91: =CHOOSE(E91,Ville!#REF!,Ville!#REF!,Ville!#REF!,Ville!#REF!,Ville!#REF!,Ville!#REF!,Ville!#REF!,Ville!#REF!,Ville!#REF!,Ville!#REF!,Ville!#REF!,Ville!#REF!,Ville!#REF!,Ville!#REF!) -> 
D92: INCONNUE | E92: =VLOOKUP(D92,Ville!$A$2:$I$14,8) -> 0 | F92: =CHOOSE(E92,Ville!#REF!,Ville!#REF!,Ville!#REF!,Ville!#REF!,Ville!#REF!,Ville!#REF!,Ville!#REF!,Ville!#REF!,Ville!#REF!,Ville!#REF!,Ville!#REF!,Ville!#REF!,Ville!#REF!,Ville!#REF!) ->  | H92: =CHOOSE(E92,Ville!#REF!,Ville!#REF!,Ville!#REF!,Ville!#REF!,Ville!#REF!,Ville!#REF!,Ville!#REF!,Ville!#REF!,Ville!#REF!,Ville!#REF!,Ville!#REF!,Ville!#REF!,Ville!#REF!,Ville!#REF!) -> 
D93: INCONNUE | E93: =VLOOKUP(D93,Ville!$A$2:$I$14,8) -> 0 | F93: =SUM(F78:F92) ->  | I93: 184.42 | J93: 26.9 | K93: 0 | L93: =SUM(G93:K93) -> 
B94: Novembre | D94: INCONNUE | E94: =VLOOKUP(D94,Ville!$A$2:$I$14,8) -> 0 | F94: =CHOOSE(E94,Ville!#REF!,Ville!#REF!,Ville!#REF!,Ville!#REF!,Ville!#REF!,Ville!#REF!,Ville!#REF!,Ville!#REF!,Ville!#REF!,Ville!#REF!,Ville!#REF!,Ville!#REF!,Ville!#REF!,Ville!#REF!) ->  | H94: =CHOOSE(E94,Ville!#REF!,Ville!#REF!,Ville!#REF!,Ville!#REF!,Ville!#REF!,Ville!#REF!,Ville!#REF!,Ville!#REF!,Ville!#REF!,Ville!#REF!,Ville!#REF!,Ville!#REF!,Ville!#REF!,Ville!#REF!) ->  | L94: =SUM(G94:K94) -> 
D95: INCONNUE | E95: =VLOOKUP(D95,Ville!$A$2:$I$14,8) -> 0 | F95: =CHOOSE(E95,Ville!#REF!,Ville!#REF!,Ville!#REF!,Ville!#REF!,Ville!#REF!,Ville!#REF!,Ville!#REF!,Ville!#REF!,Ville!#REF!,Ville!#REF!,Ville!#REF!,Ville!#REF!,Ville!#REF!,Ville!#REF!) ->  | H95: =CHOOSE(E95,Ville!#REF!,Ville!#REF!,Ville!#REF!,Ville!#REF!,Ville!#REF!,Ville!#REF!,Ville!#REF!,Ville!#REF!,Ville!#REF!,Ville!#REF!,Ville!#REF!,Ville!#REF!,Ville!#REF!,Ville!#REF!) -> 
D96: INCONNUE | E96: =VLOOKUP(D96,Ville!$A$2:$I$14,8) -> 0 | F96: =CHOOSE(E96,Ville!#REF!,Ville!#REF!,Ville!#REF!,Ville!#REF!,Ville!#REF!,Ville!#REF!,Ville!#REF!,Ville!#REF!,Ville!#REF!,Ville!#REF!,Ville!#REF!,Ville!#REF!,Ville!#REF!,Ville!#REF!) ->  | H96: =CHOOSE(E96,Ville!#REF!,Ville!#REF!,Ville!#REF!,Ville!#REF!,Ville!#REF!,Ville!#REF!,Ville!#REF!,Ville!#REF!,Ville!#REF!,Ville!#REF!,Ville!#REF!,Ville!#REF!,Ville!#REF!,Ville!#REF!) -> 
D97: INCONNUE | E97: =VLOOKUP(D97,Ville!$A$2:$I$14,8) -> 0 | F97: =CHOOSE(E97,Ville!#REF!,Ville!#REF!,Ville!#REF!,Ville!#REF!,Ville!#REF!,Ville!#REF!,Ville!#REF!,Ville!#REF!,Ville!#REF!,Ville!#REF!,Ville!#REF!,Ville!#REF!,Ville!#REF!,Ville!#REF!) ->  | H97: =CHOOSE(E97,Ville!#REF!,Ville!#REF!,Ville!#REF!,Ville!#REF!,Ville!#REF!,Ville!#REF!,Ville!#REF!,Ville!#REF!,Ville!#REF!,Ville!#REF!,Ville!#REF!,Ville!#REF!,Ville!#REF!,Ville!#REF!) -> 
D98: INCONNUE | E98: =VLOOKUP(D98,Ville!$A$2:$I$14,8) -> 0 | F98: =CHOOSE(E98,Ville!#REF!,Ville!#REF!,Ville!#REF!,Ville!#REF!,Ville!#REF!,Ville!#REF!,Ville!#REF!,Ville!#REF!,Ville!#REF!,Ville!#REF!,Ville!#REF!,Ville!#REF!,Ville!#REF!,Ville!#REF!) ->  | H98: =CHOOSE(E98,Ville!#REF!,Ville!#REF!,Ville!#REF!,Ville!#REF!,Ville!#REF!,Ville!#REF!,Ville!#REF!,Ville!#REF!,Ville!#REF!,Ville!#REF!,Ville!#REF!,Ville!#REF!,Ville!#REF!,Ville!#REF!) -> 
D99: INCONNUE | E99: =VLOOKUP(D99,Ville!$A$2:$I$14,8) -> 0 | F99: =CHOOSE(E99,Ville!#REF!,Ville!#REF!,Ville!#REF!,Ville!#REF!,Ville!#REF!,Ville!#REF!,Ville!#REF!,Ville!#REF!,Ville!#REF!,Ville!#REF!,Ville!#REF!,Ville!#REF!,Ville!#REF!,Ville!#REF!) ->  | H99: =CHOOSE(E99,Ville!#REF!,Ville!#REF!,Ville!#REF!,Ville!#REF!,Ville!#REF!,Ville!#REF!,Ville!#REF!,Ville!#REF!,Ville!#REF!,Ville!#REF!,Ville!#REF!,Ville!#REF!,Ville!#REF!,Ville!#REF!) -> 
D100: INCONNUE | E100: =VLOOKUP(D100,Ville!$A$2:$I$14,8) -> 0 | F100: =CHOOSE(E100,Ville!#REF!,Ville!#REF!,Ville!#REF!,Ville!#REF!,Ville!#REF!,Ville!#REF!,Ville!#REF!,Ville!#REF!,Ville!#REF!,Ville!#REF!,Ville!#REF!,Ville!#REF!,Ville!#REF!,Ville!#REF!) ->  | H100: =CHOOSE(E100,Ville!#REF!,Ville!#REF!,Ville!#REF!,Ville!#REF!,Ville!#REF!,Ville!#REF!,Ville!#REF!,Ville!#REF!,Ville!#REF!,Ville!#REF!,Ville!#REF!,Ville!#REF!,Ville!#REF!,Ville!#REF!) -> 
D101: INCONNUE | E101: =VLOOKUP(D101,Ville!$A$2:$I$14,8) -> 0 | J101: =SUM(J94:J100) -> 0 | L101: =SUM(L94:L100) -> 
B102: Decembre | D102: INCONNUE | E102: =VLOOKUP(D102,Ville!$A$2:$I$14,8) -> 0 | F102: =CHOOSE(E102,Ville!#REF!,Ville!#REF!,Ville!#REF!,Ville!#REF!,Ville!#REF!,Ville!#REF!,Ville!#REF!,Ville!#REF!,Ville!#REF!,Ville!#REF!,Ville!#REF!,Ville!#REF!,Ville!#REF!,Ville!#REF!) ->  | H102: =CHOOSE(E102,Ville!#REF!,Ville!#REF!,Ville!#REF!,Ville!#REF!,Ville!#REF!,Ville!#REF!,Ville!#REF!,Ville!#REF!,Ville!#REF!,Ville!#REF!,Ville!#REF!,Ville!#REF!,Ville!#REF!,Ville!#REF!) ->  | L102: =SUM(G102:K102) -> 
D103: INCONNUE | E103: =VLOOKUP(D103,Ville!$A$2:$I$14,8) -> 0 | F103: =CHOOSE(E103,Ville!#REF!,Ville!#REF!,Ville!#REF!,Ville!#REF!,Ville!#REF!,Ville!#REF!,Ville!#REF!,Ville!#REF!,Ville!#REF!,Ville!#REF!,Ville!#REF!,Ville!#REF!,Ville!#REF!,Ville!#REF!) ->  | H103: =CHOOSE(E103,Ville!#REF!,Ville!#REF!,Ville!#REF!,Ville!#REF!,Ville!#REF!,Ville!#REF!,Ville!#REF!,Ville!#REF!,Ville!#REF!,Ville!#REF!,Ville!#REF!,Ville!#REF!,Ville!#REF!,Ville!#REF!) -> 
D104: INCONNUE | E104: =VLOOKUP(D104,Ville!$A$2:$I$14,8) -> 0 | F104: =CHOOSE(E104,Ville!#REF!,Ville!#REF!,Ville!#REF!,Ville!#REF!,Ville!#REF!,Ville!#REF!,Ville!#REF!,Ville!#REF!,Ville!#REF!,Ville!#REF!,Ville!#REF!,Ville!#REF!,Ville!#REF!,Ville!#REF!) ->  | H104: =CHOOSE(E104,Ville!#REF!,Ville!#REF!,Ville!#REF!,Ville!#REF!,Ville!#REF!,Ville!#REF!,Ville!#REF!,Ville!#REF!,Ville!#REF!,Ville!#REF!,Ville!#REF!,Ville!#REF!,Ville!#REF!,Ville!#REF!) -> 
D105: INCONNUE | E105: =VLOOKUP(D105,Ville!$A$2:$I$14,8) -> 0 | F105: =CHOOSE(E105,Ville!#REF!,Ville!#REF!,Ville!#REF!,Ville!#REF!,Ville!#REF!,Ville!#REF!,Ville!#REF!,Ville!#REF!,Ville!#REF!,Ville!#REF!,Ville!#REF!,Ville!#REF!,Ville!#REF!,Ville!#REF!) ->  | H105: =CHOOSE(E105,Ville!#REF!,Ville!#REF!,Ville!#REF!,Ville!#REF!,Ville!#REF!,Ville!#REF!,Ville!#REF!,Ville!#REF!,Ville!#REF!,Ville!#REF!,Ville!#REF!,Ville!#REF!,Ville!#REF!,Ville!#REF!) -> 
D106: INCONNUE | E106: =VLOOKUP(D106,Ville!$A$2:$I$14,8) -> 0 | F106: =CHOOSE(E106,Ville!#REF!,Ville!#REF!,Ville!#REF!,Ville!#REF!,Ville!#REF!,Ville!#REF!,Ville!#REF!,Ville!#REF!,Ville!#REF!,Ville!#REF!,Ville!#REF!,Ville!#REF!,Ville!#REF!,Ville!#REF!) ->  | H106: =CHOOSE(E106,Ville!#REF!,Ville!#REF!,Ville!#REF!,Ville!#REF!,Ville!#REF!,Ville!#REF!,Ville!#REF!,Ville!#REF!,Ville!#REF!,Ville!#REF!,Ville!#REF!,Ville!#REF!,Ville!#REF!,Ville!#REF!) -> 
D107: INCONNUE | E107: =VLOOKUP(D107,Ville!$A$2:$I$14,8) -> 0 | F107: =CHOOSE(E107,Ville!#REF!,Ville!#REF!,Ville!#REF!,Ville!#REF!,Ville!#REF!,Ville!#REF!,Ville!#REF!,Ville!#REF!,Ville!#REF!,Ville!#REF!,Ville!#REF!,Ville!#REF!,Ville!#REF!,Ville!#REF!) ->  | H107: =CHOOSE(E107,Ville!#REF!,Ville!#REF!,Ville!#REF!,Ville!#REF!,Ville!#REF!,Ville!#REF!,Ville!#REF!,Ville!#REF!,Ville!#REF!,Ville!#REF!,Ville!#REF!,Ville!#REF!,Ville!#REF!,Ville!#REF!) -> 
D108: INCONNUE | E108: =VLOOKUP(D108,Ville!$A$2:$I$14,8) -> 0 | F108: =CHOOSE(E108,Ville!#REF!,Ville!#REF!,Ville!#REF!,Ville!#REF!,Ville!#REF!,Ville!#REF!,Ville!#REF!,Ville!#REF!,Ville!#REF!,Ville!#REF!,Ville!#REF!,Ville!#REF!,Ville!#REF!,Ville!#REF!) ->  | H108: =CHOOSE(E108,Ville!#REF!,Ville!#REF!,Ville!#REF!,Ville!#REF!,Ville!#REF!,Ville!#REF!,Ville!#REF!,Ville!#REF!,Ville!#REF!,Ville!#REF!,Ville!#REF!,Ville!#REF!,Ville!#REF!,Ville!#REF!) -> 
E109: =VLOOKUP(D109,Ville!$A$2:$I$14,8) ->  | F109: =SUM(F102:F108) ->  | I109: 0 | J109: 0 | K109: 0 | L109: =SUM(L102:L108) -> 
D110: BESANCON
D111: CHAUFFAILLES
D112: CORDESSE
D113: ECQUEVILLY
D114: FINS LES MONTBARD
D115: INCONNUE
D116: MEYTHET
D117: MONTREUIL
D118: POITIERS
D119: POUILLYEN AUXOIS
D120: RUMILLY
D121: SENECE LES MACONS
D122: VILLEFRANCHE
D125: KM | F125: =SUM(F109+F101+F93+F77+F69+F59+F48+F40+F31+F23+F16+F9) -> 

Sheet Calendrier (2) (hidden)
E1: Année : | F1: 2008
D2: jour | E2: fete
D3: 1900-01-01 | E3: Jour de l'An | F3: NOEL
D4: 1900-01-02 | E4: St Basile | F4: ERD
D5: 1900-01-03 | E5: Ste Geneviève
D6: 1900-01-04 | E6: St Odilon | F6: RTY
D7: 1900-01-05 | E7: St Edouard | F7: AZE
D8: 1900-01-06 | E8: Ste Melaine
D9: 1900-01-07 | E9: St Raymond
D10: 1900-01-08 | E10: St Lucien
D11: 1900-01-09 | E11: Ste Alix
D12: 1900-01-10 | E12: St Guillaume
D13: 1900-01-11 | E13: St Paulin
D14: 1900-01-12 | E14: Ste Tatiana
D15: 1900-01-13 | E15: Ste Yvette
D16: 1900-01-14 | E16: Ste Nina
D17: 1900-01-15 | E17: St Rémi
D18: 1900-01-16 | E18: St Marcel
D19: 1900-01-17 | E19: Ste Roseline
D20: 1900-01-18 | E20: Ste Prisca
D21: 1900-01-19 | E21: St Marius
D22: 1900-01-20 | E22: St Sébastien
D23: 1900-01-21 | E23: Ste Agnès
D24: 1900-01-22 | E24: St Vincent
D25: 1900-01-23 | E25: St Barnard
D26: 1900-01-24 | E26: St François de Sales
D27: 1900-01-25 | E27: Convers. de St Paul
D28: 1900-01-26 | E28: Ste Paule
D29: 1900-01-27 | E29: Ste Angel
D30: 1900-01-28 | E30: St Thomas d'Aquin
D31: 1900-01-29 | E31: St Gildas
D32: 1900-01-30 | E32: Ste Martine
D33: 1900-01-31 | E33: Ste Marcelle
D34: 1900-02-01 | E34: Ste Ella
D35: 1900-02-02 | E35: Prés. du Seigneur
D36: 1900-02-03 | E36: St Blaise
D37: 1900-02-04 | E37: Ste Véronique
D38: 1900-02-05 | E38: Ste Agathe
D39: 1900-02-06 | E39: St Gaston
D40: 1900-02-07 | E40: Ste Eugénie
D41: 1900-02-08 | E41: Ste Jacqueline
D42: 1900-02-09 | E42: Ste Apolline
D43: 1900-02-10 | E43: St Arnaud
D44: 1900-02-11 | E44: N.-D. de Lourdes
D45: 1900-02-12 | E45: St Félix
D46: 1900-02-13 | E46: Ste Béatrice
D47: 1900-02-14 | E47: St Valentin
D48: 1900-02-15 | E48: St Claude
D49: 1900-02-16 | E49: Ste Julienne
D50: 1900-02-17 | E50: St Alexis | F50: REMY
D51: 1900-02-18 | E51: Ste Bernadette
D52: 1900-02-19 | E52: St Gabin
D53: 1900-02-20 | E53: Ste Aimée
D54: 1900-02-21 | E54: St P. Damien
D55: 1900-02-22 | E55: Ste Isabelle
D56: 1900-02-23 | E56: St Lazare
D57: 1900-02-24 | E57: St Modeste
D58: 1900-02-25 | E58: St Roméo
D59: 1900-02-26 | E59: St Nestor
D60: 1900-02-27 | E60: St Honorine
D61: 1900-02-28 | E61: St Romain
D62: 60 | E62: St Auguste
D63: 1900-03-01 | E63: St Aubin
D64: 1900-03-02 | E64: St Charles le Bon
D65: 1900-03-03 | E65: St Gwénolé
D66: 1900-03-04 | E66: St Casimir
D67: 1900-03-05 | E67: Ste Olivia
D68: 1900-03-06 | E68: Ste Colette
D69: 1900-03-07 | E69: Ste Félicité
D70: 1900-03-08 | E70: St Jean-de-Dieu
D71: 1900-03-09 | E71: Ste Françoise R.
D72: 1900-03-10 | E72: St Vivien
D73: 1900-03-11 | E73: Ste Rosine
D74: 1900-03-12 | E74: Ste Justine
D75: 1900-03-13 | E75: St Rodrigue
D76: 1900-03-14 | E76: Ste Mathilde
D77: 1900-03-15 | E77: Ste Louise M. | F77: JEAN CLAUDE
D78: 1900-03-16 | E78: Ste Bénédicte
D79: 1900-03-17 | E79: St Patrice
D80: 1900-03-18 | E80: St Cyrille
D81: 1900-03-19 | E81: St Joseph
D82: 1900-03-20 | E82: Printemps | F82: ALEXANDRE
D83: 1900-03-21 | E83: Ste Clémence | F83: PAPA
D84: 1900-03-22 | E84: Ste Léa
D85: 1900-03-23 | E85: St Victorien
D86: 1900-03-24 | E86: Ste Catherine
D87: 1900-03-25 | E87: Annonciation
D88: 1900-03-26 | E88: Ste Larissa
D89: 1900-03-27 | E89: St Habib
D90: 1900-03-28 | E90: St Gontran
D91: 1900-03-29 | E91: Ste Gwladys
D92: 1900-03-30 | E92: St Amédée
D93: 1900-03-31 | E93: St Benjamin
D94: 1900-04-01 | E94: St Hugues
D95: 1900-04-02 | E95: Ste Sandrine
D96: 1900-04-03 | E96: St Richard
D97: 1900-04-04 | E97: St Isidore
D98: 1900-04-05 | E98: Ste Irène
D99: 1900-04-06 | E99: St Marcellin
D100: 1900-04-07 | E100: St J.-B. de Salle
D101: 1900-04-08 | E101: Ste Julie
D102: 1900-04-09 | E102: St Gautier
D103: 1900-04-10 | E103: St Fulbert
D104: 1900-04-11 | E104: St Stanislas
D105: 1900-04-12 | E105: St Jules
D106: 1900-04-13 | E106: Ste Ida
D107: 1900-04-14 | E107: St Maxime
D108: 1900-04-15 | E108: St Paterne
D109: 1900-04-16 | E109: St Benoît-Joseph
D110: 1900-04-17 | E110: St Et. Harding
D111: 1900-04-18 | E111: St Parfait
D112: 1900-04-19 | E112: Ste Emma
D113: 1900-04-20 | E113: Ste Odette
D114: 1900-04-21 | E114: St Anselme
D115: 1900-04-22 | E115: St Alexandre
D116: 1900-04-23 | E116: St Georges
D117: 1900-04-24 | E117: St Fidèle
D118: 1900-04-25 | E118: Souvenir Déportés
D119: 1900-04-26 | E119: Ste Alida
D120: 1900-04-27 | E120: Ste Zita
D121: 1900-04-28 | E121: Ste Valérie
D122: 1900-04-29 | E122: Ste C. de Sienne
D123: 1900-04-30 | E123: St Robert
D124: 1900-05-01 | E124: F. du travail
D125: 1900-05-02 | E125: St Boris
D126: 1900-05-03 | E126: Sts Philippe-Jacques
D127: 1900-05-04 | E127: St Sylvain
D128: 1900-05-05 | E128: Ste Judith
D129: 1900-05-06 | E129: Ste Prudence
D130: 1900-05-07 | E130: Ste Gisèle
D131: 1900-05-08 | E131: Annivers. 1945
D132: 1900-05-09 | E132: St Pacôme
D133: 1900-05-10 | E133: Ste Solange
D134: 1900-05-11 | E134: Ste Estelle
D135: 1900-05-12 | E135: St Achille
D136: 1900-05-13 | E136: Ste Rolande
D137: 1900-05-14 | E137: St Matthias
D138: 1900-05-15 | E138: Ste Denise
D139: 1900-05-16 | E139: St Honoré | F139: MARTINE
D140: 1900-05-17 | E140: St Pascal
D141: 1900-05-18 | E141: St Eric
D142: 1900-05-19 | E142: St Yves
D143: 1900-05-20 | E143: St Bernardin
D144: 1900-05-21 | E144: St Constantin
D145: 1900-05-22 | E145: St Emile | F145: SANDRA
D146: 1900-05-23 | E146: St Didier
D147: 1900-05-24 | E147: St Donatien
D148: 1900-05-25 | E148: Ste Sophie
D149: 1900-05-26 | E149: St Bérenger
D150: 1900-05-27 | E150: St Augustin de C.
D151: 1900-05-28 | E151: St Germain
D152: 1900-05-29 | E152: St Aymar
D153: 1900-05-30 | E153: St Ferdinand
D154: 1900-05-31 | E154: V. de la Ste Vierge
D155: 1900-06-01 | E155: St Justin
D156: 1900-06-02 | E156: Ste Blandine
D157: 1900-06-03 | E157: St Kévin
D158: 1900-06-04 | E158: Ste Clothilde
D159: 1900-06-05 | E159: St Igor
D160: 1900-06-06 | E160: St Norbert
D161: 1900-06-07 | E161: St Gilbert
D162: 1900-06-08 | E162: St Médard
D163: 1900-06-09 | E163: Ste Diane
D164: 1900-06-10 | E164: St Landry
D165: 1900-06-11 | E165: St Barnabé
D166: 1900-06-12 | E166: St Guy
D167: 1900-06-13 | E167: St A. de Padou
D168: 1900-06-14 | E168: St Elisée
D169: 1900-06-15 | E169: Ste Germaine
D170: 1900-06-16 | E170: St J.-F. Régis
D171: 1900-06-17 | E171: St Hervé
D172: 1900-06-18 | E172: St Léonce
D173: 1900-06-19 | E173: St Romuald
D174: 1900-06-20 | E174: St Silvère
D175: 1900-06-21 | E175: F. Dieu
D176: 1900-06-22 | E176: St Alban
D177: 1900-06-23 | E177: Ste Audrey
D178: 1900-06-24 | E178: St Jean-Baptiste
D179: 1900-06-25 | E179: St Salomon
D180: 1900-06-26 | E180: St Anthelme
D181: 1900-06-27 | E181: St Fernand
D182: 1900-06-28 | E182: St Irénée | F182: MARIAGE
D183: 1900-06-29 | E183: St Pierre-Paul
D184: 1900-06-30 | E184: St Martial
D185: 1900-07-01 | E185: St Thierry
D186: 1900-07-02 | E186: St Martinien
D187: 1900-07-03 | E187: St Thomas
D188: 1900-07-04 | E188: St Florent
D189: 1900-07-05 | E189: St Antoine
D190: 1900-07-06 | E190: Ste Mariette
D191: 1900-07-07 | E191: St Raoul
D192: 1900-07-08 | E192: St Thibaut
D193: 1900-07-09 | E193: Ste Amandine
D194: 1900-07-10 | E194: St Ulrich | F194: CLAUDETTE
D195: 1900-07-11 | E195: St Benoît
D196: 1900-07-12 | E196: St Olivier
D197: 1900-07-13 | E197: Sts Henri et Joël
D198: 1900-07-14 | E198: Fête nationale
D199: 1900-07-15 | E199: St Donald
D200: 1900-07-16 | E200: N.D. Mont Carmel
... 407 more rows

Sheet Ville
A2: LIEU | B2: KM | C2: Temps | E2: Adresse | F2: TEL | G2: NORD | H2: EST
A3: Alsace | B3: 390 | C3: 03:00:00 | D3: ca | E3: 21 rue d'alsace 69100 Villeurbanne
A4: Audibert | B4: 416 | C4: 03:10:00 | D4: ca | E4: 61 RUE AUDIBERT ET LAVIROTTE 69008 LYON
A5: Auxerre | B5: 528 | C5: 04:00:00 | D5: sp | E5: ZI LA PLAINE DES ISLES 89000 AUXERRE | F5: 386462916
A6: Avallon | B6: 440 | C6: 03:20:00 | D6: ca | E6: Villebenoit SUD - ZA la grande corvée 89200 AVALLON | F6: 386341292
A7: Belley | B7: 330 | C7: 03:40:00 | D7: ca | E7: Z.A. DE L'OUSSON 01300 BELLEY
A8: Besançon iax | B8: 132 | C8: 01:50:00 | D8: ca | E8: Besançon PL - Rue Dennis Gabor 25000 Besançon | F8: 381419898
A9: Besançon sp | B9: 152 | C9: 01:50:00 | D9: sp | E9: Z.A.C DE VALENTIN - 25000 - BESANÇON
A10: Bourgoin Jallieu | B10: 438 | C10: 03:30:00 | D10: ca | E10: MONSIEUR GAETAN BANCHERI 38300 - BOURGOIN JALLIEU
A11: Champagnole | B11: 0 | C11: 00:00:00 | D11: p
A12: Chatillon sur seine | B12: 410 | C12: 04:00:00 | D12: ca | E12: ZONE ACTIPOLE 21400 - CHATILLON SUR SEINE
A13: Chauffailles | B13: 388 | C13: 04:10:00 | D13: ca
A14: Colmar | B14: 468 | C14: 04:50:00 | D14: sp | E14: 1 RUE DENIS PAPIN - 68000 - COLMAR
A15: Cordesse | B15: 340 | C15: 03:10:00 | D15: ca | E15: Sarl NAUDIN et Fils - Champ Rousseaux - 71540 Cordesse | F15: 385821355
A16: Ecquevilly | B16: 924 | C16: 07:50:00 | D16: sp
A17: Ennery | B17: 752 | C17: 06:00:00 | D17: sp | E17: ZONE INDUSTRIELLE LES JONQUIERES - 57365 - ENNERY
A18: Fains les Montbard | B18: 366 | C18: 03:30:00 | D18: sp | E18: Z.I. 21500 - FAIN LES MONTBARD | F18: 380891076
A19: La Soie | B19: 390 | C19: 03:00:00 | D19: ca | E19: 88 rue de la poudrette 69100 Vaux en velin | F19: 469668331
A20: Le pontet | B20: 860 | C20: 09:00:00 | D20: sp | E20: 421 Rue Benjamin Franklin 84130 Le PONTET | G20: 43° 58' 43,56" | H20: 4° 52' 08,38"
A21: Les Pins | B21: 390 | C21: 03:00:00 | D21: ca | E21: 98 rue Lacassagne 69003 LYON
A22: Ludres | B22: 270 | C22: 03:30:00 | D22: sp
A23: Lyon | B23: 400 | C23: 03:10:00 | D23: ca
A24: Marseilles | B24: 1034 | C24: 10:00:00 | D24: ca | E24: RTM 3 rue Paul langevin 13013 MARSEILLES 13 | F24: 04 91 10 52 04 | G24: 43° 20' 18,76" | H24: 5° 25' 51,49"
A25: Meythet | B25: 298 | C25: 04:20:00 | D25: ca | E25: 30 Route de FRANGY 74 MEYTHET
A26: Montreuil | B26: 854 | C26: 07:30:00 | D26: reu | E26: 102 rue Etienne Marcel 93100 MONTREUIL
A27: Poitiers | B27: 1266 | C27: 10:20:00 | D27: sp
A28: Pouilly en Auxois | B28: 314 | C28: 02:10:00 | D28: ca
A29: Rambervillier | B29: 448 | C29: 05:00:00 | D29: ca | E29: AUBRY LOGISTIQUE ZI N°4 88700 RAMBERVILLERS | F29: 329651559
A30: Rumilly | B30: 294 | C30: 03:30:00 | D30: ca | E30: Route d'AIX LES BAINS 74 RUMILLY
A31: Saint Nabord | B31: 384 | C31: 04:00:00 | D31: sp
A32: Sennece les Macons | B32: 298 | C32: 02:00:00 | D32: ca
A33: Seymoutier | B33: 390 | C33: 02:50:00 | D33: sp | E33: ROUTE DE SEMOUTIERS - 52000 - SEMOUTIERS MONTSAON | F33: 325320159
A34: Strasbourg | B34: 628 | C34: 05:40:00 | D34: ca | E34: 14, RUE DE LA GARE AUX MARCHANDISES - 67200 - STRASBOURG
A35: Terville | B35: 776 | C35: 06:10:00 | D35: ca | E35: 201 ROUTE DE VERDUN - 57180 - TERVILLE
A36: Thann | B36: 402 | C36: 04:30:00 | D36: ca | E36: SMVI 23 Rue Guy de Place 68800 Vieux Thann | F36: 389386946
A37: Vaise | B37: 410 | C37: 03:10:00 | D37: ca | E37: 16/26 rue saint Simon 69009 LYON | F37: 04 78 71 81 77
A38: Vaucouleur | B38: 598 | C38: 05:00:00 | D38: ca | E38: MONSIEUR FRANCIS BOULANGER - 55140 - VAUCOULEURS | F38: 329864791
A39: Verdun | B39: 746 | C39: 07:00:00 | D39: ca | E39: MONSIEUR JP RICHARD - 55100 - VERDUN
A40: Villefranche | B40: 390 | C40: 03:00:00 | D40: sp | E40: 544 RUE CHARLES SEVE - 69400 - VILLEFRANCHE SUR SAONE

Sheet Synthèse
A1: Année | B1: Mois | C1: Ville | D1: Nom
A2: 2012 | B2: Janvier | D2: GERMAIN
A3: Année | B3: Mois | C3: Ville | D3: Nom
A4: =A2-1 -> 2011 | B4: =IF(B2="","",B2) -> Janvier | C4: =IF(C2="","",C2) ->  | D4: =IF(D2="","",D2) -> GERMAIN
C5: =A2 -> 2012 | D5: =C5-1 -> 2011
A6: POINTAGE | B6: Présent au centre principal | C6: =DCOUNTA('Suiv Contr '!$G$12:$AG$721,'Suiv Contr '!$Q$12,'Suiv Contr '!BD54:BH55) -> 18 | D6: =DCOUNTA('Suiv Contr '!$G$12:$AG$721,'Suiv Contr '!$Q$12,'Suiv Contr '!BD73:BH74) -> 15
B7: Centre auxiliaire extérieur | C7: =DCOUNTA('Suiv Contr '!$G$12:$AG$721,'Suiv Contr '!$Q$12,'Suiv Contr '!BD58:BH59) -> 4 | D7: =DCOUNTA('Suiv Contr '!$G$12:$AG$721,'Suiv Contr '!$Q$12,'Suiv Contr '!BD77:BH78) -> 4
B8: Centre principal extérieur | C8: =DCOUNTA('Suiv Contr '!$G$12:$AG$721,'Suiv Contr '!$Q$12,'Suiv Contr '!BD60:BH61) -> 0 | D8: =DCOUNTA('Suiv Contr '!$G$12:$AG$721,'Suiv Contr '!$Q$12,'Suiv Contr '!BD79:BH80) -> 1
B9: Renfort Extérieur | C9: =DCOUNTA('Suiv Contr '!$G$12:$AG$721,'Suiv Contr '!$Q$12,'Suiv Contr '!BD56:BH57) -> 0 | D9: =DCOUNTA('Suiv Contr '!$G$12:$AG$721,'Suiv Contr '!$Q$12,'Suiv Contr '!BD75:BH76) -> 0
B10: Déplacement Réunion | C10: =DCOUNTA('Suiv Contr '!$G$12:$AG$721,'Suiv Contr '!$Q$12,'Suiv Contr '!BD66:BH67) -> 0 | D10: =DCOUNTA('Suiv Contr '!$G$12:$AG$721,'Suiv Contr '!$Q$12,'Suiv Contr '!BD85:BH86) -> 0
B11: Formation | C11: =DCOUNTA('Suiv Contr '!$G$12:$AG$721,'Suiv Contr '!$Q$12,'Suiv Contr '!BD62:BH63) -> 0 | D11: =DCOUNTA('Suiv Contr '!$G$12:$AG$721,'Suiv Contr '!$Q$12,'Suiv Contr '!BD81:BH82) -> 0
B12: Maladie | C12: =DCOUNTA('Suiv Contr '!$G$12:$AG$721,'Suiv Contr '!$Q$12,'Suiv Contr '!BD64:BH65) -> 0 | D12: =DCOUNTA('Suiv Contr '!$G$12:$AG$721,'Suiv Contr '!$Q$12,'Suiv Contr '!BD83:BH84) -> 0
B13: Vacances | C13: =DCOUNTA('Suiv Contr '!$G$12:$AG$721,'Suiv Contr '!$Q$12,'Suiv Contr '!BD68:BH69) -> 0 | D13: =DCOUNTA('Suiv Contr '!$G$12:$AG$721,'Suiv Contr '!$Q$12,'Suiv Contr '!BD87:BH88) -> 0
B14: Heures Supplémentaires | C14: =DSUM('Suiv Contr '!$G$12:$AG$721,'Suiv Contr '!S12,A1:D2) -> 0.5277777778 | D14: =DSUM('Suiv Contr '!$G$12:$AG$721,'Suiv Contr '!S12,'Suiv Contr '!BD73:BG74) -> 0.6041666667
B15: Heures Récupérées | C15: =DSUM('Suiv Contr '!$G$12:$AG$721,'Suiv Contr '!T12,A1:D2) -> 0.1458333333 | D15: =DSUM('Suiv Contr '!$G$12:$AG$721,'Suiv Contr '!T12,'Suiv Contr '!BD73:BG74) -> 0
A16: PRODUCTION | B16: TM | C16: =DSUM('Suiv Contr '!$G$12:$AG$721,'Suiv Contr '!U12,Synthèse!A1:D2) -> 86 | D16: =DSUM('Suiv Contr '!$G$12:$AG$721,'Suiv Contr '!U12,'Suiv Contr '!BD73:BG74) -> 89
B17: TCP | C17: =DSUM('Suiv Contr '!$G$12:$AG$721,'Suiv Contr '!V12,A1:D2) -> 23 | D17: =DSUM('Suiv Contr '!$G$12:$AG$721,'Suiv Contr '!V12,'Suiv Contr '!BD73:BG74) -> 28
B18: TMD | C18: =DSUM('Suiv Contr '!$G$12:$AG$721,'Suiv Contr '!W12,$A$1:$D$2) -> 4 | D18: =DSUM('Suiv Contr '!$G$12:$AG$721,'Suiv Contr '!W12,'Suiv Contr '!BD73:BG74) -> 2
B19: DEP | C19: =DSUM('Suiv Contr '!$G$12:$AG$721,'Suiv Contr '!X12,$A$1:$D$2) -> 2 | D19: =DSUM('Suiv Contr '!$G$12:$AG$721,'Suiv Contr '!X12,'Suiv Contr '!BD73:BG74) -> 1
B20: VTP | C20: =SUM(C16:C19) -> 115 | D20: =SUM(D16:D19) -> 120
B21: CV | C21: =DSUM('Suiv Contr '!$G$12:$AG$721,'Suiv Contr '!Y12,$A$1:$D$2) -> 7 | D21: =DSUM('Suiv Contr '!$G$12:$AG$721,'Suiv Contr '!Y12,'Suiv Contr '!BD73:BG74) -> 11
B22: VTP + CV | C22: =SUM(C20:C21) -> 122 | D22: =SUM(D20:D21) -> 131
B23: R | C23: =DSUM('Suiv Contr '!$G$12:$AG$721,'Suiv Contr '!AA12,$A$1:$D$2) -> 5 | D23: =DSUM('Suiv Contr '!$G$12:$AG$721,'Suiv Contr '!AA12,'Suiv Contr '!BD73:BG74) -> 3
B24: S | C24: =DSUM('Suiv Contr '!$G$12:$AG$721,'Suiv Contr '!Z12,$A$1:$D$2) -> 5 | D24: =DSUM('Suiv Contr '!$G$12:$AG$721,'Suiv Contr '!Z12,'Suiv Contr '!BD73:BG74) -> 7
B25: X | C25: =DSUM('Suiv Contr '!$G$12:$AG$721,'Suiv Contr '!AB12,$A$1:$D$2) -> 1 | D25: =DSUM('Suiv Contr '!$G$12:$AG$721,'Suiv Contr '!AB12,'Suiv Contr '!BD73:BG74) -> 0
B26: % REFUS | C26: =(C23+C24+C25)/C20 -> 0.09565217391 | D26: =(D23+D24+D25)/D20 -> 0.08333333333
A27: NOTE DES FRAIS | B27: Kms | C27: =DSUM('Suiv Contr '!$G$12:$AG$721,'Suiv Contr '!AE12,$A$1:$D$2) -> 1130 | D27: =DSUM('Suiv Contr '!$G$12:$AG$721,'Suiv Contr '!AE12,'Suiv Contr '!BD73:BG74) -> 1282
B28: Gasoil | C28: =DSUM('Suiv Contr '!$G$12:$AV$1003,'Suiv Contr '!AH$12,$A$1:$D$2) -> 0 | D28: =DSUM('Suiv Contr '!$G$12:$AV$1003,'Suiv Contr '!AH$12,$A$3:$D$4) -> 0
B29: Péage | C29: =DSUM('Suiv Contr '!$G$12:$AV$1003,'Suiv Contr '!AI$12,$A$1:$D$2) -> 0 | D29: =DSUM('Suiv Contr '!$G$12:$AV$1003,'Suiv Contr '!AI$12,$A$3:$D$4) -> 0
B30: Parking | C30: =DSUM('Suiv Contr '!$G$12:$AV$1003,'Suiv Contr '!AJ$12,$A$1:$D$2) -> 0 | D30: =DSUM('Suiv Contr '!$G$12:$AV$1003,'Suiv Contr '!AJ$12,$A$3:$D$4) -> 0
B31: Repas midi | C31: =DSUM('Suiv Contr '!$G$12:$AV$1003,'Suiv Contr '!AK$12,$A$1:$D$2) -> 0 | D31: =DSUM('Suiv Contr '!$G$12:$AV$1003,'Suiv Contr '!AK$12,$A$3:$D$4) -> 0
B32: Repas soir | C32: =DSUM('Suiv Contr '!$G$12:$AV$1003,'Suiv Contr '!AL$12,$A$1:$D$2) -> 0 | D32: =DSUM('Suiv Contr '!$G$12:$AV$1003,'Suiv Contr '!AL$12,$A$3:$D$4) -> 0
B33: Hôtel | C33: =DSUM('Suiv Contr '!$G$12:$AV$1003,'Suiv Contr '!AM$12,$A$1:$D$2) -> 0 | D33: =DSUM('Suiv Contr '!$G$12:$AV$1003,'Suiv Contr '!AM$12,$A$3:$D$4) -> 0
B34: Fourniture bureau | C34: =DSUM('Suiv Contr '!$G$12:$AV$1003,'Suiv Contr '!AN$12,$A$1:$D$2) -> 0 | D34: =DSUM('Suiv Contr '!$G$12:$AV$1003,'Suiv Contr '!AN$12,$A$3:$D$4) -> 0
B35: Téléphone | C35: =DSUM('Suiv Contr '!$G$12:$AV$1003,'Suiv Contr '!AO$12,$A$1:$D$2) -> 0 | D35: =DSUM('Suiv Contr '!$G$12:$AV$1003,'Suiv Contr '!AO$12,$A$3:$D$4) -> 0
B36: Affranchissement | C36: =DSUM('Suiv Contr '!$G$12:$AV$1003,'Suiv Contr '!AP$12,$A$1:$D$2) -> 0 | D36: =DSUM('Suiv Contr '!$G$12:$AV$1003,'Suiv Contr '!AP$12,$A$3:$D$4) -> 0
B37: Photocopie | C37: =DSUM('Suiv Contr '!$G$12:$AV$1003,'Suiv Contr '!AQ$12,$A$1:$D$2) -> 0 | D37: =DSUM('Suiv Contr '!$G$12:$AV$1003,'Suiv Contr '!AQ$12,$A$3:$D$4) -> 0
B38: Entretien Véhicule | C38: =DSUM('Suiv Contr '!$G$12:$AV$1003,'Suiv Contr '!AR$12,$A$1:$D$2) -> 0 | D38: =DSUM('Suiv Contr '!$G$12:$AV$1003,'Suiv Contr '!AR$12,$A$3:$D$4) -> 0
B39: Divers | C39: =DSUM('Suiv Contr '!$G$12:$AV$1003,'Suiv Contr '!AS$12,$A$1:$D$2) -> 0 | D39: =DSUM('Suiv Contr '!$G$12:$AV$1003,'Suiv Contr '!AS$12,$A$3:$D$4) -> 0
B40: Total | C40: =SUM(C28:C39) -> 0 | D40: =SUM(D28:D39) -> 0

Sheet heure recup
A1: HEURES DE RECUPERATION
A3: NOM Prénom : GERMAIN ALAIN
A4: Centre : | B4: CHAMPAGNOLE
A5: Date : | B5: 01/03/1 au
A7: Relevé des heures de récupération à retourner tous les mois par fax au 01 55 86 17 22 à l'attention du planning après validation du Responsable de Centre et du Contrôleur
A9: Attention pour les récupérations n'oubliez pas de retirer 1h de franchise, exemple: 4h00 aller retour ça fait 3h de récupération
A12: Date | B12: Déplacements realisés | C12: Heures à récupérées | D12: Heures récupérées | E12: raisons | G12: observations
E13: contrôle | F13: autre (préciser)
A14: 2013-12-20 | B14: Cordesse | C14: 03:10:00
A15: 2011-07-06 | B15: Vaise | C15: 03:00:00
A16: 2011-07-11 | B16: Besançon sp | C16: 01:50:00
A17: 2011-07-13 | B17: Villefranche | C17: 03:00:00
A18: 2011-07-27 | B18: Sennece les macons | C18: 02:00:00
A19: 2011-08-01 | B19: Meythet | C19: 04:20:00
A20: 2011-08-08 | B20: besançon iax | C20: 01:20:00
A21: 2011-08-10 | B21: Meythet | C21: 04:20:00
A22: 2011-08-22 | B22: Meythet | C22: 04:20:00
A23: 2011-08-24 | B23: Villefranche | C23: 03:00:00
A24: 2011-08-31 | B24: Villefranche | C24: 03:00:00
A25: 2011-09-26 | B25: Meythet | C25: 04:20:00
A26: 2011-10-03 | B26: Meythet | C26: 04:20:00
A27: 2011-10-12 | B27: Vieux Thann | C27: 04:00:00
A28: 2011-10-17 | B28: Villefranche | C28: 03:00:00
A29: 2011-10-24 | B29: Meythet | C29: 04:20:00
A30: 2011-11-07 | B30: Fains les montbard | C30: 03:30:00
A31: 2011-11-09 | B31: Fains les montbard | C31: 03:30:00
A32: 2011-11-14 | B32: Meythet | C32: 04:20:00
C49: =SUM(C14:C48) -> 2.694444444 | D49: =SUM(D14:D47) -> 0
A51: Heures restantes à récupérer: | C51: =C49-D49 -> 2.694444444
A57: HEURES DE RECUPERATION (2/2)
A60: NOM Prénom : GERMAIN ALAIN
A61: Centre : | B61: CHAMPAGNOLE
A62: Mois :
A64: Relevé des heures de récupération à retourner tous les mois par fax au 01 55 86 17 22 à l'attention du planning après validation du Responsable de Centre et du Contrôleur
A66: Attention pour les récupérations n'oubliez pas de retirer 1h de franchise, exemple: 4h00 aller retour ça fait 3h de récupération
A69: Date | B69: Déplacements realisés | C69: Heures à récupérées | D69: Heures récupérées | E69: raisons | G69: observations
E70: contrôle | F70: autre (préciser)
A71: 2011-07-04 | B71: Villefranche | C71: 03:00:00
A72: 2011-07-06 | B72: Vaise | C72: 03:10:00
A73: 2011-07-08 | B73: Champagnole | C73: 00:30:00 | E73: (+)1
A74: 2011-07-11 | B74: Besançon Sp | C74: 01:50:00
A75: 2011-07-12 | B75: Champagnole | C75: 03:00:00 | E75: (+)6
A76: 2011-07-25 | B76: Sennece Les Macon | C76: 02:00:00
A77: 2011-08-01 | B77: Meythet | C77: 04:20:00 | G77: MAJ doc
A78: 2011-08-08 | B78: Besançon Iax | C78: 01:20:00
A79: 2011-08-10 | B79: Meythet | C79: 04:20:00 | G79: VSI
A80: 2011-08-22 | B80: Meythet | C80: 04:20:00
A81: 2011-08-24 | B81: Villefranche | C81: 03:00:00
A82: 2011-08-31 | B82: Villefranche | C82: 03:00:00
C102: =SUM(C71:C100) -> 1.409722222 | D102: =SUM(D71:D100) -> 0
A104: Heures restantes à récupérer: | C104: =C102-D102 -> 1.409722222

Sheet Suiv Contr
B2: =TODAY() -> 2013-04-02 | N2: presence centre (p) | O2: déplacement | Q2: renfort extern (ex) | S2: formation (f) | T2: malade (m) | U2: reunion (reu) | V2: vacance (v) | W2: recup (rec) | X2: TM | Y2: TCP | Z2: TMD | AA2: DEP | AB2: CV | AC2: S | AD2: R | AE2: X | AF2: Total VTP | AG2: Total VTP + CV | AH2: Refus | AI2: KM | AJ2: Gasoil | AK2: Péage | AL2: Parking | AM2: Repas Midi | AN2: Repas Soir | AO2: Hotel | AP2: Fourn Bureau | AQ2: Tel | AR2: PTT | AS2: Photo | AT2: Entretien VH | AU2: Divers | AV2: Total
G3: année | H3: ville | K3: mois | L3: nom | O3: auxil (ca) | P3: SP (sp)
G4: 2013 | H4: Champagnole | K4: Mars | N4: =DCOUNTA(G12:AF1874,Q12,Données1!Z8:AD9) -> 16 | O4: =DCOUNTA(G12:AG1874,Q12,Données1!Z10:AD11) -> 3 | P4: =DCOUNTA(G12:AG1874,Q12,Données1!Z12:AD13) -> 0 | Q4: =DCOUNTA(G12:AG1874,Q12,Données1!Z6:AD7) -> 0 | S4: =DCOUNTA(G12:AG1874,Q12,Données1!Z14:AD15) -> 0 | T4: =DCOUNTA(G12:AG1874,Q12,Données1!Z16:AD17) -> 0 | U4: =DCOUNTA(G12:AH1874,Q12,Données1!Z18:AD19) -> 0 | V4: =DCOUNTA(G12:AI1874,Q12,Données1!Z20:AC21) -> 0 | W4: =DCOUNTA(G12:AW1874,Q12,Données1!Z22:AC23) -> 0 | X4: =DSUM(G12:AF3955,U12,G3:L4) -> 72 | Y4: =DSUM(G12:AG3955,V12,G3:L4) -> 9 | Z4: =DSUM(G12:AG3955,W12,G3:L4) -> 0 | AA4: =DSUM(G12:AG3955,X12,G3:L4) -> 0 | AB4: =DSUM(G12:AG1634,Y12,G3:L4) -> 8 | AC4: =DSUM(G12:AH1634,Z12,G3:L4) -> 7 | AD4: =DSUM(G12:AI1634,AA12,G3:L4) -> 4 | AE4: =DSUM(G12:AI1634,AB12,G3:L4) -> 3 | AF4: =X4+Y4+Z4+AA4 -> 81 | AG4: =AF4+AB4 -> 89 | AH4: =((AD4+AC4+AE4)/AF4)*100 -> 17.28395062 | AI4: =DSUM(G12:AG2190,AE12,Données1!Z4:AD5) -> 832 | AJ4: =DSUM($G$12:$AV$1003,AH$12,$G$3:$L$4) -> 0 | AK4: 0 | AL4: 0 | AM4: 0 | AN4: 0 | AO4: 0 | AP4: 0 | AQ4: 0 | AR4: 0 | AS4: 0 | AT4: 0 | AU4: 0 | AV4: 0
G5: année | H5: ville | K5: mois | L5: nom | AJ5: =DSUM($G$12:$AV$1003,AH$12,$G$3:$L$4) -> 0 | AK5: =DSUM($G$12:$AV$1003,AI$12,$G$3:$L$4) -> 0
G6: 2012 | H6: =IF(H4="","",H4) -> Champagnole | K6: =IF(K4="","",K4) -> Mars | L6: =IF(L4="","",L4) ->  | N6: =DCOUNTA(G12:AF1876,Q12,Données1!Z25:AD26) -> 20 | O6: =DCOUNTA(G12:BB307,Q12,Données1!Z27:AD28) -> 0 | P6: =DCOUNTA(G12:AG1876,Q12,Données1!Z29:AD30) -> 0 | Q6: =DCOUNTA(G12:AG1876,Q12,Données1!Z37:AD38) -> 0 | R6: =DCOUNTA(H12:AG1876,R12,AZ316:BC317) ->  | S6: =DCOUNTA(G12:AG1876,Q12,Données1!Z31:AD32) -> 0 | T6: =DCOUNTA(G12:AG1876,Q12,Données1!Z33:AD34) -> 0 | U6: =DCOUNTA(G12:AH1876,Q12,Données1!Z35:AD36) -> 0 | V6: =DCOUNTA(G12:AI1876,Q12,Données1!Z41:AC42) -> 0 | W6: =DCOUNTA(G12:AW1876,Q12,Données1!Z43:AC44) -> 0 | X6: =DSUM(G12:AF3957,U12,G5:L6) -> 68 | Y6: =DSUM(G12:AG3957,V12,G5:L6) -> 17 | Z6: =DSUM(G12:AG3957,W12,G5:L6) -> 1 | AA6: =DSUM(G12:AG3957,X12,G5:L6) -> 0 | AB6: =DSUM(G12:AG636,Y12,G5:L6) -> 6 | AC6: =DSUM(G12:AH636,Z12,G5:L6) -> 5 | AD6: =DSUM(G12:AI636,AA12,G5:L6) -> 1 | AE6: =DSUM(G12:AW636,AB12,G5:L6) -> 3 | AF6: =X6+Y6+Z6+AA6 -> 86 | AG6: =AF6+AB6 -> 92 | AH6: =((AD6+AC6+AE6)/AF6)*100 -> 10.46511628 | AI6: =DSUM(G12:AG2192,AE12,Données1!Z39:AD40) -> 2204 | AJ6: =DSUM($G$12:$AV$1003,AH$12,$G$5:$L$6) -> 0 | AK6: 0 | AL6: 0 | AM6: 0 | AN6: 0 | AO6: 0 | AP6: 0 | AQ6: 0 | AR6: 0 | AS6: 0 | AT6: 0 | AU6: 0 | AV6: 0
V7: =DSUM(G15:AG2193,AE15,G6:L7) -> 
G8: TMD | L8: Heures Récup | S8: Vacances | X8: =X4-X6 -> 4 | Y8: -8 | Z8: -1 | AA8: 0 | AB8: 2 | AC8: 2 | AD8: 3 | AE8: 0 | AF8: -5 | AG8: -3 | AH8: 6.818834338
L9: Date | N9: Sup | O9: Pris | P9: Restes
F10: =EDATE(F11,-12) -> 2012-04-02 | G10: =SUMPRODUCT((W13:W1877)*(K13:K1877>=$F10)*(K13:K1877<=F11)) -> 46 | L10: 2012-12-17 | N10: =SUMPRODUCT((S13:S1877)*(K13:K1877>=$L10)*(K13:K1877<=L11)) -> 2.208333333 | O10: =SUMPRODUCT((T13:T1877)*(K13:K1877>=$L10)*(K13:K1877<=L11)) -> 0 | P10: =N10-O10 -> 2.208333333 | S10: 2012-06-01 | U10: =SUMPRODUCT((R13:R1877)*(K13:K1877>=$S10)*(K13:K1877<=S11)) -> 19 | AB10: 2011-11-01
F11: =TODAY() -> 2013-04-02 | L11: =TODAY() -> 2013-04-02 | S11: 2013-05-31
G12: année | H12: mois | I12: N° mois | J12: N° jour | K12: jour | L12: nom | M12: ville | N12: ville | Q12: pointage | S12: heure sup | T12: heure recup | U12: TM | V12: TCP | W12: TMD | X12: DEP | Y12: CV | Z12: S | AA12: R | AB12: X | AC12: Total VTP | AD12: VTP + CV | AE12: Km | AH12: Gasoil | AI12: Péage | AJ12: Parking | AK12: Repas Midi | AL12: Repas Soir | AM12: Hotel | AN12: Fourn Bureau | AO12: Tel | AP12: PTT | AQ12: Photo | AR12: Entretien VH | AS12: Divers | AT12: Total
G13: =IF(K13="","",YEAR(K13)) -> 2010 | H13: =IF(K13="","",VLOOKUP(I13,'Suiv Contr '!$D$14:$E$25,2)) -> janvier | I13: =IF(K13="","",MONTH(K13)) -> 1 | J13: =IF(K13="","",WEEKDAY(K13,2)) -> 1 | K13: 2010-01-04 | L13: Germain | M13: =N13 -> Champagnole | N13: Champagnole | Q13: =IF(N13="","",VLOOKUP(N13,Ville!$A$3:$E$40,4,0)) -> p | R13: =IF(Q13="v",1,0) -> 0 | S13: =IF(N13="",0,VLOOKUP(N13,Ville!$A$3:$E$40,3,0)) -> 00:00:00 | Y13: 1 | AC13: =U13+V13+W13+X13 -> 0 | AD13: =AC13+Y13 -> 1 | AE13: =IF(N13="","",VLOOKUP(N13,Ville!$A$3:$E$40,2,0)) -> 0 | AT13: =SUM(AH13:AS13) -> 0 | AZ13: =IF(OR(N13="champagnole",N13=""),"",1) -> 
B14: Alsace | D14: 1 | E14: janvier | G14: =IF(K14="","",YEAR(K14)) -> 2010 | H14: =IF(K14="","",VLOOKUP(I14,'Suiv Contr '!$D$14:$E$25,2)) -> janvier | I14: =IF(K14="","",MONTH(K14)) -> 1 | J14: 2 | K14: 2010-01-05 | L14: Germain | M14: =N14 -> Champagnole | N14: Champagnole | Q14: =IF(N14="","",VLOOKUP(N14,Ville!$A$3:$E$40,4,0)) -> p | R14: =IF(Q14="v",1,0) -> 0 | S14: =IF(N14="",0,VLOOKUP(N14,Ville!$A$3:$E$40,3,0)) -> 00:00:00 | U14: 3 | Y14: 1 | AC14: 3 | AD14: 4 | AE14: =IF(N14="","",VLOOKUP(N14,Ville!$A$3:$E$40,2,0)) -> 0 | AT14: =SUM(AH14:AS14) -> 0
B15: Audibert | D15: 2 | E15: février | G15: 2010 | H15: =IF(K15="","",VLOOKUP(I15,'Suiv Contr '!$D$14:$E$25,2)) -> janvier | I15: 1 | J15: 3 | K15: 2010-01-06 | L15: Germain | M15: Champagnole | N15: Champagnole | Q15: =IF(N15="","",VLOOKUP(N15,Ville!$A$3:$E$40,4,0)) -> p | R15: 0 | S15: =IF(N15="",0,VLOOKUP(N15,Ville!$A$3:$E$40,3,0)) -> 00:00:00 | U15: 2 | Y15: 1 | AC15: 2 | AD15: 3 | AE15: =IF(N15="","",VLOOKUP(N15,Ville!$A$3:$E$40,2,0)) -> 0 | AT15: 0
B16: Auxerre | D16: 3 | E16: mars | G16: 2010 | H16: =IF(K16="","",VLOOKUP(I16,'Suiv Contr '!$D$14:$E$25,2)) -> janvier | I16: 1 | J16: 4 | K16: 2010-01-07 | L16: Germain | M16: Champagnole | N16: Champagnole | Q16: =IF(N16="","",VLOOKUP(N16,Ville!$A$3:$E$40,4,0)) -> p | R16: 0 | S16: =IF(N16="",0,VLOOKUP(N16,Ville!$A$3:$E$40,3,0)) -> 00:00:00 | U16: 6 | V16: 2 | AA16: 1 | AC16: 8 | AD16: 8 | AE16: =IF(N16="","",VLOOKUP(N16,Ville!$A$3:$E$40,2,0)) -> 0 | AT16: 0
B17: Avallon | D17: 4 | E17: avril | G17: 2010 | H17: =IF(K17="","",VLOOKUP(I17,'Suiv Contr '!$D$14:$E$25,2)) -> janvier | I17: 1 | J17: 5 | K17: 2010-01-08 | L17: Germain | M17: Champagnole | N17: Champagnole | Q17: =IF(N17="","",VLOOKUP(N17,Ville!$A$3:$E$40,4,0)) -> p | R17: 0 | S17: =IF(N17="",0,VLOOKUP(N17,Ville!$A$3:$E$40,3,0)) -> 00:00:00 | U17: 8 | V17: 1 | AC17: 9 | AD17: 9 | AE17: =IF(N17="","",VLOOKUP(N17,Ville!$A$3:$E$40,2,0)) -> 0 | AT17: 0
B18: Belley | D18: 5 | E18: mai | G18: 2010 | H18: =IF(K18="","",VLOOKUP(I18,'Suiv Contr '!$D$14:$E$25,2)) -> janvier | I18: 1 | J18: 1 | K18: 2010-01-11 | L18: Germain | M18: Besançon iax | N18: Besançon iax | Q18: =IF(N18="","",VLOOKUP(N18,Ville!$A$3:$E$40,4,0)) -> ca | R18: 0 | S18: =IF(N18="",0,VLOOKUP(N18,Ville!$A$3:$E$40,3,0)) -> 01:50:00 | U18: 7 | V18: 1 | Y18: 2 | Z18: 1 | AC18: 8 | AD18: 10 | AE18: =IF(N18="","",VLOOKUP(N18,Ville!$A$3:$E$40,2,0)) -> 132 | AT18: 0 | AZ18: 1
B19: Besançon iax | D19: 6 | E19: juin | G19: 2010 | H19: =IF(K19="","",VLOOKUP(I19,'Suiv Contr '!$D$14:$E$25,2)) -> janvier | I19: 1 | J19: 2 | K19: 2010-01-12 | L19: Germain | M19: Champagnole | N19: Champagnole | Q19: =IF(N19="","",VLOOKUP(N19,Ville!$A$3:$E$40,4,0)) -> p | R19: 0 | S19: =IF(N19="",0,VLOOKUP(N19,Ville!$A$3:$E$40,3,0)) -> 00:00:00 | U19: 3 | AC19: 3 | AD19: 3 | AE19: =IF(N19="","",VLOOKUP(N19,Ville!$A$3:$E$40,2,0)) -> 0 | AT19: 0
B20: Besançon sp | D20: 7 | E20: juillet | G20: 2010 | H20: =IF(K20="","",VLOOKUP(I20,'Suiv Contr '!$D$14:$E$25,2)) -> janvier | I20: 1 | J20: 3 | K20: 2010-01-13 | L20: Germain | M20: Pouilly en Auxois | N20: Pouilly en Auxois | Q20: =IF(N20="","",VLOOKUP(N20,Ville!$A$3:$E$40,4,0)) -> ca | R20: 0 | S20: =IF(N20="",0,VLOOKUP(N20,Ville!$A$3:$E$40,3,0)) -> 02:10:00 | U20: 1 | V20: 2 | AC20: 3 | AD20: 3 | AE20: =IF(N20="","",VLOOKUP(N20,Ville!$A$3:$E$40,2,0)) -> 314 | AT20: 0 | AZ20: 1
B21: Bourgoin Jallieu | D21: 8 | E21: août | G21: 2010 | H21: =IF(K21="","",VLOOKUP(I21,'Suiv Contr '!$D$14:$E$25,2)) -> janvier | I21: 1 | J21: 4 | K21: 2010-01-14 | L21: Germain | M21: Champagnole | N21: Champagnole | Q21: =IF(N21="","",VLOOKUP(N21,Ville!$A$3:$E$40,4,0)) -> p | R21: 0 | S21: =IF(N21="",0,VLOOKUP(N21,Ville!$A$3:$E$40,3,0)) -> 00:00:00 | U21: 3 | Y21: 1 | AC21: 3 | AD21: 4 | AE21: =IF(N21="","",VLOOKUP(N21,Ville!$A$3:$E$40,2,0)) -> 0 | AT21: 0
B22: Champagnole | D22: 9 | E22: septembre | G22: 2010 | H22: =IF(K22="","",VLOOKUP(I22,'Suiv Contr '!$D$14:$E$25,2)) -> janvier | I22: 1 | J22: 5 | K22: 2010-01-15 | L22: Germain | M22: Champagnole | N22: Champagnole | Q22: =IF(N22="","",VLOOKUP(N22,Ville!$A$3:$E$40,4,0)) -> p | R22: 0 | S22: =IF(N22="",0,VLOOKUP(N22,Ville!$A$3:$E$40,3,0)) -> 00:00:00 | U22: 6 | V22: 2 | Y22: 2 | Z22: 3 | AC22: 8 | AD22: 10 | AE22: =IF(N22="","",VLOOKUP(N22,Ville!$A$3:$E$40,2,0)) -> 0 | AT22: 0
B23: Chatillon sur seine | D23: 10 | E23: octobre | G23: 2010 | H23: =IF(K23="","",VLOOKUP(I23,'Suiv Contr '!$D$14:$E$25,2)) -> janvier | I23: 1 | J23: 1 | K23: 2010-01-18 | L23: Germain | M23: Meythet | N23: Meythet | Q23: =IF(N23="","",VLOOKUP(N23,Ville!$A$3:$E$40,4,0)) -> ca | R23: 0 | S23: =IF(N23="",0,VLOOKUP(N23,Ville!$A$3:$E$40,3,0)) -> 04:20:00 | U23: 11 | AC23: 11 | AD23: 11 | AE23: =IF(N23="","",VLOOKUP(N23,Ville!$A$3:$E$40,2,0)) -> 298 | AT23: 0 | AZ23: 1
B24: Chauffailles | D24: 11 | E24: novembre | G24: 2010 | H24: =IF(K24="","",VLOOKUP(I24,'Suiv Contr '!$D$14:$E$25,2)) -> janvier | I24: 1 | J24: 2 | K24: 2010-01-19 | L24: Germain | M24: Champagnole | N24: Champagnole | Q24: =IF(N24="","",VLOOKUP(N24,Ville!$A$3:$E$40,4,0)) -> p | R24: 0 | S24: =IF(N24="",0,VLOOKUP(N24,Ville!$A$3:$E$40,3,0)) -> 00:00:00 | U24: 9 | AC24: 9 | AD24: 9 | AE24: =IF(N24="","",VLOOKUP(N24,Ville!$A$3:$E$40,2,0)) -> 0 | AT24: 0
B25: Colmar | D25: 12 | E25: décembre | G25: 2010 | H25: =IF(K25="","",VLOOKUP(I25,'Suiv Contr '!$D$14:$E$25,2)) -> janvier | I25: 1 | J25: 3 | K25: 2010-01-20 | L25: Germain | M25: Thann | N25: Thann | Q25: =IF(N25="","",VLOOKUP(N25,Ville!$A$3:$E$40,4,0)) -> ca | R25: 0 | S25: =IF(N25="",0,VLOOKUP(N25,Ville!$A$3:$E$40,3,0)) -> 04:30:00 | U25: 6 | V25: 2 | W25: 1 | Z25: 1 | AA25: 1 | AC25: 9 | AD25: 9 | AE25: =IF(N25="","",VLOOKUP(N25,Ville!$A$3:$E$40,2,0)) -> 402 | AT25: 0 | AZ25: 1
B26: Cordesse | G26: 2010 | H26: =IF(K26="","",VLOOKUP(I26,'Suiv Contr '!$D$14:$E$25,2)) -> janvier | I26: 1 | J26: 4 | K26: 2010-01-21 | L26: Germain | M26: Champagnole | N26: Champagnole | Q26: =IF(N26="","",VLOOKUP(N26,Ville!$A$3:$E$40,4,0)) -> p | R26: 0 | S26: =IF(N26="",0,VLOOKUP(N26,Ville!$A$3:$E$40,3,0)) -> 00:00:00 | U26: 7 | V26: 1 | Y26: 1 | Z26: 1 | AC26: 8 | AD26: 9 | AE26: =IF(N26="","",VLOOKUP(N26,Ville!$A$3:$E$40,2,0)) -> 0 | AT26: 0
B27: Ecquevilly | G27: 2010 | H27: =IF(K27="","",VLOOKUP(I27,'Suiv Contr '!$D$14:$E$25,2)) -> janvier | I27: 1 | J27: 5 | K27: 2010-01-22 | L27: Germain | M27: Champagnole | N27: Champagnole | Q27: =IF(N27="","",VLOOKUP(N27,Ville!$A$3:$E$40,4,0)) -> p | R27: 0 | S27: =IF(N27="",0,VLOOKUP(N27,Ville!$A$3:$E$40,3,0)) -> 00:00:00 | U27: 2 | V27: 4 | AC27: 6 | AD27: 6 | AE27: =IF(N27="","",VLOOKUP(N27,Ville!$A$3:$E$40,2,0)) -> 0 | AT27: 0
B28: Ennery | G28: 2010 | H28: =IF(K28="","",VLOOKUP(I28,'Suiv Contr '!$D$14:$E$25,2)) -> janvier | I28: 1 | J28: 1 | K28: 2010-01-25 | L28: Germain | M28: Besançon iax | N28: Besançon iax | Q28: =IF(N28="","",VLOOKUP(N28,Ville!$A$3:$E$40,4,0)) -> ca | R28: 0 | S28: =IF(N28="",0,VLOOKUP(N28,Ville!$A$3:$E$40,3,0)) -> 01:50:00 | U28: 8 | V28: 2 | Y28: 1 | AC28: 10 | AD28: 11 | AE28: =IF(N28="","",VLOOKUP(N28,Ville!$A$3:$E$40,2,0)) -> 132 | AT28: 0 | AZ28: 1
B29: Fains les Montbard | G29: 2010 | H29: =IF(K29="","",VLOOKUP(I29,'Suiv Contr '!$D$14:$E$25,2)) -> janvier | I29: 1 | J29: 2 | K29: 2010-01-26 | L29: Germain | M29: Champagnole | N29: Champagnole | Q29: =IF(N29="","",VLOOKUP(N29,Ville!$A$3:$E$40,4,0)) -> p | R29: 0 | S29: =IF(N29="",0,VLOOKUP(N29,Ville!$A$3:$E$40,3,0)) -> 00:00:00 | U29: 6 | Y29: 1 | AC29: 6 | AD29: 7 | AE29: =IF(N29="","",VLOOKUP(N29,Ville!$A$3:$E$40,2,0)) -> 0 | AT29: 0
B30: La Soie | G30: 2010 | H30: =IF(K30="","",VLOOKUP(I30,'Suiv Contr '!$D$14:$E$25,2)) -> janvier | I30: 1 | J30: 3 | K30: 2010-01-27 | L30: Germain | M30: Fains les Montbard | N30: Fains les Montbard | Q30: =IF(N30="","",VLOOKUP(N30,Ville!$A$3:$E$40,4,0)) -> sp | R30: 0 | S30: =IF(N30="",0,VLOOKUP(N30,Ville!$A$3:$E$40,3,0)) -> 03:30:00 | U30: 10 | V30: 2 | AC30: 12 | AD30: 12 | AE30: =IF(N30="","",VLOOKUP(N30,Ville!$A$3:$E$40,2,0)) -> 366 | AT30: 0 | AZ30: 1
B31: Le Pontet | G31: 2010 | H31: =IF(K31="","",VLOOKUP(I31,'Suiv Contr '!$D$14:$E$25,2)) -> janvier | I31: 1 | J31: 4 | K31: 2010-01-28 | L31: Germain | M31: Champagnole | N31: Champagnole | Q31: =IF(N31="","",VLOOKUP(N31,Ville!$A$3:$E$40,4,0)) -> p | R31: 0 | S31: =IF(N31="",0,VLOOKUP(N31,Ville!$A$3:$E$40,3,0)) -> 00:00:00 | U31: 5 | V31: 3 | Y31: 1 | AC31: 8 | AD31: 9 | AE31: =IF(N31="","",VLOOKUP(N31,Ville!$A$3:$E$40,2,0)) -> 0 | AT31: 0
B32: Les Pins | G32: 2010 | H32: =IF(K32="","",VLOOKUP(I32,'Suiv Contr '!$D$14:$E$25,2)) -> janvier | I32: 1 | J32: 5 | K32: 2010-01-29 | L32: Germain | M32: Champagnole | N32: Champagnole | Q32: =IF(N32="","",VLOOKUP(N32,Ville!$A$3:$E$40,4,0)) -> p | R32: 0 | S32: =IF(N32="",0,VLOOKUP(N32,Ville!$A$3:$E$40,3,0)) -> 00:00:00 | U32: 5 | V32: 3 | AC32: 8 | AD32: 8 | AE32: =IF(N32="","",VLOOKUP(N32,Ville!$A$3:$E$40,2,0)) -> 0 | AT32: 0
B33: Ludres | G33: 2010 | H33: =IF(K33="","",VLOOKUP(I33,'Suiv Contr '!$D$14:$E$25,2)) -> février | I33: 2 | J33: 1 | K33: 2010-02-01 | L33: Germain | M33: Meythet | N33: Meythet | Q33: =IF(N33="","",VLOOKUP(N33,Ville!$A$3:$E$40,4,0)) -> ca | R33: 0 | S33: =IF(N33="",0,VLOOKUP(N33,Ville!$A$3:$E$40,3,0)) -> 04:20:00 | Y33: 1 | AC33: 0 | AD33: 1 | AE33: =IF(N33="","",VLOOKUP(N33,Ville!$A$3:$E$40,2,0)) -> 298 | AT33: 0 | AZ33: 1
B34: Lyon | G34: 2010 | H34: =IF(K34="","",VLOOKUP(I34,'Suiv Contr '!$D$14:$E$25,2)) -> février | I34: 2 | J34: 2 | K34: 2010-02-02 | L34: Germain | M34: Champagnole | N34: Champagnole | Q34: =IF(N34="","",VLOOKUP(N34,Ville!$A$3:$E$40,4,0)) -> p | R34: 0 | S34: =IF(N34="",0,VLOOKUP(N34,Ville!$A$3:$E$40,3,0)) -> 00:00:00 | U34: 2 | AC34: 2 | AD34: 2 | AE34: =IF(N34="","",VLOOKUP(N34,Ville!$A$3:$E$40,2,0)) -> 0 | AT34: 0
B35: Marseilles | G35: 2010 | H35: =IF(K35="","",VLOOKUP(I35,'Suiv Contr '!$D$14:$E$25,2)) -> février | I35: 2 | J35: 3 | K35: 2010-02-03 | L35: Germain | M35: Champagnole | N35: Champagnole | Q35: =IF(N35="","",VLOOKUP(N35,Ville!$A$3:$E$40,4,0)) -> p | R35: 0 | S35: =IF(N35="",0,VLOOKUP(N35,Ville!$A$3:$E$40,3,0)) -> 00:00:00 | U35: 3 | AC35: 3 | AD35: 3 | AE35: =IF(N35="","",VLOOKUP(N35,Ville!$A$3:$E$40,2,0)) -> 0 | AT35: 0
B36: Meythet | G36: 2010 | H36: =IF(K36="","",VLOOKUP(I36,'Suiv Contr '!$D$14:$E$25,2)) -> février | I36: 2 | J36: 4 | K36: 2010-02-04 | L36: Germain | M36: Seymoutier | N36: Seymoutier | Q36: =IF(N36="","",VLOOKUP(N36,Ville!$A$3:$E$40,4,0)) -> sp | R36: 0 | S36: =IF(N36="",0,VLOOKUP(N36,Ville!$A$3:$E$40,3,0)) -> 02:50:00 | U36: 2 | V36: 1 | Z36: 1 | AC36: 3 | AD36: 3 | AE36: =IF(N36="","",VLOOKUP(N36,Ville!$A$3:$E$40,2,0)) -> 390 | AT36: 0 | AZ36: 1
B37: Montreuil | G37: 2010 | H37: =IF(K37="","",VLOOKUP(I37,'Suiv Contr '!$D$14:$E$25,2)) -> février | I37: 2 | J37: 5 | K37: 2010-02-05 | L37: Germain | M37: Champagnole | N37: Champagnole | Q37: =IF(N37="","",VLOOKUP(N37,Ville!$A$3:$E$40,4,0)) -> p | R37: 0 | S37: =IF(N37="",0,VLOOKUP(N37,Ville!$A$3:$E$40,3,0)) -> 00:00:00 | U37: 7 | V37: 1 | Y37: 4 | Z37: 1 | AC37: 8 | AD37: 12 | AE37: =IF(N37="","",VLOOKUP(N37,Ville!$A$3:$E$40,2,0)) -> 0 | AT37: 0
B38: Morbier | G38: 2010 | H38: =IF(K38="","",VLOOKUP(I38,'Suiv Contr '!$D$14:$E$25,2)) -> février | I38: 2 | J38: 1 | K38: 2010-02-08 | L38: Germain | M38: Champagnole | N38: Champagnole | Q38: =IF(N38="","",VLOOKUP(N38,Ville!$A$3:$E$40,4,0)) -> p | R38: 0 | S38: =IF(N38="",0,VLOOKUP(N38,Ville!$A$3:$E$40,3,0)) -> 00:00:00 | U38: 1 | AC38: 1 | AD38: 1 | AE38: =IF(N38="","",VLOOKUP(N38,Ville!$A$3:$E$40,2,0)) -> 0 | AT38: 0
B39: Poitiers | G39: 2010 | H39: =IF(K39="","",VLOOKUP(I39,'Suiv Contr '!$D$14:$E$25,2)) -> février | I39: 2 | J39: 2 | K39: 2010-02-09 | L39: Germain | M39: Champagnole | N39: Champagnole | Q39: =IF(N39="","",VLOOKUP(N39,Ville!$A$3:$E$40,4,0)) -> p | R39: 0 | S39: =IF(N39="",0,VLOOKUP(N39,Ville!$A$3:$E$40,3,0)) -> 00:00:00 | U39: 7 | V39: 4 | AC39: 11 | AD39: 11 | AE39: =IF(N39="","",VLOOKUP(N39,Ville!$A$3:$E$40,2,0)) -> 0 | AT39: 0
B40: Pouilly en Auxois | G40: 2010 | H40: =IF(K40="","",VLOOKUP(I40,'Suiv Contr '!$D$14:$E$25,2)) -> février | I40: 2 | J40: 3 | K40: 2010-02-10 | L40: Germain | M40: Champagnole | N40: Champagnole | Q40: =IF(N40="","",VLOOKUP(N40,Ville!$A$3:$E$40,4,0)) -> p | R40: 0 | S40: =IF(N40="",0,VLOOKUP(N40,Ville!$A$3:$E$40,3,0)) -> 00:00:00 | U40: 3 | AC40: 3 | AD40: 3 | AE40: =IF(N40="","",VLOOKUP(N40,Ville!$A$3:$E$40,2,0)) -> 0 | AT40: 0
B41: Rambervillier | G41: 2010 | H41: =IF(K41="","",VLOOKUP(I41,'Suiv Contr '!$D$14:$E$25,2)) -> février | I41: 2 | J41: 4 | K41: 2010-02-11 | L41: Germain | M41: Champagnole | N41: Champagnole | Q41: =IF(N41="","",VLOOKUP(N41,Ville!$A$3:$E$40,4,0)) -> p | R41: 0 | S41: =IF(N41="",0,VLOOKUP(N41,Ville!$A$3:$E$40,3,0)) -> 00:00:00 | U41: 4 | V41: 6 | Z41: 1 | AA41: 2 | AC41: 10 | AD41: 10 | AE41: =IF(N41="","",VLOOKUP(N41,Ville!$A$3:$E$40,2,0)) -> 0 | AT41: 0
B42: Rumilly | G42: 2010 | H42: =IF(K42="","",VLOOKUP(I42,'Suiv Contr '!$D$14:$E$25,2)) -> février | I42: 2 | J42: 5 | K42: 2010-02-12 | L42: Germain | M42: Champagnole | N42: Champagnole | Q42: =IF(N42="","",VLOOKUP(N42,Ville!$A$3:$E$40,4,0)) -> p | R42: 0 | S42: =IF(N42="",0,VLOOKUP(N42,Ville!$A$3:$E$40,3,0)) -> 00:00:00 | U42: 5 | V42: 4 | AC42: 9 | AD42: 9 | AE42: =IF(N42="","",VLOOKUP(N42,Ville!$A$3:$E$40,2,0)) -> 0 | AT42: 0
B43: Saint Nabord | G43: 2010 | H43: =IF(K43="","",VLOOKUP(I43,'Suiv Contr '!$D$14:$E$25,2)) -> février | I43: 2 | J43: 1 | K43: 2010-02-15 | L43: Germain | M43: Champagnole | N43: Champagnole | Q43: =IF(N43="","",VLOOKUP(N43,Ville!$A$3:$E$40,4,0)) -> p | R43: 0 | S43: =IF(N43="",0,VLOOKUP(N43,Ville!$A$3:$E$40,3,0)) -> 00:00:00 | U43: 1 | AC43: 1 | AD43: 1 | AE43: =IF(N43="","",VLOOKUP(N43,Ville!$A$3:$E$40,2,0)) -> 0 | AT43: 0
B44: Sennece les Macons | G44: 2010 | H44: =IF(K44="","",VLOOKUP(I44,'Suiv Contr '!$D$14:$E$25,2)) -> février | I44: 2 | J44: 2 | K44: 2010-02-16 | L44: Germain | M44: Champagnole | N44: Champagnole | Q44: =IF(N44="","",VLOOKUP(N44,Ville!$A$3:$E$40,4,0)) -> p | R44: 0 | S44: =IF(N44="",0,VLOOKUP(N44,Ville!$A$3:$E$40,3,0)) -> 00:00:00 | U44: 2 | V44: 4 | AC44: 6 | AD44: 6 | AE44: =IF(N44="","",VLOOKUP(N44,Ville!$A$3:$E$40,2,0)) -> 0 | AT44: 0
B45: Seymoutier | G45: 2010 | H45: =IF(K45="","",VLOOKUP(I45,'Suiv Contr '!$D$14:$E$25,2)) -> février | I45: 2 | J45: 3 | K45: 2010-02-17 | L45: Germain | M45: Champagnole | N45: Champagnole | Q45: v | R45: 1 | S45: =IF(N45="",0,VLOOKUP(N45,Ville!$A$3:$E$40,3,0)) -> 00:00:00 | AC45: 0 | AD45: 0 | AE45: =IF(N45="","",VLOOKUP(N45,Ville!$A$3:$E$40,2,0)) -> 0 | AT45: 0
B46: Strasbourg | G46: 2010 | H46: =IF(K46="","",VLOOKUP(I46,'Suiv Contr '!$D$14:$E$25,2)) -> février | I46: 2 | J46: 4 | K46: 2010-02-18 | L46: Germain | M46: Champagnole | N46: Champagnole | Q46: =IF(N46="","",VLOOKUP(N46,Ville!$A$3:$E$40,4,0)) -> p | R46: 0 | S46: =IF(N46="",0,VLOOKUP(N46,Ville!$A$3:$E$40,3,0)) -> 00:00:00 | U46: 4 | V46: 7 | Y46: 1 | Z46: 1 | AA46: 1 | AC46: 11 | AD46: 12 | AE46: =IF(N46="","",VLOOKUP(N46,Ville!$A$3:$E$40,2,0)) -> 0 | AT46: 0
B47: Terville | G47: 2010 | H47: =IF(K47="","",VLOOKUP(I47,'Suiv Contr '!$D$14:$E$25,2)) -> février | I47: 2 | J47: 5 | K47: 2010-02-19 | L47: Germain | M47: Champagnole | N47: Champagnole | Q47: =IF(N47="","",VLOOKUP(N47,Ville!$A$3:$E$40,4,0)) -> p | R47: 0 | S47: =IF(N47="",0,VLOOKUP(N47,Ville!$A$3:$E$40,3,0)) -> 00:00:00 | U47: 4 | V47: 4 | Y47: 5 | Z47: 1 | AC47: 8 | AD47: 13 | AE47: =IF(N47="","",VLOOKUP(N47,Ville!$A$3:$E$40,2,0)) -> 0 | AT47: 0
B48: Thann | G48: 2010 | H48: =IF(K48="","",VLOOKUP(I48,'Suiv Contr '!$D$14:$E$25,2)) -> février | I48: 2 | J48: 1 | K48: 2010-02-22 | L48: Germain | M48: Besançon iax | N48: Besançon iax | Q48: =IF(N48="","",VLOOKUP(N48,Ville!$A$3:$E$40,4,0)) -> ca | R48: 0 | S48: =IF(N48="",0,VLOOKUP(N48,Ville!$A$3:$E$40,3,0)) -> 01:50:00 | U48: 6 | Y48: 1 | Z48: 1 | AC48: 6 | AD48: 7 | AE48: =IF(N48="","",VLOOKUP(N48,Ville!$A$3:$E$40,2,0)) -> 132 | AT48: 0 | AZ48: 1
B49: vaise | G49: 2010 | H49: =IF(K49="","",VLOOKUP(I49,'Suiv Contr '!$D$14:$E$25,2)) -> février | I49: 2 | J49: 2 | K49: 2010-02-23 | L49: Germain | M49: Champagnole | N49: Champagnole | Q49: =IF(N49="","",VLOOKUP(N49,Ville!$A$3:$E$40,4,0)) -> p | R49: 0 | S49: =IF(N49="",0,VLOOKUP(N49,Ville!$A$3:$E$40,3,0)) -> 00:00:00 | U49: 6 | V49: 1 | Y49: 1 | AA49: 1 | AC49: 7 | AD49: 8 | AE49: =IF(N49="","",VLOOKUP(N49,Ville!$A$3:$E$40,2,0)) -> 0 | AT49: 0
B50: Vaucouleur | G50: 2010 | H50: =IF(K50="","",VLOOKUP(I50,'Suiv Contr '!$D$14:$E$25,2)) -> février | I50: 2 | J50: 3 | K50: 2010-02-24 | L50: Germain | M50: Champagnole | N50: Champagnole | Q50: =IF(N50="","",VLOOKUP(N50,Ville!$A$3:$E$40,4,0)) -> p | R50: 0 | S50: =IF(N50="",0,VLOOKUP(N50,Ville!$A$3:$E$40,3,0)) -> 00:00:00 | U50: 2 | AC50: 2 | AD50: 2 | AE50: =IF(N50="","",VLOOKUP(N50,Ville!$A$3:$E$40,2,0)) -> 0 | AT50: 0
B51: Verdun | G51: 2010 | H51: =IF(K51="","",VLOOKUP(I51,'Suiv Contr '!$D$14:$E$25,2)) -> février | I51: 2 | J51: 4 | K51: 2010-02-25 | L51: Germain | M51: Champagnole | N51: Champagnole | Q51: =IF(N51="","",VLOOKUP(N51,Ville!$A$3:$E$40,4,0)) -> p | R51: 0 | S51: =IF(N51="",0,VLOOKUP(N51,Ville!$A$3:$E$40,3,0)) -> 00:00:00 | U51: 1 | V51: 1 | AA51: 1 | AC51: 2 | AD51: 2 | AE51: =IF(N51="","",VLOOKUP(N51,Ville!$A$3:$E$40,2,0)) -> 0 | AT51: 0
B52: Villefranche | G52: 2010 | H52: =IF(K52="","",VLOOKUP(I52,'Suiv Contr '!$D$14:$E$25,2)) -> février | I52: 2 | J52: 5 | K52: 2010-02-26 | L52: Germain | M52: Champagnole | N52: Champagnole | Q52: =IF(N52="","",VLOOKUP(N52,Ville!$A$3:$E$40,4,0)) -> p | R52: 0 | S52: =IF(N52="",0,VLOOKUP(N52,Ville!$A$3:$E$40,3,0)) -> 00:00:00 | U52: 1 | AC52: 1 | AD52: 1 | AE52: =IF(N52="","",VLOOKUP(N52,Ville!$A$3:$E$40,2,0)) -> 0 | AT52: 0
G53: 2010 | H53: =IF(K53="","",VLOOKUP(I53,'Suiv Contr '!$D$14:$E$25,2)) -> mars | I53: 3 | J53: 1 | K53: 2010-03-01 | L53: Germain | M53: Meythet | N53: Meythet | Q53: =IF(N53="","",VLOOKUP(N53,Ville!$A$3:$E$40,4,0)) -> ca | R53: 0 | S53: =IF(N53="",0,VLOOKUP(N53,Ville!$A$3:$E$40,3,0)) -> 04:20:00 | U53: 3 | W53: 1 | Y53: 1 | AC53: 4 | AD53: 5 | AE53: =IF(N53="","",VLOOKUP(N53,Ville!$A$3:$E$40,2,0)) -> 298 | AT53: 0 | AZ53: 1
G54: 2010 | H54: =IF(K54="","",VLOOKUP(I54,'Suiv Contr '!$D$14:$E$25,2)) -> mars | I54: 3 | J54: 2 | K54: 2010-03-02 | L54: Germain | M54: Champagnole | N54: Champagnole | Q54: =IF(N54="","",VLOOKUP(N54,Ville!$A$3:$E$40,4,0)) -> p | R54: 0 | S54: =IF(N54="",0,VLOOKUP(N54,Ville!$A$3:$E$40,3,0)) -> 00:00:00 | U54: 7 | V54: 6 | Z54: 1 | AC54: 13 | AD54: 13 | AE54: =IF(N54="","",VLOOKUP(N54,Ville!$A$3:$E$40,2,0)) -> 0 | AT54: 0 | BD54: année | BE54: ville | BF54: mois | BG54: nom | BH54: pointage
G55: 2010 | H55: =IF(K55="","",VLOOKUP(I55,'Suiv Contr '!$D$14:$E$25,2)) -> mars | I55: 3 | J55: 3 | K55: 2010-03-03 | L55: Germain | M55: Champagnole | N55: Champagnole | Q55: =IF(N55="","",VLOOKUP(N55,Ville!$A$3:$E$40,4,0)) -> p | R55: 0 | S55: =IF(N55="",0,VLOOKUP(N55,Ville!$A$3:$E$40,3,0)) -> 00:00:00 | T55: 03:00:00 | AC55: 0 | AD55: 0 | AE55: =IF(N55="","",VLOOKUP(N55,Ville!$A$3:$E$40,2,0)) -> 0 | AT55: 0 | BD55: =Synthèse!$A$2 -> 2012 | BE55: =IF(Synthèse!$C$2="","",Synthèse!$C$2) ->  | BF55: =IF(Synthèse!$B$2="","",Synthèse!$B$2) -> Janvier | BG55: =IF(Synthèse!$D$2="","",Synthèse!$D$2) -> GERMAIN | BH55: p
G56: 2010 | H56: =IF(K56="","",VLOOKUP(I56,'Suiv Contr '!$D$14:$E$25,2)) -> mars | I56: 3 | J56: 4 | K56: 2010-03-04 | L56: Germain | M56: Champagnole | N56: Champagnole | Q56: =IF(N56="","",VLOOKUP(N56,Ville!$A$3:$E$40,4,0)) -> p | R56: 0 | S56: =IF(N56="",0,VLOOKUP(N56,Ville!$A$3:$E$40,3,0)) -> 00:00:00 | U56: 6 | V56: 3 | AC56: 9 | AD56: 9 | AE56: =IF(N56="","",VLOOKUP(N56,Ville!$A$3:$E$40,2,0)) -> 0 | AT56: 0 | BD56: année | BE56: ville | BF56: mois | BG56: nom | BH56: pointage
G57: 2010 | H57: =IF(K57="","",VLOOKUP(I57,'Suiv Contr '!$D$14:$E$25,2)) -> mars | I57: 3 | J57: 5 | K57: 2010-03-05 | L57: Germain | M57: Champagnole | N57: Champagnole | Q57: =IF(N59="","",VLOOKUP(N59,Ville!$A$3:$E$40,4,0)) -> p | R57: 0 | S57: =IF(N59="",0,VLOOKUP(N59,Ville!$A$3:$E$40,3,0)) -> 00:00:00 | U57: 7 | V57: 1 | Z57: 2 | AA57: 1 | AC57: 8 | AD57: 8 | AE57: =IF(N59="","",VLOOKUP(N59,Ville!$A$3:$E$40,2,0)) -> 0 | AT57: 0 | BD57: =Synthèse!$A$2 -> 2012 | BE57: =IF(Synthèse!$C$2="","",Synthèse!$C$2) ->  | BF57: =IF(Synthèse!$B$2="","",Synthèse!$B$2) -> Janvier | BG57: =IF(Synthèse!$D$2="","",Synthèse!$D$2) -> GERMAIN | BH57: ex
G58: 2010 | H58: =IF(K58="","",VLOOKUP(I58,'Suiv Contr '!$D$14:$E$25,2)) -> mars | I58: 3 | J58: 1 | K58: 2010-03-08 | L58: Germain | M58: Fains les Montbard | N58: Fains les Montbard | Q58: =IF(N58="","",VLOOKUP(N58,Ville!$A$3:$E$40,4,0)) -> sp | R58: 0 | S58: =IF(N58="",0,VLOOKUP(N58,Ville!$A$3:$E$40,3,0)) -> 03:30:00 | U58: 6 | V58: 3 | AC58: 9 | AD58: 9 | AE58: =IF(N58="","",VLOOKUP(N58,Ville!$A$3:$E$40,2,0)) -> 366 | AT58: 0 | AZ58: 1 | BD58: année | BE58: ville | BF58: mois | BG58: nom | BH58: pointage
G59: 2010 | H59: =IF(K59="","",VLOOKUP(I59,'Suiv Contr '!$D$14:$E$25,2)) -> mars | I59: 3 | J59: 2 | K59: 2010-03-09 | L59: Germain | M59: Champagnole | N59: Champagnole | Q59: =IF(N59="","",VLOOKUP(N59,Ville!$A$3:$E$40,4,0)) -> p | R59: 0 | S59: =IF(N59="",0,VLOOKUP(N59,Ville!$A$3:$E$40,3,0)) -> 00:00:00 | U59: 6 | V59: 3 | Y59: 3 | AA59: 1 | AC59: 9 | AD59: 12 | AE59: =IF(N59="","",VLOOKUP(N59,Ville!$A$3:$E$40,2,0)) -> 0 | AT59: 0 | BD59: =Synthèse!$A$2 -> 2012 | BE59: =IF(Synthèse!$C$2="","",Synthèse!$C$2) ->  | BF59: =IF(Synthèse!$B$2="","",Synthèse!$B$2) -> Janvier | BG59: =IF(Synthèse!$D$2="","",Synthèse!$D$2) -> GERMAIN | BH59: ca
G60: 2010 | H60: =IF(K60="","",VLOOKUP(I60,'Suiv Contr '!$D$14:$E$25,2)) -> mars | I60: 3 | J60: 3 | K60: 2010-03-10 | L60: Germain | M60: Fains les Montbard | N60: Fains les Montbard | Q60: =IF(N60="","",VLOOKUP(N60,Ville!$A$3:$E$40,4,0)) -> sp | R60: 0 | S60: =IF(N60="",0,VLOOKUP(N60,Ville!$A$3:$E$40,3,0)) -> 03:30:00 | U60: 8 | AC60: 8 | AD60: 8 | AE60: =IF(N60="","",VLOOKUP(N60,Ville!$A$3:$E$40,2,0)) -> 366 | AT60: 0 | AZ60: 1 | BD60: année | BE60: ville | BF60: mois | BG60: nom | BH60: pointage
G61: 2010 | H61: =IF(K61="","",VLOOKUP(I61,'Suiv Contr '!$D$14:$E$25,2)) -> mars | I61: 3 | J61: 4 | K61: 2010-03-11 | L61: Germain | M61: Champagnole | N61: Champagnole | Q61: =IF(N61="","",VLOOKUP(N61,Ville!$A$3:$E$40,4,0)) -> p | R61: 0 | S61: =IF(N61="",0,VLOOKUP(N61,Ville!$A$3:$E$40,3,0)) -> 00:00:00 | U61: 5 | V61: 1 | AC61: 6 | AD61: 6 | AE61: =IF(N61="","",VLOOKUP(N61,Ville!$A$3:$E$40,2,0)) -> 0 | AT61: 0 | BD61: =Synthèse!$A$2 -> 2012 | BE61: =IF(Synthèse!$C$2="","",Synthèse!$C$2) ->  | BF61: =IF(Synthèse!$B$2="","",Synthèse!$B$2) -> Janvier | BG61: =IF(Synthèse!$D$2="","",Synthèse!$D$2) -> GERMAIN | BH61: sp
G62: 2010 | H62: =IF(K62="","",VLOOKUP(I62,'Suiv Contr '!$D$14:$E$25,2)) -> mars | I62: 3 | J62: 5 | K62: 2010-03-12 | L62: Germain | M62: Champagnole | N62: Champagnole | Q62: =IF(N62="","",VLOOKUP(N62,Ville!$A$3:$E$40,4,0)) -> p | R62: 0 | S62: =IF(N62="",0,VLOOKUP(N62,Ville!$A$3:$E$40,3,0)) -> 00:00:00 | U62: 2 | AC62: 2 | AD62: 2 | AE62: =IF(N62="","",VLOOKUP(N62,Ville!$A$3:$E$40,2,0)) -> 0 | AT62: 0 | BD62: année | BE62: ville | BF62: mois | BG62: nom | BH62: pointage
G63: 2010 | H63: =IF(K63="","",VLOOKUP(I63,'Suiv Contr '!$D$14:$E$25,2)) -> mars | I63: 3 | J63: 1 | K63: 2010-03-15 | L63: Germain | M63: Les Pins | N63: Les Pins | Q63: =IF(N63="","",VLOOKUP(N63,Ville!$A$3:$E$40,4,0)) -> ca | R63: 0 | S63: =IF(N63="",0,VLOOKUP(N63,Ville!$A$3:$E$40,3,0)) -> 03:00:00 | V63: 13 | Y63: 1 | AA63: 2 | AC63: 13 | AD63: 14 | AE63: =IF(N63="","",VLOOKUP(N63,Ville!$A$3:$E$40,2,0)) -> 390 | AT63: 0 | AZ63: 1 | BD63: =Synthèse!$A$2 -> 2012 | BE63: =IF(Synthèse!$C$2="","",Synthèse!$C$2) ->  | BF63: =IF(Synthèse!$B$2="","",Synthèse!$B$2) -> Janvier | BG63: =IF(Synthèse!$D$2="","",Synthèse!$D$2) -> GERMAIN | BH63: f
G64: 2010 | H64: =IF(K64="","",VLOOKUP(I64,'Suiv Contr '!$D$14:$E$25,2)) -> mars | I64: 3 | J64: 2 | K64: 2010-03-16 | L64: Germain | M64: Champagnole | N64: Champagnole | Q64: =IF(N64="","",VLOOKUP(N64,Ville!$A$3:$E$40,4,0)) -> p | R64: 0 | S64: =IF(N64="",0,VLOOKUP(N64,Ville!$A$3:$E$40,3,0)) -> 00:00:00 | U64: 10 | V64: 3 | Z64: 2 | AA64: 1 | AC64: 13 | AD64: 13 | AE64: =IF(N64="","",VLOOKUP(N64,Ville!$A$3:$E$40,2,0)) -> 0 | AT64: 0 | BD64: année | BE64: ville | BF64: mois | BG64: nom | BH64: pointage
G65: 2010 | H65: =IF(K65="","",VLOOKUP(I65,'Suiv Contr '!$D$14:$E$25,2)) -> mars | I65: 3 | J65: 3 | K65: 2010-03-17 | L65: Germain | M65: Thann | N65: Thann | Q65: =IF(N65="","",VLOOKUP(N65,Ville!$A$3:$E$40,4,0)) -> ca | R65: 0 | S65: =IF(N65="",0,VLOOKUP(N65,Ville!$A$3:$E$40,3,0)) -> 04:30:00 | U65: 4 | W65: 4 | Y65: 1 | AC65: 8 | AD65: 9 | AE65: =IF(N65="","",VLOOKUP(N65,Ville!$A$3:$E$40,2,0)) -> 402 | AT65: 0 | AZ65: 1 | BD65: =Synthèse!$A$2 -> 2012 | BE65: =IF(Synthèse!$C$2="","",Synthèse!$C$2) ->  | BF65: =IF(Synthèse!$B$2="","",Synthèse!$B$2) -> Janvier | BG65: =IF(Synthèse!$D$2="","",Synthèse!$D$2) -> GERMAIN | BH65: m
G66: 2010 | H66: =IF(K66="","",VLOOKUP(I66,'Suiv Contr '!$D$14:$E$25,2)) -> mars | I66: 3 | J66: 4 | K66: 2010-03-18 | L66: Germain | M66: Champagnole | N66: Champagnole | Q66: =IF(N66="","",VLOOKUP(N66,Ville!$A$3:$E$40,4,0)) -> p | R66: 0 | S66: =IF(N66="",0,VLOOKUP(N66,Ville!$A$3:$E$40,3,0)) -> 00:00:00 | U66: 6 | V66: 3 | AC66: 9 | AD66: 9 | AE66: =IF(N66="","",VLOOKUP(N66,Ville!$A$3:$E$40,2,0)) -> 0 | AT66: 0 | BD66: année | BE66: ville | BF66: mois | BG66: nom | BH66: pointage
G67: 2010 | H67: =IF(K67="","",VLOOKUP(I67,'Suiv Contr '!$D$14:$E$25,2)) -> mars | I67: 3 | J67: 5 | K67: 2010-03-19 | L67: Germain | M67: Champagnole | N67: Champagnole | Q67: =IF(N67="","",VLOOKUP(N67,Ville!$A$3:$E$40,4,0)) -> p | R67: 0 | S67: =IF(N67="",0,VLOOKUP(N67,Ville!$A$3:$E$40,3,0)) -> 00:00:00 | U67: 5 | AC67: 5 | AD67: 5 | AE67: =IF(N67="","",VLOOKUP(N67,Ville!$A$3:$E$40,2,0)) -> 0 | AT67: 0 | BD67: =Synthèse!$A$2 -> 2012 | BE67: =IF(Synthèse!$C$2="","",Synthèse!$C$2) ->  | BF67: =IF(Synthèse!$B$2="","",Synthèse!$B$2) -> Janvier | BG67: =IF(Synthèse!$D$2="","",Synthèse!$D$2) -> GERMAIN | BH67: reu
G68: 2010 | H68: =IF(K68="","",VLOOKUP(I68,'Suiv Contr '!$D$14:$E$25,2)) -> mars | I68: 3 | J68: 1 | K68: 2010-03-22 | L68: Germain | M68: Meythet | N68: Meythet | Q68: =IF(N68="","",VLOOKUP(N68,Ville!$A$3:$E$40,4,0)) -> ca | R68: 0 | S68: =IF(N68="",0,VLOOKUP(N68,Ville!$A$3:$E$40,3,0)) -> 04:20:00 | U68: 9 | AC68: 9 | AD68: 9 | AE68: =IF(N68="","",VLOOKUP(N68,Ville!$A$3:$E$40,2,0)) -> 298 | AT68: 0 | AZ68: 1 | BD68: année | BE68: ville | BF68: mois | BG68: nom | BH68: pointage
G69: 2010 | H69: =IF(K69="","",VLOOKUP(I69,'Suiv Contr '!$D$14:$E$25,2)) -> mars | I69: 3 | J69: 2 | K69: 2010-03-23 | L69: Germain | M69: Champagnole | N69: Champagnole | Q69: =IF(N69="","",VLOOKUP(N69,Ville!$A$3:$E$40,4,0)) -> p | R69: 0 | S69: =IF(N69="",0,VLOOKUP(N69,Ville!$A$3:$E$40,3,0)) -> 00:00:00 | U69: 7 | V69: 3 | W69: 1 | Z69: 2 | AA69: 1 | AC69: 11 | AD69: 11 | AE69: =IF(N69="","",VLOOKUP(N69,Ville!$A$3:$E$40,2,0)) -> 0 | AT69: 0 | BD69: =Synthèse!$A$2 -> 2012 | BE69: =IF(Synthèse!$C$2="","",Synthèse!$C$2) ->  | BF69: =IF(Synthèse!$B$2="","",Synthèse!$B$2) -> Janvier | BG69: =IF(Synthèse!$D$2="","",Synthèse!$D$2) -> GERMAIN | BH69: v
G70: 2010 | H70: =IF(K70="","",VLOOKUP(I70,'Suiv Contr '!$D$14:$E$25,2)) -> mars | I70: 3 | J70: 3 | K70: 2010-03-24 | L70: Germain | M70: Fains les Montbard | N70: Fains les Montbard | Q70: =IF(N70="","",VLOOKUP(N70,Ville!$A$3:$E$40,4,0)) -> sp | R70: 0 | S70: =IF(N70="",0,VLOOKUP(N70,Ville!$A$3:$E$40,3,0)) -> 03:30:00 | U70: 6 | Z70: 2 | AC70: 6 | AD70: 6 | AE70: =IF(N70="","",VLOOKUP(N70,Ville!$A$3:$E$40,2,0)) -> 366 | AT70: 0 | AZ70: 1 | BD70: année | BE70: ville | BF70: mois | BG70: nom | BH70: pointage
G71: 2010 | H71: =IF(K71="","",VLOOKUP(I71,'Suiv Contr '!$D$14:$E$25,2)) -> mars | I71: 3 | J71: 4 | K71: 2010-03-25 | L71: Germain | M71: Champagnole | N71: Champagnole | Q71: =IF(N71="","",VLOOKUP(N71,Ville!$A$3:$E$40,4,0)) -> p | R71: 0 | S71: =IF(N71="",0,VLOOKUP(N71,Ville!$A$3:$E$40,3,0)) -> 00:00:00 | U71: 5 | Y71: 1 | AC71: 5 | AD71: 6 | AE71: =IF(N71="","",VLOOKUP(N71,Ville!$A$3:$E$40,2,0)) -> 0 | AT71: 0 | BD71: =Synthèse!$A$2 -> 2012 | BE71: =IF(Synthèse!$C$2="","",Synthèse!$C$2) ->  | BF71: =IF(Synthèse!$B$2="","",Synthèse!$B$2) -> Janvier | BG71: =IF(Synthèse!$D$2="","",Synthèse!$D$2) -> GERMAIN | BH71: rec
G72: 2010 | H72: =IF(K72="","",VLOOKUP(I72,'Suiv Contr '!$D$14:$E$25,2)) -> mars | I72: 3 | J72: 5 | K72: 2010-03-26 | L72: Germain | M72: Champagnole | N72: Champagnole | Q72: =IF(N72="","",VLOOKUP(N72,Ville!$A$3:$E$40,4,0)) -> p | R72: 0 | S72: =IF(N72="",0,VLOOKUP(N72,Ville!$A$3:$E$40,3,0)) -> 00:00:00 | U72: 9 | Z72: 1 | AA72: 1 | AC72: 9 | AD72: 9 | AE72: =IF(N72="","",VLOOKUP(N72,Ville!$A$3:$E$40,2,0)) -> 0 | AT72: 0
G73: 2010 | H73: =IF(K73="","",VLOOKUP(I73,'Suiv Contr '!$D$14:$E$25,2)) -> mars | I73: 3 | J73: 1 | K73: 2010-03-29 | L73: Germain | M73: Rambervillier | N73: Rambervillier | Q73: =IF(N73="","",VLOOKUP(N73,Ville!$A$3:$E$40,4,0)) -> ca | R73: 0 | S73: =IF(N73="",0,VLOOKUP(N73,Ville!$A$3:$E$40,3,0)) -> 05:00:00 | U73: 9 | Y73: 1 | AC73: 9 | AD73: 10 | AE73: =IF(N73="","",VLOOKUP(N73,Ville!$A$3:$E$40,2,0)) -> 448 | AT73: 0 | AZ73: 1 | BD73: année | BE73: ville | BF73: mois | BG73: nom | BH73: pointage
G74: 2010 | H74: =IF(K74="","",VLOOKUP(I74,'Suiv Contr '!$D$14:$E$25,2)) -> mars | I74: 3 | J74: 2 | K74: 2010-03-30 | L74: Germain | M74: Champagnole | N74: Champagnole | Q74: =IF(N74="","",VLOOKUP(N74,Ville!$A$3:$E$40,4,0)) -> p | R74: 0 | S74: =IF(N74="",0,VLOOKUP(N74,Ville!$A$3:$E$40,3,0)) -> 00:00:00 | U74: 5 | Y74: 1 | Z74: 2 | AC74: 5 | AD74: 6 | AE74: =IF(N74="","",VLOOKUP(N74,Ville!$A$3:$E$40,2,0)) -> 0 | AT74: 0 | BD74: =Synthèse!$A$2-1 -> 2011 | BE74: =IF(Synthèse!$C$2="","",Synthèse!$C$2) ->  | BF74: =IF(Synthèse!$B$2="","",Synthèse!$B$2) -> Janvier | BG74: =IF(Synthèse!$D$2="","",Synthèse!$D$2) -> GERMAIN | BH74: p
G75: 2010 | H75: =IF(K75="","",VLOOKUP(I75,'Suiv Contr '!$D$14:$E$25,2)) -> mars | I75: 3 | J75: 3 | K75: 2010-03-31 | L75: Germain | M75: Champagnole | N75: Champagnole | Q75: rec | R75: 0 | S75: =IF(N75="",0,VLOOKUP(N75,Ville!$A$3:$E$40,3,0)) -> 00:00:00 | T75: 07:00:00 | AC75: 0 | AD75: 0 | AE75: =IF(N75="","",VLOOKUP(N75,Ville!$A$3:$E$40,2,0)) -> 0 | AT75: 0 | BD75: année | BE75: ville | BF75: mois | BG75: nom | BH75: pointage
G76: 2010 | H76: =IF(K76="","",VLOOKUP(I76,'Suiv Contr '!$D$14:$E$25,2)) -> avril | I76: 4 | J76: 4 | K76: 2010-04-01 | L76: Germain | M76: Champagnole | N76: Champagnole | Q76: =IF(N76="","",VLOOKUP(N76,Ville!$A$3:$E$40,4,0)) -> p | R76: 0 | S76: =IF(N76="",0,VLOOKUP(N76,Ville!$A$3:$E$40,3,0)) -> 00:00:00 | U76: 8 | V76: 1 | W76: 1 | Y76: 1 | AC76: 10 | AD76: 11 | AE76: =IF(N76="","",VLOOKUP(N76,Ville!$A$3:$E$40,2,0)) -> 0 | AT76: 0 | BD76: =Synthèse!$A$2-1 -> 2011 | BE76: =IF(Synthèse!$C$2="","",Synthèse!$C$2) ->  | BF76: =IF(Synthèse!$B$2="","",Synthèse!$B$2) -> Janvier | BG76: =IF(Synthèse!$D$2="","",Synthèse!$D$2) -> GERMAIN | BH76: ex
G77: 2010 | H77: =IF(K77="","",VLOOKUP(I77,'Suiv Contr '!$D$14:$E$25,2)) -> avril | I77: 4 | J77: 5 | K77: 2010-04-02 | L77: Germain | M77: Champagnole | N77: Champagnole | Q77: =IF(N77="","",VLOOKUP(N77,Ville!$A$3:$E$40,4,0)) -> p | R77: 0 | S77: =IF(N77="",0,VLOOKUP(N77,Ville!$A$3:$E$40,3,0)) -> 00:00:00 | U77: 8 | V77: 2 | Z77: 1 | AA77: 1 | AC77: =U77+V77+W77+X77 -> 10 | AD77: =AC77+Y77 -> 10 | AE77: =IF(N77="","",VLOOKUP(N77,Ville!$A$3:$E$40,2,0)) -> 0 | AT77: 0 | AZ77: =IF(OR(N77="champagnole",N77=""),"",1) ->  | BD77: année | BE77: ville | BF77: mois | BG77: nom | BH77: pointage
G78: =IF(K78="","",YEAR(K78)) -> 2010 | H78: =IF(K78="","",VLOOKUP(I78,'Suiv Contr '!$D$14:$E$25,2)) -> avril | I78: =IF(K78="","",MONTH(K78)) -> 4 | J78: =IF(K78="","",WEEKDAY(K78,2)) -> 1 | K78: 2010-04-05 | L78: FERIE | M78: =N78 -> 00:00:00 | Q78: =IF(N78="","",VLOOKUP(N78,Ville!$A$3:$E$40,4,0)) ->  | R78: =IF(Q78="v",1,0) -> 0 | S78: =IF(N78="",0,VLOOKUP(N78,Ville!$A$3:$E$40,3,0)) -> 00:00:00 | AC78: 0 | AD78: 0 | AE78: =IF(N78="","",VLOOKUP(N78,Ville!$A$3:$E$40,2,0)) ->  | AT78: =SUM(AH78:AS78) -> 0 | BD78: =Synthèse!$A$2-1 -> 2011 | BE78: =IF(Synthèse!$C$2="","",Synthèse!$C$2) ->  | BF78: =IF(Synthèse!$B$2="","",Synthèse!$B$2) -> Janvier | BG78: =IF(Synthèse!$D$2="","",Synthèse!$D$2) -> GERMAIN | BH78: ca
G79: 2010 | H79: =IF(K79="","",VLOOKUP(I79,'Suiv Contr '!$D$14:$E$25,2)) -> avril | I79: 4 | J79: 2 | K79: 2010-04-06 | L79: Germain | M79: Ennery | N79: Ennery | Q79: f | R79: 0 | S79: =IF(N79="",0,VLOOKUP(N79,Ville!$A$3:$E$40,3,0)) -> 06:00:00 | AC79: 0 | AD79: 0 | AE79: =IF(N79="","",VLOOKUP(N79,Ville!$A$3:$E$40,2,0)) -> 752 | AT79: 0 | AZ79: 1 | BD79: année | BE79: ville | BF79: mois | BG79: nom | BH79: pointage
G80: 2010 | H80: =IF(K80="","",VLOOKUP(I80,'Suiv Contr '!$D$14:$E$25,2)) -> avril | I80: 4 | J80: 3 | K80: 2010-04-07 | L80: Germain | M80: Ennery | N80: Ennery | Q80: f | R80: 0 | AC80: 0 | AD80: 0 | AT80: 0 | AZ80: 1 | BD80: =Synthèse!$A$2-1 -> 2011 | BE80: =IF(Synthèse!$C$2="","",Synthèse!$C$2) ->  | BF80: =IF(Synthèse!$B$2="","",Synthèse!$B$2) -> Janvier | BG80: =IF(Synthèse!$D$2="","",Synthèse!$D$2) -> GERMAIN | BH80: sp
G81: 2010 | H81: =IF(K81="","",VLOOKUP(I81,'Suiv Contr '!$D$14:$E$25,2)) -> avril | I81: 4 | J81: 4 | K81: 2010-04-08 | L81: Germain | M81: Ennery | N81: Ennery | Q81: f | R81: 0 | AC81: 0 | AD81: 0 | AT81: 0 | AZ81: 1 | BD81: année | BE81: ville | BF81: mois | BG81: nom | BH81: pointage
G82: 2010 | H82: =IF(K82="","",VLOOKUP(I82,'Suiv Contr '!$D$14:$E$25,2)) -> avril | I82: 4 | J82: 5 | K82: 2010-04-09 | L82: Germain | M82: Ennery | N82: Ennery | Q82: f | R82: 0 | AC82: 0 | AD82: 0 | AT82: 0 | AZ82: 1 | BD82: =Synthèse!$A$2-1 -> 2011 | BE82: =IF(Synthèse!$C$2="","",Synthèse!$C$2) ->  | BF82: =IF(Synthèse!$B$2="","",Synthèse!$B$2) -> Janvier | BG82: =IF(Synthèse!$D$2="","",Synthèse!$D$2) -> GERMAIN | BH82: f
G83: 2010 | H83: =IF(K83="","",VLOOKUP(I83,'Suiv Contr '!$D$14:$E$25,2)) -> avril | I83: 4 | J83: 5 | K83: 2010-04-09 | L83: Boyer | M83: Champagnole | N83: Champagnole | Q83: ex | R83: 0 | S83: =IF(N83="",0,VLOOKUP(N83,Ville!$A$3:$E$40,3,0)) -> 00:00:00 | U83: 5 | V83: 1 | AE83: =IF(N83="","",VLOOKUP(N83,Ville!$A$3:$E$40,2,0)) -> 0 | AT83: 0 | BD83: année | BE83: ville | BF83: mois | BG83: nom | BH83: pointage
G84: 2010 | H84: =IF(K84="","",VLOOKUP(I84,'Suiv Contr '!$D$14:$E$25,2)) -> avril | I84: 4 | J84: 1 | K84: 2010-04-12 | L84: Germain | M84: Rambervillier | N84: Rambervillier | Q84: =IF(N84="","",VLOOKUP(N84,Ville!$A$3:$E$40,4,0)) -> ca | R84: 0 | S84: =IF(N84="",0,VLOOKUP(N84,Ville!$A$3:$E$40,3,0)) -> 05:00:00 | U84: 6 | AC84: =U84+V84+W84+X84 -> 6 | AD84: =AC84+Y84 -> 6 | AE84: =IF(N84="","",VLOOKUP(N84,Ville!$A$3:$E$40,2,0)) -> 448 | AT84: 0 | AZ84: 1 | BD84: =Synthèse!$A$2-1 -> 2011 | BE84: =IF(Synthèse!$C$2="","",Synthèse!$C$2) ->  | BF84: =IF(Synthèse!$B$2="","",Synthèse!$B$2) -> Janvier | BG84: =IF(Synthèse!$D$2="","",Synthèse!$D$2) -> GERMAIN | BH84: m
G85: 2010 | H85: =IF(K85="","",VLOOKUP(I85,'Suiv Contr '!$D$14:$E$25,2)) -> avril | I85: 4 | J85: 2 | K85: 2010-04-13 | L85: Germain | M85: Champagnole | N85: Champagnole | Q85: p | R85: 0 | S85: =IF(N85="",0,VLOOKUP(N85,Ville!$A$3:$E$40,3,0)) -> 00:00:00 | U85: 7 | V85: 3 | Y85: 1 | Z85: 1 | AC85: 10 | AD85: 11 | AE85: =IF(N85="","",VLOOKUP(N85,Ville!$A$3:$E$40,2,0)) -> 0 | AT85: 0 | BD85: année | BE85: ville | BF85: mois | BG85: nom | BH85: pointage
G86: 2010 | H86: =IF(K86="","",VLOOKUP(I86,'Suiv Contr '!$D$14:$E$25,2)) -> avril | I86: 4 | J86: 3 | K86: 2010-04-14 | L86: Germain | M86: Thann | N86: Thann | Q86: =IF(N86="","",VLOOKUP(N86,Ville!$A$3:$E$40,4,0)) -> ca | R86: 0 | S86: =IF(N86="",0,VLOOKUP(N86,Ville!$A$3:$E$40,3,0)) -> 04:30:00 | W86: 6 | AC86: 6 | AD86: 6 | AE86: =IF(N86="","",VLOOKUP(N86,Ville!$A$3:$E$40,2,0)) -> 402 | AT86: 0 | AZ86: 1 | BD86: =Synthèse!$A$2-1 -> 2011 | BE86: =IF(Synthèse!$C$2="","",Synthèse!$C$2) ->  | BF86: =IF(Synthèse!$B$2="","",Synthèse!$B$2) -> Janvier | BG86: =IF(Synthèse!$D$2="","",Synthèse!$D$2) -> GERMAIN | BH86: reu
G87: 2010 | H87: =IF(K87="","",VLOOKUP(I87,'Suiv Contr '!$D$14:$E$25,2)) -> avril | I87: 4 | J87: 4 | K87: 2010-04-15 | L87: Germain | M87: Champagnole | N87: Champagnole | Q87: =IF(N87="","",VLOOKUP(N87,Ville!$A$3:$E$40,4,0)) -> p | R87: 0 | S87: =IF(N87="",0,VLOOKUP(N87,Ville!$A$3:$E$40,3,0)) -> 00:00:00 | U87: 4 | V87: 3 | Y87: 2 | AC87: 7 | AD87: 9 | AE87: =IF(N87="","",VLOOKUP(N87,Ville!$A$3:$E$40,2,0)) -> 0 | AT87: 0 | BD87: année | BE87: ville | BF87: mois | BG87: nom | BH87: pointage
G88: 2010 | H88: =IF(K88="","",VLOOKUP(I88,'Suiv Contr '!$D$14:$E$25,2)) -> avril | I88: 4 | J88: 5 | K88: 2010-04-16 | L88: Germain | M88: Champagnole | N88: Champagnole | Q88: =IF(N88="","",VLOOKUP(N88,Ville!$A$3:$E$40,4,0)) -> p | R88: 0 | S88: =IF(N88="",0,VLOOKUP(N88,Ville!$A$3:$E$40,3,0)) -> 00:00:00 | U88: 6 | Y88: 2 | AA88: 1 | AC88: 6 | AD88: 8 | AE88: =IF(N88="","",VLOOKUP(N88,Ville!$A$3:$E$40,2,0)) -> 0 | AT88: 0 | BD88: =Synthèse!$A$2-1 -> 2011 | BE88: =IF(Synthèse!$C$2="","",Synthèse!$C$2) ->  | BF88: =IF(Synthèse!$B$2="","",Synthèse!$B$2) -> Janvier | BG88: =IF(Synthèse!$D$2="","",Synthèse!$D$2) -> GERMAIN | BH88: v
G89: 2010 | H89: =IF(K89="","",VLOOKUP(I89,'Suiv Contr '!$D$14:$E$25,2)) -> avril | I89: 4 | J89: 1 | K89: 2010-04-19 | L89: Germain | M89: Champagnole | N89: Champagnole | Q89: m | R89: 0 | S89: =IF(N89="",0,VLOOKUP(N89,Ville!$A$3:$E$40,3,0)) -> 00:00:00 | AC89: 0 | AD89: 0 | AE89: =IF(N89="","",VLOOKUP(N89,Ville!$A$3:$E$40,2,0)) -> 0 | AT89: 0 | BD89: année | BE89: ville | BF89: mois | BG89: nom | BH89: pointage
G90: 2010 | H90: =IF(K90="","",VLOOKUP(I90,'Suiv Contr '!$D$14:$E$25,2)) -> avril | I90: 4 | J90: 2 | K90: 2010-04-20 | L90: Germain | M90: Champagnole | N90: Champagnole | Q90: m | R90: 0 | S90: =IF(N90="",0,VLOOKUP(N90,Ville!$A$3:$E$40,3,0)) -> 00:00:00 | AC90: 0 | AD90: 0 | AE90: =IF(N90="","",VLOOKUP(N90,Ville!$A$3:$E$40,2,0)) -> 0 | AT90: 0 | BD90: =Synthèse!$A$2-1 -> 2011 | BE90: =IF(Synthèse!$C$2="","",Synthèse!$C$2) ->  | BF90: =IF(Synthèse!$B$2="","",Synthèse!$B$2) -> Janvier | BG90: =IF(Synthèse!$D$2="","",Synthèse!$D$2) -> GERMAIN | BH90: rec
G91: 2010 | H91: =IF(K91="","",VLOOKUP(I91,'Suiv Contr '!$D$14:$E$25,2)) -> avril | I91: 4 | J91: 3 | K91: 2010-04-21 | L91: Germain | M91: Champagnole | N91: Champagnole | Q91: m | R91: 0 | S91: =IF(N91="",0,VLOOKUP(N91,Ville!$A$3:$E$40,3,0)) -> 00:00:00 | AC91: 0 | AD91: 0 | AE91: =IF(N91="","",VLOOKUP(N91,Ville!$A$3:$E$40,2,0)) -> 0 | AT91: 0
G92: 2010 | H92: =IF(K92="","",VLOOKUP(I92,'Suiv Contr '!$D$14:$E$25,2)) -> avril | I92: 4 | J92: 4 | K92: 2010-04-22 | L92: Germain | M92: Champagnole | N92: Champagnole | Q92: m | R92: 0 | S92: =IF(N92="",0,VLOOKUP(N92,Ville!$A$3:$E$40,3,0)) -> 00:00:00 | AC92: 0 | AD92: 0 | AE92: =IF(N92="","",VLOOKUP(N92,Ville!$A$3:$E$40,2,0)) -> 0 | AT92: 0
G93: 2010 | H93: =IF(K93="","",VLOOKUP(I93,'Suiv Contr '!$D$14:$E$25,2)) -> avril | I93: 4 | J93: 5 | K93: 2010-04-23 | L93: Germain | M93: Champagnole | N93: Champagnole | Q93: m | R93: 0 | S93: =IF(N93="",0,VLOOKUP(N93,Ville!$A$3:$E$40,3,0)) -> 00:00:00 | AC93: 0 | AD93: 0 | AE93: =IF(N93="","",VLOOKUP(N93,Ville!$A$3:$E$40,2,0)) -> 0 | AT93: 0
G94: 2010 | H94: =IF(K94="","",VLOOKUP(I94,'Suiv Contr '!$D$14:$E$25,2)) -> avril | I94: 4 | J94: 1 | K94: 2010-04-26 | L94: Germain | M94: Meythet | N94: Meythet | Q94: =IF(N94="","",VLOOKUP(N94,Ville!$A$3:$E$40,4,0)) -> ca | R94: 0 | S94: =IF(N94="",0,VLOOKUP(N94,Ville!$A$3:$E$40,3,0)) -> 04:20:00 | U94: 8 | V94: 1 | AA94: 2 | AC94: 9 | AD94: 9 | AE94: =IF(N94="","",VLOOKUP(N94,Ville!$A$3:$E$40,2,0)) -> 298 | AT94: 0 | AZ94: 1
G95: 2010 | H95: =IF(K95="","",VLOOKUP(I95,'Suiv Contr '!$D$14:$E$25,2)) -> avril | I95: 4 | J95: 2 | K95: 2010-04-27 | L95: Germain | M95: Champagnole | N95: Champagnole | Q95: =IF(N95="","",VLOOKUP(N95,Ville!$A$3:$E$40,4,0)) -> p | R95: 0 | S95: =IF(N95="",0,VLOOKUP(N95,Ville!$A$3:$E$40,3,0)) -> 00:00:00 | U95: 14 | V95: 1 | Z95: 1 | AC95: 15 | AD95: 15 | AE95: =IF(N95="","",VLOOKUP(N95,Ville!$A$3:$E$40,2,0)) -> 0 | AT95: 0
G96: 2010 | H96: =IF(K96="","",VLOOKUP(I96,'Suiv Contr '!$D$14:$E$25,2)) -> avril | I96: 4 | J96: 3 | K96: 2010-04-28 | L96: Germain | M96: Champagnole | N96: Champagnole | Q96: =IF(N96="","",VLOOKUP(N96,Ville!$A$3:$E$40,4,0)) -> p | R96: 0 | S96: =IF(N96="",0,VLOOKUP(N96,Ville!$A$3:$E$40,3,0)) -> 00:00:00 | U96: 6 | AC96: 6 | AD96: 6 | AE96: =IF(N96="","",VLOOKUP(N96,Ville!$A$3:$E$40,2,0)) -> 0 | AT96: 0
G97: 2010 | H97: =IF(K97="","",VLOOKUP(I97,'Suiv Contr '!$D$14:$E$25,2)) -> avril | I97: 4 | J97: 4 | K97: 2010-04-29 | L97: Germain | M97: Champagnole | N97: Champagnole | Q97: =IF(N97="","",VLOOKUP(N97,Ville!$A$3:$E$40,4,0)) -> p | R97: 0 | S97: =IF(N97="",0,VLOOKUP(N97,Ville!$A$3:$E$40,3,0)) -> 00:00:00 | U97: 10 | V97: 1 | Y97: 1 | AA97: 1 | AC97: 11 | AD97: 12 | AE97: =IF(N97="","",VLOOKUP(N97,Ville!$A$3:$E$40,2,0)) -> 0 | AT97: 0
G98: 2010 | H98: =IF(K98="","",VLOOKUP(I98,'Suiv Contr '!$D$14:$E$25,2)) -> avril | I98: 4 | J98: 5 | K98: 2010-04-30 | L98: Germain | M98: Champagnole | N98: Champagnole | Q98: =IF(N98="","",VLOOKUP(N98,Ville!$A$3:$E$40,4,0)) -> p | R98: 0 | S98: =IF(N98="",0,VLOOKUP(N98,Ville!$A$3:$E$40,3,0)) -> 00:00:00 | U98: 1 | V98: 2 | AC98: 3 | AD98: 3 | AE98: =IF(N98="","",VLOOKUP(N98,Ville!$A$3:$E$40,2,0)) -> 0 | AT98: 0
G99: 2010 | H99: =IF(K99="","",VLOOKUP(I99,'Suiv Contr '!$D$14:$E$25,2)) -> mai | I99: 5 | J99: 1 | K99: 2010-05-03 | L99: Germain | M99: Champagnole | N99: Champagnole | Q99: v | R99: 1 | S99: =IF(N99="",0,VLOOKUP(N99,Ville!$A$3:$E$40,3,0)) -> 00:00:00 | AC99: 0 | AD99: 0 | AE99: =IF(N99="","",VLOOKUP(N99,Ville!$A$3:$E$40,2,0)) -> 0 | AT99: 0
G100: 2010 | H100: =IF(K100="","",VLOOKUP(I100,'Suiv Contr '!$D$14:$E$25,2)) -> mai | I100: 5 | J100: 2 | K100: 2010-05-04 | L100: Germain | M100: Champagnole | N100: Champagnole | Q100: v | R100: 1 | S100: =IF(N100="",0,VLOOKUP(N100,Ville!$A$3:$E$40,3,0)) -> 00:00:00 | AC100: 0 | AD100: 0 | AE100: =IF(N100="","",VLOOKUP(N100,Ville!$A$3:$E$40,2,0)) -> 0 | AT100: 0
G101: 2010 | H101: =IF(K101="","",VLOOKUP(I101,'Suiv Contr '!$D$14:$E$25,2)) -> mai | I101: 5 | J101: 2 | K101: 2010-05-04 | L101: Boyer | M101: Champagnole | N101: Champagnole | Q101: ex | R101: 0 | S101: =IF(N101="",0,VLOOKUP(N101,Ville!$A$3:$E$40,3,0)) -> 00:00:00 | U101: 5 | V101: 3 | AC101: 8 | AD101: 8 | AE101: =IF(N101="","",VLOOKUP(N101,Ville!$A$3:$E$40,2,0)) -> 0 | AT101: 0
G102: 2010 | H102: =IF(K102="","",VLOOKUP(I102,'Suiv Contr '!$D$14:$E$25,2)) -> mai | I102: 5 | J102: 3 | K102: 2010-05-05 | L102: Germain | M102: Champagnole | N102: Champagnole | Q102: v | R102: 1 | S102: =IF(N102="",0,VLOOKUP(N102,Ville!$A$3:$E$40,3,0)) -> 00:00:00 | AC102: 0 | AD102: 0 | AE102: =IF(N102="","",VLOOKUP(N102,Ville!$A$3:$E$40,2,0)) -> 0 | AT102: 0
G103: 2010 | H103: =IF(K103="","",VLOOKUP(I103,'Suiv Contr '!$D$14:$E$25,2)) -> mai | I103: 5 | J103: 4 | K103: 2010-05-06 | L103: Germain | M103: Champagnole | N103: Champagnole | Q103: v | R103: 1 | S103: =IF(N103="",0,VLOOKUP(N103,Ville!$A$3:$E$40,3,0)) -> 00:00:00 | AC103: 0 | AD103: 0 | AE103: =IF(N103="","",VLOOKUP(N103,Ville!$A$3:$E$40,2,0)) -> 0 | AT103: 0
G104: 2010 | H104: =IF(K104="","",VLOOKUP(I104,'Suiv Contr '!$D$14:$E$25,2)) -> mai | I104: 5 | J104: 4 | K104: 2010-05-06 | L104: Boyer | M104: Champagnole | N104: Champagnole | Q104: ex | R104: 0 | S104: =IF(N104="",0,VLOOKUP(N104,Ville!$A$3:$E$40,3,0)) -> 00:00:00 | U104: 5 | Y104: 1 | AA104: 1 | AC104: 5 | AD104: 6 | AE104: =IF(N104="","",VLOOKUP(N104,Ville!$A$3:$E$40,2,0)) -> 0 | AT104: 0
G105: 2010 | H105: =IF(K105="","",VLOOKUP(I105,'Suiv Contr '!$D$14:$E$25,2)) -> mai | I105: 5 | J105: 5 | K105: 2010-05-07 | L105: Germain | M105: Champagnole | N105: Champagnole | Q105: v | R105: 1 | S105: =IF(N105="",0,VLOOKUP(N105,Ville!$A$3:$E$40,3,0)) -> 00:00:00 | AC105: 0 | AD105: 0 | AE105: =IF(N105="","",VLOOKUP(N105,Ville!$A$3:$E$40,2,0)) -> 0 | AT105: 0
G106: 2010 | H106: =IF(K106="","",VLOOKUP(I106,'Suiv Contr '!$D$14:$E$25,2)) -> mai | I106: 5 | J106: 1 | K106: 2010-05-10 | L106: Germain | M106: Meythet | N106: Meythet | Q106: =IF(N106="","",VLOOKUP(N106,Ville!$A$3:$E$40,4,0)) -> ca | R106: 0 | S106: =IF(N106="",0,VLOOKUP(N106,Ville!$A$3:$E$40,3,0)) -> 04:20:00 | U106: 2 | V106: 1 | AA106: 1 | AC106: 3 | AD106: 3 | AE106: =IF(N106="","",VLOOKUP(N106,Ville!$A$3:$E$40,2,0)) -> 298 | AT106: 0 | AZ106: 1
G107: 2010 | H107: =IF(K107="","",VLOOKUP(I107,'Suiv Contr '!$D$14:$E$25,2)) -> mai | I107: 5 | J107: 2 | K107: 2010-05-11 | L107: Germain | M107: Champagnole | N107: Champagnole | Q107: =IF(N107="","",VLOOKUP(N107,Ville!$A$3:$E$40,4,0)) -> p | R107: 0 | S107: =IF(N107="",0,VLOOKUP(N107,Ville!$A$3:$E$40,3,0)) -> 00:00:00 | U107: 5 | V107: 3 | Z107: 1 | AC107: 8 | AD107: 8 | AE107: =IF(N107="","",VLOOKUP(N107,Ville!$A$3:$E$40,2,0)) -> 0 | AT107: 0
G108: 2010 | H108: =IF(K108="","",VLOOKUP(I108,'Suiv Contr '!$D$14:$E$25,2)) -> mai | I108: 5 | J108: 3 | K108: 2010-05-12 | L108: Germain | M108: Champagnole | N108: Champagnole | Q108: =IF(N108="","",VLOOKUP(N108,Ville!$A$3:$E$40,4,0)) -> p | R108: 0 | S108: =IF(N108="",0,VLOOKUP(N108,Ville!$A$3:$E$40,3,0)) -> 00:00:00 | U108: 5 | V108: 2 | AC108: 7 | AD108: 7 | AE108: =IF(N108="","",VLOOKUP(N108,Ville!$A$3:$E$40,2,0)) -> 0 | AT108: 0
G109: 2010 | H109: =IF(K109="","",VLOOKUP(I109,'Suiv Contr '!$D$14:$E$25,2)) -> mai | I109: 5 | J109: 4 | K109: 2010-05-13 | L109: FERIE | M109: 00:00:00 | Q109: =IF(N109="","",VLOOKUP(N109,Ville!$A$3:$E$40,4,0)) ->  | R109: 0 | S109: =IF(N109="",0,VLOOKUP(N109,Ville!$A$3:$E$40,3,0)) -> 00:00:00 | AC109: 0 | AD109: 0 | AE109: =IF(N109="","",VLOOKUP(N109,Ville!$A$3:$E$40,2,0)) ->  | AT109: 0
G110: 2010 | H110: =IF(K110="","",VLOOKUP(I110,'Suiv Contr '!$D$14:$E$25,2)) -> mai | I110: 5 | J110: 5 | K110: 2010-05-14 | L110: Germain | M110: Besançon iax | N110: Besançon iax | Q110: =IF(N110="","",VLOOKUP(N110,Ville!$A$3:$E$40,4,0)) -> ca | R110: 0 | S110: =IF(N110="",0,VLOOKUP(N110,Ville!$A$3:$E$40,3,0)) -> 01:50:00 | U110: 7 | V110: 1 | Z110: 1 | AA110: 1 | AC110: 8 | AD110: 8 | AE110: =IF(N110="","",VLOOKUP(N110,Ville!$A$3:$E$40,2,0)) -> 132 | AT110: 0 | AZ110: 1
G111: 2010 | H111: =IF(K111="","",VLOOKUP(I111,'Suiv Contr '!$D$14:$E$25,2)) -> mai | I111: 5 | J111: 1 | K111: 2010-05-17 | L111: Germain | M111: Rambervillier | N111: Rambervillier | Q111: =IF(N111="","",VLOOKUP(N111,Ville!$A$3:$E$40,4,0)) -> ca | R111: 0 | S111: =IF(N111="",0,VLOOKUP(N111,Ville!$A$3:$E$40,3,0)) -> 05:00:00 | U111: 4 | AC111: 4 | AD111: 4 | AE111: =IF(N111="","",VLOOKUP(N111,Ville!$A$3:$E$40,2,0)) -> 448 | AT111: 0 | AZ111: 1
G112: 2010 | H112: =IF(K112="","",VLOOKUP(I112,'Suiv Contr '!$D$14:$E$25,2)) -> mai | I112: 5 | J112: 2 | K112: 2010-05-18 | L112: Germain | M112: Champagnole | N112: Champagnole | Q112: =IF(N112="","",VLOOKUP(N112,Ville!$A$3:$E$40,4,0)) -> p | R112: 0 | S112: =IF(N112="",0,VLOOKUP(N112,Ville!$A$3:$E$40,3,0)) -> 00:00:00 | U112: 7 | V112: 1 | W112: 1 | AC112: 9 | AD112: 9 | AE112: =IF(N112="","",VLOOKUP(N112,Ville!$A$3:$E$40,2,0)) -> 0 | AT112: 0
G113: 2010 | H113: =IF(K113="","",VLOOKUP(I113,'Suiv Contr '!$D$14:$E$25,2)) -> mai | I113: 5 | J113: 3 | K113: 2010-05-19 | L113: Germain | M113: Thann | N113: Thann | Q113: =IF(N113="","",VLOOKUP(N113,Ville!$A$3:$E$40,4,0)) -> ca | R113: 0 | S113: =IF(N113="",0,VLOOKUP(N113,Ville!$A$3:$E$40,3,0)) -> 04:30:00 | U113: 1 | W113: 2 | AC113: 3 | AD113: 3 | AE113: =IF(N113="","",VLOOKUP(N113,Ville!$A$3:$E$40,2,0)) -> 402 | AT113: 0 | AZ113: 1
G114: 2010 | H114: =IF(K114="","",VLOOKUP(I114,'Suiv Contr '!$D$14:$E$25,2)) -> mai | I114: 5 | J114: 4 | K114: 2010-05-20 | L114: Germain | M114: Champagnole | N114: Champagnole | Q114: =IF(N114="","",VLOOKUP(N114,Ville!$A$3:$E$40,4,0)) -> p | R114: 0 | S114: =IF(N114="",0,VLOOKUP(N114,Ville!$A$3:$E$40,3,0)) -> 00:00:00 | U114: 8 | Z114: 1 | AC114: 8 | AD114: 8 | AE114: =IF(N114="","",VLOOKUP(N114,Ville!$A$3:$E$40,2,0)) -> 0 | AT114: 0
G115: 2010 | H115: =IF(K115="","",VLOOKUP(I115,'Suiv Contr '!$D$14:$E$25,2)) -> mai | I115: 5 | J115: 5 | K115: 2010-05-21 | L115: Germain | M115: Champagnole | N115: Champagnole | Q115: =IF(N115="","",VLOOKUP(N115,Ville!$A$3:$E$40,4,0)) -> p | R115: 0 | S115: =IF(N115="",0,VLOOKUP(N115,Ville!$A$3:$E$40,3,0)) -> 00:00:00 | U115: 7 | AC115: 7 | AD115: 7 | AE115: =IF(N115="","",VLOOKUP(N115,Ville!$A$3:$E$40,2,0)) -> 0 | AT115: 0
G116: 2010 | H116: =IF(K116="","",VLOOKUP(I116,'Suiv Contr '!$D$14:$E$25,2)) -> mai | I116: 5 | J116: 1 | K116: 2010-05-24 | L116: Germain | M116: Champagnole | N116: Champagnole | Q116: rec | R116: 0 | S116: =IF(N116="",0,VLOOKUP(N116,Ville!$A$3:$E$40,3,0)) -> 00:00:00 | T116: 07:00:00 | AC116: 0 | AD116: 0 | AE116: =IF(N116="","",VLOOKUP(N116,Ville!$A$3:$E$40,2,0)) -> 0 | AT116: 0
G117: 2010 | H117: =IF(K117="","",VLOOKUP(I117,'Suiv Contr '!$D$14:$E$25,2)) -> mai | I117: 5 | J117: 2 | K117: 2010-05-25 | L117: Germain | M117: Champagnole | N117: Champagnole | Q117: =IF(N117="","",VLOOKUP(N117,Ville!$A$3:$E$40,4,0)) -> p | R117: 0 | S117: =IF(N117="",0,VLOOKUP(N117,Ville!$A$3:$E$40,3,0)) -> 00:00:00 | U117: 6 | V117: 1 | AC117: 7 | AD117: 7 | AE117: =IF(N117="","",VLOOKUP(N117,Ville!$A$3:$E$40,2,0)) -> 0 | AT117: 0
G118: 2010 | H118: =IF(K118="","",VLOOKUP(I118,'Suiv Contr '!$D$14:$E$25,2)) -> mai | I118: 5 | J118: 3 | K118: 2010-05-26 | L118: Germain | M118: Verdun | N118: Verdun | Q118: =IF(N118="","",VLOOKUP(N118,Ville!$A$3:$E$40,4,0)) -> ca | R118: 0 | S118: =IF(N118="",0,VLOOKUP(N118,Ville!$A$3:$E$40,3,0)) -> 07:00:00 | U118: 6 | V118: 1 | AC118: 7 | AD118: 7 | AE118: =IF(N118="","",VLOOKUP(N118,Ville!$A$3:$E$40,2,0)) -> 746 | AT118: 0 | AZ118: 1
G119: 2010 | H119: =IF(K119="","",VLOOKUP(I119,'Suiv Contr '!$D$14:$E$25,2)) -> mai | I119: 5 | J119: 4 | K119: 2010-05-27 | L119: Germain | M119: 00:00:00 | Q119: =IF(N119="","",VLOOKUP(N119,Ville!$A$3:$E$40,4,0)) ->  | R119: 0 | S119: =IF(N119="",0,VLOOKUP(N119,Ville!$A$3:$E$40,3,0)) -> 00:00:00 | AC119: 0 | AD119: 0 | AE119: =IF(N119="","",VLOOKUP(N119,Ville!$A$3:$E$40,2,0)) ->  | AT119: 0
G120: 2010 | H120: =IF(K120="","",VLOOKUP(I120,'Suiv Contr '!$D$14:$E$25,2)) -> mai | I120: 5 | J120: 5 | K120: 2010-05-28 | L120: Germain | M120: Champagnole | N120: Champagnole | Q120: =IF(N120="","",VLOOKUP(N120,Ville!$A$3:$E$40,4,0)) -> p | R120: 0 | S120: =IF(N120="",0,VLOOKUP(N120,Ville!$A$3:$E$40,3,0)) -> 00:00:00 | U120: 10 | Z120: 3 | AC120: 10 | AD120: 10 | AE120: =IF(N120="","",VLOOKUP(N120,Ville!$A$3:$E$40,2,0)) -> 0 | AT120: 0
G121: 2010 | H121: =IF(K121="","",VLOOKUP(I121,'Suiv Contr '!$D$14:$E$25,2)) -> mai | I121: 5 | J121: 1 | K121: 2010-05-31 | L121: Germain | M121: Champagnole | N121: Champagnole | Q121: =IF(N121="","",VLOOKUP(N121,Ville!$A$3:$E$40,4,0)) -> p | R121: 0 | S121: =IF(N121="",0,VLOOKUP(N121,Ville!$A$3:$E$40,3,0)) -> 00:00:00 | U121: 7 | AC121: 7 | AD121: 7 | AE121: =IF(N121="","",VLOOKUP(N121,Ville!$A$3:$E$40,2,0)) -> 0 | AT121: 0
G122: 2010 | H122: =IF(K122="","",VLOOKUP(I122,'Suiv Contr '!$D$14:$E$25,2)) -> juin | I122: 6 | J122: 2 | K122: 2010-06-01 | L122: Germain | M122: Champagnole | N122: Champagnole | Q122: =IF(N122="","",VLOOKUP(N122,Ville!$A$3:$E$40,4,0)) -> p | R122: 0 | S122: =IF(N122="",0,VLOOKUP(N122,Ville!$A$3:$E$40,3,0)) -> 00:00:00 | U122: 5 | AC122: 5 | AD122: 5 | AE122: =IF(N122="","",VLOOKUP(N122,Ville!$A$3:$E$40,2,0)) -> 0 | AT122: 0
G123: 2010 | H123: =IF(K123="","",VLOOKUP(I123,'Suiv Contr '!$D$14:$E$25,2)) -> juin | I123: 6 | J123: 3 | K123: 2010-06-02 | L123: Germain | M123: Fains les Montbard | N123: Fains les Montbard | Q123: =IF(N123="","",VLOOKUP(N123,Ville!$A$3:$E$40,4,0)) -> sp | R123: 0 | S123: =IF(N123="",0,VLOOKUP(N123,Ville!$A$3:$E$40,3,0)) -> 03:30:00 | U123: 10 | V123: 2 | AC123: 12 | AD123: 12 | AE123: =IF(N123="","",VLOOKUP(N123,Ville!$A$3:$E$40,2,0)) -> 366 | AT123: 0 | AZ123: 1
G124: 2010 | H124: =IF(K124="","",VLOOKUP(I124,'Suiv Contr '!$D$14:$E$25,2)) -> juin | I124: 6 | J124: 4 | K124: 2010-06-03 | L124: Germain | M124: Champagnole | N124: Champagnole | Q124: =IF(N124="","",VLOOKUP(N124,Ville!$A$3:$E$40,4,0)) -> p | R124: 0 | S124: =IF(N124="",0,VLOOKUP(N124,Ville!$A$3:$E$40,3,0)) -> 00:00:00 | U124: 7 | V124: 1 | Y124: 1 | AC124: 8 | AD124: 9 | AE124: =IF(N124="","",VLOOKUP(N124,Ville!$A$3:$E$40,2,0)) -> 0 | AT124: 0
G125: 2010 | H125: =IF(K125="","",VLOOKUP(I125,'Suiv Contr '!$D$14:$E$25,2)) -> juin | I125: 6 | J125: 5 | K125: 2010-06-04 | L125: Germain | M125: Champagnole | N125: Champagnole | Q125: =IF(N125="","",VLOOKUP(N125,Ville!$A$3:$E$40,4,0)) -> p | R125: 0 | S125: =IF(N125="",0,VLOOKUP(N125,Ville!$A$3:$E$40,3,0)) -> 00:00:00 | U125: 7 | V125: 3 | W125: 3 | Y125: 1 | AC125: 13 | AD125: 14 | AE125: =IF(N125="","",VLOOKUP(N125,Ville!$A$3:$E$40,2,0)) -> 0 | AT125: 0
G126: 2010 | H126: =IF(K126="","",VLOOKUP(I126,'Suiv Contr '!$D$14:$E$25,2)) -> juin | I126: 6 | J126: 1 | K126: 2010-06-07 | L126: Germain | M126: Ludres | N126: Ludres | Q126: =IF(N126="","",VLOOKUP(N126,Ville!$A$3:$E$40,4,0)) -> sp | R126: 0 | S126: =IF(N126="",0,VLOOKUP(N126,Ville!$A$3:$E$40,3,0)) -> 03:30:00 | AC126: 0 | AD126: 0 | AE126: =IF(N126="","",VLOOKUP(N126,Ville!$A$3:$E$40,2,0)) -> 270 | AT126: 0 | AZ126: 1
G127: 2010 | H127: =IF(K127="","",VLOOKUP(I127,'Suiv Contr '!$D$14:$E$25,2)) -> juin | I127: 6 | J127: 2 | K127: 2010-06-08 | L127: Germain | M127: Strasbourg | N127: Strasbourg | Q127: =IF(N127="","",VLOOKUP(N127,Ville!$A$3:$E$40,4,0)) -> ca | R127: 0 | S127: =IF(N127="",0,VLOOKUP(N127,Ville!$A$3:$E$40,3,0)) -> 05:40:00 | V127: 11 | AC127: 11 | AD127: 11 | AE127: =IF(N127="","",VLOOKUP(N127,Ville!$A$3:$E$40,2,0)) -> 628 | AT127: 0 | AZ127: 1
G128: 2010 | H128: =IF(K128="","",VLOOKUP(I128,'Suiv Contr '!$D$14:$E$25,2)) -> juin | I128: 6 | J128: 3 | K128: 2010-06-09 | L128: Germain | M128: Thann | N128: Thann | Q128: =IF(N128="","",VLOOKUP(N128,Ville!$A$3:$E$40,4,0)) -> ca | R128: 0 | S128: =IF(N128="",0,VLOOKUP(N128,Ville!$A$3:$E$40,3,0)) -> 04:30:00 | U128: 6 | V128: 1 | W128: 1 | Z128: 1 | AC128: 8 | AD128: 8 | AE128: =IF(N128="","",VLOOKUP(N128,Ville!$A$3:$E$40,2,0)) -> 402 | AT128: 0 | AZ128: 1
G129: 2010 | H129: =IF(K129="","",VLOOKUP(I129,'Suiv Contr '!$D$14:$E$25,2)) -> juin | I129: 6 | J129: 4 | K129: 2010-06-10 | L129: Germain | M129: Champagnole | N129: Champagnole | Q129: =IF(N129="","",VLOOKUP(N129,Ville!$A$3:$E$40,4,0)) -> p | R129: 0 | S129: =IF(N129="",0,VLOOKUP(N129,Ville!$A$3:$E$40,3,0)) -> 00:00:00 | U129: 5 | V129: 4 | Z129: 2 | AC129: 9 | AD129: 9 | AE129: =IF(N129="","",VLOOKUP(N129,Ville!$A$3:$E$40,2,0)) -> 0 | AT129: 0
G130: 2010 | H130: =IF(K130="","",VLOOKUP(I130,'Suiv Contr '!$D$14:$E$25,2)) -> juin | I130: 6 | J130: 5 | K130: 2010-06-11 | L130: Germain | M130: Champagnole | N130: Champagnole | Q130: =IF(N130="","",VLOOKUP(N130,Ville!$A$3:$E$40,4,0)) -> p | R130: 0 | S130: =IF(N130="",0,VLOOKUP(N130,Ville!$A$3:$E$40,3,0)) -> 00:00:00 | U130: 12 | Y130: 1 | AA130: 1 | AC130: 12 | AD130: 13 | AE130: =IF(N130="","",VLOOKUP(N130,Ville!$A$3:$E$40,2,0)) -> 0 | AT130: 0
G131: 2010 | H131: =IF(K131="","",VLOOKUP(I131,'Suiv Contr '!$D$14:$E$25,2)) -> juin | I131: 6 | J131: 1 | K131: 2010-06-14 | L131: Germain | M131: Besançon iax | N131: Besançon iax | Q131: =IF(N131="","",VLOOKUP(N131,Ville!$A$3:$E$40,4,0)) -> ca | R131: 0 | S131: =IF(N131="",0,VLOOKUP(N131,Ville!$A$3:$E$40,3,0)) -> 01:50:00 | U131: 4 | AC131: 4 | AD131: 4 | AE131: =IF(N131="","",VLOOKUP(N131,Ville!$A$3:$E$40,2,0)) -> 132 | AT131: 0 | AZ131: 1
G132: 2010 | H132: =IF(K132="","",VLOOKUP(I132,'Suiv Contr '!$D$14:$E$25,2)) -> juin | I132: 6 | J132: 2 | K132: 2010-06-15 | L132: Germain | M132: Champagnole | N132: Champagnole | Q132: =IF(N132="","",VLOOKUP(N132,Ville!$A$3:$E$40,4,0)) -> p | R132: 0 | S132: =IF(N132="",0,VLOOKUP(N132,Ville!$A$3:$E$40,3,0)) -> 00:00:00 | U132: 7 | V132: 2 | Z132: 2 | AC132: 9 | AD132: 9 | AE132: =IF(N132="","",VLOOKUP(N132,Ville!$A$3:$E$40,2,0)) -> 0 | AT132: 0
G133: 2010 | H133: =IF(K133="","",VLOOKUP(I133,'Suiv Contr '!$D$14:$E$25,2)) -> juin | I133: 6 | J133: 3 | K133: 2010-06-16 | L133: Germain | M133: Fains les Montbard | N133: Fains les Montbard | Q133: =IF(N133="","",VLOOKUP(N133,Ville!$A$3:$E$40,4,0)) -> sp | R133: 0 | S133: =IF(N133="",0,VLOOKUP(N133,Ville!$A$3:$E$40,3,0)) -> 03:30:00 | U133: 7 | Y133: 1 | AC133: 7 | AD133: 8 | AE133: =IF(N133="","",VLOOKUP(N133,Ville!$A$3:$E$40,2,0)) -> 366 | AT133: 0 | AZ133: 1
G134: 2010 | H134: =IF(K134="","",VLOOKUP(I134,'Suiv Contr '!$D$14:$E$25,2)) -> juin | I134: 6 | J134: 4 | K134: 2010-06-17 | L134: Germain | M134: Champagnole | N134: Champagnole | Q134: =IF(N134="","",VLOOKUP(N134,Ville!$A$3:$E$40,4,0)) -> p | R134: 0 | S134: =IF(N134="",0,VLOOKUP(N134,Ville!$A$3:$E$40,3,0)) -> 00:00:00 | U134: 10 | V134: 3 | Y134: 1 | Z134: 1 | AC134: 13 | AD134: 14 | AE134: =IF(N134="","",VLOOKUP(N134,Ville!$A$3:$E$40,2,0)) -> 0 | AT134: 0
G135: 2010 | H135: =IF(K135="","",VLOOKUP(I135,'Suiv Contr '!$D$14:$E$25,2)) -> juin | I135: 6 | J135: 5 | K135: 2010-06-18 | L135: Germain | M135: Champagnole | N135: Champagnole | Q135: =IF(N135="","",VLOOKUP(N135,Ville!$A$3:$E$40,4,0)) -> p | R135: 0 | S135: =IF(N135="",0,VLOOKUP(N135,Ville!$A$3:$E$40,3,0)) -> 00:00:00 | U135: 6 | V135: 2 | AC135: 8 | AD135: 8 | AE135: =IF(N135="","",VLOOKUP(N135,Ville!$A$3:$E$40,2,0)) -> 0 | AT135: 0
G136: 2010 | H136: =IF(K136="","",VLOOKUP(I136,'Suiv Contr '!$D$14:$E$25,2)) -> juin | I136: 6 | J136: 1 | K136: 2010-06-21 | L136: Germain | M136: Meythet | N136: Meythet | Q136: =IF(N136="","",VLOOKUP(N136,Ville!$A$3:$E$40,4,0)) -> ca | R136: 0 | S136: =IF(N136="",0,VLOOKUP(N136,Ville!$A$3:$E$40,3,0)) -> 04:20:00 | U136: 6 | W136: 1 | AC136: 7 | AD136: 7 | AE136: =IF(N136="","",VLOOKUP(N136,Ville!$A$3:$E$40,2,0)) -> 298 | AT136: 0 | AZ136: 1
G137: 2010 | H137: =IF(K137="","",VLOOKUP(I137,'Suiv Contr '!$D$14:$E$25,2)) -> juin | I137: 6 | J137: 2 | K137: 2010-06-22 | L137: Germain | M137: Champagnole | N137: Champagnole | Q137: =IF(N137="","",VLOOKUP(N137,Ville!$A$3:$E$40,4,0)) -> p | R137: 0 | S137: =IF(N137="",0,VLOOKUP(N137,Ville!$A$3:$E$40,3,0)) -> 00:00:00 | U137: 17 | V137: 1 | Z137: 1 | AA137: 1 | AC137: 18 | AD137: 18 | AE137: =IF(N137="","",VLOOKUP(N137,Ville!$A$3:$E$40,2,0)) -> 0 | AT137: 0
G138: 2010 | H138: =IF(K138="","",VLOOKUP(I138,'Suiv Contr '!$D$14:$E$25,2)) -> juin | I138: 6 | J138: 3 | K138: 2010-06-23 | L138: Germain | M138: Fains les Montbard | N138: Fains les Montbard | Q138: =IF(N138="","",VLOOKUP(N138,Ville!$A$3:$E$40,4,0)) -> sp | R138: 0 | S138: =IF(N138="",0,VLOOKUP(N138,Ville!$A$3:$E$40,3,0)) -> 03:30:00 | U138: 10 | V138: 1 | Z138: 1 | AC138: 11 | AD138: 11 | AE138: =IF(N138="","",VLOOKUP(N138,Ville!$A$3:$E$40,2,0)) -> 366 | AT138: 0 | AZ138: 1
G139: 2010 | H139: =IF(K139="","",VLOOKUP(I139,'Suiv Contr '!$D$14:$E$25,2)) -> juin | I139: 6 | J139: 4 | K139: 2010-06-24 | L139: Germain | M139: Champagnole | N139: Champagnole | Q139: =IF(N139="","",VLOOKUP(N139,Ville!$A$3:$E$40,4,0)) -> p | R139: 0 | S139: =IF(N139="",0,VLOOKUP(N139,Ville!$A$3:$E$40,3,0)) -> 00:00:00 | U139: 6 | V139: 1 | Y139: 1 | AC139: 7 | AD139: 8 | AE139: =IF(N139="","",VLOOKUP(N139,Ville!$A$3:$E$40,2,0)) -> 0 | AT139: 0
G140: 2010 | H140: =IF(K140="","",VLOOKUP(I140,'Suiv Contr '!$D$14:$E$25,2)) -> juin | I140: 6 | J140: 5 | K140: 2010-06-25 | L140: Germain | M140: Champagnole | N140: Champagnole | Q140: =IF(N140="","",VLOOKUP(N140,Ville!$A$3:$E$40,4,0)) -> p | R140: 0 | S140: =IF(N140="",0,VLOOKUP(N140,Ville!$A$3:$E$40,3,0)) -> 00:00:00 | U140: 7 | Y140: 2 | Z140: 1 | AA140: 1 | AC140: 7 | AD140: 9 | AE140: =IF(N140="","",VLOOKUP(N140,Ville!$A$3:$E$40,2,0)) -> 0 | AT140: 0
G141: 2010 | H141: =IF(K141="","",VLOOKUP(I141,'Suiv Contr '!$D$14:$E$25,2)) -> juin | I141: 6 | J141: 1 | K141: 2010-06-28 | L141: Germain | M141: Besançon sp | N141: Besançon sp | Q141: =IF(N141="","",VLOOKUP(N141,Ville!$A$3:$E$40,4,0)) -> sp | R141: 0 | S141: =IF(N141="",0,VLOOKUP(N141,Ville!$A$3:$E$40,3,0)) -> 01:50:00 | U141: 5 | V141: 1 | Y141: 1 | AC141: 6 | AD141: 7 | AE141: =IF(N141="","",VLOOKUP(N141,Ville!$A$3:$E$40,2,0)) -> 152 | AT141: 0 | AZ141: =IF(OR(N141="champagnole",N141=""),"",1) -> 1
G142: =IF(K142="","",YEAR(K142)) -> 2010 | H142: =IF(K142="","",VLOOKUP(I142,'Suiv Contr '!$D$14:$E$25,2)) -> juin | I142: =IF(K142="","",MONTH(K142)) -> 6 | J142: =IF(K142="","",WEEKDAY(K142,2)) -> 2 | K142: 2010-06-29 | L142: Germain | M142: =N142 -> Champagnole | N142: Champagnole | Q142: =IF(N142="","",VLOOKUP(N142,Ville!$A$3:$E$40,4,0)) -> p | R142: =IF(Q142="v",1,0) -> 0 | S142: =IF(N142="",0,VLOOKUP(N142,Ville!$A$3:$E$40,3,0)) -> 00:00:00 | U142: 9 | V142: 1 | W142: 1 | X142: 1 | Y142: 1 | AA142: 1 | AC142: 12 | AD142: 13 | AE142: =IF(N142="","",VLOOKUP(N142,Ville!$A$3:$E$40,2,0)) -> 0 | AT142: =SUM(AH142:AS142) -> 0
G143: 2010 | H143: =IF(K143="","",VLOOKUP(I143,'Suiv Contr '!$D$14:$E$25,2)) -> juin | I143: 6 | J143: 3 | K143: 2010-06-30 | L143: Germain | M143: Thann | N143: Thann | Q143: =IF(N143="","",VLOOKUP(N143,Ville!$A$3:$E$40,4,0)) -> ca | R143: 0 | S143: =IF(N143="",0,VLOOKUP(N143,Ville!$A$3:$E$40,3,0)) -> 04:30:00 | U143: 4 | W143: 4 | AA143: 2 | AC143: 8 | AD143: 8 | AE143: =IF(N143="","",VLOOKUP(N143,Ville!$A$3:$E$40,2,0)) -> 402 | AT143: 0 | AZ143: 1
G144: 2010 | H144: =IF(K144="","",VLOOKUP(I144,'Suiv Contr '!$D$14:$E$25,2)) -> juillet | I144: 7 | J144: 4 | K144: 2010-07-01 | L144: Germain | M144: Champagnole | N144: Champagnole | Q144: =IF(N144="","",VLOOKUP(N144,Ville!$A$3:$E$40,4,0)) -> p | R144: 0 | S144: =IF(N144="",0,VLOOKUP(N144,Ville!$A$3:$E$40,3,0)) -> 00:00:00 | U144: 8 | AA144: 1 | AC144: 8 | AD144: 8 | AE144: =IF(N144="","",VLOOKUP(N144,Ville!$A$3:$E$40,2,0)) -> 0 | AT144: 0
G145: 2010 | H145: =IF(K145="","",VLOOKUP(I145,'Suiv Contr '!$D$14:$E$25,2)) -> juillet | I145: 7 | J145: 5 | K145: 2010-07-02 | L145: Germain | M145: Champagnole | N145: Champagnole | Q145: =IF(N145="","",VLOOKUP(N145,Ville!$A$3:$E$40,4,0)) -> p | R145: 0 | S145: =IF(N145="",0,VLOOKUP(N145,Ville!$A$3:$E$40,3,0)) -> 00:00:00 | U145: 6 | Y145: 1 | AC145: 6 | AD145: 7 | AE145: =IF(N145="","",VLOOKUP(N145,Ville!$A$3:$E$40,2,0)) -> 0 | AT145: 0
G146: 2010 | H146: =IF(K146="","",VLOOKUP(I146,'Suiv Contr '!$D$14:$E$25,2)) -> juillet | I146: 7 | J146: 1 | K146: 2010-07-05 | L146: Germain | M146: Meythet | N146: Meythet | Q146: =IF(N146="","",VLOOKUP(N146,Ville!$A$3:$E$40,4,0)) -> ca | R146: 0 | S146: =IF(N146="",0,VLOOKUP(N146,Ville!$A$3:$E$40,3,0)) -> 04:20:00 | U146: 6 | AC146: 6 | AD146: 6 | AE146: =IF(N146="","",VLOOKUP(N146,Ville!$A$3:$E$40,2,0)) -> 298 | AT146: 0 | AZ146: 1
G147: 2010 | H147: =IF(K147="","",VLOOKUP(I147,'Suiv Contr '!$D$14:$E$25,2)) -> juillet | I147: 7 | J147: 2 | K147: 2010-07-06 | L147: Germain | M147: Champagnole | N147: Champagnole | Q147: =IF(N147="","",VLOOKUP(N147,Ville!$A$3:$E$40,4,0)) -> p | R147: 0 | S147: =IF(N147="",0,VLOOKUP(N147,Ville!$A$3:$E$40,3,0)) -> 00:00:00 | U147: 6 | V147: 1 | W147: 1 | Z147: 1 | AC147: 8 | AD147: 8 | AE147: =IF(N147="","",VLOOKUP(N147,Ville!$A$3:$E$40,2,0)) -> 0 | AT147: 0
G148: 2010 | H148: =IF(K148="","",VLOOKUP(I148,'Suiv Contr '!$D$14:$E$25,2)) -> juillet | I148: 7 | J148: 3 | K148: 2010-07-07 | L148: Germain | M148: Champagnole | N148: Champagnole | Q148: =IF(N148="","",VLOOKUP(N148,Ville!$A$3:$E$40,4,0)) -> p | R148: 0 | S148: =IF(N148="",0,VLOOKUP(N148,Ville!$A$3:$E$40,3,0)) -> 00:00:00 | U148: 4 | Y148: 3 | AC148: =U148+V148+W148+X148 -> 4 | AD148: =AC148+Y148 -> 7 | AE148: =IF(N148="","",VLOOKUP(N148,Ville!$A$3:$E$40,2,0)) -> 0 | AT148: 0
G149: 2010 | H149: =IF(K149="","",VLOOKUP(I149,'Suiv Contr '!$D$14:$E$25,2)) -> juillet | I149: 7 | J149: 4 | K149: 2010-07-08 | L149: Germain | M149: Champagnole | N149: Champagnole | Q149: =IF(N149="","",VLOOKUP(N149,Ville!$A$3:$E$40,4,0)) -> p | R149: 0 | S149: =IF(N149="",0,VLOOKUP(N149,Ville!$A$3:$E$40,3,0)) -> 00:00:00 | U149: 10 | V149: 1 | Z149: 1 | AC149: 11 | AD149: 11 | AE149: =IF(N149="","",VLOOKUP(N149,Ville!$A$3:$E$40,2,0)) -> 0 | AT149: 0
G150: 2010 | H150: =IF(K150="","",VLOOKUP(I150,'Suiv Contr '!$D$14:$E$25,2)) -> juillet | I150: 7 | J150: 5 | K150: 2010-07-09 | L150: Germain | M150: Champagnole | N150: Champagnole | Q150: =IF(N150="","",VLOOKUP(N150,Ville!$A$3:$E$40,4,0)) -> p | R150: 0 | S150: =IF(N150="",0,VLOOKUP(N150,Ville!$A$3:$E$40,3,0)) -> 00:00:00 | U150: 11 | V150: 2 | Y150: 1 | Z150: 2 | AC150: 13 | AD150: 14 | AE150: =IF(N150="","",VLOOKUP(N150,Ville!$A$3:$E$40,2,0)) -> 0 | AT150: 0
G151: 2010 | H151: =IF(K151="","",VLOOKUP(I151,'Suiv Contr '!$D$14:$E$25,2)) -> juillet | I151: 7 | J151: 1 | K151: 2010-07-12 | L151: Germain | M151: Besançon iax | N151: Besançon iax | Q151: =IF(N151="","",VLOOKUP(N151,Ville!$A$3:$E$40,4,0)) -> ca | R151: 0 | S151: =IF(N151="",0,VLOOKUP(N151,Ville!$A$3:$E$40,3,0)) -> 01:50:00 | U151: 8 | V151: 2 | Z151: 2 | AC151: 10 | AD151: 10 | AE151: =IF(N151="","",VLOOKUP(N151,Ville!$A$3:$E$40,2,0)) -> 132 | AT151: 0 | AZ151: 1
G152: 2010 | H152: =IF(K152="","",VLOOKUP(I152,'Suiv Contr '!$D$14:$E$25,2)) -> juillet | I152: 7 | J152: 2 | K152: 2010-07-13 | L152: Germain | M152: Champagnole | N152: Champagnole | Q152: =IF(N152="","",VLOOKUP(N152,Ville!$A$3:$E$40,4,0)) -> p | R152: 0 | S152: =IF(N152="",0,VLOOKUP(N152,Ville!$A$3:$E$40,3,0)) -> 00:00:00 | U152: 9 | V152: 2 | W152: 1 | Z152: . | AC152: 12 | AD152: 12 | AE152: =IF(N152="","",VLOOKUP(N152,Ville!$A$3:$E$40,2,0)) -> 0 | AT152: 0
G153: 2010 | H153: =IF(K153="","",VLOOKUP(I153,'Suiv Contr '!$D$14:$E$25,2)) -> juillet | I153: 7 | J153: 3 | K153: 2010-07-14 | L153: FERIE | M153: 00:00:00 | Q153: =IF(N153="","",VLOOKUP(N153,Ville!$A$3:$E$40,4,0)) ->  | R153: 0 | S153: =IF(N153="",0,VLOOKUP(N153,Ville!$A$3:$E$40,3,0)) -> 00:00:00 | AC153: 0 | AD153: 0 | AE153: =IF(N153="","",VLOOKUP(N153,Ville!$A$3:$E$40,2,0)) ->  | AT153: 0
G154: 2010 | H154: =IF(K154="","",VLOOKUP(I154,'Suiv Contr '!$D$14:$E$25,2)) -> juillet | I154: 7 | J154: 4 | K154: 2010-07-15 | L154: Germain | M154: Champagnole | N154: Champagnole | Q154: =IF(N154="","",VLOOKUP(N154,Ville!$A$3:$E$40,4,0)) -> p | R154: 0 | S154: =IF(N154="",0,VLOOKUP(N154,Ville!$A$3:$E$40,3,0)) -> 00:00:00 | U154: 1 | V154: 3 | AC154: 4 | AD154: 4 | AE154: =IF(N154="","",VLOOKUP(N154,Ville!$A$3:$E$40,2,0)) -> 0 | AT154: 0
G155: 2010 | H155: =IF(K155="","",VLOOKUP(I155,'Suiv Contr '!$D$14:$E$25,2)) -> juillet | I155: 7 | J155: 5 | K155: 2010-07-16 | L155: Germain | M155: Champagnole | N155: Champagnole | Q155: =IF(N155="","",VLOOKUP(N155,Ville!$A$3:$E$40,4,0)) -> p | R155: 0 | S155: =IF(N155="",0,VLOOKUP(N155,Ville!$A$3:$E$40,3,0)) -> 00:00:00 | U155: 7 | V155: 4 | Y155: 1 | Z155: 2 | AC155: 11 | AD155: 12 | AE155: =IF(N155="","",VLOOKUP(N155,Ville!$A$3:$E$40,2,0)) -> 0 | AT155: 0
G156: 2010 | H156: =IF(K156="","",VLOOKUP(I156,'Suiv Contr '!$D$14:$E$25,2)) -> juillet | I156: 7 | J156: 1 | K156: 2010-07-19 | L156: Germain | M156: Champagnole | N156: Champagnole | Q156: =IF(N156="","",VLOOKUP(N156,Ville!$A$3:$E$40,4,0)) -> p | R156: 0 | S156: =IF(N156="",0,VLOOKUP(N156,Ville!$A$3:$E$40,3,0)) -> 00:00:00 | U156: 6 | Y156: 1 | AA156: 1 | AC156: 6 | AD156: 7 | AE156: =IF(N156="","",VLOOKUP(N156,Ville!$A$3:$E$40,2,0)) -> 0 | AT156: 0
G157: 2010 | H157: =IF(K157="","",VLOOKUP(I157,'Suiv Contr '!$D$14:$E$25,2)) -> juillet | I157: 7 | J157: 2 | K157: 2010-07-20 | L157: Germain | M157: Champagnole | N157: Champagnole | Q157: =IF(N159="","",VLOOKUP(N159,Ville!$A$3:$E$40,4,0)) -> p | R157: 0 | S157: =IF(N159="",0,VLOOKUP(N159,Ville!$A$3:$E$40,3,0)) -> 00:00:00 | U157: 7 | V157: 2 | Y157: 1 | AC157: 9 | AD157: 10 | AE157: =IF(N159="","",VLOOKUP(N159,Ville!$A$3:$E$40,2,0)) -> 0 | AT157: 0
G158: 2010 | H158: =IF(K158="","",VLOOKUP(I158,'Suiv Contr '!$D$14:$E$25,2)) -> juillet | I158: 7 | J158: 3 | K158: 2010-07-21 | L158: Germain | M158: Champagnole | N158: Champagnole | Q158: =IF(N158="","",VLOOKUP(N158,Ville!$A$3:$E$40,4,0)) -> p | R158: 0 | S158: =IF(N158="",0,VLOOKUP(N158,Ville!$A$3:$E$40,3,0)) -> 00:00:00 | U158: 2 | AC158: 2 | AD158: 2 | AE158: =IF(N158="","",VLOOKUP(N158,Ville!$A$3:$E$40,2,0)) -> 0 | AT158: 0
G159: 2010 | H159: =IF(K159="","",VLOOKUP(I159,'Suiv Contr '!$D$14:$E$25,2)) -> juillet | I159: 7 | J159: 4 | K159: 2010-07-22 | L159: Germain | M159: Champagnole | N159: Champagnole | Q159: =IF(N159="","",VLOOKUP(N159,Ville!$A$3:$E$40,4,0)) -> p | R159: 0 | S159: =IF(N159="",0,VLOOKUP(N159,Ville!$A$3:$E$40,3,0)) -> 00:00:00 | U159: 8 | V159: 3 | Y159: 1 | AC159: 11 | AD159: 12 | AE159: =IF(N159="","",VLOOKUP(N159,Ville!$A$3:$E$40,2,0)) -> 0 | AT159: 0
G160: 2010 | H160: =IF(K160="","",VLOOKUP(I160,'Suiv Contr '!$D$14:$E$25,2)) -> juillet | I160: 7 | J160: 5 | K160: 2010-07-23 | L160: Germain | M160: Thann | N160: Thann | Q160: =IF(N160="","",VLOOKUP(N160,Ville!$A$3:$E$40,4,0)) -> ca | R160: 0 | S160: =IF(N160="",0,VLOOKUP(N160,Ville!$A$3:$E$40,3,0)) -> 04:30:00 | U160: 4 | V160: 1 | W160: 4 | Y160: 1 | Z160: 2 | AC160: 9 | AD160: 10 | AE160: =IF(N160="","",VLOOKUP(N160,Ville!$A$3:$E$40,2,0)) -> 402 | AT160: 0 | AZ160: 1
G161: 2010 | H161: =IF(K161="","",VLOOKUP(I161,'Suiv Contr '!$D$14:$E$25,2)) -> juillet | I161: 7 | J161: 1 | K161: 2010-07-26 | L161: Germain | M161: Fains les Montbard | N161: Fains les Montbard | Q161: =IF(N161="","",VLOOKUP(N161,Ville!$A$3:$E$40,4,0)) -> sp | R161: 0 | S161: =IF(N161="",0,VLOOKUP(N161,Ville!$A$3:$E$40,3,0)) -> 03:30:00 | U161: 6 | V161: 2 | AC161: 8 | AD161: 8 | AE161: =IF(N161="","",VLOOKUP(N161,Ville!$A$3:$E$40,2,0)) -> 366 | AT161: 0 | AZ161: 1
G162: 2010 | H162: =IF(K162="","",VLOOKUP(I162,'Suiv Contr '!$D$14:$E$25,2)) -> juillet | I162: 7 | J162: 2 | K162: 2010-07-27 | L162: Germain | M162: Champagnole | N162: Champagnole | Q162: =IF(N162="","",VLOOKUP(N162,Ville!$A$3:$E$40,4,0)) -> p | R162: 0 | S162: =IF(N162="",0,VLOOKUP(N162,Ville!$A$3:$E$40,3,0)) -> 00:00:00 | U162: 2 | V162: 4 | AA162: 1 | AC162: 6 | AD162: 6 | AE162: =IF(N162="","",VLOOKUP(N162,Ville!$A$3:$E$40,2,0)) -> 0 | AT162: 0
G163: 2010 | H163: =IF(K163="","",VLOOKUP(I163,'Suiv Contr '!$D$14:$E$25,2)) -> juillet | I163: 7 | J163: 3 | K163: 2010-07-28 | L163: Germain | M163: Fains les Montbard | N163: Fains les Montbard | Q163: =IF(N163="","",VLOOKUP(N163,Ville!$A$3:$E$40,4,0)) -> sp | R163: 0 | S163: =IF(N163="",0,VLOOKUP(N163,Ville!$A$3:$E$40,3,0)) -> 03:30:00 | U163: 5 | V163: 1 | Y163: 1 | AC163: 6 | AD163: 7 | AE163: =IF(N163="","",VLOOKUP(N163,Ville!$A$3:$E$40,2,0)) -> 366 | AT163: 0 | AZ163: 1
G164: 2010 | H164: =IF(K164="","",VLOOKUP(I164,'Suiv Contr '!$D$14:$E$25,2)) -> juillet | I164: 7 | J164: 4 | K164: 2010-07-29 | L164: Germain | M164: Champagnole | N164: Champagnole | Q164: =IF(N164="","",VLOOKUP(N164,Ville!$A$3:$E$40,4,0)) -> p | R164: 0 | S164: =IF(N164="",0,VLOOKUP(N164,Ville!$A$3:$E$40,3,0)) -> 00:00:00 | U164: 3 | V164: 5 | W164: 1 | Z164: 4 | AC164: 9 | AD164: 9 | AE164: =IF(N164="","",VLOOKUP(N164,Ville!$A$3:$E$40,2,0)) -> 0 | AT164: 0
G165: 2010 | H165: =IF(K165="","",VLOOKUP(I165,'Suiv Contr '!$D$14:$E$25,2)) -> juillet | I165: 7 | J165: 5 | K165: 2010-07-30 | L165: Germain | M165: Chatillon sur seine | N165: Chatillon sur seine | Q165: =IF(N165="","",VLOOKUP(N165,Ville!$A$3:$E$40,4,0)) -> ca | R165: 0 | S165: =IF(N165="",0,VLOOKUP(N165,Ville!$A$3:$E$40,3,0)) -> 04:00:00 | U165: 11 | Y165: 2 | Z165: 1 | AA165: 1 | AC165: 11 | AD165: 13 | AE165: =IF(N165="","",VLOOKUP(N165,Ville!$A$3:$E$40,2,0)) -> 410 | AT165: 0 | AZ165: 1
G166: 2010 | H166: =IF(K166="","",VLOOKUP(I166,'Suiv Contr '!$D$14:$E$25,2)) -> août | I166: 8 | J166: 1 | K166: 2010-08-02 | L166: Germain | M166: Auxerre | N166: Auxerre | Q166: =IF(N166="","",VLOOKUP(N166,Ville!$A$3:$E$40,4,0)) -> sp | R166: 0 | S166: =IF(N166="",0,VLOOKUP(N166,Ville!$A$3:$E$40,3,0)) -> 04:00:00 | U166: 7 | V166: 2 | Z166: 1 | AC166: 9 | AD166: 9 | AE166: =IF(N166="","",VLOOKUP(N166,Ville!$A$3:$E$40,2,0)) -> 528 | AT166: 0 | AZ166: 1
G167: 2010 | H167: =IF(K167="","",VLOOKUP(I167,'Suiv Contr '!$D$14:$E$25,2)) -> août | I167: 8 | J167: 2 | K167: 2010-08-03 | L167: Germain | M167: Champagnole | N167: Champagnole | Q167: =IF(N167="","",VLOOKUP(N167,Ville!$A$3:$E$40,4,0)) -> p | R167: 0 | S167: =IF(N167="",0,VLOOKUP(N167,Ville!$A$3:$E$40,3,0)) -> 00:00:00 | U167: 4 | V167: 5 | AA167: 1 | AC167: 9 | AD167: 9 | AE167: =IF(N167="","",VLOOKUP(N167,Ville!$A$3:$E$40,2,0)) -> 0 | AT167: 0
G168: 2010 | H168: =IF(K168="","",VLOOKUP(I168,'Suiv Contr '!$D$14:$E$25,2)) -> août | I168: 8 | J168: 3 | K168: 2010-08-04 | L168: Germain | M168: Fains les Montbard | N168: Fains les Montbard | Q168: =IF(N168="","",VLOOKUP(N168,Ville!$A$3:$E$40,4,0)) -> sp | R168: 0 | S168: =IF(N168="",0,VLOOKUP(N168,Ville!$A$3:$E$40,3,0)) -> 03:30:00 | U168: 2 | V168: 4 | Y168: 1 | AA168: 1 | AC168: 6 | AD168: 7 | AE168: =IF(N168="","",VLOOKUP(N168,Ville!$A$3:$E$40,2,0)) -> 366 | AT168: 0 | AZ168: 1
G169: 2010 | H169: =IF(K169="","",VLOOKUP(I169,'Suiv Contr '!$D$14:$E$25,2)) -> août | I169: 8 | J169: 4 | K169: 2010-08-05 | L169: Germain | M169: Cordesse | N169: Cordesse | Q169: =IF(N169="","",VLOOKUP(N169,Ville!$A$3:$E$40,4,0)) -> ca | R169: 0 | S169: =IF(N169="",0,VLOOKUP(N169,Ville!$A$3:$E$40,3,0)) -> 03:10:00 | U169: 10 | Y169: 1 | Z169: 1 | AC169: 10 | AD169: 11 | AE169: =IF(N169="","",VLOOKUP(N169,Ville!$A$3:$E$40,2,0)) -> 340 | AT169: 0 | AZ169: 1
G170: 2010 | H170: =IF(K170="","",VLOOKUP(I170,'Suiv Contr '!$D$14:$E$25,2)) -> août | I170: 8 | J170: 5 | K170: 2010-08-06 | L170: Germain | M170: Champagnole | N170: Champagnole | Q170: =IF(N170="","",VLOOKUP(N170,Ville!$A$3:$E$40,4,0)) -> p | R170: 0 | S170: =IF(N170="",0,VLOOKUP(N170,Ville!$A$3:$E$40,3,0)) -> 00:00:00 | U170: 9 | V170: 4 | Y170: 1 | AA170: 1 | AC170: 13 | AD170: 14 | AE170: =IF(N170="","",VLOOKUP(N170,Ville!$A$3:$E$40,2,0)) -> 0 | AT170: 0
G171: 2010 | H171: =IF(K171="","",VLOOKUP(I171,'Suiv Contr '!$D$14:$E$25,2)) -> août | I171: 8 | J171: 1 | K171: 2010-08-09 | L171: Germain | M171: Auxerre | N171: Auxerre | Q171: =IF(N171="","",VLOOKUP(N171,Ville!$A$3:$E$40,4,0)) -> sp | R171: 0 | S171: =IF(N171="",0,VLOOKUP(N171,Ville!$A$3:$E$40,3,0)) -> 04:00:00 | U171: 9 | V171: 3 | Y171: 2 | Z171: 2 | AA171: 1 | AC171: 12 | AD171: 14 | AE171: =IF(N171="","",VLOOKUP(N171,Ville!$A$3:$E$40,2,0)) -> 528 | AT171: 0 | AZ171: 1
G172: 2010 | H172: =IF(K172="","",VLOOKUP(I172,'Suiv Contr '!$D$14:$E$25,2)) -> août | I172: 8 | J172: 2 | K172: 2010-08-10 | L172: Germain | M172: Avallon | N172: Avallon | Q172: =IF(N172="","",VLOOKUP(N172,Ville!$A$3:$E$40,4,0)) -> ca | R172: 0 | S172: =IF(N172="",0,VLOOKUP(N172,Ville!$A$3:$E$40,3,0)) -> 03:20:00 | U172: 10 | V172: 3 | Y172: 1 | AA172: 1 | AC172: 13 | AD172: 14 | AE172: =IF(N172="","",VLOOKUP(N172,Ville!$A$3:$E$40,2,0)) -> 440 | AT172: 0 | AZ172: 1
G173: 2010 | H173: =IF(K173="","",VLOOKUP(I173,'Suiv Contr '!$D$14:$E$25,2)) -> août | I173: 8 | J173: 3 | K173: 2010-08-11 | L173: Germain | M173: Fains les Montbard | N173: Fains les Montbard | Q173: =IF(N173="","",VLOOKUP(N173,Ville!$A$3:$E$40,4,0)) -> sp | R173: 0 | S173: =IF(N173="",0,VLOOKUP(N173,Ville!$A$3:$E$40,3,0)) -> 03:30:00 | U173: 3 | V173: 2 | W173: 1 | Y173: 1 | AC173: 6 | AD173: 7 | AE173: =IF(N173="","",VLOOKUP(N173,Ville!$A$3:$E$40,2,0)) -> 366 | AT173: 0 | AZ173: 1
G174: 2010 | H174: =IF(K174="","",VLOOKUP(I174,'Suiv Contr '!$D$14:$E$25,2)) -> août | I174: 8 | J174: 4 | K174: 2010-08-12 | L174: Germain | M174: Champagnole | N174: Champagnole | Q174: =IF(N174="","",VLOOKUP(N174,Ville!$A$3:$E$40,4,0)) -> p | R174: 0 | S174: =IF(N174="",0,VLOOKUP(N174,Ville!$A$3:$E$40,3,0)) -> 00:00:00 | U174: 7 | V174: 6 | Y174: 1 | AA174: 2 | AC174: 13 | AD174: 14 | AE174: =IF(N174="","",VLOOKUP(N174,Ville!$A$3:$E$40,2,0)) -> 0 | AT174: 0
G175: 2010 | H175: =IF(K175="","",VLOOKUP(I175,'Suiv Contr '!$D$14:$E$25,2)) -> août | I175: 8 | J175: 5 | K175: 2010-08-13 | L175: Germain | M175: Champagnole | N175: Champagnole | Q175: =IF(N175="","",VLOOKUP(N175,Ville!$A$3:$E$40,4,0)) -> p | R175: 0 | S175: =IF(N175="",0,VLOOKUP(N175,Ville!$A$3:$E$40,3,0)) -> 00:00:00 | U175: 8 | V175: 4 | Y175: 3 | Z175: 1 | AA175: 1 | AC175: 12 | AD175: 15 | AE175: =IF(N175="","",VLOOKUP(N175,Ville!$A$3:$E$40,2,0)) -> 0 | AT175: 0
G176: 2010 | H176: =IF(K176="","",VLOOKUP(I176,'Suiv Contr '!$D$14:$E$25,2)) -> août | I176: 8 | J176: 1 | K176: 2010-08-16 | L176: Germain | M176: Meythet | N176: Meythet | Q176: =IF(N176="","",VLOOKUP(N176,Ville!$A$3:$E$40,4,0)) -> ca | R176: 0 | S176: =IF(N176="",0,VLOOKUP(N176,Ville!$A$3:$E$40,3,0)) -> 04:20:00 | AC176: 0 | AD176: 0 | AE176: =IF(N176="","",VLOOKUP(N176,Ville!$A$3:$E$40,2,0)) -> 298 | AT176: 0 | AZ176: 1
G177: 2010 | H177: =IF(K177="","",VLOOKUP(I177,'Suiv Contr '!$D$14:$E$25,2)) -> août | I177: 8 | J177: 2 | K177: 2010-08-17 | L177: Germain | M177: Champagnole | N177: Champagnole | Q177: =IF(N177="","",VLOOKUP(N177,Ville!$A$3:$E$40,4,0)) -> p | R177: 0 | S177: =IF(N177="",0,VLOOKUP(N177,Ville!$A$3:$E$40,3,0)) -> 00:00:00 | U177: 5 | V177: 10 | AA177: 1 | AC177: 15 | AD177: 15 | AE177: =IF(N177="","",VLOOKUP(N177,Ville!$A$3:$E$40,2,0)) -> 0 | AT177: 0
G178: 2010 | H178: =IF(K178="","",VLOOKUP(I178,'Suiv Contr '!$D$14:$E$25,2)) -> août | I178: 8 | J178: 3 | K178: 2010-08-18 | L178: Germain | M178: Fains les Montbard | N178: Fains les Montbard | Q178: =IF(N178="","",VLOOKUP(N178,Ville!$A$3:$E$40,4,0)) -> sp | R178: 0 | S178: =IF(N178="",0,VLOOKUP(N178,Ville!$A$3:$E$40,3,0)) -> 03:30:00 | U178: 5 | V178: 4 | Z178: 2 | AC178: 9 | AD178: 9 | AE178: =IF(N178="","",VLOOKUP(N178,Ville!$A$3:$E$40,2,0)) -> 366 | AT178: 0 | AZ178: 1
G179: 2010 | H179: =IF(K179="","",VLOOKUP(I179,'Suiv Contr '!$D$14:$E$25,2)) -> août | I179: 8 | J179: 4 | K179: 2010-08-19 | L179: Germain | M179: Champagnole | N179: Champagnole | Q179: =IF(N179="","",VLOOKUP(N179,Ville!$A$3:$E$40,4,0)) -> p | R179: 0 | S179: =IF(N179="",0,VLOOKUP(N179,Ville!$A$3:$E$40,3,0)) -> 00:00:00 | U179: 6 | V179: 8 | Y179: 1 | AA179: 2 | AC179: 14 | AD179: 15 | AE179: =IF(N179="","",VLOOKUP(N179,Ville!$A$3:$E$40,2,0)) -> 0 | AT179: 0
G180: 2010 | H180: =IF(K180="","",VLOOKUP(I180,'Suiv Contr '!$D$14:$E$25,2)) -> août | I180: 8 | J180: 5 | K180: 2010-08-20 | L180: Germain | M180: Thann | N180: Thann | Q180: =IF(N180="","",VLOOKUP(N180,Ville!$A$3:$E$40,4,0)) -> ca | R180: 0 | S180: =IF(N180="",0,VLOOKUP(N180,Ville!$A$3:$E$40,3,0)) -> 04:30:00 | U180: 8 | W180: 2 | Y180: 1 | AC180: 10 | AD180: 11 | AE180: =IF(N180="","",VLOOKUP(N180,Ville!$A$3:$E$40,2,0)) -> 402 | AT180: 0 | AZ180: 1
G181: 2010 | H181: =IF(K181="","",VLOOKUP(I181,'Suiv Contr '!$D$14:$E$25,2)) -> août | I181: 8 | J181: 1 | K181: 2010-08-23 | L181: Germain | M181: Champagnole | N181: Champagnole | Q181: =IF(N181="","",VLOOKUP(N181,Ville!$A$3:$E$40,4,0)) -> p | R181: 0 | S181: =IF(N181="",0,VLOOKUP(N181,Ville!$A$3:$E$40,3,0)) -> 00:00:00 | U181: 1 | Y181: 1 | AC181: 1 | AD181: 2 | AE181: =IF(N181="","",VLOOKUP(N181,Ville!$A$3:$E$40,2,0)) -> 0 | AT181: 0
G182: 2010 | H182: =IF(K182="","",VLOOKUP(I182,'Suiv Contr '!$D$14:$E$25,2)) -> août | I182: 8 | J182: 2 | K182: 2010-08-24 | L182: Germain | M182: Champagnole | N182: Champagnole | Q182: =IF(N182="","",VLOOKUP(N182,Ville!$A$3:$E$40,4,0)) -> p | R182: 0 | S182: =IF(N182="",0,VLOOKUP(N182,Ville!$A$3:$E$40,3,0)) -> 00:00:00 | U182: 7 | V182: 4 | Z182: 1 | AA182: 2 | AC182: 11 | AD182: 11 | AE182: =IF(N182="","",VLOOKUP(N182,Ville!$A$3:$E$40,2,0)) -> 0 | AT182: 0
G183: 2010 | H183: =IF(K183="","",VLOOKUP(I183,'Suiv Contr '!$D$14:$E$25,2)) -> août | I183: 8 | J183: 3 | K183: 2010-08-25 | L183: Germain | M183: Fains les Montbard | N183: Fains les Montbard | Q183: =IF(N183="","",VLOOKUP(N183,Ville!$A$3:$E$40,4,0)) -> sp | R183: 0 | S183: =IF(N183="",0,VLOOKUP(N183,Ville!$A$3:$E$40,3,0)) -> 03:30:00 | U183: 2 | V183: 3 | AC183: 5 | AD183: 5 | AE183: =IF(N183="","",VLOOKUP(N183,Ville!$A$3:$E$40,2,0)) -> 366 | AT183: 0 | AZ183: 1
G184: 2010 | H184: =IF(K184="","",VLOOKUP(I184,'Suiv Contr '!$D$14:$E$25,2)) -> août | I184: 8 | J184: 4 | K184: 2010-08-26 | L184: Germain | M184: Champagnole | N184: Champagnole | Q184: =IF(N184="","",VLOOKUP(N184,Ville!$A$3:$E$40,4,0)) -> p | R184: 0 | S184: =IF(N184="",0,VLOOKUP(N184,Ville!$A$3:$E$40,3,0)) -> 00:00:00 | U184: 1 | V184: 3 | Y184: 2 | AC184: 4 | AD184: 6 | AE184: =IF(N184="","",VLOOKUP(N184,Ville!$A$3:$E$40,2,0)) -> 0 | AT184: 0
G185: 2010 | H185: =IF(K185="","",VLOOKUP(I185,'Suiv Contr '!$D$14:$E$25,2)) -> août | I185: 8 | J185: 5 | K185: 2010-08-27 | L185: Germain | M185: Champagnole | N185: Champagnole | Q185: =IF(N185="","",VLOOKUP(N185,Ville!$A$3:$E$40,4,0)) -> p | R185: 0 | S185: =IF(N185="",0,VLOOKUP(N185,Ville!$A$3:$E$40,3,0)) -> 00:00:00 | U185: 3 | V185: 4 | Y185: 1 | AC185: 7 | AD185: 8 | AE185: =IF(N185="","",VLOOKUP(N185,Ville!$A$3:$E$40,2,0)) -> 0 | AT185: 0
G186: 2010 | H186: =IF(K186="","",VLOOKUP(I186,'Suiv Contr '!$D$14:$E$25,2)) -> août | I186: 8 | J186: 1 | K186: 2010-08-30 | L186: Germain | M186: Champagnole | N186: Champagnole | Q186: v | R186: 1 | S186: =IF(N186="",0,VLOOKUP(N186,Ville!$A$3:$E$40,3,0)) -> 00:00:00 | AC186: 0 | AD186: 0 | AE186: =IF(N186="","",VLOOKUP(N186,Ville!$A$3:$E$40,2,0)) -> 0 | AT186: 0
G187: 2010 | H187: =IF(K187="","",VLOOKUP(I187,'Suiv Contr '!$D$14:$E$25,2)) -> août | I187: 8 | J187: 2 | K187: 2010-08-31 | L187: Germain | M187: Champagnole | N187: Champagnole | Q187: v | R187: 1 | S187: =IF(N187="",0,VLOOKUP(N187,Ville!$A$3:$E$40,3,0)) -> 00:00:00 | AC187: 0 | AD187: 0 | AE187: =IF(N187="","",VLOOKUP(N187,Ville!$A$3:$E$40,2,0)) -> 0 | AT187: 0
G188: 2010 | H188: =IF(K188="","",VLOOKUP(I188,'Suiv Contr '!$D$14:$E$25,2)) -> septembre | I188: 9 | J188: 3 | K188: 2010-09-01 | L188: Germain | M188: Champagnole | N188: Champagnole | Q188: v | R188: 1 | S188: =IF(N188="",0,VLOOKUP(N188,Ville!$A$3:$E$40,3,0)) -> 00:00:00 | AC188: 0 | AD188: 0 | AE188: =IF(N188="","",VLOOKUP(N188,Ville!$A$3:$E$40,2,0)) -> 0 | AT188: 0
G189: 2010 | H189: =IF(K189="","",VLOOKUP(I189,'Suiv Contr '!$D$14:$E$25,2)) -> septembre | I189: 9 | J189: 4 | K189: 2010-09-02 | L189: Germain | M189: Champagnole | N189: Champagnole | Q189: v | R189: 1 | S189: =IF(N189="",0,VLOOKUP(N189,Ville!$A$3:$E$40,3,0)) -> 00:00:00 | AC189: 0 | AD189: 0 | AE189: =IF(N189="","",VLOOKUP(N189,Ville!$A$3:$E$40,2,0)) -> 0 | AT189: 0
G190: 2010 | H190: =IF(K190="","",VLOOKUP(I190,'Suiv Contr '!$D$14:$E$25,2)) -> septembre | I190: 9 | J190: 5 | K190: 2010-09-03 | L190: Germain | M190: Champagnole | N190: Champagnole | Q190: v | R190: 1 | S190: =IF(N190="",0,VLOOKUP(N190,Ville!$A$3:$E$40,3,0)) -> 00:00:00 | AC190: 0 | AD190: 0 | AE190: =IF(N190="","",VLOOKUP(N190,Ville!$A$3:$E$40,2,0)) -> 0 | AT190: 0 | AY190: =IF(Q190="rec","=1","") -> 
G191: 2010 | H191: =IF(K191="","",VLOOKUP(I191,'Suiv Contr '!$D$14:$E$25,2)) -> septembre | I191: 9 | J191: 5 | K191: 2010-09-03 | L191: Villefranche | M191: Champagnole | N191: Champagnole | Q191: ex | R191: 0 | S191: =IF(N191="",0,VLOOKUP(N191,Ville!$A$3:$E$40,3,0)) -> 00:00:00 | U191: 1 | V191: 2 | Y191: 1 | AC191: 3 | AD191: 4 | AE191: =IF(N191="","",VLOOKUP(N191,Ville!$A$3:$E$40,2,0)) -> 0 | AT191: 0 | AW191: =IF(K191=$B$2,1,"") ->  | AX191: =IF(Q191="v",3,"") ->  | AY191: =IF(Q191="rec",2,"") -> 
G192: 2010 | H192: =IF(K192="","",VLOOKUP(I192,'Suiv Contr '!$D$14:$E$25,2)) -> septembre | I192: 9 | J192: 1 | K192: 2010-09-06 | L192: Germain | M192: 00:00:00 | Q192: v | R192: 1 | S192: =IF(N192="",0,VLOOKUP(N192,Ville!$A$3:$E$40,3,0)) -> 00:00:00 | AC192: 0 | AD192: 0 | AE192: =IF(N192="","",VLOOKUP(N192,Ville!$A$3:$E$40,2,0)) ->  | AT192: 0 | AW192: =IF(K192=$B$2,1,"") ->  | AX192: =IF(Q192="v",3,"") -> 3 | AY192: =IF(Q192="rec",2,"") -> 
G193: 2010 | H193: =IF(K193="","",VLOOKUP(I193,'Suiv Contr '!$D$14:$E$25,2)) -> septembre | I193: 9 | J193: 2 | K193: 2010-09-07 | L193: Germain | M193: 00:00:00 | Q193: v | R193: 1 | S193: =IF(N193="",0,VLOOKUP(N193,Ville!$A$3:$E$40,3,0)) -> 00:00:00 | AC193: 0 | AD193: 0 | AE193: =IF(N193="","",VLOOKUP(N193,Ville!$A$3:$E$40,2,0)) ->  | AT193: 0 | AX193: =IF(Q193="v",3,"") -> 3 | AY193: =IF(Q193="rec",2,"") -> 
G194: 2010 | H194: =IF(K194="","",VLOOKUP(I194,'Suiv Contr '!$D$14:$E$25,2)) -> septembre | I194: 9 | J194: 2 | K194: 2010-09-07 | L194: Villefranche | M194: Champagnole | N194: Champagnole | Q194: ex | R194: 0 | S194: =IF(N194="",0,VLOOKUP(N194,Ville!$A$3:$E$40,3,0)) -> 00:00:00 | U194: 7 | V194: 1 | Z194: 2 | AC194: 8 | AD194: 8 | AE194: =IF(N194="","",VLOOKUP(N194,Ville!$A$3:$E$40,2,0)) -> 0 | AT194: 0
G195: 2010 | H195: =IF(K195="","",VLOOKUP(I195,'Suiv Contr '!$D$14:$E$25,2)) -> septembre | I195: 9 | J195: 3 | K195: 2010-09-08 | L195: Germain | M195: 00:00:00 | Q195: v | R195: 1 | S195: =IF(N195="",0,VLOOKUP(N195,Ville!$A$3:$E$40,3,0)) -> 00:00:00 | AC195: 0 | AD195: 0 | AE195: =IF(N195="","",VLOOKUP(N195,Ville!$A$3:$E$40,2,0)) ->  | AT195: 0 | AX195: 3
G196: 2010 | H196: =IF(K196="","",VLOOKUP(I196,'Suiv Contr '!$D$14:$E$25,2)) -> septembre | I196: 9 | J196: 4 | K196: 2010-09-09 | L196: Germain | M196: 00:00:00 | Q196: v | R196: 1 | S196: =IF(N196="",0,VLOOKUP(N196,Ville!$A$3:$E$40,3,0)) -> 00:00:00 | AC196: 0 | AD196: 0 | AE196: =IF(N196="","",VLOOKUP(N196,Ville!$A$3:$E$40,2,0)) ->  | AT196: 0 | AX196: =IF(Q196="v",3,"") -> 3 | AY196: =IF(Q196="rec",2,"") -> 
G197: 2010 | H197: =IF(K197="","",VLOOKUP(I197,'Suiv Contr '!$D$14:$E$25,2)) -> septembre | I197: 9 | J197: 4 | K197: 2010-09-09 | L197: Villefranche | M197: Champagnole | N197: Champagnole | Q197: ex | R197: 0 | S197: =IF(N197="",0,VLOOKUP(N197,Ville!$A$3:$E$40,3,0)) -> 00:00:00 | U197: 4 | V197: 3 | Z197: 3 | AC197: 7 | AD197: 7 | AE197: =IF(N197="","",VLOOKUP(N197,Ville!$A$3:$E$40,2,0)) -> 0 | AT197: 0
G198: 2010 | H198: =IF(K198="","",VLOOKUP(I198,'Suiv Contr '!$D$14:$E$25,2)) -> septembre | I198: 9 | J198: 5 | K198: 2010-09-10 | L198: Germain | M198: 00:00:00 | Q198: v | R198: 1 | S198: =IF(N198="",0,VLOOKUP(N198,Ville!$A$3:$E$40,3,0)) -> 00:00:00 | AC198: 0 | AD198: 0 | AE198: =IF(N198="","",VLOOKUP(N198,Ville!$A$3:$E$40,2,0)) ->  | AT198: 0 | AX198: 3
G199: 2010 | H199: =IF(K199="","",VLOOKUP(I199,'Suiv Contr '!$D$14:$E$25,2)) -> septembre | I199: 9 | J199: 1 | K199: 2010-09-13 | L199: Germain | M199: 00:00:00 | Q199: v | R199: 1 | S199: =IF(N199="",0,VLOOKUP(N199,Ville!$A$3:$E$40,3,0)) -> 00:00:00 | AC199: 0 | AD199: 0 | AE199: =IF(N199="","",VLOOKUP(N199,Ville!$A$3:$E$40,2,0)) ->  | AT199: 0 | AX199: 3
G200: 2010 | H200: =IF(K200="","",VLOOKUP(I200,'Suiv Contr '!$D$14:$E$25,2)) -> septembre | I200: 9 | J200: 2 | K200: 2010-09-14 | L200: Germain | M200: 00:00:00 | Q200: v | R200: 1 | S200: =IF(N200="",0,VLOOKUP(N200,Ville!$A$3:$E$40,3,0)) -> 00:00:00 | AC200: 0 | AD200: 0 | AE200: =IF(N200="","",VLOOKUP(N200,Ville!$A$3:$E$40,2,0)) ->  | AT200: 0 | AX200: 3
G201: 2010 | H201: =IF(K201="","",VLOOKUP(I201,'Suiv Contr '!$D$14:$E$25,2)) -> septembre | I201: 9 | J201: 2 | K201: 2010-09-14 | L201: Villefranche | M201: Champagnole | N201: Champagnole | Q201: ex | R201: 0 | S201: =IF(N201="",0,VLOOKUP(N201,Ville!$A$3:$E$40,3,0)) -> 00:00:00 | U201: 6 | V201: 3 | Y201: 1 | Z201: 1 | AC201: 9 | AD201: 10 | AE201: =IF(N201="","",VLOOKUP(N201,Ville!$A$3:$E$40,2,0)) -> 0 | AT201: 0
... 996 more rows

Sheet Recap
A1: CHAMPAGNOLE
A2: mois | B2: année | C2: ville | D2: mois | E2: année | F2: ville | G2: mois | H2: année | I2: ville
A3: janvier | B3: 2010 | C3: champagnole | D3: janvier | E3: 2011 | F3: champagnole | G3: janvier | H3: 2012 | I3: champagnole
A4: mois | B4: année | C4: ville | D4: mois | E4: année | F4: ville | G4: mois | H4: année | I4: ville
A5: février | B5: 2010 | C5: champagnole | D5: février | E5: 2011 | F5: champagnole | G5: février | H5: 2012 | I5: champagnole
A6: mois | B6: année | C6: ville | D6: mois | E6: année | F6: ville | G6: mois | H6: année | I6: ville
A7: mars | B7: 2010 | C7: champagnole | D7: mars | E7: 2011 | F7: champagnole | G7: mars | H7: 2012 | I7: champagnole
A8: mois | B8: année | C8: ville | D8: mois | E8: année | F8: ville | G8: mois | H8: année | I8: ville
A9: avril | B9: 2010 | C9: champagnole | D9: avril | E9: 2011 | F9: champagnole | G9: avril | H9: 2012 | I9: champagnole
A10: mois | B10: année | C10: ville | D10: mois | E10: année | F10: ville | G10: mois | H10: année | I10: ville
A11: mai | B11: 2010 | C11: champagnole | D11: mai | E11: 2011 | F11: champagnole | G11: mai | H11: 2012 | I11: champagnole
A12: mois | B12: année | C12: ville | D12: mois | E12: année | F12: ville | G12: mois | H12: année | I12: ville
A13: juin | B13: 2010 | C13: champagnole | D13: juin | E13: 2011 | F13: champagnole | G13: juin | H13: 2012 | I13: champagnole
A14: mois | B14: année | C14: ville | D14: mois | E14: année | F14: ville | G14: mois | H14: année | I14: ville
A15: juillet | B15: 2010 | C15: champagnole | D15: juillet | E15: 2011 | F15: champagnole | G15: juillet | H15: 2012 | I15: champagnole
A16: mois | B16: année | C16: ville | D16: mois | E16: année | F16: ville | G16: mois | H16: année | I16: ville
A17: août | B17: 2010 | C17: champagnole | D17: août | E17: 2011 | F17: champagnole | G17: août | H17: 2012 | I17: champagnole
A18: mois | B18: année | C18: ville | D18: mois | E18: année | F18: ville | G18: mois | H18: année | I18: ville
A19: septembre | B19: 2010 | C19: champagnole | D19: septembre | E19: 2011 | F19: champagnole | G19: septembre | H19: 2012 | I19: champagnole
A20: mois | B20: année | C20: ville | D20: mois | E20: année | F20: ville | G20: mois | H20: année | I20: ville
A21: octobre | B21: 2010 | C21: champagnole | D21: octobre | E21: 2011 | F21: champagnole | G21: octobre | H21: 2012 | I21: champagnole
A22: mois | B22: année | C22: ville | D22: mois | E22: année | F22: ville | G22: mois | H22: année | I22: ville
A23: novembre | B23: 2010 | C23: champagnole | D23: novembre | E23: 2011 | F23: champagnole | G23: novembre | H23: 2012 | I23: champagnole
A24: mois | B24: année | C24: ville | D24: mois | E24: année | F24: ville | G24: mois | H24: année | I24: ville
A25: décembre | B25: 2010 | C25: champagnole | D25: décembre | E25: 2011 | F25: champagnole | G25: décembre | H25: 2012 | I25: champagnole
B28: 2010 | C28: 2011 | D28: 2012 | F28: Activité CHAMPAGNOLE
A29: janvier | B29: =DSUM('Suiv Contr '!$A$12:$AG$1228,'Suiv Contr '!$AD$12,A2:C3) -> 90 | C29: =DSUM('Suiv Contr '!$A$12:$AG$1228,'Suiv Contr '!$AD$12,D2:F3) -> 97 | D29: =DSUM('Suiv Contr '!$A$12:$AG$1228,'Suiv Contr '!$AD$12,G2:I3) -> 84
A30: février | B30: =DSUM('Suiv Contr '!$A$12:$AG$1228,'Suiv Contr '!$AD$12,A4:C5) -> 96 | C30: =DSUM('Suiv Contr '!$A$12:$AG$1228,'Suiv Contr '!$AD$12,D4:F5) -> 89 | D30: =DSUM('Suiv Contr '!$A$12:$AG$1228,'Suiv Contr '!$AD$12,G4:I5) -> 83
A31: mars | B31: =DSUM('Suiv Contr '!$A$12:$AG$1228,'Suiv Contr '!$AD$12,A6:C7) -> 109 | C31: =DSUM('Suiv Contr '!$A$12:$AG$1228,'Suiv Contr '!$AD$12,D6:F7) -> 94 | D31: =DSUM('Suiv Contr '!$A$12:$AG$1228,'Suiv Contr '!$AD$12,G6:I7) -> 92
A32: avril | B32: =DSUM('Suiv Contr '!$A$12:$AG$1228,'Suiv Contr '!$AD$12,A8:C9) -> 85 | C32: =DSUM('Suiv Contr '!$A$12:$AG$1228,'Suiv Contr '!$AD$12,D8:F9) -> 64 | D32: =DSUM('Suiv Contr '!$A$12:$AG$1228,'Suiv Contr '!$AD$12,G8:I9) -> 77
A33: mai | B33: =DSUM('Suiv Contr '!$A$12:$AG$1228,'Suiv Contr '!$AD$12,A10:C11) -> 77 | C33: =DSUM('Suiv Contr '!$A$12:$AG$1228,'Suiv Contr '!$AD$12,D10:F11) -> 102 | D33: =DSUM('Suiv Contr '!$A$12:$AG$1228,'Suiv Contr '!$AD$12,G10:I11) -> 93
A34: juin | B34: =DSUM('Suiv Contr '!$A$12:$AG$1228,'Suiv Contr '!$AD$12,A12:C13) -> 129 | C34: =DSUM('Suiv Contr '!$A$12:$AG$1228,'Suiv Contr '!$AD$12,D12:F13) -> 111 | D34: =DSUM('Suiv Contr '!$A$12:$AG$1228,'Suiv Contr '!$AD$12,G12:I13) -> 130
A35: juillet | B35: =DSUM('Suiv Contr '!$A$12:$AG$1228,'Suiv Contr '!$AD$12,A14:C15) -> 129 | C35: =DSUM('Suiv Contr '!$A$12:$AG$1228,'Suiv Contr '!$AD$12,D14:F15) -> 104 | D35: =DSUM('Suiv Contr '!$A$12:$AG$1228,'Suiv Contr '!$AD$12,G14:I15) -> 111
A36: août | B36: =DSUM('Suiv Contr '!$A$12:$AG$1228,'Suiv Contr '!$AD$12,A16:C17) -> 109 | C36: =DSUM('Suiv Contr '!$A$12:$AG$1228,'Suiv Contr '!$AD$12,D16:F17) -> 105 | D36: =DSUM('Suiv Contr '!$A$12:$AG$1228,'Suiv Contr '!$AD$12,G16:I17) -> 75
A37: septembre | B37: =DSUM('Suiv Contr '!$A$12:$AG$1228,'Suiv Contr '!$AD$12,A18:C19) -> 87 | C37: =DSUM('Suiv Contr '!$A$12:$AG$1228,'Suiv Contr '!$AD$12,D18:F19) -> 93 | D37: =DSUM('Suiv Contr '!$A$12:$AG$1228,'Suiv Contr '!$AD$12,G18:I19) -> 110
A38: octobre | B38: =DSUM('Suiv Contr '!$A$12:$AG$1228,'Suiv Contr '!$AD$12,A20:C21) -> 111 | C38: =DSUM('Suiv Contr '!$A$12:$AG$1228,'Suiv Contr '!$AD$12,D20:F21) -> 86 | D38: =DSUM('Suiv Contr '!$A$12:$AG$1228,'Suiv Contr '!$AD$12,G20:I21) -> 96
A39: novembre | B39: =DSUM('Suiv Contr '!$A$12:$AG$1228,'Suiv Contr '!$AD$12,A22:C23) -> 81 | C39: =DSUM('Suiv Contr '!$A$12:$AG$1228,'Suiv Contr '!$AD$12,D22:F23) -> 67 | D39: =DSUM('Suiv Contr '!$A$12:$AG$1228,'Suiv Contr '!$AD$12,G22:I23) -> 59
A40: décembre | B40: =DSUM('Suiv Contr '!$A$12:$AG$1228,'Suiv Contr '!$AD$12,A24:C25) -> 51 | C40: =DSUM('Suiv Contr '!$A$12:$AG$1228,'Suiv Contr '!$AD$12,D24:F25) -> 57 | D40: =DSUM('Suiv Contr '!$A$12:$AG$1228,'Suiv Contr '!$AD$12,G24:I25) -> 50
B41: =SUM(B29:B40) -> 1154 | C41: =SUM(C29:C40) -> 1069 | D41: =SUM(D29:D40) -> 1060
C42: =C41-B41 -> -85 | D42: =D41-C41 -> -9
I49: =EDATE(J49,-12) -> 2012-04-02 | J49: =TODAY() -> 2013-04-02
I50: =janvier11+fevrier11+mars11+avril11+_mai2011+juin11+juillet11+aout11+septembre11+octobre11+novembre11+decembre11 -> 1069 | J50: =janvier12+fevrier12+mars12+avril12+_mai12+juin12+juillet12+aout12+septembre12+octobre12+novembre12+decembre12 -> 1060 | K50: =J50-I50 -> -9

Sheet Données1
A3: 1 | B3: P | C3: 1 | D3: e | E3: e | K3: MOIS | L3: NB jour | N3: Pointage | P3: VILLEFRANCHE | W3: Année : | X3: 2012
A4: M | B4: Pointage | C4: M | D4: Pointage | K4: Janv | N4: e | V4: jour | W4: fete | Z4: année | AA4: ville | AB4: mois | AC4: nom | AD4: Km | AF4: année | AG4: ville | AH4: mois | AI4: nom | AJ4: Km
A5: 2 | B5: P | C5: 2 | D5: e | K5: Févr | N5: P | V5: 1900-01-01 | W5: Jour de l'An | Z5: =IF('Suiv Contr '!G4="","",'Suiv Contr '!G4) -> 2013 | AB5: =IF('Suiv Contr '!$K$4="","",'Suiv Contr '!$K$4) -> Mars | AC5: =IF('Suiv Contr '!$L$4="","",'Suiv Contr '!$L$4) ->  | AF5: =IF('Suiv Contr '!$G$4="","",'Suiv Contr '!$G$4) -> 2013 | AG5: =IF('Suiv Contr '!$H$4="","",'Suiv Contr '!$H$4) -> Champagnole | AH5: =IF('Suiv Contr '!$K$4="","",'Suiv Contr '!$K$4) -> Mars | AI5: =IF('Suiv Contr '!$L$4="","",'Suiv Contr '!$L$4) -> 
A6: M | B6: Pointage | C6: M | D6: Pointage | K6: Mars | V6: 1900-01-02 | W6: St Basile | Z6: année | AA6: ville | AB6: mois | AC6: nom | AD6: pointage | AF6: année | AG6: ville | AH6: mois | AI6: nom | AJ6: pointage
A7: 3 | B7: P | C7: 3 | D7: e | K7: Avr | V7: 1900-01-03 | W7: Ste Geneviève | Z7: =IF('Suiv Contr '!G4="","",'Suiv Contr '!G4) -> 2013 | AB7: =IF('Suiv Contr '!K4="","",'Suiv Contr '!K4) -> Mars | AD7: ex | AF7: =IF('Suiv Contr '!$G$4="","",'Suiv Contr '!$G$4) -> 2013 | AG7: =IF('Suiv Contr '!$H$4="","",'Suiv Contr '!$H$4) -> Champagnole | AH7: =IF('Suiv Contr '!$K$4="","",'Suiv Contr '!$K$4) -> Mars | AI7: =IF('Suiv Contr '!$L$4="","",'Suiv Contr '!$L$4) ->  | AJ7: ex
A8: M | B8: Pointage | C8: M | D8: Pointage | K8: Mai | V8: 1900-01-04 | W8: St Odilon | Z8: année | AA8: ville | AB8: mois | AC8: nom | AD8: pointage | AF8: année | AG8: ville | AH8: mois | AI8: nom | AJ8: pointage
A9: 4 | B9: P | C9: 4 | D9: e | K9: Juin | M9: T2 | N9: M | P9: T3 | Q9: M | S9: T4 | T9: M | V9: 1900-01-05 | W9: St Edouard | Z9: =IF('Suiv Contr '!G4="","",'Suiv Contr '!G4) -> 2013 | AB9: =IF('Suiv Contr '!K4="","",'Suiv Contr '!K4) -> Mars | AC9: =IF('Suiv Contr '!L4="","",'Suiv Contr '!L4) ->  | AD9: p | AF9: =IF('Suiv Contr '!$G$4="","",'Suiv Contr '!$G$4) -> 2013 | AG9: =IF('Suiv Contr '!$H$4="","",'Suiv Contr '!$H$4) -> Champagnole | AH9: =IF('Suiv Contr '!$K$4="","",'Suiv Contr '!$K$4) -> Mars | AI9: =IF('Suiv Contr '!$L$4="","",'Suiv Contr '!$L$4) ->  | AJ9: p
A10: M | B10: Pointage | C10: M | D10: Pointage | K10: Juil | M10: >0 | N10: 1 | P10: >0 | Q10: 1 | S10: >0 | T10: 1 | V10: 1900-01-06 | W10: Ste Melaine | Z10: année | AA10: ville | AB10: mois | AC10: nom | AD10: pointage | AF10: année | AG10: ville | AH10: mois | AI10: nom | AJ10: pointage
A11: 5 | B11: P | C11: 5 | D11: e | K11: Août | M11: T2 | N11: M | P11: T3 | Q11: M | S11: T4 | T11: M | V11: 1900-01-07 | W11: St Raymond | Z11: =IF('Suiv Contr '!$G$4="","",'Suiv Contr '!$G$4) -> 2013 | AB11: =IF('Suiv Contr '!$K$4="","",'Suiv Contr '!$K$4) -> Mars | AC11: =IF('Suiv Contr '!$L$4="","",'Suiv Contr '!$L$4) ->  | AD11: ca | AF11: =IF('Suiv Contr '!$G$4="","",'Suiv Contr '!$G$4) -> 2013 | AG11: =IF('Suiv Contr '!$H$4="","",'Suiv Contr '!$H$4) -> Champagnole | AH11: =IF('Suiv Contr '!$K$4="","",'Suiv Contr '!$K$4) -> Mars | AI11: =IF('Suiv Contr '!$L$4="","",'Suiv Contr '!$L$4) ->  | AJ11: ca
A12: M | B12: Pointage | C12: M | D12: Pointage | K12: Sept | M12: >0 | N12: 2 | P12: >0 | Q12: 2 | S12: >0 | T12: 2 | V12: 1900-01-08 | W12: St Lucien | Z12: année | AA12: ville | AB12: mois | AC12: nom | AD12: pointage | AF12: année | AG12: ville | AH12: mois | AI12: nom | AJ12: pointage
A13: 6 | B13: P | C13: 6 | D13: e | K13: Oct | M13: T2 | N13: M | P13: T3 | Q13: M | S13: T4 | T13: M | V13: 1900-01-09 | W13: Ste Alix | Z13: =IF('Suiv Contr '!$G$4="","",'Suiv Contr '!$G$4) -> 2013 | AB13: =IF('Suiv Contr '!$K$4="","",'Suiv Contr '!$K$4) -> Mars | AC13: =IF('Suiv Contr '!$L$4="","",'Suiv Contr '!$L$4) ->  | AD13: sp | AF13: =IF('Suiv Contr '!$G$4="","",'Suiv Contr '!$G$4) -> 2013 | AG13: =IF('Suiv Contr '!$H$4="","",'Suiv Contr '!$H$4) -> Champagnole | AH13: =IF('Suiv Contr '!$K$4="","",'Suiv Contr '!$K$4) -> Mars | AI13: =IF('Suiv Contr '!$L$4="","",'Suiv Contr '!$L$4) ->  | AJ13: sp
A14: M | B14: Pointage | C14: M | D14: Pointage | K14: Nov | M14: >0 | N14: 3 | P14: >0 | Q14: 3 | S14: >0 | T14: 3 | V14: 1900-01-10 | W14: St Guillaume | Z14: année | AA14: ville | AB14: mois | AC14: nom | AD14: pointage | AF14: année | AG14: ville | AH14: mois | AI14: nom | AJ14: pointage
A15: 7 | B15: P | C15: 7 | D15: e | K15: Déc | M15: T2 | N15: M | P15: T3 | Q15: M | S15: T4 | T15: M | V15: 1900-01-11 | W15: St Paulin | Z15: =IF('Suiv Contr '!$G$4="","",'Suiv Contr '!$G$4) -> 2013 | AB15: =IF('Suiv Contr '!$K$4="","",'Suiv Contr '!$K$4) -> Mars | AC15: =IF('Suiv Contr '!$L$4="","",'Suiv Contr '!$L$4) ->  | AD15: f | AF15: =IF('Suiv Contr '!$G$4="","",'Suiv Contr '!$G$4) -> 2013 | AG15: =IF('Suiv Contr '!$H$4="","",'Suiv Contr '!$H$4) -> Champagnole | AH15: =IF('Suiv Contr '!$K$4="","",'Suiv Contr '!$K$4) -> Mars | AI15: =IF('Suiv Contr '!$L$4="","",'Suiv Contr '!$L$4) ->  | AJ15: f
A16: M | B16: Pointage | C16: M | D16: Pointage | M16: >0 | N16: 4 | P16: >0 | Q16: 4 | S16: >0 | T16: 4 | V16: 1900-01-12 | W16: Ste Tatiana | Z16: année | AA16: ville | AB16: mois | AC16: nom | AD16: pointage | AF16: année | AG16: ville | AH16: mois | AI16: nom | AJ16: pointage
A17: 8 | B17: P | C17: 8 | D17: e | M17: T2 | N17: M | P17: T3 | Q17: M | S17: T4 | T17: M | V17: 1900-01-13 | W17: Ste Yvette | Z17: =IF('Suiv Contr '!$G$4="","",'Suiv Contr '!$G$4) -> 2013 | AB17: =IF('Suiv Contr '!$K$4="","",'Suiv Contr '!$K$4) -> Mars | AC17: =IF('Suiv Contr '!$L$4="","",'Suiv Contr '!$L$4) ->  | AD17: m | AF17: =IF('Suiv Contr '!$G$4="","",'Suiv Contr '!$G$4) -> 2013 | AG17: =IF('Suiv Contr '!$H$4="","",'Suiv Contr '!$H$4) -> Champagnole | AH17: =IF('Suiv Contr '!$K$4="","",'Suiv Contr '!$K$4) -> Mars | AI17: =IF('Suiv Contr '!$L$4="","",'Suiv Contr '!$L$4) ->  | AJ17: m
A18: M | B18: Pointage | C18: M | D18: Pointage | M18: >0 | N18: 5 | P18: >0 | Q18: 5 | S18: >0 | T18: 5 | V18: 1900-01-14 | W18: Ste Nina | Z18: année | AA18: ville | AB18: mois | AC18: nom | AD18: pointage | AF18: année | AG18: ville | AH18: mois | AI18: nom | AJ18: pointage
A19: 9 | B19: P | C19: 9 | D19: e | M19: T2 | N19: M | P19: T3 | Q19: M | S19: T4 | T19: M | V19: 1900-01-15 | W19: St Rémi | Z19: =IF('Suiv Contr '!$G$4="","",'Suiv Contr '!$G$4) -> 2013 | AB19: =IF('Suiv Contr '!$K$4="","",'Suiv Contr '!$K$4) -> Mars | AC19: =IF('Suiv Contr '!$L$4="","",'Suiv Contr '!$L$4) ->  | AD19: reu | AF19: =IF('Suiv Contr '!$G$4="","",'Suiv Contr '!$G$4) -> 2013 | AG19: =IF('Suiv Contr '!$H$4="","",'Suiv Contr '!$H$4) -> Champagnole | AH19: =IF('Suiv Contr '!$K$4="","",'Suiv Contr '!$K$4) -> Mars | AI19: =IF('Suiv Contr '!$L$4="","",'Suiv Contr '!$L$4) ->  | AJ19: reu
A20: M | B20: Pointage | C20: M | D20: Pointage | M20: >0 | N20: 6 | P20: >0 | Q20: 6 | S20: >0 | T20: 6 | V20: 1900-01-16 | W20: St Marcel | Z20: année | AA20: mois | AB20: nom | AC20: pointage | AF20: année | AG20: mois | AH20: nom | AI20: pointage
A21: 10 | B21: P | C21: 10 | D21: e | M21: T2 | N21: M | P21: T3 | Q21: M | S21: T4 | T21: M | V21: 1900-01-17 | W21: Ste Roseline | Z21: =IF('Suiv Contr '!$G$4="","",'Suiv Contr '!$G$4) -> 2013 | AA21: =IF('Suiv Contr '!$K$4="","",'Suiv Contr '!$K$4) -> Mars | AB21: =IF('Suiv Contr '!$L$4="","",'Suiv Contr '!$L$4) ->  | AC21: v | AF21: =IF('Suiv Contr '!$G$4="","",'Suiv Contr '!$G$4) -> 2013 | AG21: =IF('Suiv Contr '!$K$4="","",'Suiv Contr '!$K$4) -> Mars | AH21: =IF('Suiv Contr '!$L$4="","",'Suiv Contr '!$L$4) ->  | AI21: v
A22: M | B22: Pointage | C22: M | D22: Pointage | M22: >0 | N22: 7 | P22: >0 | Q22: 7 | S22: >0 | T22: 7 | V22: 1900-01-18 | W22: Ste Prisca | Z22: année | AA22: mois | AB22: nom | AC22: pointage | AF22: année | AG22: mois | AH22: nom | AI22: pointage
A23: 11 | B23: P | C23: 11 | D23: e | M23: T2 | N23: M | P23: T3 | Q23: M | S23: T4 | T23: M | V23: 1900-01-19 | W23: St Marius | Z23: =IF('Suiv Contr '!$G$4="","",'Suiv Contr '!$G$4) -> 2013 | AA23: =IF('Suiv Contr '!$K$4="","",'Suiv Contr '!$K$4) -> Mars | AB23: =IF('Suiv Contr '!$L$4="","",'Suiv Contr '!$L$4) ->  | AC23: rec | AF23: =IF('Suiv Contr '!$G$4="","",'Suiv Contr '!$G$4) -> 2013 | AG23: =IF('Suiv Contr '!$K$4="","",'Suiv Contr '!$K$4) -> Mars | AH23: =IF('Suiv Contr '!$L$4="","",'Suiv Contr '!$L$4) ->  | AI23: rec
A24: M | B24: Pointage | C24: M | D24: Pointage | M24: >0 | N24: 8 | P24: >0 | Q24: 8 | S24: >0 | T24: 8 | V24: 1900-01-20 | W24: St Sébastien
A25: 12 | B25: P | C25: 12 | D25: e | M25: T2 | N25: M | P25: T3 | Q25: M | S25: T4 | T25: M | V25: 1900-01-21 | W25: Ste Agnès | Z25: année | AA25: ville | AB25: mois | AC25: nom | AD25: pointage | AF25: année | AG25: ville | AH25: mois | AI25: nom | AJ25: pointage
M26: >0 | N26: 9 | P26: >0 | Q26: 9 | S26: >0 | T26: 9 | V26: 1900-01-22 | W26: St Vincent | Z26: =IF('Suiv Contr '!$G$6="","",'Suiv Contr '!$G$6) -> 2012 | AB26: =IF('Suiv Contr '!$K$4="","",'Suiv Contr '!$K$4) -> Mars | AC26: =IF('Suiv Contr '!$L$4="","",'Suiv Contr '!$L$4) ->  | AD26: p | AF26: =IF('Suiv Contr '!$G$6="","",'Suiv Contr '!$G$6) -> 2012 | AG26: =IF('Suiv Contr '!$H4="","",'Suiv Contr '!$H4) -> Champagnole | AH26: =IF('Suiv Contr '!$K$4="","",'Suiv Contr '!$K$4) -> Mars | AI26: =IF('Suiv Contr '!$L$4="","",'Suiv Contr '!$L$4) ->  | AJ26: p
M27: T2 | N27: M | P27: T3 | Q27: M | S27: T4 | T27: M | V27: 1900-01-23 | W27: St Barnard | Z27: année | AA27: ville | AB27: mois | AC27: nom | AD27: pointage | AF27: année | AG27: ville | AH27: mois | AI27: nom | AJ27: pointage
M28: >0 | N28: 10 | P28: >0 | Q28: 10 | S28: >0 | T28: 10 | V28: 1900-01-24 | W28: St François de Sales | Z28: =IF('Suiv Contr '!$G$6="","",'Suiv Contr '!$G$6) -> 2012 | AA28: =IF('Suiv Contr '!$H2="","",'Suiv Contr '!$H2) ->  | AB28: =IF('Suiv Contr '!$K$4="","",'Suiv Contr '!$K$4) -> Mars | AC28: =IF('Suiv Contr '!$L$4="","",'Suiv Contr '!$L$4) ->  | AD28: ca | AF28: =IF('Suiv Contr '!$G$6="","",'Suiv Contr '!$G$6) -> 2012 | AG28: =IF('Suiv Contr '!$H2="","",'Suiv Contr '!$H2) ->  | AH28: =IF('Suiv Contr '!$K$4="","",'Suiv Contr '!$K$4) -> Mars | AI28: =IF('Suiv Contr '!$L$4="","",'Suiv Contr '!$L$4) ->  | AJ28: ca
M29: T2 | N29: M | P29: T3 | Q29: M | S29: T4 | T29: M | V29: 1900-01-25 | W29: Convers. de St Paul | Z29: année | AA29: ville | AB29: mois | AC29: nom | AD29: pointage | AF29: année | AG29: ville | AH29: mois | AI29: nom | AJ29: pointage
A30: Pointage | M30: >0 | N30: 11 | P30: >0 | Q30: 11 | S30: >0 | T30: 11 | V30: 1900-01-26 | W30: Ste Paule | Z30: =IF('Suiv Contr '!$G$6="","",'Suiv Contr '!$G$6) -> 2012 | AB30: =IF('Suiv Contr '!$K$4="","",'Suiv Contr '!$K$4) -> Mars | AC30: =IF('Suiv Contr '!$L$4="","",'Suiv Contr '!$L$4) ->  | AD30: sp | AF30: =IF('Suiv Contr '!$G$6="","",'Suiv Contr '!$G$6) -> 2012 | AG30: =IF('Suiv Contr '!$H4="","",'Suiv Contr '!$H4) -> Champagnole | AH30: =IF('Suiv Contr '!$K$4="","",'Suiv Contr '!$K$4) -> Mars | AI30: =IF('Suiv Contr '!$L$4="","",'Suiv Contr '!$L$4) ->  | AJ30: sp
A31: R | M31: T2 | N31: M | P31: T3 | Q31: M | S31: T4 | T31: M | V31: 1900-01-27 | W31: Ste Angel | Z31: année | AA31: ville | AB31: mois | AC31: nom | AD31: pointage | AF31: année | AG31: ville | AH31: mois | AI31: nom | AJ31: pointage
M32: >0 | N32: 12 | P32: >0 | Q32: 12 | S32: >0 | T32: 12 | V32: 1900-01-28 | W32: St Thomas d'Aquin | Z32: =IF('Suiv Contr '!$G$6="","",'Suiv Contr '!$G$6) -> 2012 | AB32: =IF('Suiv Contr '!$K$4="","",'Suiv Contr '!$K$4) -> Mars | AC32: =IF('Suiv Contr '!$L$4="","",'Suiv Contr '!$L$4) ->  | AD32: f | AF32: =IF('Suiv Contr '!$G$6="","",'Suiv Contr '!$G$6) -> 2012 | AG32: =IF('Suiv Contr '!$H4="","",'Suiv Contr '!$H4) -> Champagnole | AH32: =IF('Suiv Contr '!$K$4="","",'Suiv Contr '!$K$4) -> Mars | AI32: =IF('Suiv Contr '!$L$4="","",'Suiv Contr '!$L$4) ->  | AJ32: f
A33: Pointage | V33: 1900-01-29 | W33: St Gildas | Z33: année | AA33: ville | AB33: mois | AC33: nom | AD33: pointage | AF33: année | AG33: ville | AH33: mois | AI33: nom | AJ33: pointage
A34: P | V34: 1900-01-30 | W34: Ste Martine | Z34: =IF('Suiv Contr '!$G$6="","",'Suiv Contr '!$G$6) -> 2012 | AB34: =IF('Suiv Contr '!$K$4="","",'Suiv Contr '!$K$4) -> Mars | AC34: =IF('Suiv Contr '!$L$4="","",'Suiv Contr '!$L$4) ->  | AD34: m | AF34: =IF('Suiv Contr '!$G$6="","",'Suiv Contr '!$G$6) -> 2012 | AG34: =IF('Suiv Contr '!$H4="","",'Suiv Contr '!$H4) -> Champagnole | AH34: =IF('Suiv Contr '!$K$4="","",'Suiv Contr '!$K$4) -> Mars | AI34: =IF('Suiv Contr '!$L$4="","",'Suiv Contr '!$L$4) ->  | AJ34: m
V35: 1900-01-31 | W35: Ste Marcelle | Z35: année | AA35: ville | AB35: mois | AC35: nom | AD35: pointage | AF35: année | AG35: ville | AH35: mois | AI35: nom | AJ35: pointage
L36: besancon | M36: 150 | V36: 1900-02-01 | W36: Ste Ella | Z36: =IF('Suiv Contr '!$G$6="","",'Suiv Contr '!$G$6) -> 2012 | AB36: =IF('Suiv Contr '!$K$4="","",'Suiv Contr '!$K$4) -> Mars | AC36: =IF('Suiv Contr '!$L$4="","",'Suiv Contr '!$L$4) ->  | AD36: reu | AF36: =IF('Suiv Contr '!$G$6="","",'Suiv Contr '!$G$6) -> 2012 | AG36: =IF('Suiv Contr '!$H4="","",'Suiv Contr '!$H4) -> Champagnole | AH36: =IF('Suiv Contr '!$K$4="","",'Suiv Contr '!$K$4) -> Mars | AI36: =IF('Suiv Contr '!$L$4="","",'Suiv Contr '!$L$4) ->  | AJ36: reu
L37: cordesse | M37: 400 | V37: 1900-02-02 | W37: Prés. du Seigneur | Z37: année | AA37: ville | AB37: mois | AC37: nom | AD37: pointage | AF37: année | AG37: ville | AH37: mois | AI37: nom | AJ37: pointage
